Workbook

Sheet START
A1: =muni -> LIM353 Molemole

Sheet Instructions
D2: 2020
X4: Yes
X5: No
W7: Type of Entities Range: | X7: Parent Municipality
X8: Consolidated Information
W10: Date linked | X10: 5
W11: Date | X11: =VLOOKUP(X10,W39:X55,2) -> M05 November | Y11: 2013-08-01
W19: MTREF Range: | X19: 2008
X20: 2009
X21: 2010
X22: 2011
X23: 2012
X24: 2013
X25: 2014
X26: 2015
X27: 2016
X28: 2017
X29: 2018
X30: 2019
X31: 2020
X32: 2021
X33: 2022
W34: MTREF Linked:
W35: MTREF: | X35: 14
X36: =INDEX(X19:X33,X35,1) -> 2021
W37: Fin Year:
X38: =MTREF&"/"&RIGHT(MTREF,2)+1 -> 2021/22
V39: Date/type of report | W39: 1 | X39: M01 July
W40: 2 | X40: M02 August
W41: 3 | X41: M03 September
W42: 4 | X42: M04 October
W43: 5 | X43: M05 November
W44: 6 | X44: M06 December
W45: 7 | X45: M07 January
W46: 8 | X46: M08 February
W47: 9 | X47: M09 March
W48: 10 | X48: M10 April
W49: 11 | X49: M11 May
W50: 12 | X50: M12 June
W51: 13 | X51: Q1 First Quarter
W52: 14 | X52: Q2 Second Quarter
W53: 15 | X53: Q3 Third Quarter
W54: 16 | X54: Q4 Fourth Quarter
W55: 17 | X55: Mid-Year Assessment

Sheet Template names (hidden)
A1: Common sheet headings
A2: Head1 | B2: =HLOOKUP(MTREF,Headings,2) -> 2020/21 | C2: Prior year -1
A3: Head2 | B3: =HLOOKUP(MTREF,Headings,5) -> Budget Year 2021/22 | C3: Year of approved budget
A4: Head2A | B4: =HLOOKUP(MTREF,Headings,4) -> 2021/22 | C4: Approved budget year
A5: Head3 | B5: =HLOOKUP(MTREF,Headings,3) -> 2021/22 Medium Term Revenue & Expenditure Framework | C5: MTREF header name
A6: Head5 | B6: Audited Outcome
A7: Head5A | B7: Outcome
A8: Head5B | B8: Pre-audit outcome
A9: Head6 | B9: Original Budget
A10: Head7 | B10: Adjusted Budget
A11: Head8 | B11: Full Year Forecast
A12: Head9 | B12: =HLOOKUP(MTREF,Headings,5) -> Budget Year 2021/22 | C12: 1st year of MTREF | D12: Year1
A13: Head10 | B13: =HLOOKUP(MTREF,Headings,6) -> Budget Year +1 2022/23 | C13: 2nd year of MTREF | D13: Year2
A14: Head11 | B14: =HLOOKUP(MTREF,Headings,7) -> Budget Year +2 2023/24 | C14: 3rd year of MTREF | D14: Year3
A15: Head12 | B15: Forecast 2010/11 | D15: Year4
A16: Head13 | B16: Forecast 2011/12 | D16: Year5
A17: Head14 | B17: Forecast 2012/13 | D17: Year6
A18: Head15 | B18: Forecast 2013/14 | D18: Year7
A19: Head16 | B19: Forecast 2014/15 | D19: Year8
A20: Head17 | B20: Forecast 2015/16 | D20: Year9
A21: Head18 | B21: Forecast 2016/17 | D21: Year10
A22: Head19 | B22: Forecast 2017/18 | D22: Year11
A23: Head20 | B23: Forecast 2018/19 | D23: Year12
A24: Head21 | B24: Forecast 2019/20 | D24: Year13
A25: Head22 | B25: Forecast 2020/21 | D25: Year14
A26: Head23 | B26: Forecast 2021/22 | D26: Year15
A27: Head24 | B27: Description | D27: Desc
A28: Head25 | B28: Schedule of funding diligence | D28: fdil
A29: Head26 | B29: Vote Description | D29: VDesc
A30: Head27 | B30: Ref
A31: Head27a | B31: References
A32: Head28 | B32: Surplus/ (Deficit) for the year | D32: Result
A33: Head29 | B33: Annual target 2007/08
A34: Head30 | B34: Revised target 2007/08
A35: Head31 | B35: Quarter ended 30 September
A36: Head32 | B36: Quarter ended 31 December
A37: Head33 | B37: Quarter ended 31 March
A38: Head34 | B38: Quarter ended 30 June
A39: Head35 | B39: Variance explanation
A40: Head36 | B40: YTD Actual 31 Dec
A41: Head37 | B41: YTD Budget 31 Dec
A42: Head38 | B42: Monthly actual
A43: Head39 | B43: YearTD actual
A44: Head40 | B44: YearTD budget
A45: Head41 | B45: YTD variance
A46: Head42 | B46: Surplus/ (Deficit) for the yr/period
A47: Head43 | B47: =Head3&" Summary" -> 2021/22 Medium Term Revenue & Expenditure Framework Summary
A48: Head44 | B48: 1996 Census
A49: Head45 | B49: 2001 Census
A50: Head46 | B50: - Adjustments Budget - Month YYYY
A51: Head47 | B51: Previous target year to complete
A52: Head48 | B52: Present value
A53: Head49 | B53: Virement
A54: Head50 | B54: Other Adjusts.
A55: Head51 | B55: Accum. Funds
A56: Head52 | B56: Multi-year capital
A57: Head53 | B57: Unfore. Unavoid.
A58: Head54 | B58: Prior Adjusted
A59: Head55 | B59: Nat. or Prov. Govt
A60: Head56 | B60: Total Adjusts.
A61: Head57 | B61: =date -> M05 November
A62: Head58 | B62: Parent muni.
A63: Head59 | B63: Downward adjusts
A64: Head60 | B64: Month | C64: Report header part name | D64: =date -> M05 November
A65: SFPerf1 | B65: Budgeted Financial Performance
A66: SFPerf2 | B66: Forecast Financial Performance
A67: SFPos1 | B67: Budgeted Financial Position
A68: SFPos2 | B68: Forecast Financial Position
A69: Cash1 | B69: Budget Cash Flow
A70: Cash2 | B70: Forecast Cash Flow
A71: RandM | B71: Expenditure includes repairs & maintenance of R'000
A72: Standard nomenclature
A73: Muni | B73: ='Lookup and lists'!B27 -> LIM353 Molemole
A74: Municipal Entities | B74: 2 | C74: Type of report: | D74: 1
A75: =IF((MuniEntities=1)*(MuniType=2),"YES","NO") -> NO | B75: Does this municipality have entities (consolidated budget and entity budgets required)? YES/NO
A76: s71 (Monthly Mayor report) schedules and charts
A77: S71sum | B77: =IF(Consolques="YES",E77,F77) -> Table C1 Monthly Budget Statement Summary | D77: Table C1 | E77: =D77&"Consolidated Monthly Budget Statement Summary" -> Table C1 Consolidated Monthly Budget Statement Summary | F77: =D77&"Monthly Budget Statement Summary" -> Table C1 Monthly Budget Statement Summary
A78: S71C | B78: Table C3 Monthly Budget Statement - Financial Performance (revenue and expenditure by municipal vote) | D78: Table C3 | E78: =D78&"Consolidated Monthly Budget Statement - Financial Performance (revenue and expenditure by municipal vote) " -> Table C3 Consolidated Monthly Budget Statement - Financial Performance (revenue and expenditure by municipal vote) | F78: =D78&"Monthly Budget Statement - Financial Performance (revenue and expenditure by municipal vote)" -> Table C3 Monthly Budget Statement - Financial Performance (revenue and expenditure by municipal vote)
A79: S71A | B79: =IF(Consolques="YES",E79,F79) -> Table C2 Monthly Budget Statement - Financial Performance (functional classification) | D79: Table C2 | E79: =D79&"Consolidated Monthly Budget Statement - Financial Performance (functional classification) " -> Table C2 Consolidated Monthly Budget Statement - Financial Performance (functional classification) | F79: =D79&"Monthly Budget Statement - Financial Performance (functional classification)" -> Table C2 Monthly Budget Statement - Financial Performance (functional classification)
A80: S71B | B80: =IF(Consolques="YES",E80,F80) -> Table C4 Monthly Budget Statement - Financial Performance (revenue and expenditure) | D80: Table C4 | E80: =D80&"Consolidated Monthly Budget Statement - Financial Performance (revenue and expenditure) " -> Table C4 Consolidated Monthly Budget Statement - Financial Performance (revenue and expenditure) | F80: =D80&"Monthly Budget Statement - Financial Performance (revenue and expenditure)" -> Table C4 Monthly Budget Statement - Financial Performance (revenue and expenditure)
A81: S71D | B81: =IF(Consolques="YES",E81,F81) -> Table C5 Monthly Budget Statement - Capital Expenditure (municipal vote, functional classification and funding) | D81: Table C5 | E81: =D81&"Consolidated Monthly Budget Statement - Capital Expenditure (municipal vote, functional classification and funding " -> Table C5 Consolidated Monthly Budget Statement - Capital Expenditure (municipal vote, functional classification and funding | F81: =D81&"Monthly Budget Statement - Capital Expenditure (municipal vote, functional classification and funding)" -> Table C5 Monthly Budget Statement - Capital Expenditure (municipal vote, functional classification and funding)
A82: S71E | B82: Table C6 Monthly Budget Statement - Financial Position | D82: Table C6 | E82: =D82&"Consolidated Monthly Budget Statement - Financial Position " -> Table C6 Consolidated Monthly Budget Statement - Financial Position | F82: =D82&"Monthly Budget Statement - Financial Position" -> Table C6 Monthly Budget Statement - Financial Position
A83: S71F | B83: Table C7 Monthly Budget Statement - Cash Flow | D83: Table C7 | E83: =D83&"Consolidated Monthly Budget Statement - Cash Flow " -> Table C7 Consolidated Monthly Budget Statement - Cash Flow | F83: =D83&"Monthly Budget Statement - Cash Flow " -> Table C7 Monthly Budget Statement - Cash Flow
A84: S71G | B84: =D84&"Material variance explanations " -> Supporting Table SC1 Material variance explanations | D84: Supporting Table SC1
A85: S71H | B85: =D85&"Monthly Budget Statement - performance indicators " -> Supporting Table SC2 Monthly Budget Statement - performance indicators | D85: Supporting Table SC2
A86: S71I | B86: =D86&"Monthly Budget Statement - aged debtors" -> Supporting Table SC3 Monthly Budget Statement - aged debtors | D86: Supporting Table SC3
A87: S71J | B87: =D87&"Monthly Budget Statement - aged creditors " -> Supporting Table SC4 Monthly Budget Statement - aged creditors | D87: Supporting Table SC4
A88: S71K | B88: =D88&"Monthly Budget Statement - investment portfolio " -> Supporting Table SC5 Monthly Budget Statement - investment portfolio | D88: Supporting Table SC5
A89: S71L | B89: =D89&"Monthly Budget Statement - transfers and grant receipts " -> Supporting Table SC6 Monthly Budget Statement - transfers and grant receipts | D89: Supporting Table SC6
A90: S71M | B90: =D90&" Monthly Budget Statement - transfers and grant expenditure " -> Supporting Table SC7(1) Monthly Budget Statement - transfers and grant expenditure | D90: Supporting Table SC7(1)
A91: S71N | B91: =D91&"Monthly Budget Statement - councillor and staff benefits " -> Supporting Table SC8 Monthly Budget Statement - councillor and staff benefits | D91: Supporting Table SC8
A92: S71O | B92: =D92&"Monthly Budget Statement - actuals and revised targets for cash receipts" -> Supporting Table SC9 Monthly Budget Statement - actuals and revised targets for cash receipts | D92: Supporting Table SC9
A93: S71P | B93: =IF(Consolques="YES",E93,F93) -> NOT REQUIRED - municipality does not have entities or this is the parent municipality's budget | D93: Supporting Table SC10 | E93: =D93&"Monthly Budget Statement - Parent Municipality Financial Performance (revenue and expenditure) " -> Supporting Table SC10 Monthly Budget Statement - Parent Municipality Financial Performance (revenue and expenditure) | F93: NOT REQUIRED - municipality does not have entities or this is the parent municipality's budget
A94: S71Q | B94: NOT REQUIRED - municipality does not have entities or this is the parent municipality's budget | D94: Supporting Table SC11 | E94: =D94&"Monthly Budget Statement - summary of municipal entities" -> Supporting Table SC11 Monthly Budget Statement - summary of municipal entities | F94: NOT REQUIRED - municipality does not have entities or this is the parent municipality's budget
A95: S71R | B95: Supporting Table SC12 Monthly Budget Statement - capital expenditure trend | D95: Supporting Table SC12 | E95: =D95&"Consolidated Monthly Budget Statement - capital expenditure trend " -> Supporting Table SC12 Consolidated Monthly Budget Statement - capital expenditure trend | F95: =D95&"Monthly Budget Statement - capital expenditure trend" -> Supporting Table SC12 Monthly Budget Statement - capital expenditure trend
A96: S71Sa | B96: Supporting Table SC13a Monthly Budget Statement - capital expenditure on new assets by asset class | D96: Supporting Table SC13a | E96: =D96&"Consolidated Monthly Budget Statement - capital expenditure on new assets by asset class" -> Supporting Table SC13a Consolidated Monthly Budget Statement - capital expenditure on new assets by asset class | F96: =D96&"Monthly Budget Statement - capital expenditure on new assets by asset class" -> Supporting Table SC13a Monthly Budget Statement - capital expenditure on new assets by asset class
A97: S71Sb | B97: Supporting Table SC13b Monthly Budget Statement - capital expenditure on renewal of existing assets by asset class | D97: Supporting Table SC13b | E97: =D97&"Consolidated Monthly Budget Statement - capital expenditure on renewal of existing assets by asset class" -> Supporting Table SC13b Consolidated Monthly Budget Statement - capital expenditure on renewal of existing assets by asset class | F97: =D97&"Monthly Budget Statement - capital expenditure on renewal of existing assets by asset class" -> Supporting Table SC13b Monthly Budget Statement - capital expenditure on renewal of existing assets by asset class
A98: S71Sc | B98: Supporting Table SC13c Monthly Budget Statement - expenditure on repairs and maintenance by asset class | D98: Supporting Table SC13c | E98: =D98&"Consolidated Monthly Budget Statement - expenditure on repairs and maintenance by asset class" -> Supporting Table SC13c Consolidated Monthly Budget Statement - expenditure on repairs and maintenance by asset class | F98: =D98&"Monthly Budget Statement - expenditure on repairs and maintenance by asset class" -> Supporting Table SC13c Monthly Budget Statement - expenditure on repairs and maintenance by asset class
A99: S71Sd | B99: Supporting Table SC13d Monthly Budget Statement - depreciation by asset class | D99: Supporting Table SC13d | E99: =D99&"Consolidated Monthly Budget Statement - depreciation by asset class" -> Supporting Table SC13d Consolidated Monthly Budget Statement - depreciation by asset class | F99: =D99&"Monthly Budget Statement - depreciation by asset class" -> Supporting Table SC13d Monthly Budget Statement - depreciation by asset class
A100: S71Se | B100: =IF(Consolques="YES",E100,F100) -> Supporting Table SC13e Monthly Budget Statement - capital expenditure on upgrading of existing assets by asset class | D100: Supporting Table SC13e | E100: =D100&"Consolidated Monthly Budget Statement - capital expenditure on upgrading of existing assets by asset class" -> Supporting Table SC13e Consolidated Monthly Budget Statement - capital expenditure on upgrading of existing assets by asset class | F100: =D100&"Monthly Budget Statement - capital expenditure on upgrading of existing assets by asset class" -> Supporting Table SC13e Monthly Budget Statement - capital expenditure on upgrading of existing assets by asset class
B101: s71 charts listing
B102: =D102&Head2A&" Capital Expenditure Monthly Trend: actual v target" -> Chart C1 2021/22 Capital Expenditure Monthly Trend: actual v target | D102: Chart C1
B103: =D103&Head2A&" Capital Expenditure: YTD actual v YTD target" -> Chart C2 2021/22 Capital Expenditure: YTD actual v YTD target | D103: Chart C2
B104: =D104&"Aged Consumer Debtors Analysis" -> Chart C3 Aged Consumer Debtors Analysis | D104: Chart C3
B105: =D105&"Consumer Debtors (total by Debtor Customer Category)" -> Chart C4 Consumer Debtors (total by Debtor Customer Category) | D105: Chart C4
B106: =D106&"Aged Creditors Analysis" -> Chart C5 Aged Creditors Analysis | D106: Chart C5
A107: S71T | B107: =D107&" Monthly Budget Statement - Expenditure against approved rollovers" -> Supporting Table SC7(2) Monthly Budget Statement - Expenditure against approved rollovers | D107: Supporting Table SC7(2)

Sheet Lookup and lists (hidden)
A1: Description | B1: 2013 | C1: 2014 | D1: 2015 | E1: 2016 | F1: 2017 | G1: 2018 | H1: 2019 | I1: 2020 | J1: 2021 | K1: 2022 | L1: 2023 | M1: 2024 | N1: 2025 | O1: 2026 | Q1: Grants: | R1: National - opex | S1: Provincial - opex | T1: National - capex | U1: Provincial - capex | V1: YESNO
A2: ='Template names'!C2 -> Prior year -1 | B2: =B1-1&"/"&RIGHT(B1,2)-0 -> 2012/13 | C2: =C1-1&"/"&RIGHT(C1,2)-0 -> 2013/14 | D2: =D1-1&"/"&RIGHT(D1,2)-0 -> 2014/15 | E2: =E1-1&"/"&RIGHT(E1,2)-0 -> 2015/16 | F2: =F1-1&"/"&RIGHT(F1,2)-0 -> 2016/17 | G2: 2017/18 | H2: 2018/19 | I2: 2019/20 | J2: 2020/21 | K2: 2021/22 | L2: 2022/23 | M2: 2023/24 | N2: 2024/25 | O2: 2025/26 | R2: Local Government Equitable Share | S2: Health subsidy | T2: Municipal Infrastructure Grant (MIG) | U2: Agriculture | V2: Yes
A3: ='Template names'!C5 -> MTREF header name | B3: =B1&"/"&RIGHT(B1,2)+1&" Medium Term Revenue & Expenditure Framework" -> 2013/14 Medium Term Revenue & Expenditure Framework | C3: =C1&"/"&RIGHT(C1,2)+1&" Medium Term Revenue & Expenditure Framework" -> 2014/15 Medium Term Revenue & Expenditure Framework | D3: =D1&"/"&RIGHT(D1,2)+1&" Medium Term Revenue & Expenditure Framework" -> 2015/16 Medium Term Revenue & Expenditure Framework | E3: =E1&"/"&RIGHT(E1,2)+1&" Medium Term Revenue & Expenditure Framework" -> 2016/17 Medium Term Revenue & Expenditure Framework | F3: =F1&"/"&RIGHT(F1,2)+1&" Medium Term Revenue & Expenditure Framework" -> 2017/18 Medium Term Revenue & Expenditure Framework | G3: 2018/19 Medium Term Revenue & Expenditure Framework | H3: 2019/20 Medium Term Revenue & Expenditure Framework | I3: 2020/21 Medium Term Revenue & Expenditure Framework | J3: 2021/22 Medium Term Revenue & Expenditure Framework | K3: 2022/23 Medium Term Revenue & Expenditure Framework | L3: 2023/24 Medium Term Revenue & Expenditure Framework | M3: 2024/25 Medium Term Revenue & Expenditure Framework | N3: 2025/26 Medium Term Revenue & Expenditure Framework | O3: 2026/27 Medium Term Revenue & Expenditure Framework | R3: RSC Levy Replacement | S3: Ambulance subsidy | T3: Public Transport and Systems | U3: Education | V3: No
A4: ='Template names'!C4 -> Approved budget year | B4: =B1&"/"&RIGHT(B1,2)+1 -> 2013/14 | C4: =C1&"/"&RIGHT(C1,2)+1 -> 2014/15 | D4: =D1&"/"&RIGHT(D1,2)+1 -> 2015/16 | E4: =E1&"/"&RIGHT(E1,2)+1 -> 2016/17 | F4: =F1&"/"&RIGHT(F1,2)+1 -> 2017/18 | G4: 2018/19 | H4: 2019/20 | I4: 2020/21 | J4: 2021/22 | K4: 2022/23 | L4: 2023/24 | M4: 2024/25 | N4: 2025/26 | O4: 2026/27 | R4: Finance Management | S4: Housing | T4: Rural Transport Services and Infrastructure | U4: Health
A5: ='Template names'!C12 -> 1st year of MTREF | B5: ="Budget Year "&B1&"/"&RIGHT(B1,2)+1 -> Budget Year 2013/14 | C5: ="Budget Year "&C1&"/"&RIGHT(C1,2)+1 -> Budget Year 2014/15 | D5: ="Budget Year "&D1&"/"&RIGHT(D1,2)+1 -> Budget Year 2015/16 | E5: ="Budget Year "&E1&"/"&RIGHT(E1,2)+1 -> Budget Year 2016/17 | F5: ="Budget Year "&F1&"/"&RIGHT(F1,2)+1 -> Budget Year 2017/18 | G5: Budget Year 2018/19 | H5: Budget Year 2019/20 | I5: Budget Year 2020/21 | J5: Budget Year 2021/22 | K5: Budget Year 2022/23 | L5: Budget Year 2023/24 | M5: Budget Year 2024/25 | N5: Budget Year 2025/26 | O5: Budget Year 2026/27 | R5: Municipal Systems Improvement | S5: Sport and Recreation | T5: Regional Bulk Infrastructure | U5: Housing and Local Government
A6: ='Template names'!C13 -> 2nd year of MTREF | B6: ="Budget Year +1 "&B1+1&"/"&RIGHT(B1,2)+2 -> Budget Year +1 2014/15 | C6: ="Budget Year +1 "&C1+1&"/"&RIGHT(C1,2)+2 -> Budget Year +1 2015/16 | D6: ="Budget Year +1 "&D1+1&"/"&RIGHT(D1,2)+2 -> Budget Year +1 2016/17 | E6: ="Budget Year +1 "&E1+1&"/"&RIGHT(E1,2)+2 -> Budget Year +1 2017/18 | F6: ="Budget Year +1 "&F1+1&"/"&RIGHT(F1,2)+2 -> Budget Year +1 2018/19 | G6: Budget Year +1 2019/20 | H6: Budget Year +1 2020/21 | I6: Budget Year +1 2021/22 | J6: Budget Year +1 2022/23 | K6: Budget Year +1 2023/24 | L6: Budget Year +1 2024/25 | M6: Budget Year +1 2025/26 | N6: Budget Year +1 2026/27 | O6: Budget Year +1 2027/28 | R6: Water Services Operating Subsidy | T6: Rural Households Infrastructure | U6: Other Departments
A7: ='Template names'!C14 -> 3rd year of MTREF | B7: ="Budget Year +2 "&B1+2&"/"&RIGHT(B1,2)+3 -> Budget Year +2 2015/16 | C7: ="Budget Year +2 "&C1+2&"/"&RIGHT(C1,2)+3 -> Budget Year +2 2016/17 | D7: ="Budget Year +2 "&D1+2&"/"&RIGHT(D1,2)+3 -> Budget Year +2 2017/18 | E7: ="Budget Year +2 "&E1+2&"/"&RIGHT(E1,2)+3 -> Budget Year +2 2018/19 | F7: ="Budget Year +2 "&F1+2&"/"&RIGHT(F1,2)+3 -> Budget Year +2 2019/20 | G7: Budget Year +2 2020/21 | H7: Budget Year +2 2021/22 | I7: Budget Year +2 2022/23 | J7: Budget Year +2 2023/24 | K7: Budget Year +2 2024/25 | L7: Budget Year +2 2025/26 | M7: Budget Year +2 2026/27 | N7: Budget Year +2 2027/28 | O7: Budget Year +2 2028/29 | R7: Energy Efficiency and Demand Management | T7: Neighbourhood Development Partnership | U7: Public Works, Roads, Transport
A8: NOTE: This sheet should not be directly amended - select headings from sheet 'S' | R8: Integrated National Electrification Programme | T8: 2010 FIFA World Cup Stadiums Development | U8: Sport and Recreation
R9: Municipal Drought Relief
R10: 2010 FIFA World Cup Operating
R11: Electricity Demand Side Management
R12: EPWP Incentive
A26: Name link | B26: 141
A27: Name of Muni | B27: =INDEX(B28:B311,B26,1) -> LIM353 Molemole
B28: Choose name from list | C28: Set name on 'Instructions' sheet
B29: BUF Buffalo City | C29: EC EASTERN CAPE
B30: NMA Nelson Mandela Bay | C30: EC EASTERN CAPE
B31: EC101 Dr Beyers Naude | C31: EC EASTERN CAPE
B32: EC102 Blue Crane Route | C32: EC EASTERN CAPE
B33: EC104 Makana | C33: EC EASTERN CAPE
B34: EC105 Ndlambe | C34: EC EASTERN CAPE
B35: EC106 Sundays River Valley | C35: EC EASTERN CAPE
B36: EC108 Kouga | C36: EC EASTERN CAPE
B37: EC109 Kou-Kamma | C37: EC EASTERN CAPE
B38: DC10 Sarah Baartman | C38: EC EASTERN CAPE
B39: EC121 Mbhashe | C39: EC EASTERN CAPE
B40: EC122 Mnquma | C40: EC EASTERN CAPE
B41: EC123 Great Kei | C41: EC EASTERN CAPE
B42: EC124 Amahlathi | C42: EC EASTERN CAPE
B43: EC126 Ngqushwa | C43: EC EASTERN CAPE
B44: EC129 Raymond Mhlaba | C44: EC EASTERN CAPE
B45: DC12 Amathole | C45: EC EASTERN CAPE
B46: EC131 Inxuba Yethemba | C46: EC EASTERN CAPE
B47: EC135 Intsika Yethu | C47: EC EASTERN CAPE
B48: EC136 Emalahleni (Ec) | C48: EC EASTERN CAPE
B49: EC137 Engcobo | C49: EC EASTERN CAPE
B50: EC138 Sakhisizwe | C50: EC EASTERN CAPE
B51: EC139 Enoch Mgijima | C51: EC EASTERN CAPE
B52: DC13 Chris Hani | C52: EC EASTERN CAPE
B53: EC141 Elundini | C53: EC EASTERN CAPE
B54: EC142 Senqu | C54: EC EASTERN CAPE
B55: EC145 Walter Sisulu | C55: EC EASTERN CAPE
B56: DC14 Joe Gqabi | C56: EC EASTERN CAPE
B57: EC153 Ngquza Hills | C57: EC EASTERN CAPE
B58: EC154 Port St Johns | C58: EC EASTERN CAPE
B59: EC155 Nyandeni | C59: EC EASTERN CAPE
B60: EC156 Mhlontlo | C60: EC EASTERN CAPE
B61: EC157 King Sabata Dalindyebo | C61: EC EASTERN CAPE
B62: DC15 O .R. Tambo | C62: EC EASTERN CAPE
B63: EC441 Matatiele | C63: EC EASTERN CAPE
B64: EC442 Umzimvubu | C64: EC EASTERN CAPE
B65: EC443 Winnie Madikizela Mandela | C65: EC EASTERN CAPE
B66: EC444 Ntabankulu | C66: EC EASTERN CAPE
B67: DC44 Alfred Nzo | C67: EC EASTERN CAPE
B68: MAN Mangaung | C68: FS FREE STATE
B69: FS161 Letsemeng | C69: FS FREE STATE
B70: FS162 Kopanong | C70: FS FREE STATE
B71: FS163 Mohokare | C71: FS FREE STATE
B72: DC16 Xhariep | C72: FS FREE STATE
B73: FS181 Masilonyana | C73: FS FREE STATE
B74: FS182 Tokologo | C74: FS FREE STATE
B75: FS183 Tswelopele | C75: FS FREE STATE
B76: FS184 Matjhabeng | C76: FS FREE STATE
B77: FS185 Nala | C77: FS FREE STATE
B78: DC18 Lejweleputswa | C78: FS FREE STATE
B79: FS191 Setsoto | C79: FS FREE STATE
B80: FS192 Dihlabeng | C80: FS FREE STATE
B81: FS193 Nketoana | C81: FS FREE STATE
B82: FS194 Maluti-a-Phofung | C82: FS FREE STATE
B83: FS195 Phumelela | C83: FS FREE STATE
B84: FS196 Mantsopa | C84: FS FREE STATE
B85: DC19 Thabo Mofutsanyana | C85: FS FREE STATE
B86: FS201 Moqhaka | C86: FS FREE STATE
B87: FS203 Ngwathe | C87: FS FREE STATE
B88: FS204 Metsimaholo | C88: FS FREE STATE
B89: FS205 Mafube | C89: FS FREE STATE
B90: DC20 Fezile Dabi | C90: FS FREE STATE
B91: EKU City of Ekurhuleni | C91: GT GAUTENG
B92: JHB City Of Johannesburg | C92: GT GAUTENG
B93: TSH City Of Tshwane | C93: GT GAUTENG
B94: GT421 Emfuleni | C94: GT GAUTENG
B95: GT422 Midvaal | C95: GT GAUTENG
B96: GT423 Lesedi | C96: GT GAUTENG
B97: DC42 Sedibeng | C97: GT GAUTENG
B98: GT481 Mogale City | C98: GT GAUTENG
B99: GT484 Merafong City | C99: GT GAUTENG
B100: GT485 Rand West City | C100: GT GAUTENG
B101: DC48 West Rand | C101: GT GAUTENG
B102: ETH eThekwini | C102: KZN KWAZULU-NATAL
B103: KZN212 Umdoni | C103: KZN KWAZULU-NATAL
B104: KZN213 Umzumbe | C104: KZN KWAZULU-NATAL
B105: KZN214 uMuziwabantu | C105: KZN KWAZULU-NATAL
B106: KZN216 Ray Nkonyeni | C106: KZN KWAZULU-NATAL
B107: DC21 Ugu | C107: KZN KWAZULU-NATAL
B108: KZN221 uMshwathi | C108: KZN KWAZULU-NATAL
B109: KZN222 uMngeni | C109: KZN KWAZULU-NATAL
B110: KZN223 Mpofana | C110: KZN KWAZULU-NATAL
B111: KZN224 Impendle | C111: KZN KWAZULU-NATAL
B112: KZN225 Msunduzi | C112: KZN KWAZULU-NATAL
B113: KZN226 Mkhambathini | C113: KZN KWAZULU-NATAL
B114: KZN227 Richmond | C114: KZN KWAZULU-NATAL
B115: DC22 uMgungundlovu | C115: KZN KWAZULU-NATAL
B116: KZN235 Okhahlamba | C116: KZN KWAZULU-NATAL
B117: KZN237 Inkosi Langalibalele | C117: KZN KWAZULU-NATAL
B118: KZN238 Alfred Duma | C118: KZN KWAZULU-NATAL
B119: DC23 Uthukela | C119: KZN KWAZULU-NATAL
B120: KZN241 Endumeni | C120: KZN KWAZULU-NATAL
B121: KZN242 Nquthu | C121: KZN KWAZULU-NATAL
B122: KZN244 Msinga | C122: KZN KWAZULU-NATAL
B123: KZN245 Umvoti | C123: KZN KWAZULU-NATAL
B124: DC24 Umzinyathi | C124: KZN KWAZULU-NATAL
B125: KZN252 Newcastle | C125: KZN KWAZULU-NATAL
B126: KZN253 Emadlangeni | C126: KZN KWAZULU-NATAL
B127: KZN254 Dannhauser | C127: KZN KWAZULU-NATAL
B128: DC25 Amajuba | C128: KZN KWAZULU-NATAL
B129: KZN261 eDumbe | C129: KZN KWAZULU-NATAL
B130: KZN262 uPhongolo | C130: KZN KWAZULU-NATAL
B131: KZN263 Abaqulusi | C131: KZN KWAZULU-NATAL
B132: KZN265 Nongoma | C132: KZN KWAZULU-NATAL
B133: KZN266 Ulundi | C133: KZN KWAZULU-NATAL
B134: DC26 Zululand | C134: KZN KWAZULU-NATAL
B135: KZN271 Umhlabuyalingana | C135: KZN KWAZULU-NATAL
B136: KZN272 Jozini | C136: KZN KWAZULU-NATAL
B137: KZN275 Mtubatuba | C137: KZN KWAZULU-NATAL
B138: KZN276 Hlabisa Big Five | C138: KZN KWAZULU-NATAL
B139: DC27 Umkhanyakude | C139: KZN KWAZULU-NATAL
B140: KZN281 Mfolozi | C140: KZN KWAZULU-NATAL
B141: KZN282 uMhlathuze | C141: KZN KWAZULU-NATAL
B142: KZN284 uMlalazi | C142: KZN KWAZULU-NATAL
B143: KZN285 Mthonjaneni | C143: KZN KWAZULU-NATAL
B144: KZN286 Nkandla | C144: KZN KWAZULU-NATAL
B145: DC28 King Cetshwayo | C145: KZN KWAZULU-NATAL
B146: KZN291 Mandeni | C146: KZN KWAZULU-NATAL
B147: KZN292 KwaDukuza | C147: KZN KWAZULU-NATAL
B148: KZN293 Ndwedwe | C148: KZN KWAZULU-NATAL
B149: KZN294 Maphumulo | C149: KZN KWAZULU-NATAL
B150: DC29 iLembe | C150: KZN KWAZULU-NATAL
B151: KZN433 Greater Kokstad | C151: KZN KWAZULU-NATAL
B152: KZN434 Ubuhlebezwe | C152: KZN KWAZULU-NATAL
B153: KZN435 Umzimkhulu | C153: KZN KWAZULU-NATAL
B154: KZN436 Dr Nkosazana Dlamini Zuma | C154: KZN KWAZULU-NATAL
B155: DC43 Harry Gwala | C155: KZN KWAZULU-NATAL
B156: LIM331 Greater Giyani | C156: LIM LIMPOPO
B157: LIM332 Greater Letaba | C157: LIM LIMPOPO
B158: LIM333 Greater Tzaneen | C158: LIM LIMPOPO
B159: LIM334 Ba-Phalaborwa | C159: LIM LIMPOPO
B160: LIM335 Maruleng | C160: LIM LIMPOPO
B161: DC33 Mopani | C161: LIM LIMPOPO
B162: LIM341 Musina | C162: LIM LIMPOPO
B163: LIM343 Thulamela | C163: LIM LIMPOPO
B164: LIM344 Makhado | C164: LIM LIMPOPO
B165: LIM345 Collins Chabane | C165: LIM LIMPOPO
B166: DC34 Vhembe | C166: LIM LIMPOPO
B167: LIM351 Blouberg | C167: LIM LIMPOPO
B168: LIM353 Molemole | C168: LIM LIMPOPO
B169: LIM354 Polokwane | C169: LIM LIMPOPO
B170: LIM355 Lepelle-Nkumpi | C170: LIM LIMPOPO
B171: DC35 Capricorn | C171: LIM LIMPOPO
B172: LIM361 Thabazimbi | C172: LIM LIMPOPO
B173: LIM362 Lephalale | C173: LIM LIMPOPO
B174: LIM366 Bela Bela | C174: LIM LIMPOPO
B175: LIM367 Mogalakwena | C175: LIM LIMPOPO
B176: LIM368 Modimolle-Mookgopong | C176: LIM LIMPOPO
B177: DC36 Waterberg | C177: LIM LIMPOPO
B178: LIM471 Ephraim Mogale | C178: LIM LIMPOPO
B179: LIM472 Elias Motsoaledi | C179: LIM LIMPOPO
B180: LIM473 Makhuduthamaga | C180: LIM LIMPOPO
B181: LIM476 Tubatse Fetakgomo | C181: LIM LIMPOPO
B182: DC47 Sekhukhune | C182: LIM LIMPOPO
B183: MP301 Albert Luthuli | C183: MP MPUMALANGA
B184: MP302 Msukaligwa | C184: MP MPUMALANGA
B185: MP303 Mkhondo | C185: MP MPUMALANGA
B186: MP304 Pixley Ka Seme (MP) | C186: MP MPUMALANGA
B187: MP305 Lekwa | C187: MP MPUMALANGA
B188: MP306 Dipaleseng | C188: MP MPUMALANGA
B189: MP307 Govan Mbeki | C189: MP MPUMALANGA
B190: DC30 Gert Sibande | C190: MP MPUMALANGA
B191: MP311 Victor Khanye | C191: MP MPUMALANGA
B192: MP312 Emalahleni (Mp) | C192: MP MPUMALANGA
B193: MP313 Steve Tshwete | C193: MP MPUMALANGA
B194: MP314 Emakhazeni | C194: MP MPUMALANGA
B195: MP315 Thembisile Hani | C195: MP MPUMALANGA
B196: MP316 Dr J.S. Moroka | C196: MP MPUMALANGA
B197: DC31 Nkangala | C197: MP MPUMALANGA
B198: MP321 Thaba Chweu | C198: MP MPUMALANGA
B199: MP324 Nkomazi | C199: MP MPUMALANGA
B200: MP325 Bushbuckridge | C200: MP MPUMALANGA
B201: MP326 City of Mbombela | C201: MP MPUMALANGA
B202: DC32 Ehlanzeni | C202: MP MPUMALANGA
B203: NC451 Joe Morolong | C203: NC NORTHERN CAPE
B204: NC452 Ga-Segonyana | C204: NC NORTHERN CAPE
B205: NC453 Gamagara | C205: NC NORTHERN CAPE
B206: DC45 John Taolo Gaetsewe | C206: NC NORTHERN CAPE
B207: NC061 Richtersveld | C207: NC NORTHERN CAPE
B208: NC062 Nama Khoi | C208: NC NORTHERN CAPE
B209: NC064 Kamiesberg | C209: NC NORTHERN CAPE
B210: NC065 Hantam | C210: NC NORTHERN CAPE
B211: NC066 Karoo Hoogland | C211: NC NORTHERN CAPE
B212: NC067 Khai-Ma | C212: NC NORTHERN CAPE
B213: DC6 Namakwa | C213: NC NORTHERN CAPE
... 73 more rows

Sheet Org structure
A1: Organisational Structure Votes | C1: Organisational Structure Sub-Votes | E1: Display Sub-Votes
A2: =B2&" - "&C2 -> Vote 01 - Corporate Services | B2: Vote 01 | C2: Corporate Services
A3: =B11&" - "&C11 -> Vote 02 - Municipal Manager | B3: 01.1 | C3: Corporate Services Admin | D3: =CONCATENATE(B3, " - ", C3) -> 01.1 - Corporate Services Admin | E3: 01.1 - Corporate Services Admin
A4: =B17&" - "&C17 -> Vote 03 - Mayors Office | B4: 01.2 | C4: Human Resources | D4: 01.2 - Human Resources | E4: 01.2 - Human Resources
A5: =B23&" - "&C23 -> Vote 04 - Budget And Treasury | B5: 01.3 | C5: Information Technology Services | D5: 01.3 - Information Technology Services | E5: 01.3 - Information Technology Services
A6: =B31&" - "&C31 -> Vote 05 - Community Services | B6: 01.4 | C6: Council Support | D6: 01.4 - Council Support | E6: 01.4 - Council Support
A7: =B39&" - "&C39 -> Vote 06 - Technical Services | B7: 01.5 | C7: Local Economic Development | D7: 01.5 - Local Economic Development | E7: 01.5 - Local Economic Development
A8: =B48&" - "&C48 -> Vote 07 - | B8: 01.6 | C8: Municipal Planning Idp | D8: 01.6 - Municipal Planning Idp | E8: 01.6 - Municipal Planning Idp
A9: Vote 08 - | B9: 01.7 | C9: Town & Regional Planning | D9: 01.7 - Town & Regional Planning | E9: 01.7 - Town & Regional Planning
A10: Vote 09 - | B10: 01.8 | C10: Led Administration | D10: 01.8 - Led Administration | E10: 01.8 - Led Administration
A11: Vote 10 - | B11: Vote 02 | C11: Municipal Manager
A12: Vote 11 - | B12: 02.1 | C12: Municipal Manager Admin | D12: =CONCATENATE(B12, " - ", C12) -> 02.1 - Municipal Manager Admin | E12: 02.1 - Municipal Manager Admin
A13: Vote 12 - | B13: 02.2 | C13: Legal Services | D13: =CONCATENATE(B13, " - ", C13) -> 02.2 - Legal Services | E13: 02.2 - Legal Services
A14: Vote 13 - | B14: 02.3 | C14: Political Office Beares | D14: =CONCATENATE(B14, " - ", C14) -> 02.3 - Political Office Beares | E14: 02.3 - Political Office Beares
A15: Vote 14 - | B15: 02.4 | C15: Pms | D15: =CONCATENATE(B15, " - ", C15) -> 02.4 - Pms | E15: 02.4 - Pms
A16: Vote 15 - Other | B16: 02.5 | C16: Internal Audit | D16: =CONCATENATE(B16, " - ", C16) -> 02.5 - Internal Audit | E16: 02.5 - Internal Audit
B17: Vote 03 | C17: Mayors Office
B18: 03.1 | C18: Mayors Office Admin | D18: =CONCATENATE(B18, " - ", C18) -> 03.1 - Mayors Office Admin | E18: 03.1 - Mayors Office Admin
B19: 03.2 | C19: Office Of The Speaker | D19: =CONCATENATE(B19, " - ", C19) -> 03.2 - Office Of The Speaker | E19: 03.2 - Office Of The Speaker
B20: 03.3 | C20: Office Of The Chief Whip | D20: =CONCATENATE(B20, " - ", C20) -> 03.3 - Office Of The Chief Whip | E20: 03.3 - Office Of The Chief Whip
B21: 03.4 | C21: Exco Members | D21: =CONCATENATE(B21, " - ", C21) -> 03.4 - Exco Members | E21: 03.4 - Exco Members
B22: 03.5 | C22: Council General Administration | D22: =CONCATENATE(B22, " - ", C22) -> 03.5 - Council General Administration | E22: 03.5 - Council General Administration
B23: Vote 04 | C23: Budget And Treasury
B24: 04.1 | C24: Budget And Treasury Admin | D24: =CONCATENATE(B24, " - ", C24) -> 04.1 - Budget And Treasury Admin | E24: 04.1 - Budget And Treasury Admin
B25: 04.2 | C25: Chief Financial Officer Admin | D25: 04.2 - Chief Financial Officer Admin | E25: 04.2 - Chief Financial Officer Admin
B26: 04.3 | C26: Budget & Reporting | D26: 04.3 - Budget & Reporting | E26: 04.3 - Budget & Reporting
B27: 04.4 | C27: Budget & Reporting | D27: 04.4 - Budget & Reporting | E27: 04.4 - Budget & Reporting
B28: 04.5 | C28: Revenue Management | D28: 04.5 - Revenue Management | E28: 04.5 - Revenue Management
B29: 04.6 | C29: Supply Chain Management | D29: 04.6 - Supply Chain Management | E29: 04.6 - Supply Chain Management
B30: 04.7 | C30: Expenditure | D30: 04.7 - Expenditure | E30: 04.7 - Expenditure
B31: Vote 05 | C31: Community Services
B32: 05.1 | C32: Community Services Admin | D32: =CONCATENATE(B32, " - ", C32) -> 05.1 - Community Services Admin | E32: 05.1 - Community Services Admin
B33: 05.2 | C33: Libraries | D33: 05.2 - Libraries | E33: 05.2 - Libraries
B34: 05.3 | C34: Sports Recreation & Social Amenitie | D34: 05.3 - Sports Recreation & Social Amenitie | E34: 05.3 - Sports Recreation & Social Amenitie
B35: 05.4 | C35: Traffic Service | D35: 05.4 - Traffic Service | E35: 05.4 - Traffic Service
B36: 05.5 | C36: Traffic Service | D36: 05.5 - Traffic Service | E36: 05.5 - Traffic Service
B37: 05.6 | C37: Parks; Cemeteries | D37: 05.6 - Parks; Cemeteries | E37: 05.6 - Parks; Cemeteries
B38: 05.7 | C38: Refuse | D38: 05.7 - Refuse | E38: 05.7 - Refuse
B39: Vote 06 | C39: Technical Services
B40: 06.1 | C40: Mpac | D40: =CONCATENATE(B40, " - ", C40) -> 06.1 - Mpac | E40: 06.1 - Mpac
B41: 06.2 | C41: Technical Services Admin | D41: 06.2 - Technical Services Admin | E41: 06.2 - Technical Services Admin
B42: 06.3 | C42: Techn Serv-Roads: Admin | D42: 06.3 - Techn Serv-Roads: Admin | E42: 06.3 - Techn Serv-Roads: Admin
B43: 06.4 | C43: Techn Serv-Stormwater: Admin | D43: 06.4 - Techn Serv-Stormwater: Admin | E43: 06.4 - Techn Serv-Stormwater: Admin
B44: 06.5 | C44: Project Management Unit | D44: 06.5 - Project Management Unit | E44: 06.5 - Project Management Unit
B45: 06.6 | C45: Electrical & Machinery | D45: 06.6 - Electrical & Machinery | E45: 06.6 - Electrical & Machinery
B46: 06.7 | C46: Water | D46: 06.7 - Water | E46: 06.7 - Water
B47: 06.8 | C47: Sanitation | D47: 06.8 - Sanitation | E47: 06.8 - Sanitation
B48: Vote 07
B49: Vote 08
B50: Vote 09
B51: Vote 10
B52: Vote 11
B53: Vote 12
B54: Vote 13
B55: Vote 14
B56: Vote 15 | C56: Other

Sheet Contacts
A1: =muni&" - "&" Contact Information" -> LIM353 Molemole - Contact Information
A3: A. GENERAL INFORMATION
A4: Municipality | B4: =muni -> LIM353 Molemole | C4: Set name on 'Instructions' sheet
A6: Grade | C6: 1 Grade in terms of the Remuneration of Public Office Bearers Act.
A8: Province | B8: =IF(B4>" ",VLOOKUP(B4,'Lookup and lists'!B28:C311,2, FALSE)," ") -> LIM LIMPOPO
A10: Web Address
A12: e-mail Address
A14: B. CONTACT INFORMATION
A15: Postal address:
A16: P.O. Box
A17: City / Town
A18: Postal Code
A20: Street address
A21: Building
A22: Street No. & Name
A23: City / Town
A24: Postal Code
A26: General Contacts
A27: Telephone number
A28: Fax number
A30: C. POLITICAL LEADERSHIP
A31: Speaker: | C31: Secretary/PA to the Speaker:
A32: ID Number | B32: 560618 0882 808 | C32: ID Number | D32: 820119 0609 087
A33: Title | B33: Mrs | C33: Title | D33: Ms
A34: Name | B34: MOREROA M.S | C34: Name | D34: MACHAKA SEBOLLA
A35: Telephone number | B35: 015 501 0243 | C35: Telephone number | D35: 015 501 0243
A36: Cell number | B36: 079 220 7523 | C36: Cell number | D36: 079 728 8360
A37: Fax number | B37: 015 501 0419 | C37: Fax number | D37: 015 501 0419
A38: E-mail address | B38: moreroams@molemole.gov.za | C38: E-mail address | D38: machakas@molemole.gov.za
A40: Mayor/Executive Mayor: | C40: Secretary/PA to the Mayor/Executive Mayor:
A41: ID Number | B41: 660312 5428 081 | C41: ID Number | D41: 850930 1072 080
A42: Title | B42: Mr | C42: Title | D42: Ms
A43: Name | B43: PAYA E | C43: Name | D43: RATHETE MAKETA
A44: Telephone number | B44: 015 501 0243 | C44: Telephone number | D44: 015 501 0243
A45: Cell number | B45: 082 474 2858 | C45: Cell number | D45: 072 958 1970
A46: Fax number | B46: 086 515 8809 | C46: Fax number | D46: 015 501 0419
A47: E-mail address | B47: payae@molemole.gov.za | C47: E-mail address | D47: rathetem@molemole.go.za
A49: Deputy Mayor/Executive Mayor: | C49: Secretary/PA to the Deputy Mayor/Executive Mayor:
A50: ID Number | C50: ID Number
A51: Title | C51: Title
A52: Name | C52: Name
A53: Telephone number | C53: Telephone number
A54: Cell number | C54: Cell number
A55: Fax number | C55: Fax number
A56: E-mail address | C56: E-mail address
A58: D. MANAGEMENT LEADERSHIP
A59: Municipal Manager: | C59: Secretary/PA to the Municipal Manager:
A60: ID Number | B60: 670616 5811 080 | C60: ID Number | D60: 720712 0880 087
A61: Title | B61: Mr | C61: Title | D61: Mrs
A62: Name | B62: MOSENA MAPHALA LAZARUS | C62: Name | D62: SEABELA SUSAN
A63: Telephone number | B63: 015 501 0243 | C63: Telephone number | D63: 015 501 0243
A64: Cell number | B64: 079 803 9833 | C64: Cell number | D64: 079 217 3250
A65: Fax number | B65: 015 501 0419 | C65: Fax number | D65: 015 501 0419
A66: E-mail address | B66: 079 803 9833 | C66: E-mail address | D66: lebepes@molemole.gov.za
A68: Chief Financial Officer | C68: Secretary/PA to the Chief Financial Officer
A69: ID Number | B69: 840716 0427 083 | C69: ID Number | D69: 900906 1348 084
A70: Title | B70: Miss | C70: Title | D70: Miss
A71: Name | B71: ZULU KCW | C71: Name | D71: MAROPENG PHOSA
A72: Telephone number | B72: 015 501 0243 | C72: Telephone number | D72: 015 501 0243
A73: Cell number | B73: 063 878 8894 | C73: Cell number | D73: 073 916 3639
A74: Fax number | B74: 015 501 0419 | C74: Fax number | D74: 015 501 0419
A75: E-mail address | B75: zuluk@molemole.gov.za | C75: E-mail address | D75: phosam@molemole.gov.za
A77: Official responsible for submitting financial information | C77: Official responsible for submitting financial information
A78: ID Number | B78: 820214 0303 086 | C78: ID Number
A79: Title | B79: Mrs | C79: Title
A80: Name | B80: WISO PORTIA | C80: Name
A81: Telephone number | B81: 015 501 0243 | C81: Telephone number
A82: Cell number | B82: 082 488 3823 | C82: Cell number
A83: Fax number | B83: 015 501 0419 | C83: Fax number
A84: E-mail address | B84: mamabolomp@molemole.gov.za | C84: E-mail address
A85: Official responsible for submitting financial information | C85: Official responsible for submitting financial information
A86: ID Number | C86: ID Number
A87: Title | C87: Title
A88: Name | C88: Name
A89: Telephone number | C89: Telephone number
A90: Cell number | C90: Cell number
A91: Fax number | C91: Fax number
A92: E-mail address | C92: E-mail address
A93: Official responsible for submitting financial information | C93: Official responsible for submitting financial information
A94: ID Number | C94: ID Number
A95: Title | C95: Title
A96: Name | C96: Name
A97: Telephone number | C97: Telephone number
A98: Cell number | C98: Cell number
A99: Fax number | C99: Fax number
A100: E-mail address | C100: E-mail address
A101: Official responsible for submitting financial information | C101: Official responsible for submitting financial information
A102: ID Number | C102: ID Number
A103: Title | C103: Title
A104: Name | C104: Name
A105: Telephone number | C105: Telephone number
A106: Cell number | C106: Cell number
A107: Fax number | C107: Fax number
A108: E-mail address | C108: E-mail address
A109: Official responsible for submitting financial information | C109: Official responsible for submitting financial information
A110: ID Number | C110: ID Number
A111: Title | C111: Title
A112: Name | C112: Name
A113: Telephone number | C113: Telephone number
A114: Cell number | C114: Cell number
A115: Fax number | C115: Fax number
A116: E-mail address | C116: E-mail address
A117: Official responsible for submitting financial information | C117: Official responsible for submitting financial information
A118: ID Number | C118: ID Number
A119: Title | C119: Title
A120: Name | C120: Name
A121: Telephone number | C121: Telephone number
A122: Cell number | C122: Cell number
A123: Fax number | C123: Fax number
A124: E-mail address | C124: E-mail address
A125: Official responsible for submitting financial information | C125: Official responsible for submitting financial information
A126: ID Number | C126: ID Number
A127: Title | C127: Title
A128: Name | C128: Name
A129: Telephone number | C129: Telephone number
A130: Cell number | C130: Cell number
A131: Fax number | C131: Fax number
A132: E-mail address | C132: E-mail address
A133: Official responsible for submitting financial information
A134: ID Number
A135: Title
A136: Name
A137: Telephone number
A138: Cell number
A139: Fax number
A140: E-mail address

Sheet C1-Sum
A1: =muni& " - "&s71sum& " - "&date -> LIM353 Molemole - Table C1 Monthly Budget Statement Summary - M05 November
A2: =desc -> Description | B2: =Head1 -> 2020/21 | C2: =Head2 -> Budget Year 2021/22
B3: =Head5 -> Audited Outcome | C3: =Head6 -> Original Budget | D3: =Head7 -> Adjusted Budget | E3: =Head38 -> Monthly actual | F3: =Head39 -> YearTD actual | G3: =Head40 -> YearTD budget | H3: =Head41 -> YTD variance | I3: =Head41 -> YTD variance | J3: =Head8 -> Full Year Forecast
A4: R thousands | I4: %
A5: Financial Performance
A6: Property rates | B6: =SUM('C4-FinPerf RE'!C6:C6) -> 49558002.71 | C6: =SUM('C4-FinPerf RE'!D6:D6) -> 51482069 | D6: =SUM('C4-FinPerf RE'!E6:E6) -> 51482069 | E6: =SUM('C4-FinPerf RE'!F6:F6) -> 2549820.39 | F6: =SUM('C4-FinPerf RE'!G6:G6) -> 12750906.14 | G6: =SUM('C4-FinPerf RE'!H6:H6) -> 21450845 | H6: =F6-G6 -> -8699938.86 | I6: =IF(H6=0,"",H6/G6) -> -0.405575578 | J6: =SUM('C4-FinPerf RE'!K6:K6) -> 51482069
A7: Service charges | B7: =SUM('C4-FinPerf RE'!C7:C10) -> 11061887.67 | C7: =SUM('C4-FinPerf RE'!D7:D10) -> 14195880 | D7: =SUM('C4-FinPerf RE'!E7:E10) -> 14195880 | E7: =SUM('C4-FinPerf RE'!F7:F10) -> 701510.77 | F7: =SUM('C4-FinPerf RE'!G7:G10) -> 4316925.23 | G7: =SUM('C4-FinPerf RE'!H7:H10) -> 5914940 | H7: =F7-G7 -> -1598014.77 | I7: =IF(H7=0,"",H7/G7) -> -0.2701658461 | J7: =SUM('C4-FinPerf RE'!K7:K10) -> 14195880
A8: Investment revenue | B8: ='C4-FinPerf RE'!C13 -> 2543772.73 | C8: ='C4-FinPerf RE'!D13 -> 2708206 | D8: ='C4-FinPerf RE'!E13 -> 2708206 | E8: ='C4-FinPerf RE'!F13 -> 98555.82 | F8: ='C4-FinPerf RE'!G13 -> 1421225.52 | G8: ='C4-FinPerf RE'!H13 -> 1128415 | H8: =F8-G8 -> 292810.52 | I8: =IF(H8=0,"",H8/G8) -> 0.2594883265 | J8: ='C4-FinPerf RE'!K13 -> 2708206
A9: Transfers and subsidies | B9: ='C4-FinPerf RE'!C19 -> 185288433.8 | C9: ='C4-FinPerf RE'!D19 -> 161092000 | D9: ='C4-FinPerf RE'!E19 -> 162092000 | E9: ='C4-FinPerf RE'!F19 -> 0 | F9: ='C4-FinPerf RE'!G19 -> 66551697.61 | G9: ='C4-FinPerf RE'!H19 -> 67343877.22 | H9: =F9-G9 -> -792179.61 | I9: =IF(H9=0,"",H9/G9) -> -0.01176320169 | J9: ='C4-FinPerf RE'!K19 -> 162092000
A10: Other own revenue | B10: ='C4-FinPerf RE'!C12+'C4-FinPerf RE'!C14+'C4-FinPerf RE'!C15+'C4-FinPerf RE'!C16+'C4-FinPerf RE'!C17+'C4-FinPerf RE'!C18+'C4-FinPerf RE'!C20+'C4-FinPerf RE'!C21 -> 7825791.04 | C10: ='C4-FinPerf RE'!D12+'C4-FinPerf RE'!D14+'C4-FinPerf RE'!D15+'C4-FinPerf RE'!D16+'C4-FinPerf RE'!D17+'C4-FinPerf RE'!D18+'C4-FinPerf RE'!D20+'C4-FinPerf RE'!D21 -> 38693903 | D10: ='C4-FinPerf RE'!E12+'C4-FinPerf RE'!E14+'C4-FinPerf RE'!E15+'C4-FinPerf RE'!E16+'C4-FinPerf RE'!E17+'C4-FinPerf RE'!E18+'C4-FinPerf RE'!E20+'C4-FinPerf RE'!E21 -> 38693903 | E10: ='C4-FinPerf RE'!F12+'C4-FinPerf RE'!F14+'C4-FinPerf RE'!F15+'C4-FinPerf RE'!F16+'C4-FinPerf RE'!F17+'C4-FinPerf RE'!F18+'C4-FinPerf RE'!F20+'C4-FinPerf RE'!F21 -> 1825850.75 | F10: ='C4-FinPerf RE'!G12+'C4-FinPerf RE'!G14+'C4-FinPerf RE'!G15+'C4-FinPerf RE'!G16+'C4-FinPerf RE'!G17+'C4-FinPerf RE'!G18+'C4-FinPerf RE'!G20+'C4-FinPerf RE'!G21 -> 6428874.24 | G10: ='C4-FinPerf RE'!H12+'C4-FinPerf RE'!H14+'C4-FinPerf RE'!H15+'C4-FinPerf RE'!H16+'C4-FinPerf RE'!H17+'C4-FinPerf RE'!H18+'C4-FinPerf RE'!H20+'C4-FinPerf RE'!H21 -> 16122405 | H10: =F10-G10 -> -9693530.76 | I10: =IF(H10=0,"",H10/G10) -> -0.6012459531 | J10: ='C4-FinPerf RE'!K12+'C4-FinPerf RE'!K14+'C4-FinPerf RE'!K15+'C4-FinPerf RE'!K16+'C4-FinPerf RE'!K17+'C4-FinPerf RE'!K18+'C4-FinPerf RE'!K20+'C4-FinPerf RE'!K21 -> 38693903
A11: Total Revenue (excluding capital transfers and contributions) | B11: =SUM(B6:B10) -> 256277888 | C11: 268172058 | D11: 269172058 | E11: 5175737.73 | F11: 91469628.74 | G11: 111960482.2 | H11: =F11-G11 -> -20490853.48 | I11: =IF(H11=0,"",H11/G11) -> -0.1830186247 | J11: 269172058
A12: Employee costs | B12: ='C4-FinPerf RE'!C25 -> 91655492.25 | C12: ='C4-FinPerf RE'!D25 -> 105732276 | D12: ='C4-FinPerf RE'!E25 -> 105732276 | E12: ='C4-FinPerf RE'!F25 -> 7464425.75 | F12: ='C4-FinPerf RE'!G25 -> 38144906.9 | G12: ='C4-FinPerf RE'!H25 -> 44056375 | H12: -5911468.1 | I12: -0.1341796301 | J12: ='C4-FinPerf RE'!K25 -> 105732276
A13: Remuneration of Councillors | B13: ='C4-FinPerf RE'!C26 -> 12930254.27 | C13: ='C4-FinPerf RE'!D26 -> 15010262 | D13: ='C4-FinPerf RE'!E26 -> 15010262 | E13: ='C4-FinPerf RE'!F26 -> 908492.47 | F13: ='C4-FinPerf RE'!G26 -> 5139520.67 | G13: ='C4-FinPerf RE'!H26 -> 6254325 | H13: -1114804.33 | I13: -0.178245347 | J13: ='C4-FinPerf RE'!K26 -> 15010262
A14: Depreciation & asset impairment | B14: ='C4-FinPerf RE'!C28 -> 12114558.47 | C14: ='C4-FinPerf RE'!D28 -> 18994790 | D14: ='C4-FinPerf RE'!E28 -> 18994790 | E14: ='C4-FinPerf RE'!F28 -> 0 | F14: ='C4-FinPerf RE'!G28 -> 0 | G14: ='C4-FinPerf RE'!H28 -> 7914720 | H14: -7914720 | I14: -1 | J14: ='C4-FinPerf RE'!K28 -> 18994790
A15: Finance charges | B15: ='C4-FinPerf RE'!C29 -> 183629.4 | C15: ='C4-FinPerf RE'!D29 -> 1055833 | D15: ='C4-FinPerf RE'!E29 -> 1055833 | E15: ='C4-FinPerf RE'!F29 -> -1633.18 | F15: ='C4-FinPerf RE'!G29 -> -1452.78 | G15: ='C4-FinPerf RE'!H29 -> 439935 | H15: -441387.78 | I15: -1.003302261 | J15: ='C4-FinPerf RE'!K29 -> 1055833
A16: Inventory consumed and bulk purchases | B16: =SUM('C4-FinPerf RE'!C30:C31) -> 14946824.34 | C16: =SUM('C4-FinPerf RE'!D30:D31) -> 18057652 | D16: =SUM('C4-FinPerf RE'!E30:E31) -> 18057652 | E16: =SUM('C4-FinPerf RE'!F30:F31) -> 1424538.01 | F16: =SUM('C4-FinPerf RE'!G30:G31) -> 7899921.42 | G16: =SUM('C4-FinPerf RE'!H30:H31) -> 7524045 | H16: 375876.42 | I16: 0.04995669484 | J16: =SUM('C4-FinPerf RE'!K30:K31) -> 18057652
A17: Transfers and subsidies | B17: ='C4-FinPerf RE'!C33 -> 0 | C17: ='C4-FinPerf RE'!D33 -> 0 | D17: ='C4-FinPerf RE'!E33 -> 0 | E17: ='C4-FinPerf RE'!F33 -> 0 | F17: ='C4-FinPerf RE'!G33 -> 0 | G17: ='C4-FinPerf RE'!H33 -> 0 | H17: 0 | J17: ='C4-FinPerf RE'!K33 -> 0
A18: Other expenditure | B18: ='C4-FinPerf RE'!C36-SUM('C1-Sum'!B12:B17) -> 89243144.38 | C18: ='C4-FinPerf RE'!D36-SUM('C1-Sum'!C12:C17) -> 89077812 | D18: ='C4-FinPerf RE'!E36-SUM('C1-Sum'!D12:D17) -> 90077812 | E18: ='C4-FinPerf RE'!F36-SUM('C1-Sum'!E12:E17) -> 5092448.71 | F18: ='C4-FinPerf RE'!G36-SUM('C1-Sum'!F12:F17) -> 22339980.38 | G18: ='C4-FinPerf RE'!H36-SUM('C1-Sum'!G12:G17) -> 37338382.22 | H18: -14998401.84 | I18: -0.4016885829 | J18: ='C4-FinPerf RE'!K36-SUM('C1-Sum'!J12:J17) -> 90077812
A19: Total Expenditure | B19: =SUM(B12:B18) -> 221073903.1 | C19: 247928625 | D19: 248928625 | E19: 14888271.76 | F19: 73522876.59 | G19: 103527782.2 | H19: -30004905.63 | I19: -0.289824673 | J19: =SUM(J12:J18) -> 248928625
A20: Surplus/(Deficit) | B20: =B11-B19 -> 35203984.89 | C20: 20243433 | D20: 20243433 | E20: -9712534.03 | F20: 17946752.15 | G20: 8432700 | H20: 9514052.15 | I20: 1.128233205 | J20: =J11-J19 -> 20243433
A21: ='C4-FinPerf RE'!A39 -> Transfers and subsidies - capital (monetary allocations) (National / Provincial and District) | B21: ='C4-FinPerf RE'!C39 -> 45027638.97 | C21: ='C4-FinPerf RE'!D39 -> 45150000 | D21: ='C4-FinPerf RE'!E39 -> 45150000 | E21: ='C4-FinPerf RE'!F39 -> 0 | F21: ='C4-FinPerf RE'!G39 -> 5797471.99 | G21: ='C4-FinPerf RE'!H39 -> 18812495 | H21: -13015023.01 | I21: -0.6918286495 | J21: ='C4-FinPerf RE'!K39 -> 45150000
A22: ='C4-FinPerf RE'!A40&" & "&'C4-FinPerf RE'!A41 -> Transfers and subsidies - capital (monetary allocations) (National / Provincial Departmental Agencies, Households, Non-profit Institutions, Private Enterprises, Public Corporatons, Higher Educational Institutions) & Transfers and subsidies - capital (in-kind - all) | B22: =SUM('C4-FinPerf RE'!C40:C41) -> 1234955.28 | C22: =SUM('C4-FinPerf RE'!D40:D41) -> 0 | D22: =SUM('C4-FinPerf RE'!E40:E41) -> 0 | E22: =SUM('C4-FinPerf RE'!F40:F41) -> 0 | F22: =SUM('C4-FinPerf RE'!G40:G41) -> 0 | G22: =SUM('C4-FinPerf RE'!H40:H41) -> 0 | H22: 0 | J22: =SUM('C4-FinPerf RE'!K40:K41) -> 0
A23: Surplus/(Deficit) after capital transfers & contributions | B23: =B20+B21+B22 -> 81466579.14 | C23: 65393433 | D23: 65393433 | E23: -9712534.03 | F23: 23744224.14 | G23: 27245195 | H23: -3500970.86 | I23: -0.1284986531 | J23: =J20+J21+J22 -> 65393433
A24: Share of surplus/ (deficit) of associate | B24: ='C4-FinPerf RE'!C47 -> 0 | C24: ='C4-FinPerf RE'!D47 -> 0 | D24: ='C4-FinPerf RE'!E47 -> 0 | E24: ='C4-FinPerf RE'!F47 -> 0 | F24: ='C4-FinPerf RE'!G47 -> 0 | G24: ='C4-FinPerf RE'!H47 -> 0 | H24: 0 | J24: ='C4-FinPerf RE'!K47 -> 0
A25: Surplus/ (Deficit) for the year | B25: =B23+B24 -> 81466579.14 | C25: 65393433 | D25: 65393433 | E25: -9712534.03 | F25: 23744224.14 | G25: 27245195 | H25: -3500970.86 | I25: -0.1284986531 | J25: =J23+J24 -> 65393433
A27: Capital expenditure & funds sources
A28: Capital expenditure | B28: ='C5-Capex'!C40 -> 50056507.07 | C28: ='C5-Capex'!D40 -> 65393793 | D28: ='C5-Capex'!E40 -> 65393793 | E28: ='C5-Capex'!F40 -> 2715337.03 | F28: ='C5-Capex'!G40 -> 10637982.67 | G28: ='C5-Capex'!H40 -> 27247450 | H28: =F28-G28 -> -16609467.33 | I28: =IF(H28=0,"",H28/G28) -> -0.60957878 | J28: ='C5-Capex'!K40 -> 65393793
A29: Capital transfers recognised | B29: ='C5-Capex'!C70 -> 40289895.24 | C29: ='C5-Capex'!D70 -> 45437793 | D29: ='C5-Capex'!E70 -> 45437793 | E29: ='C5-Capex'!F70 -> 2534817.39 | F29: ='C5-Capex'!G70 -> 8328137 | G29: ='C5-Capex'!H70 -> 18932425 | H29: -10604288 | I29: -0.5601125054 | J29: ='C5-Capex'!K70 -> 45437793
A31: Borrowing | B31: ='C5-Capex'!C72 -> 0 | C31: ='C5-Capex'!D72 -> 0 | D31: ='C5-Capex'!E72 -> 0 | E31: ='C5-Capex'!F72 -> 0 | F31: ='C5-Capex'!G72 -> 0 | G31: ='C5-Capex'!H72 -> 0 | H31: 0 | J31: ='C5-Capex'!K72 -> 0
A32: Internally generated funds | B32: ='C5-Capex'!C73 -> 9766611.83 | C32: ='C5-Capex'!D73 -> 19956000 | D32: ='C5-Capex'!E73 -> 19956000 | E32: ='C5-Capex'!F73 -> 180519.64 | F32: ='C5-Capex'!G73 -> 2309845.67 | G32: ='C5-Capex'!H73 -> 8315025 | H32: -6005179.33 | I32: -0.722208211 | J32: ='C5-Capex'!K73 -> 19956000
A33: Total sources of capital funds | B33: =+B29+B31+B32 -> 50056507.07 | C33: 65393793 | D33: 65393793 | E33: 2715337.03 | F33: 10637982.67 | G33: 27247450 | H33: -16609467.33 | I33: -0.60957878 | J33: =+J29+J31+J32 -> 65393793
A35: Financial position
A36: Total current assets | B36: ='C6-FinPos'!C13 -> 151490556.7 | C36: ='C6-FinPos'!D13 -> 161591098 | D36: ='C6-FinPos'!E13 -> 162591098 | F36: ='C6-FinPos'!F13 -> 211785927 | J36: ='C6-FinPos'!G13 -> 162591098
A37: Total non current assets | B37: ='C6-FinPos'!C25 -> 305416197.8 | C37: ='C6-FinPos'!D25 -> 375938641 | D37: ='C6-FinPos'!E25 -> 375938641 | F37: ='C6-FinPos'!F25 -> 316054180.5 | J37: ='C6-FinPos'!G25 -> 375938641
A38: Total current liabilities | B38: ='C6-FinPos'!C35 -> 167024235.8 | C38: ='C6-FinPos'!D35 -> 52480071 | D38: ='C6-FinPos'!E35 -> 52480071 | F38: ='C6-FinPos'!F35 -> 65224712.38 | J38: ='C6-FinPos'!G35 -> 52480071
A39: Total non current liabilities | B39: ='C6-FinPos'!C40 -> 26098177.59 | C39: ='C6-FinPos'!D40 -> 29939246 | D39: ='C6-FinPos'!E40 -> 29939246 | F39: ='C6-FinPos'!F40 -> 26050432.59 | J39: ='C6-FinPos'!G40 -> 29939246
A40: Community wealth/Equity | B40: ='C6-FinPos'!C48 -> 425375118.5 | C40: ='C6-FinPos'!D48 -> 455339568 | D40: ='C6-FinPos'!E48 -> 456339568 | F40: ='C6-FinPos'!F48 -> 390344258.4 | J40: ='C6-FinPos'!G48 -> 456339568
A42: Cash flows
A43: Net cash from (used) operating | B43: ='C7-CFlow'!C18 -> 61706403.42 | C43: ='C7-CFlow'!D18 -> 85563249 | D43: ='C7-CFlow'!E18 -> 86563249 | E43: ='C7-CFlow'!F18 -> -4462759.07 | F43: ='C7-CFlow'!G18 -> 222168468.6 | G43: ='C7-CFlow'!H18 -> 36068020.5 | H43: =G43-F43 -> -186100448.1 | I43: =IF(H43=0,"",H43/G43) -> -5.15970784 | J43: ='C7-CFlow'!K18 -> 86563249
A44: Net cash from (used) investing | B44: ='C7-CFlow'!C28 -> -26519736.97 | C44: ='C7-CFlow'!D28 -> -65393793 | D44: ='C7-CFlow'!E28 -> -65393793 | E44: ='C7-CFlow'!F28 -> -2715337.03 | F44: ='C7-CFlow'!G28 -> -10637982.67 | G44: ='C7-CFlow'!H28 -> -27247413.7 | H44: =G44-F44 -> -16609431.03 | I44: =IF(H44=0,"",H44/G44) -> 0.6095782599 | J44: ='C7-CFlow'!K28 -> -65393793
A45: Net cash from (used) financing | B45: ='C7-CFlow'!C37 -> -900 | C45: ='C7-CFlow'!D37 -> -180989.52 | D45: ='C7-CFlow'!E37 -> 0 | E45: ='C7-CFlow'!F37 -> 450 | F45: ='C7-CFlow'!G37 -> -505826.48 | G45: ='C7-CFlow'!H37 -> -285985 | H45: =G45-F45 -> 219841.48 | I45: =IF(H45=0,"",H45/G45) -> -0.7687168208 | J45: ='C7-CFlow'!K37 -> -686366
A46: Cash/cash equivalents at the month/year end | B46: ='C7-CFlow'!C41 -> 58196731.6 | C46: ='C7-CFlow'!D41 -> 19988466.48 | D46: ='C7-CFlow'!E41 -> 21169456 | E46: ='C7-CFlow'!F41 -> 0 | F46: ='C7-CFlow'!G41 -> 300568463.9 | G46: ='C7-CFlow'!H41 -> 8534621.8 | H46: =G46-F46 -> -292033842.1 | I46: =IF(H46=0,"",H46/G46) -> -34.21754928 | J46: ='C7-CFlow'!K41 -> 20483090
A48: Debtors & creditors analysis | B48: ='SC3'!C3 -> 0-30 Days | C48: ='SC3'!D3 -> 31-60 Days | D48: ='SC3'!E3 -> 61-90 Days | E48: ='SC3'!F3 -> 91-120 Days | F48: ='SC3'!G3 -> 121-150 Dys | G48: ='SC3'!H3 -> 151-180 Dys | H48: ='SC3'!I3 -> 181 Dys-1 Yr | I48: ='SC3'!J3 -> Over 1Yr | J48: Total
A49: =LEFT('SC3'!A4,20) -> Debtors Age Analysis
A50: ='SC3'!A14 -> Total By Income Source | B50: ='SC3'!C14 -> 2873804 | C50: ='SC3'!D14 -> 2862716 | D50: ='SC3'!E14 -> 2715745 | E50: ='SC3'!F14 -> 110657353 | F50: ='SC3'!G14 -> 0 | G50: ='SC3'!H14 -> 0 | H50: ='SC3'!I14 -> 0 | I50: ='SC3'!J14 -> 0 | J50: ='SC3'!K14 -> 119109618
A51: =LEFT('SC4'!A5,22) -> Creditors Age Analysis
A52: Total Creditors | B52: ='SC4'!C15 -> 2685539.9 | C52: ='SC4'!D15 -> 616085.04 | D52: ='SC4'!E15 -> 802784.45 | E52: ='SC4'!F15 -> 1740485.42 | F52: ='SC4'!G15 -> 0 | G52: ='SC4'!H15 -> 0 | H52: ='SC4'!I15 -> 0 | I52: ='SC4'!J15 -> 0 | J52: ='SC4'!K15 -> 5844894.81

Sheet C2-FinPerf SC
A1: =muni& " - "&S71A& " - "&date -> LIM353 Molemole - Table C2 Monthly Budget Statement - Financial Performance (functional classification) - M05 November
A2: =desc -> Description | B2: =head27 -> Ref | C2: =Head1 -> 2020/21 | D2: =Head2 -> Budget Year 2021/22
C3: =Head5 -> Audited Outcome | D3: =Head6 -> Original Budget | E3: =Head7 -> Adjusted Budget | F3: =Head38 -> Monthly actual | G3: =Head39 -> YearTD actual | H3: =Head40 -> YearTD budget | I3: =Head41 -> YTD variance | J3: =Head41 -> YTD variance | K3: =Head8 -> Full Year Forecast
A4: R thousands | B4: 1 | J4: %
A5: Revenue - Functional
A6: Governance and administration | C6: =SUM(C7:C9) -> 235257470.5 | D6: 233378292 | E6: 233378292 | F6: 2768237.89 | G6: 80508299.12 | H6: 97240920 | I6: =G6-H6 -> -16732620.88 | J6: =IF(I6=0,"",I6/H6) -> -0.1720738644 | K6: =SUM(K7:K9) -> 233378292
A7: Executive and council | C7: ='C2C'!C7 -> 12150 | D7: ='C2C'!D7 -> 0 | E7: ='C2C'!E7 -> 0 | F7: ='C2C'!F7 -> 0 | G7: ='C2C'!G7 -> 0 | H7: ='C2C'!H7 -> 0 | I7: 0 | J7: =IF(I7=0,"",I7/H7) ->  | K7: ='C2C'!K7 -> 0
A8: Finance and administration | C8: ='C2C'!C10 -> 235245320.5 | D8: ='C2C'!D10 -> 233378292 | E8: ='C2C'!E10 -> 233378292 | F8: ='C2C'!F10 -> 2768237.89 | G8: ='C2C'!G10 -> 80508299.12 | H8: ='C2C'!H10 -> 97240920 | I8: -16732620.88 | J8: -0.1720738644 | K8: ='C2C'!K10 -> 233378292
A9: Internal audit | C9: ='C2C'!C24 -> 0 | D9: ='C2C'!D24 -> 0 | E9: ='C2C'!E24 -> 0 | F9: ='C2C'!F24 -> 0 | G9: ='C2C'!G24 -> 0 | H9: ='C2C'!H24 -> 0 | I9: 0 | K9: ='C2C'!K24 -> 0
A10: Community and public safety | C10: =SUM(C11:C15) -> 8107750.62 | D10: 10691864 | E10: 10691864 | F10: 1435995.34 | G10: 5025043.72 | H10: 4454930 | I10: 570113.72 | J10: 0.1279736651 | K10: =SUM(K11:K15) -> 10691864
A11: Community and social services | C11: ='C2C'!C27 -> 2515686.28 | D11: ='C2C'!D27 -> 1442644 | E11: ='C2C'!E27 -> 1442644 | F11: ='C2C'!F27 -> 0 | G11: ='C2C'!G27 -> 293070 | H11: ='C2C'!H27 -> 601100 | I11: -308030 | J11: -0.5124438529 | K11: ='C2C'!K27 -> 1442644
A12: Sport and recreation | C12: ='C2C'!C49 -> 214680.5 | D12: ='C2C'!D49 -> 257623 | E12: ='C2C'!E49 -> 257623 | F12: ='C2C'!F49 -> 34132.51 | G12: ='C2C'!G49 -> 90902.57 | H12: ='C2C'!H49 -> 107335 | I12: -16432.43 | J12: -0.1530947967 | K12: ='C2C'!K49 -> 257623
A13: Public safety | C13: ='C2C'!C55 -> 5377383.84 | D13: ='C2C'!D55 -> 8991597 | E13: ='C2C'!E55 -> 8991597 | F13: ='C2C'!F55 -> 1401862.83 | G13: ='C2C'!G55 -> 4641071.15 | H13: ='C2C'!H55 -> 3746495 | I13: 894576.15 | J13: 0.2387768167 | K13: ='C2C'!K55 -> 8991597
A14: Housing | C14: ='C2C'!C64 -> 0 | D14: ='C2C'!D64 -> 0 | E14: ='C2C'!E64 -> 0 | F14: ='C2C'!F64 -> 0 | G14: ='C2C'!G64 -> 0 | H14: ='C2C'!H64 -> 0 | I14: 0 | K14: ='C2C'!K64 -> 0
A15: Health | C15: ='C2C'!C67 -> 0 | D15: ='C2C'!D67 -> 0 | E15: ='C2C'!E67 -> 0 | F15: ='C2C'!F67 -> 0 | G15: ='C2C'!G67 -> 0 | H15: ='C2C'!H67 -> 0 | I15: 0 | K15: ='C2C'!K67 -> 0
A16: Economic and environmental services | C16: =SUM(C17:C19) -> 35537755.33 | D16: 43506508 | E16: 43506508 | F16: 3516.72 | G16: 6227465.74 | H16: 18127680 | I16: -11900214.26 | J16: -0.6564664789 | K16: =SUM(K17:K19) -> 43506508
A17: Planning and development | C17: ='C2C'!C76 -> 35537755.33 | D17: ='C2C'!D76 -> 43506508 | E17: ='C2C'!E76 -> 43506508 | F17: ='C2C'!F76 -> 3516.72 | G17: ='C2C'!G76 -> 6227465.74 | H17: ='C2C'!H76 -> 18127680 | I17: -11900214.26 | J17: -0.6564664789 | K17: ='C2C'!K76 -> 43506508
A18: Road transport | C18: ='C2C'!C87 -> 0 | D18: ='C2C'!D87 -> 0 | E18: ='C2C'!E87 -> 0 | F18: ='C2C'!F87 -> 0 | G18: ='C2C'!G87 -> 0 | H18: ='C2C'!H87 -> 0 | I18: 0 | K18: ='C2C'!K87 -> 0
A19: Environmental protection | C19: ='C2C'!C92 -> 0 | D19: ='C2C'!D92 -> 0 | E19: ='C2C'!E92 -> 0 | F19: ='C2C'!F92 -> 0 | G19: ='C2C'!G92 -> 0 | H19: ='C2C'!H92 -> 0 | I19: 0 | K19: ='C2C'!K92 -> 0
A20: Trading services | C20: =SUM(C21:C24) -> 23637505.82 | D20: =SUM(D21:D24) -> 25745394 | E20: 26745394 | F20: 967987.78 | G20: 5506292.15 | H20: 10949447.22 | I20: -5443155.07 | J20: -0.4971168828 | K20: =SUM(K21:K24) -> 26745394
A21: Energy sources | C21: ='C2C'!C100 -> 19907231.84 | D21: ='C2C'!D100 -> 22300209 | E21: ='C2C'!E100 -> 22300209 | F21: ='C2C'!F100 -> 494641.67 | G21: ='C2C'!G100 -> 3271255.05 | H21: ='C2C'!H100 -> 9291740 | I21: =G21-H21 -> -6020484.95 | J21: -0.6479394548 | K21: ='C2C'!K100 -> 22300209
A22: Water management | C22: ='C2C'!C104 -> 328420.18 | D22: ='C2C'!D104 -> 438143 | E22: ='C2C'!E104 -> 438143 | F22: ='C2C'!F104 -> 123122.8 | G22: ='C2C'!G104 -> 520370.11 | H22: ='C2C'!H104 -> 182555 | I22: =G22-H22 -> 337815.11 | J22: 1.850484019 | K22: ='C2C'!K104 -> 438143
A23: Waste water management | C23: ='C2C'!C108 -> 519063.53 | D23: ='C2C'!D108 -> 283566 | E23: ='C2C'!E108 -> 1283566 | F23: ='C2C'!F108 -> 92294.28 | G23: ='C2C'!G108 -> 445178.89 | H23: ='C2C'!H108 -> 340372.22 | I23: =G23-H23 -> 104806.67 | J23: 0.3079178142 | K23: ='C2C'!K108 -> 1283566
A24: Waste management | C24: ='C2C'!C113 -> 2882790.27 | D24: ='C2C'!D113 -> 2723476 | E24: ='C2C'!E113 -> 2723476 | F24: ='C2C'!F113 -> 257929.03 | G24: ='C2C'!G113 -> 1269488.1 | H24: ='C2C'!H113 -> 1134780 | I24: =G24-H24 -> 134708.1 | J24: 0.1187085602 | K24: ='C2C'!K113 -> 2723476
A25: Other | B25: 4 | C25: ='C2C'!C118 -> 0 | D25: ='C2C'!D118 -> 0 | E25: ='C2C'!E118 -> 0 | F25: ='C2C'!F118 -> 0 | G25: ='C2C'!G118 -> 0 | H25: ='C2C'!H118 -> 0 | I25: =G25-H25 -> 0 | K25: ='C2C'!K118 -> 0
A26: Total Revenue - Functional | B26: 2 | C26: =C6+C10+C16+C20+C25 -> 302540482.2 | D26: =D6+D10+D16+D20+D25 -> 313322058 | E26: 314322058 | F26: 5175737.73 | G26: 97267100.73 | H26: 130772977.2 | I26: -33505876.49 | J26: -0.2562140681 | K26: =K6+K10+K16+K20+K25 -> 314322058
A28: Expenditure - Functional
A29: Governance and administration | C29: =SUM(C30:C32) -> 126504542 | D29: 137751459 | E29: 137751459 | F29: 7861825.57 | G29: 39298017.97 | H29: 57397590 | I29: =G29-H29 -> -18099572.03 | J29: =IF(I29=0,"",I29/H29) -> -0.3153367943 | K29: =SUM(K30:K32) -> 137751459
A30: Executive and council | C30: ='C2C'!C129 -> 36700574.25 | D30: ='C2C'!D129 -> 38116518 | E30: ='C2C'!E129 -> 38116518 | F30: ='C2C'!F129 -> 1802481.63 | G30: ='C2C'!G129 -> 10681803.45 | H30: ='C2C'!H129 -> 15882270 | I30: -5200466.55 | J30: =IF(I30=0,"",I30/H30) -> -0.3274384927 | K30: ='C2C'!K129 -> 38116518
A31: Finance and administration | C31: ='C2C'!C132 -> 82673326.21 | D31: ='C2C'!D132 -> 90852180 | E31: ='C2C'!E132 -> 90852180 | F31: ='C2C'!F132 -> 5023048.8 | G31: ='C2C'!G132 -> 25956667.18 | H31: ='C2C'!H132 -> 37855780 | I31: -11899112.82 | J31: -0.3143275035 | K31: ='C2C'!K132 -> 90852180
A32: Internal audit | C32: ='C2C'!C146 -> 7130641.56 | D32: ='C2C'!D146 -> 8782761 | E32: ='C2C'!E146 -> 8782761 | F32: ='C2C'!F146 -> 1036295.14 | G32: ='C2C'!G146 -> 2659547.34 | H32: ='C2C'!H146 -> 3659540 | I32: -999992.66 | J32: -0.2732563819 | K32: ='C2C'!K146 -> 8782761
A33: Community and public safety | C33: =SUM(C34:C38) -> 25382535.16 | D33: 26202515 | E33: 26202515 | F33: 1700090.87 | G33: 8847546.11 | H33: 10918020 | I33: -2070473.89 | J33: -0.189638221 | K33: =SUM(K34:K38) -> 26202515
A34: Community and social services | C34: ='C2C'!C149 -> 5328179.42 | D34: ='C2C'!D149 -> 7269984 | E34: ='C2C'!E149 -> 7269984 | F34: ='C2C'!F149 -> 271783.9 | G34: ='C2C'!G149 -> 1468721.81 | H34: ='C2C'!H149 -> 3029330 | I34: -1560608.19 | J34: -0.5151661225 | K34: ='C2C'!K149 -> 7269984
A35: Sport and recreation | C35: ='C2C'!C171 -> 3853917.1 | D35: ='C2C'!D171 -> 3332043 | E35: ='C2C'!E171 -> 3332043 | F35: ='C2C'!F171 -> 191829.61 | G35: ='C2C'!G171 -> 980321.19 | H35: ='C2C'!H171 -> 1388425 | I35: -408103.81 | J35: -0.2939329168 | K35: ='C2C'!K171 -> 3332043
A36: Public safety | C36: ='C2C'!C177 -> 16200438.64 | D36: ='C2C'!D177 -> 15600488 | E36: ='C2C'!E177 -> 15600488 | F36: ='C2C'!F177 -> 1236477.36 | G36: ='C2C'!G177 -> 6398503.11 | H36: ='C2C'!H177 -> 6500265 | I36: -101761.89 | J36: -0.01565503714 | K36: ='C2C'!K177 -> 15600488
A37: Housing | C37: ='C2C'!C186 -> 0 | D37: ='C2C'!D186 -> 0 | E37: ='C2C'!E186 -> 0 | F37: ='C2C'!F186 -> 0 | G37: ='C2C'!G186 -> 0 | H37: ='C2C'!H186 -> 0 | I37: 0 | K37: ='C2C'!K186 -> 0
A38: Health | C38: ='C2C'!C189 -> 0 | D38: ='C2C'!D189 -> 0 | E38: ='C2C'!E189 -> 0 | F38: ='C2C'!F189 -> 0 | G38: ='C2C'!G189 -> 0 | H38: ='C2C'!H189 -> 0 | I38: 0 | K38: ='C2C'!K189 -> 0
A39: Economic and environmental services | C39: =SUM(C40:C42) -> 11221967.77 | D39: 15439515 | E39: 15439515 | F39: 851691.7 | G39: 4771684.58 | H39: 6433385 | I39: -1661700.42 | J39: -0.2582933277 | K39: =SUM(K40:K42) -> 15439515
A40: Planning and development | C40: ='C2C'!C198 -> 9050448.45 | D40: ='C2C'!D198 -> 11831023 | E40: ='C2C'!E198 -> 11831023 | F40: ='C2C'!F198 -> 605421 | G40: ='C2C'!G198 -> 3551924.31 | H40: ='C2C'!H198 -> 4929820 | I40: -1377895.69 | J40: -0.2795022313 | K40: ='C2C'!K198 -> 11831023
A41: Road transport | C41: ='C2C'!C209 -> 2171519.32 | D41: ='C2C'!D209 -> 3608492 | E41: ='C2C'!E209 -> 3608492 | F41: ='C2C'!F209 -> 246270.7 | G41: ='C2C'!G209 -> 1219760.27 | H41: ='C2C'!H209 -> 1503565 | I41: -283804.73 | J41: -0.1887545467 | K41: ='C2C'!K209 -> 3608492
A42: Environmental protection | C42: ='C2C'!C214 -> 0 | D42: ='C2C'!D214 -> 0 | E42: ='C2C'!E214 -> 0 | F42: ='C2C'!F214 -> 0 | G42: ='C2C'!G214 -> 0 | H42: ='C2C'!H214 -> 0 | I42: 0 | K42: ='C2C'!K214 -> 0
A43: Trading services | C43: =SUM(C44:C47) -> 57964858.16 | D43: =SUM(D44:D47) -> 68535136 | E43: 69535136 | F43: 4474663.62 | G43: 20605627.93 | H43: 28778787.22 | I43: -8173159.29 | J43: -0.2839994343 | K43: =SUM(K44:K47) -> 69535136
A44: Energy sources | C44: ='C2C'!C222 -> 21345355 | D44: ='C2C'!D222 -> 23932536 | E44: ='C2C'!E222 -> 23932536 | F44: ='C2C'!F222 -> 1930510.4 | G44: ='C2C'!G222 -> 10249527.17 | H44: ='C2C'!H222 -> 9971960 | I44: 277567.17 | J44: 0.02783476568 | K44: ='C2C'!K222 -> 23932536
A45: Water management | C45: ='C2C'!C226 -> 6378865.08 | D45: ='C2C'!D226 -> 8083668 | E45: ='C2C'!E226 -> 8083668 | F45: ='C2C'!F226 -> 529509.15 | G45: ='C2C'!G226 -> 2763652.06 | H45: ='C2C'!H226 -> 3368235 | I45: -604582.94 | J45: -0.1794954746 | K45: ='C2C'!K226 -> 8083668
A46: Waste water management | C46: ='C2C'!C230 -> 23788074.01 | D46: ='C2C'!D230 -> 28806018 | E46: ='C2C'!E230 -> 29806018 | F46: ='C2C'!F230 -> 1472338.25 | G46: ='C2C'!G230 -> 4670162.18 | H46: ='C2C'!H230 -> 12224832.22 | I46: -7554670.04 | J46: -0.6179774008 | K46: ='C2C'!K230 -> 29806018
A47: Waste management | C47: ='C2C'!C235 -> 6452564.07 | D47: ='C2C'!D235 -> 7712914 | E47: ='C2C'!E235 -> 7712914 | F47: ='C2C'!F235 -> 542305.82 | G47: ='C2C'!G235 -> 2922286.52 | H47: ='C2C'!H235 -> 3213760 | I47: -291473.48 | J47: -0.09069547197 | K47: ='C2C'!K235 -> 7712914
A48: Other | C48: ='C2C'!C240 -> 0 | D48: ='C2C'!D240 -> 0 | E48: ='C2C'!E240 -> 0 | F48: ='C2C'!F240 -> 0 | G48: ='C2C'!G240 -> 0 | H48: ='C2C'!H240 -> 0 | I48: 0 | K48: ='C2C'!K240 -> 0
A49: Total Expenditure - Functional | B49: 3 | C49: =C29+C33+C39+C43+C48 -> 221073903.1 | D49: =D29+D33+D39+D43+D48 -> 247928625 | E49: 248928625 | F49: 14888271.76 | G49: 73522876.59 | H49: 103527782.2 | I49: -30004905.63 | J49: -0.289824673 | K49: =K29+K33+K39+K43+K48 -> 248928625
A50: Surplus/ (Deficit) for the year | C50: =C26-C49 -> 81466579.14 | D50: 65393433 | E50: 65393433 | F50: -9712534.03 | G50: 23744224.14 | H50: 27245195 | I50: =I26-I49 -> -3500970.86 | J50: =IF(I50=0,"",I50/H50) -> -0.1284986531 | K50: =K26-K49 -> 65393433
A51: =head27a -> References
A52: 1. Government Finance Statistics Functions and Sub-functions are standardised to assist the compilation of national and international accounts for comparison purposes
A53: 2. Total Revenue by functional classification must reconcile to Total Operating Revenue shown in the Financial Performance Statement
A54: 3. Total Expenditure by functional classification must reconcile to total operating expenditure shown in 'Financial Performance Statement'
A55: 4. All amounts must be classified under a functional classification (modified GFS). The GFS function 'Other' is only for Abbatoirs, Air Transport, Licensing and Regulation, Markets and Tourism - and if used must be supported by footnotes. Nothing else may be placed under 'Other'. Assign associate share to relevant classification

Sheet C2C
A1: =muni& " - "&S71A& " - "&date -> LIM353 Molemole - Table C2 Monthly Budget Statement - Financial Performance (functional classification) - M05 November
A2: =desc -> Description | B2: =head27 -> Ref | C2: =Head1 -> 2020/21 | D2: =Head2 -> Budget Year 2021/22
C3: =Head5 -> Audited Outcome | D3: =Head6 -> Original Budget | E3: =Head7 -> Adjusted Budget | F3: =Head38 -> Monthly actual | G3: =Head39 -> YearTD actual | H3: =Head40 -> YearTD budget | I3: =Head41 -> YTD variance | J3: =Head41 -> YTD variance | K3: =Head8 -> Full Year Forecast
A4: R thousands | B4: 1 | J4: %
A5: Revenue - Functional
A6: Municipal governance and administration | C6: =C7+C10+C24 -> 235257470.5 | D6: 233378292 | E6: 233378292 | F6: 2768237.89 | G6: 80508299.12 | H6: 97240920 | I6: =G6-H6 -> -16732620.88 | J6: =IF(I6=0,"",I6/H6) -> -0.1720738644 | K6: =K7+K10+K24 -> 233378292
A7: Executive and council | C7: =SUM(C8:C9) -> 12150 | D7: =SUM(D8:D9) -> 0 | E7: 0 | F7: 0 | G7: 0 | H7: 0 | I7: =G7-H7 -> 0 | J7: =IF(I7=0,"",I7/H7) ->  | K7: 0
A8: Mayor and Council | C8: 12150 | D8: 0 | E8: 0 | F8: 0 | G8: 0 | H8: 0 | I8: 0 | K8: 0
A9: Municipal Manager, Town Secretary and Chief Executive | C9: 0 | D9: 0 | E9: 0 | F9: 0 | G9: 0 | H9: 0 | I9: 0 | K9: 0
A10: Finance and administration | C10: =SUM(C11:C23) -> 235245320.5 | D10: 233378292 | E10: 233378292 | F10: 2768237.89 | G10: 80508299.12 | H10: 97240920 | I10: -16732620.88 | J10: -0.1720738644 | K10: =SUM(K11:K23) -> 233378292
A11: Administrative and Corporate Support | C11: 232590492.6 | D11: 209983966 | E11: 209983966 | F11: 2625953.64 | G11: 78979594.15 | H11: 87493295 | I11: -8513700.85 | J11: -0.09730689477 | K11: 209983966
A12: Asset Management | I12: 0
A13: Finance | C13: 2574466.45 | D13: 23172487 | E13: 23172487 | F13: 101442.13 | G13: 1435334.43 | H13: 9655195 | I13: -8219860.57 | J13: -0.8513407104 | K13: 23172487
A14: Fleet Management | I14: 0
A15: Human Resources | C15: 80361.4 | D15: 221839 | E15: 221839 | F15: 40842.12 | G15: 93370.54 | H15: 92430 | I15: 940.54 | J15: 0.01017570053 | K15: 221839
A16: Information Technology | C16: 0 | D16: 0 | E16: 0 | F16: 0 | G16: 0 | H16: 0 | I16: 0 | K16: 0
A17: Legal Services | C17: 0 | D17: 0 | E17: 0 | F17: 0 | G17: 0 | H17: 0 | I17: 0 | K17: 0
A18: Marketing, Customer Relations, Publicity and Media Co-ordination | I18: 0
A19: Property Services | I19: 0
A20: Risk Management | C20: 0 | D20: 0 | E20: 0 | F20: 0 | G20: 0 | H20: 0 | I20: 0 | K20: 0
A21: Security Services | I21: 0
A22: Supply Chain Management | C22: 0 | D22: 0 | E22: 0 | F22: 0 | G22: 0 | H22: 0 | I22: 0 | K22: 0
A23: Valuation Service | I23: 0
A24: Internal audit | C24: =SUM(C25:C25) -> 0 | D24: 0 | E24: 0 | F24: 0 | G24: 0 | H24: 0 | I24: 0 | K24: =SUM(K25:K25) -> 0
A25: Governance Function | C25: 0 | D25: 0 | E25: 0 | F25: 0 | G25: 0 | H25: 0 | I25: 0 | K25: 0
A26: Community and public safety | C26: =C27+C49+C55+C64+C67 -> 8107750.62 | D26: =D27+D49+D55+D64+D67 -> 10691864 | E26: 10691864 | F26: 1435995.34 | G26: 5025043.72 | H26: 4454930 | I26: 570113.72 | J26: 0.1279736651 | K26: 10691864
A27: Community and social services | C27: =SUM(C28:C48) -> 2515686.28 | D27: 1442644 | E27: 1442644 | F27: 0 | G27: 293070 | H27: 601100 | I27: -308030 | J27: -0.5124438529 | K27: =SUM(K28:K48) -> 1442644
A28: Aged Care | I28: 0
A29: Agricultural | I29: 0
A30: Animal Care and Diseases | I30: 0
A31: Cemeteries, Funeral Parlours and Crematoriums | C31: 18283.95 | D31: 13644 | E31: 13644 | F31: 0 | G31: 0 | H31: 5685 | I31: -5685 | J31: -1 | K31: 13644
A32: Child Care Facilities | I32: 0
A33: Community Halls and Facilities | C33: 2497402.33 | D33: 1429000 | E33: 1429000 | F33: 0 | G33: 293070 | H33: 595415 | I33: -302345 | J33: -0.5077886852 | K33: 1429000
A34: Consumer Protection | I34: 0
A35: Cultural Matters | I35: 0
A36: Disaster Management | I36: 0
A37: Education | I37: 0
A38: Indigenous and Customary Law | I38: 0
A39: Industrial Promotion | I39: 0
A40: Language Policy | I40: 0
A41: Libraries and Archives | C41: 0 | D41: 0 | E41: 0 | F41: 0 | G41: 0 | H41: 0 | I41: 0 | K41: 0
A42: Literacy Programmes | I42: 0
A43: Media Services | I43: 0
A44: Museums and Art Galleries | I44: 0
A45: Population Development | I45: 0
A46: Provincial Cultural Matters | I46: 0
A47: Theatres | I47: 0
A48: Zoo's | I48: 0
A49: Sport and recreation | C49: =SUM(C50:C54) -> 214680.5 | D49: =SUM(D50:D54) -> 257623 | E49: 257623 | F49: 34132.51 | G49: 90902.57 | H49: 107335 | I49: -16432.43 | J49: -0.1530947967 | K49: 257623
A50: Beaches and Jetties | I50: 0
A51: Casinos, Racing, Gambling, Wagering | I51: 0
A52: Community Parks (including Nurseries) | I52: 0
A53: Recreational Facilities | C53: 214680.5 | D53: 257623 | E53: 257623 | F53: 34132.51 | G53: 90902.57 | H53: 107335 | I53: -16432.43 | J53: -0.1530947967 | K53: 257623
A54: Sports Grounds and Stadiums | I54: 0
A55: Public safety | C55: =SUM(C56:C63) -> 5377383.84 | D55: =SUM(D56:D63) -> 8991597 | E55: 8991597 | F55: 1401862.83 | G55: 4641071.15 | H55: 3746495 | I55: 894576.15 | J55: 0.2387768167 | K55: 8991597
A56: Civil Defence | I56: 0
A57: Cleansing | I57: 0
A58: Control of Public Nuisances | I58: =G58-H58 -> 0 | J58: =IF(I58=0,"",I58/H58) -> 
A59: Fencing and Fences | I59: 0
A60: Fire Fighting and Protection | I60: 0
A61: Licensing and Control of Animals | I61: =G61-H61 -> 0 | J61: =IF(I61=0,"",I61/H61) -> 
A62: Police Forces, Traffic and Street Parking Control | C62: 5377383.84 | D62: 8991597 | E62: 8991597 | F62: 1401862.83 | G62: 4641071.15 | H62: 3746495 | I62: =G62-H62 -> 894576.15 | J62: =IF(I62=0,"",I62/H62) -> 0.2387768167 | K62: 8991597
A63: Pounds | I63: 0
A64: Housing | C64: =SUM(C65:C66) -> 0 | D64: 0 | E64: 0 | F64: 0 | G64: 0 | H64: 0 | I64: =G64-H64 -> 0 | J64: =IF(I64=0,"",I64/H64) ->  | K64: =SUM(K65:K66) -> 0
A65: Housing | I65: =G65-H65 -> 0 | J65: =IF(I65=0,"",I65/H65) -> 
A66: Informal Settlements | I66: =G66-H66 -> 0 | J66: =IF(I66=0,"",I66/H66) -> 
A67: Health | C67: =SUM(C68:C74) -> 0 | D67: 0 | E67: 0 | F67: 0 | G67: 0 | H67: 0 | I67: 0 | K67: =SUM(K68:K74) -> 0
A68: Ambulance | I68: 0
A69: Health Services | I69: 0
A70: Laboratory Services | I70: =G70-H70 -> 0 | J70: =IF(I70=0,"",I70/H70) -> 
A71: Food Control | I71: =G71-H71 -> 0 | J71: =IF(I71=0,"",I71/H71) -> 
A72: Health Surveillance and Prevention of Communicable Diseases including immunizations | I72: 0
A73: Vector Control | I73: 0
A74: Chemical Safety | I74: 0
A75: Economic and environmental services | C75: =C76+C87+C92 -> 35537755.33 | D75: 43506508 | E75: 43506508 | F75: 3516.72 | G75: 6227465.74 | H75: 18127680 | I75: -11900214.26 | J75: -0.6564664789 | K75: =K76+K87+K92 -> 43506508
A76: Planning and development | C76: =SUM(C77:C86) -> 35537755.33 | D76: 43506508 | E76: 43506508 | F76: 3516.72 | G76: 6227465.74 | H76: 18127680 | I76: -11900214.26 | J76: -0.6564664789 | K76: =SUM(K77:K86) -> 43506508
A77: Billboards | I77: =G77-H77 -> 0 | J77: =IF(I77=0,"",I77/H77) -> 
A78: Corporate Wide Strategic Planning (IDPs, LEDs) | C78: 40312.32 | D78: 36810 | E78: 36810 | F78: 3359.36 | G78: 16796.8 | H78: 15330 | I78: 1466.8 | J78: 0.09568166993 | K78: 36810
A79: Central City Improvement District | I79: 0
A80: Development Facilitation | I80: =G80-H80 -> 0 | J80: =IF(I80=0,"",I80/H80) -> 
A81: Economic Development/Planning | C81: 0 | D81: 0 | E81: 0 | F81: 0 | G81: 0 | H81: 0 | I81: =G81-H81 -> 0 | J81: =IF(I81=0,"",I81/H81) ->  | K81: 0
A82: Regional Planning and Development | I82: =G82-H82 -> 0 | J82: =IF(I82=0,"",I82/H82) -> 
A83: Town Planning, Building Regulations and Enforcement, and City Engineer | C83: 14725.45 | D83: 6469698 | E83: 6469698 | F83: 157.36 | G83: 23319.31 | H83: 2695690 | I83: =G83-H83 -> -2672370.69 | J83: =IF(I83=0,"",I83/H83) -> -0.9913494096 | K83: 6469698
A84: Project Management Unit | C84: 35482717.56 | D84: 37000000 | E84: 37000000 | F84: 0 | G84: 6187349.63 | H84: 15416660 | I84: -9229310.37 | J84: -0.5986582288 | K84: 37000000
A85: Provincial Planning | I85: 0
A86: Support to Local Municipalities | I86: 0
A87: Road transport | C87: =SUM(C88:C91) -> 0 | D87: 0 | E87: 0 | F87: 0 | G87: 0 | H87: 0 | I87: 0 | K87: =SUM(K88:K91) -> 0
A88: Public Transport | I88: 0
A89: Road and Traffic Regulation | I89: 0
A90: Roads | C90: 0 | D90: 0 | E90: 0 | F90: 0 | G90: 0 | H90: 0 | I90: 0 | K90: 0
A91: Taxi Ranks | I91: 0
A92: Environmental protection | C92: =SUM(C93:C98) -> 0 | D92: =SUM(D93:D98) -> 0 | E92: 0 | F92: 0 | G92: 0 | H92: 0 | I92: 0 | K92: 0
A93: Biodiversity and Landscape | I93: 0
A94: Coastal Protection | I94: 0
A95: Indigenous Forests | I95: =G95-H95 -> 0 | J95: =IF(I95=0,"",I95/H95) -> 
A96: Nature Conservation | I96: =G96-H96 -> 0 | J96: =IF(I96=0,"",I96/H96) -> 
A97: Pollution Control | I97: 0
A98: Soil Conservation | I98: 0
A99: Trading services | C99: =C100+C104+C108+C113 -> 23637505.82 | D99: =D100+D104+D108+D113 -> 25745394 | E99: 26745394 | F99: 967987.78 | G99: 5506292.15 | H99: 10949447.22 | I99: -5443155.07 | J99: -0.4971168828 | K99: =K100+K104+K108+K113 -> 26745394
A100: Energy sources | C100: =SUM(C101:C103) -> 19907231.84 | D100: =SUM(D101:D103) -> 22300209 | E100: 22300209 | F100: 494641.67 | G100: 3271255.05 | H100: 9291740 | I100: -6020484.95 | J100: -0.6479394548 | K100: 22300209
A101: Electricity | C101: 19907231.84 | D101: 22300209 | E101: 22300209 | F101: 494641.67 | G101: 3271255.05 | H101: 9291740 | I101: -6020484.95 | J101: -0.6479394548 | K101: 22300209
A102: Street Lighting and Signal Systems | I102: =G102-H102 -> 0 | J102: =IF(I102=0,"",I102/H102) -> 
A103: Nonelectric Energy | I103: 0
A104: Water management | C104: =SUM(C105:C107) -> 328420.18 | D104: =SUM(D105:D107) -> 438143 | E104: 438143 | F104: 123122.8 | G104: 520370.11 | H104: 182555 | I104: 337815.11 | J104: 1.850484019 | K104: 438143
A105: Water Treatment | I105: 0
A106: Water Distribution | C106: 328420.18 | D106: 438143 | E106: 438143 | F106: 123122.8 | G106: 520370.11 | H106: 182555 | I106: =G106-H106 -> 337815.11 | J106: =IF(I106=0,"",I106/H106) -> 1.850484019 | K106: 438143
A107: Water Storage | I107: 0
A108: Waste water management | C108: =SUM(C109:C112) -> 519063.53 | D108: =SUM(D109:D112) -> 283566 | E108: 1283566 | F108: 92294.28 | G108: 445178.89 | H108: 340372.22 | I108: 104806.67 | J108: 0.3079178142 | K108: 1283566
A109: Public Toilets | I109: 0
A110: Sewerage | C110: 519063.53 | D110: 283566 | E110: 283566 | F110: 92294.28 | G110: 445178.89 | H110: 118150 | I110: 327028.89 | J110: 2.767912738 | K110: 283566
A111: Storm Water Management | C111: 0 | D111: 0 | E111: 1000000 | F111: 0 | G111: 0 | H111: 222222.22 | I111: =G111-H111 -> -222222.22 | J111: =IF(I111=0,"",I111/H111) -> -1 | K111: 1000000
A112: Waste Water Treatment | I112: 0
A113: Waste management | C113: =SUM(C114:C117) -> 2882790.27 | D113: 2723476 | E113: 2723476 | F113: 257929.03 | G113: 1269488.1 | H113: 1134780 | I113: 134708.1 | J113: 0.1187085602 | K113: =SUM(K114:K117) -> 2723476
A114: Recycling | I114: =G114-H114 -> 0 | J114: =IF(I114=0,"",I114/H114) -> 
A115: Solid Waste Disposal (Landfill Sites) | I115: =G115-H115 -> 0 | J115: =IF(I115=0,"",I115/H115) -> 
A116: Solid Waste Removal | C116: 2882790.27 | D116: 2723476 | E116: 2723476 | F116: 257929.03 | G116: 1269488.1 | H116: 1134780 | I116: 134708.1 | J116: 0.1187085602 | K116: 2723476
A117: Street Cleaning | I117: =G117-H117 -> 0 | J117: =IF(I117=0,"",I117/H117) -> 
A118: Other | C118: =SUM(C119:C124) -> 0 | D118: =SUM(D119:D124) -> 0 | E118: 0 | F118: 0 | G118: 0 | H118: 0 | I118: 0 | K118: 0
A119: Abattoirs | I119: 0
A120: Air Transport | I120: 0
A121: Forestry | I121: =G121-H121 -> 0 | J121: =IF(I121=0,"",I121/H121) -> 
A122: Licensing and Regulation | I122: 0
A123: Markets | I123: 0
A124: Tourism | I124: =G124-H124 -> 0 | J124: =IF(I124=0,"",I124/H124) -> 
A125: ="Total "&A5 -> Total Revenue - Functional | B125: 2 | C125: =C6+C26+C75+C99+C118 -> 302540482.2 | D125: 313322058 | E125: 314322058 | F125: 5175737.73 | G125: 97267100.73 | H125: 130772977.2 | I125: =G125-H125 -> -33505876.49 | J125: =IF(I125=0,"",I125/H125) -> -0.2562140681 | K125: =K6+K26+K75+K99+K118 -> 314322058
A127: Expenditure - Functional
A128: =A6 -> Municipal governance and administration | C128: =C129+C132+C146 -> 126504542 | D128: 137751459 | E128: 137751459 | F128: 7861825.57 | G128: 39298017.97 | H128: 57397590 | I128: =G128-H128 -> -18099572.03 | J128: =IF(I128=0,"",I128/H128) -> -0.3153367943 | K128: =K129+K132+K146 -> 137751459
A129: Executive and council | C129: =SUM(C130:C131) -> 36700574.25 | D129: 38116518 | E129: 38116518 | F129: 1802481.63 | G129: 10681803.45 | H129: 15882270 | I129: -5200466.55 | J129: -0.3274384927 | K129: 38116518
A130: Mayor and Council | C130: 23126708.41 | D130: 28198752 | E130: 28198752 | F130: 1379398.16 | G130: 8525721.95 | H130: 11749725 | I130: -3224003.05 | J130: -0.2743896602 | K130: 28198752
A131: Municipal Manager, Town Secretary and Chief Executive | C131: 13573865.84 | D131: 9917766 | E131: 9917766 | F131: 423083.47 | G131: 2156081.5 | H131: 4132545 | I131: -1976463.5 | J131: -0.4782678713 | K131: 9917766
A132: Finance and administration | C132: =SUM(C133:C145) -> 82673326.21 | D132: 90852180 | E132: 90852180 | F132: 5023048.8 | G132: 25956667.18 | H132: 37855780 | I132: -11899112.82 | J132: -0.3143275035 | K132: =SUM(K133:K145) -> 90852180
A133: Administrative and Corporate Support | C133: 34650783.48 | D133: 40000635 | E133: 40000635 | F133: 2161786.96 | G133: 11705009.08 | H133: 16667155 | I133: -4962145.92 | J133: -0.297720032 | K133: 40000635
A134: Asset Management | I134: 0
A135: Finance | C135: 27178349.86 | D135: 25282300 | E135: 25282300 | F135: 918306.11 | G135: 5093905.04 | H135: 10534475 | I135: -5440569.96 | J135: -0.5164538299 | K135: 25282300
A136: Fleet Management | I136: 0
A137: Human Resources | C137: 6525399.55 | D137: 7258307 | E137: 7258307 | F137: 412621.17 | G137: 3120139.68 | H137: 3024375 | I137: 95764.68 | J137: 0.03166428766 | K137: 7258307
A138: Information Technology | C138: 6373679 | D138: 7873604 | E138: 7873604 | F138: 159782.44 | G138: 1989027.09 | H138: 3280730 | I138: -1291702.91 | J138: -0.3937242352 | K138: 7873604
A139: Legal Services | C139: 2156226.17 | D139: 3015679 | E139: 3015679 | F139: 466390.51 | G139: 1361244.76 | H139: 1256575 | I139: 104669.76 | J139: 0.0832976623 | K139: 3015679
A140: Marketing, Customer Relations, Publicity and Media Co-ordination | I140: 0
A141: Property Services | I141: 0
A142: Risk Management | C142: 1514114.78 | D142: 2347610 | E142: 2347610 | F142: 333691.93 | G142: 771388.85 | H142: 978225 | I142: -206836.15 | J142: -0.2114402617 | K142: 2347610
A143: Security Services | I143: 0
A144: Supply Chain Management | C144: 4274773.37 | D144: 5074045 | E144: 5074045 | F144: 570469.68 | G144: 1915952.68 | H144: 2114245 | I144: -198292.32 | J144: -0.09378871417 | K144: 5074045
A145: Valuation Service | I145: 0
A146: Internal audit | C146: =SUM(C147:C147) -> 7130641.56 | D146: 8782761 | E146: 8782761 | F146: 1036295.14 | G146: 2659547.34 | H146: 3659540 | I146: -999992.66 | J146: -0.2732563819 | K146: =SUM(K147:K147) -> 8782761
A147: Governance Function | C147: 7130641.56 | D147: 8782761 | E147: 8782761 | F147: 1036295.14 | G147: 2659547.34 | H147: 3659540 | I147: -999992.66 | J147: -0.2732563819 | K147: 8782761
A148: Community and public safety | C148: =C149+C171+C177+C186+C189 -> 25382535.16 | D148: 26202515 | E148: 26202515 | F148: 1700090.87 | G148: 8847546.11 | H148: 10918020 | I148: -2070473.89 | J148: -0.189638221 | K148: =K149+K171+K177+K186+K189 -> 26202515
A149: Community and social services | C149: =SUM(C150:C170) -> 5328179.42 | D149: 7269984 | E149: 7269984 | F149: 271783.9 | G149: 1468721.81 | H149: 3029330 | I149: -1560608.19 | J149: -0.5151661225 | K149: =SUM(K150:K170) -> 7269984
A150: Aged Care | I150: 0
A151: Agricultural | I151: 0
A152: Animal Care and Diseases | I152: 0
A153: Cemeteries, Funeral Parlours and Crematoriums | C153: 1242347.81 | D153: 1471894 | E153: 1471894 | F153: 97862.79 | G153: 493820.63 | H153: 613325 | I153: -119504.37 | J153: -0.1948467289 | K153: 1471894
A154: Child Care Facilities | I154: 0
A155: Community Halls and Facilities | C155: 3561387.56 | D155: 4549410 | E155: 4549410 | F155: 133556.33 | G155: 773077.34 | H155: 1895680 | I155: -1122602.66 | J155: -0.5921899582 | K155: 4549410
A156: Consumer Protection | I156: 0
A157: Cultural Matters | I157: =G157-H157 -> 0 | J157: =IF(I157=0,"",I157/H157) -> 
A158: Disaster Management | I158: =G158-H158 -> 0 | J158: =IF(I158=0,"",I158/H158) -> 
A159: Education | I159: =G159-H159 -> 0 | J159: =IF(I159=0,"",I159/H159) -> 
A160: Indigenous and Customary Law | I160: 0
A161: Industrial Promotion | I161: 0
A162: Language Policy | I162: 0
A163: Libraries and Archives | C163: 524444.05 | D163: 1248680 | E163: 1248680 | F163: 40364.78 | G163: 201823.84 | H163: 520325 | I163: -318501.16 | J163: -0.612119656 | K163: 1248680
A164: Literacy Programmes | I164: 0
A165: Media Services | I165: 0
A166: Museums and Art Galleries | I166: 0
A167: Population Development | I167: 0
A168: Provincial Cultural Matters | I168: 0
A169: Theatres | I169: 0
A170: Zoo's | I170: 0
A171: Sport and recreation | C171: =SUM(C172:C176) -> 3853917.1 | D171: 3332043 | E171: 3332043 | F171: 191829.61 | G171: 980321.19 | H171: 1388425 | I171: -408103.81 | J171: -0.2939329168 | K171: 3332043
A172: Beaches and Jetties | I172: 0
A173: Casinos, Racing, Gambling, Wagering | I173: 0
A174: Community Parks (including Nurseries) | I174: 0
A175: Recreational Facilities | C175: 3853917.1 | D175: 3332043 | E175: 3332043 | F175: 191829.61 | G175: 980321.19 | H175: 1388425 | I175: -408103.81 | J175: -0.2939329168 | K175: 3332043
A176: Sports Grounds and Stadiums | I176: 0
A177: Public safety | C177: =SUM(C178:C185) -> 16200438.64 | D177: 15600488 | E177: 15600488 | F177: 1236477.36 | G177: 6398503.11 | H177: 6500265 | I177: -101761.89 | J177: -0.01565503714 | K177: 15600488
A178: Civil Defence | I178: 0
A179: Cleansing | I179: 0
A180: Control of Public Nuisances | I180: =G180-H180 -> 0 | J180: =IF(I180=0,"",I180/H180) -> 
A181: Fencing and Fences | I181: 0
A182: Fire Fighting and Protection | I182: 0
A183: Licensing and Control of Animals | I183: =G183-H183 -> 0 | J183: =IF(I183=0,"",I183/H183) -> 
A184: Police Forces, Traffic and Street Parking Control | C184: 16200438.64 | D184: 15600488 | E184: 15600488 | F184: 1236477.36 | G184: 6398503.11 | H184: 6500265 | I184: =G184-H184 -> -101761.89 | J184: =IF(I184=0,"",I184/H184) -> -0.01565503714 | K184: 15600488
A185: Pounds | I185: 0
A186: Housing | C186: =SUM(C187:C188) -> 0 | D186: 0 | E186: 0 | F186: 0 | G186: 0 | H186: 0 | I186: =G186-H186 -> 0 | J186: =IF(I186=0,"",I186/H186) ->  | K186: =SUM(K187:K188) -> 0
A187: Housing | I187: =G187-H187 -> 0 | J187: =IF(I187=0,"",I187/H187) -> 
A188: Informal Settlements | I188: =G188-H188 -> 0 | J188: =IF(I188=0,"",I188/H188) -> 
A189: Health | C189: =SUM(C190:C196) -> 0 | D189: 0 | E189: 0 | F189: 0 | G189: 0 | H189: 0 | I189: 0 | K189: 0
A190: Ambulance | I190: 0
A191: Health Services | I191: 0
A192: =A70 -> Laboratory Services | I192: 0
A193: Food Control | I193: =G193-H193 -> 0 | J193: =IF(I193=0,"",I193/H193) -> 
A194: Health Surveillance and Prevention of Communicable Diseases including immunizations | I194: =G194-H194 -> 0 | J194: =IF(I194=0,"",I194/H194) -> 
A195: Vector Control | I195: 0
A196: Chemical Safety | I196: 0
A197: Economic and environmental services | C197: =C198+C209+C214 -> 11221967.77 | D197: 15439515 | E197: 15439515 | F197: 851691.7 | G197: 4771684.58 | H197: 6433385 | I197: -1661700.42 | J197: -0.2582933277 | K197: =K198+K209+K214 -> 15439515
A198: Planning and development | C198: =SUM(C199:C208) -> 9050448.45 | D198: 11831023 | E198: 11831023 | F198: 605421 | G198: 3551924.31 | H198: 4929820 | I198: -1377895.69 | J198: -0.2795022313 | K198: 11831023
A199: Billboards | I199: 0
A200: Corporate Wide Strategic Planning (IDPs, LEDs) | C200: 3205750.49 | D200: 4368503 | E200: 4368503 | F200: 22237.4 | G200: 586234.75 | H200: 1820305 | I200: -1234070.25 | J200: -0.6779469649 | K200: 4368503
A201: Central City Improvement District | I201: 0
... 54 more rows

Sheet C3-FinPerf V
A1: =muni& " - "&S71C& " - "&date -> LIM353 Molemole - Table C3 Monthly Budget Statement - Financial Performance (revenue and expenditure by municipal vote) - M05 November
A2: =Vdesc -> Vote Description | B2: =head27 -> Ref | C2: =Head1 -> 2020/21 | D2: =Head2 -> Budget Year 2021/22
C3: =Head5 -> Audited Outcome | D3: =Head6 -> Original Budget | E3: =Head7 -> Adjusted Budget | F3: =Head38 -> Monthly actual | G3: =Head39 -> YearTD actual | H3: =Head40 -> YearTD budget | I3: =Head41 -> YTD variance | J3: =Head41 -> YTD variance | K3: =Head8 -> Full Year Forecast
A4: R thousands | J4: %
A5: Revenue by Vote | B5: 1
A6: ='Org structure'!A2 -> Vote 01 - Corporate Services | C6: ='C3C'!C6 -> 147701.19 | D6: ='C3C'!D6 -> 6728347 | E6: ='C3C'!E6 -> 6728347 | F6: ='C3C'!F6 -> 44358.84 | G6: ='C3C'!G6 -> 133486.65 | H6: ='C3C'!H6 -> 2803450 | I6: =G6-H6 -> -2669963.35 | J6: =IF(I6=0,"",I6/H6) -> -0.9523848651 | K6: ='C3C'!K6 -> 6728347
A7: ='Org structure'!A3 -> Vote 02 - Municipal Manager | C7: ='C3C'!C15 -> 0 | D7: ='C3C'!D15 -> 0 | E7: ='C3C'!E15 -> 0 | F7: ='C3C'!F15 -> 0 | G7: ='C3C'!G15 -> 0 | H7: ='C3C'!H15 -> 0 | I7: 0 | K7: ='C3C'!K15 -> 0
A8: ='Org structure'!A4 -> Vote 03 - Mayors Office | C8: ='C3C'!C21 -> 0 | D8: ='C3C'!D21 -> 0 | E8: ='C3C'!E21 -> 0 | F8: ='C3C'!F21 -> 0 | G8: ='C3C'!G21 -> 0 | H8: ='C3C'!H21 -> 0 | I8: 0 | K8: ='C3C'!K21 -> 0
A9: ='Org structure'!A5 -> Vote 04 - Budget And Treasury | C9: ='C3C'!C27 -> 235164807.1 | D9: ='C3C'!D27 -> 233156453 | E9: ='C3C'!E27 -> 233156453 | F9: ='C3C'!F27 -> 2727395.77 | G9: ='C3C'!G27 -> 80414928.58 | H9: ='C3C'!H27 -> 97148490 | I9: -16733561.42 | J9: -0.1722472621 | K9: ='C3C'!K27 -> 233156453
A10: ='Org structure'!A6 -> Vote 05 - Community Services | C10: ='C3C'!C35 -> 10990540.89 | D10: ='C3C'!D35 -> 13415340 | E10: ='C3C'!E35 -> 13415340 | F10: ='C3C'!F35 -> 1693924.37 | G10: ='C3C'!G35 -> 6294531.82 | H10: ='C3C'!H35 -> 5589710 | I10: 704821.82 | J10: 0.1260927347 | K10: ='C3C'!K35 -> 13415340
A11: ='Org structure'!A7 -> Vote 06 - Technical Services | C11: ='C3C'!C43 -> 56237433.11 | D11: ='C3C'!D43 -> 60021918 | E11: ='C3C'!E43 -> 61021918 | F11: ='C3C'!F43 -> 710058.75 | G11: ='C3C'!G43 -> 10424153.68 | H11: ='C3C'!H43 -> 25231327.22 | I11: -14807173.54 | J11: -0.5868567044 | K11: ='C3C'!K43 -> 61021918
A12: ='Org structure'!A8 -> Vote 07 - | C12: ='C3C'!C52 -> 0 | D12: ='C3C'!D52 -> 0 | E12: ='C3C'!E52 -> 0 | F12: ='C3C'!F52 -> 0 | G12: ='C3C'!G52 -> 0 | H12: ='C3C'!H52 -> 0 | I12: =G12-H12 -> 0 | J12: =IF(I12=0,"",I12/H12) ->  | K12: ='C3C'!K52 -> 0
A13: ='Org structure'!A9 -> Vote 08 - | C13: ='C3C'!C53 -> 0 | D13: ='C3C'!D53 -> 0 | E13: ='C3C'!E53 -> 0 | F13: ='C3C'!F53 -> 0 | G13: ='C3C'!G53 -> 0 | H13: ='C3C'!H53 -> 0 | I13: 0 | K13: ='C3C'!K53 -> 0
A14: ='Org structure'!A10 -> Vote 09 - | C14: ='C3C'!C54 -> 0 | D14: ='C3C'!D54 -> 0 | E14: ='C3C'!E54 -> 0 | F14: ='C3C'!F54 -> 0 | G14: ='C3C'!G54 -> 0 | H14: ='C3C'!H54 -> 0 | I14: 0 | K14: ='C3C'!K54 -> 0
A15: ='Org structure'!A11 -> Vote 10 - | C15: ='C3C'!C55 -> 0 | D15: ='C3C'!D55 -> 0 | E15: ='C3C'!E55 -> 0 | F15: ='C3C'!F55 -> 0 | G15: ='C3C'!G55 -> 0 | H15: ='C3C'!H55 -> 0 | I15: 0 | K15: ='C3C'!K55 -> 0
A16: ='Org structure'!A12 -> Vote 11 - | C16: ='C3C'!C56 -> 0 | D16: ='C3C'!D56 -> 0 | E16: ='C3C'!E56 -> 0 | F16: ='C3C'!F56 -> 0 | G16: ='C3C'!G56 -> 0 | H16: ='C3C'!H56 -> 0 | I16: 0 | K16: ='C3C'!K56 -> 0
A17: ='Org structure'!A13 -> Vote 12 - | C17: ='C3C'!C57 -> 0 | D17: ='C3C'!D57 -> 0 | E17: ='C3C'!E57 -> 0 | F17: ='C3C'!F57 -> 0 | G17: ='C3C'!G57 -> 0 | H17: ='C3C'!H57 -> 0 | I17: 0 | K17: ='C3C'!K57 -> 0
A18: ='Org structure'!A14 -> Vote 13 - | C18: ='C3C'!C58 -> 0 | D18: ='C3C'!D58 -> 0 | E18: ='C3C'!E58 -> 0 | F18: ='C3C'!F58 -> 0 | G18: ='C3C'!G58 -> 0 | H18: ='C3C'!H58 -> 0 | I18: 0 | K18: ='C3C'!K58 -> 0
A19: ='Org structure'!A15 -> Vote 14 - | C19: ='C3C'!C59 -> 0 | D19: ='C3C'!D59 -> 0 | E19: ='C3C'!E59 -> 0 | F19: ='C3C'!F59 -> 0 | G19: ='C3C'!G59 -> 0 | H19: ='C3C'!H59 -> 0 | I19: 0 | K19: ='C3C'!K59 -> 0
A20: ='Org structure'!A16 -> Vote 15 - Other | C20: ='C3C'!C60 -> 0 | D20: ='C3C'!D60 -> 0 | E20: ='C3C'!E60 -> 0 | F20: ='C3C'!F60 -> 0 | G20: ='C3C'!G60 -> 0 | H20: ='C3C'!H60 -> 0 | I20: 0 | K20: ='C3C'!K60 -> 0
A21: Total Revenue by Vote | B21: 2 | C21: =SUM(C6:C20) -> 302540482.2 | D21: =SUM(D6:D20) -> 313322058 | E21: 314322058 | F21: 5175737.73 | G21: 97267100.73 | H21: 130772977.2 | I21: -33505876.49 | J21: -0.2562140681 | K21: =SUM(K6:K20) -> 314322058
A23: Expenditure by Vote | B23: 1
A24: ='Org structure'!A2 -> Vote 01 - Corporate Services | C24: ='C3C'!C64 -> 53987525.21 | D24: ='C3C'!D64 -> 61955753 | E24: ='C3C'!E64 -> 61955753 | F24: ='C3C'!F64 -> 3101883.04 | G24: ='C3C'!G64 -> 19080022.84 | H24: ='C3C'!H64 -> 25815435 | I24: =G24-H24 -> -6735412.16 | J24: =IF(I24=0,"",I24/H24) -> -0.2609063981 | K24: ='C3C'!K64 -> 61955753
A25: ='Org structure'!A3 -> Vote 02 - Municipal Manager | C25: ='C3C'!C73 -> 24374848.35 | D25: ='C3C'!D73 -> 24063816 | E25: ='C3C'!E73 -> 24063816 | F25: ='C3C'!F73 -> 2259461.05 | G25: ='C3C'!G73 -> 6948262.45 | H25: ='C3C'!H73 -> 10026885 | I25: -3078622.55 | J25: -0.3070367866 | K25: ='C3C'!K73 -> 24063816
A26: ='Org structure'!A4 -> Vote 03 - Mayors Office | C26: ='C3C'!C79 -> 16496856.64 | D26: ='C3C'!D79 -> 19016432 | E26: ='C3C'!E79 -> 19016432 | F26: ='C3C'!F79 -> 1133195.22 | G26: ='C3C'!G79 -> 6496044.14 | H26: ='C3C'!H79 -> 7923705 | I26: -1427660.86 | J26: -0.1801759228 | K26: ='C3C'!K79 -> 19016432
A27: ='Org structure'!A5 -> Vote 04 - Budget And Treasury | C27: ='C3C'!C85 -> 38992258.39 | D27: ='C3C'!D85 -> 41597622 | E27: ='C3C'!E85 -> 41597622 | F27: ='C3C'!F85 -> 1818516.86 | G27: ='C3C'!G85 -> 9364429.31 | H27: ='C3C'!H85 -> 17332670 | I27: -7968240.69 | J27: -0.4597237869 | K27: ='C3C'!K85 -> 41597622
A28: ='Org structure'!A6 -> Vote 05 - Community Services | C28: ='C3C'!C93 -> 31835099.23 | D28: ='C3C'!D93 -> 33915429 | E28: ='C3C'!E93 -> 33915429 | F28: ='C3C'!F93 -> 2242396.69 | G28: ='C3C'!G93 -> 11769832.63 | H28: ='C3C'!H93 -> 14131780 | I28: -2361947.37 | J28: -0.167137287 | K28: ='C3C'!K93 -> 33915429
A29: ='Org structure'!A7 -> Vote 06 - Technical Services | C29: ='C3C'!C101 -> 55387315.29 | D29: ='C3C'!D101 -> 67379573 | E29: ='C3C'!E101 -> 68379573 | F29: ='C3C'!F101 -> 4332818.9 | G29: ='C3C'!G101 -> 19864285.22 | H29: ='C3C'!H101 -> 28297307.22 | I29: -8433022 | J29: -0.2980149996 | K29: ='C3C'!K101 -> 68379573
A30: ='Org structure'!A8 -> Vote 07 - | C30: ='C3C'!C110 -> 0 | D30: ='C3C'!D110 -> 0 | E30: ='C3C'!E110 -> 0 | F30: ='C3C'!F110 -> 0 | G30: ='C3C'!G110 -> 0 | H30: ='C3C'!H110 -> 0 | I30: =G30-H30 -> 0 | J30: =IF(I30=0,"",I30/H30) ->  | K30: ='C3C'!K110 -> 0
A31: ='Org structure'!A9 -> Vote 08 - | C31: ='C3C'!C111 -> 0 | D31: ='C3C'!D111 -> 0 | E31: ='C3C'!E111 -> 0 | F31: ='C3C'!F111 -> 0 | G31: ='C3C'!G111 -> 0 | H31: ='C3C'!H111 -> 0 | I31: 0 | K31: ='C3C'!K111 -> 0
A32: ='Org structure'!A10 -> Vote 09 - | C32: ='C3C'!C112 -> 0 | D32: ='C3C'!D112 -> 0 | E32: ='C3C'!E112 -> 0 | F32: ='C3C'!F112 -> 0 | G32: ='C3C'!G112 -> 0 | H32: ='C3C'!H112 -> 0 | I32: 0 | K32: ='C3C'!K112 -> 0
A33: ='Org structure'!A11 -> Vote 10 - | C33: ='C3C'!C113 -> 0 | D33: ='C3C'!D113 -> 0 | E33: ='C3C'!E113 -> 0 | F33: ='C3C'!F113 -> 0 | G33: ='C3C'!G113 -> 0 | H33: ='C3C'!H113 -> 0 | I33: 0 | J33: =IF(I33=0,"",I33/H33) ->  | K33: ='C3C'!K113 -> 0
A34: ='Org structure'!A12 -> Vote 11 - | C34: ='C3C'!C114 -> 0 | D34: ='C3C'!D114 -> 0 | E34: ='C3C'!E114 -> 0 | F34: ='C3C'!F114 -> 0 | G34: ='C3C'!G114 -> 0 | H34: ='C3C'!H114 -> 0 | I34: 0 | J34: =IF(I34=0,"",I34/H34) ->  | K34: ='C3C'!K114 -> 0
A35: ='Org structure'!A13 -> Vote 12 - | C35: ='C3C'!C115 -> 0 | D35: ='C3C'!D115 -> 0 | E35: ='C3C'!E115 -> 0 | F35: ='C3C'!F115 -> 0 | G35: ='C3C'!G115 -> 0 | H35: ='C3C'!H115 -> 0 | I35: 0 | J35: =IF(I35=0,"",I35/H35) ->  | K35: ='C3C'!K115 -> 0
A36: ='Org structure'!A14 -> Vote 13 - | C36: ='C3C'!C116 -> 0 | D36: ='C3C'!D116 -> 0 | E36: ='C3C'!E116 -> 0 | F36: ='C3C'!F116 -> 0 | G36: ='C3C'!G116 -> 0 | H36: ='C3C'!H116 -> 0 | I36: 0 | J36: =IF(I36=0,"",I36/H36) ->  | K36: ='C3C'!K116 -> 0
A37: ='Org structure'!A15 -> Vote 14 - | C37: ='C3C'!C117 -> 0 | D37: ='C3C'!D117 -> 0 | E37: ='C3C'!E117 -> 0 | F37: ='C3C'!F117 -> 0 | G37: ='C3C'!G117 -> 0 | H37: ='C3C'!H117 -> 0 | I37: 0 | J37: =IF(I37=0,"",I37/H37) ->  | K37: ='C3C'!K117 -> 0
A38: ='Org structure'!A16 -> Vote 15 - Other | C38: ='C3C'!C118 -> 0 | D38: ='C3C'!D118 -> 0 | E38: ='C3C'!E118 -> 0 | F38: ='C3C'!F118 -> 0 | G38: ='C3C'!G118 -> 0 | H38: ='C3C'!H118 -> 0 | I38: 0 | K38: ='C3C'!K118 -> 0
A39: Total Expenditure by Vote | B39: 2 | C39: =SUM(C24:C38) -> 221073903.1 | D39: =SUM(D24:D38) -> 247928625 | E39: 248928625 | F39: 14888271.76 | G39: 73522876.59 | H39: 103527782.2 | I39: -30004905.63 | J39: =IF(I39=0,"",I39/H39) -> -0.289824673 | K39: =SUM(K24:K38) -> 248928625
A40: =result -> Surplus/ (Deficit) for the year | B40: 2 | C40: =C21-C39 -> 81466579.14 | D40: 65393433 | E40: 65393433 | F40: -9712534.03 | G40: 23744224.14 | H40: 27245195 | I40: =I21-I39 -> -3500970.86 | J40: =IF(I40=0,"",I40/H40) -> -0.1284986531 | K40: =K21-K39 -> 65393433
A41: =head27a -> References
A42: 1. Insert 'Vote'; e.g. Department, if different to standard classification structure
A43: 2. Must reconcile to Monthly Budget Statement - Financial Performance Statement (standard classification)

Sheet C3C
A1: =muni& " - "&S71C& " - "&"A"& " - "&date -> LIM353 Molemole - Table C3 Monthly Budget Statement - Financial Performance (revenue and expenditure by municipal vote) - A - M05 November
A2: =Vdesc -> Vote Description | B2: =head27 -> Ref | C2: =Head1 -> 2020/21 | D2: =Head2 -> Budget Year 2021/22 | L2: =Head4 -> 
A3: R thousand | C3: =Head5 -> Audited Outcome | D3: =Head6 -> Original Budget | E3: =Head7 -> Adjusted Budget | F3: =Head38 -> Monthly actual | G3: =Head39 -> YearTD actual | H3: =Head40 -> YearTD budget | I3: =Head41 -> YTD variance | J3: =Head41 -> YTD variance | K3: =Head8 -> Full Year Forecast | L3: =Head12 -> Forecast 2010/11 | M3: =Head13 -> Forecast 2011/12 | N3: =Head14 -> Forecast 2012/13 | O3: =Head15 -> Forecast 2013/14 | P3: =Head16 -> Forecast 2014/15 | Q3: =Head17 -> Forecast 2015/16 | R3: =Head18 -> Forecast 2016/17 | S3: =Head19 -> Forecast 2017/18 | T3: =Head20 -> Forecast 2018/19 | U3: =Head21 -> Forecast 2019/20 | V3: =Head22 -> Forecast 2020/21 | W3: =Head23 -> Forecast 2021/22
J4: %
A5: Revenue by Vote | B5: 1
A6: ='Org structure'!A2 -> Vote 01 - Corporate Services | C6: =SUM(C7:C14) -> 147701.19 | D6: 6728347 | E6: 6728347 | F6: 44358.84 | G6: 133486.65 | H6: 2803450 | I6: =G6-H6 -> -2669963.35 | J6: =IF(I6=0,"",I6/H6) -> -0.9523848651 | K6: =SUM(K7:K14) -> 6728347
A7: ='Org structure'!E3 -> 01.1 - Corporate Services Admin | C7: 152.02 | D7: 0 | E7: 0 | F7: 0 | G7: 0 | H7: 0 | I7: =G7-H7 -> 0 | J7: =IF(I7=0,"",I7/H7) ->  | K7: 0
A8: ='Org structure'!E4 -> 01.2 - Human Resources | C8: 80361.4 | D8: 221839 | E8: 221839 | F8: 40842.12 | G8: 93370.54 | H8: 92430 | I8: 940.54 | J8: 0.01017570053 | K8: 221839
A9: ='Org structure'!E5 -> 01.3 - Information Technology Services | C9: 0 | D9: 0 | E9: 0 | F9: 0 | G9: 0 | H9: 0 | I9: 0 | K9: 0
A10: ='Org structure'!E6 -> 01.4 - Council Support | C10: 12150 | D10: 0 | E10: 0 | F10: 0 | G10: 0 | H10: 0 | I10: 0 | K10: 0
A11: ='Org structure'!E7 -> 01.5 - Local Economic Development | C11: 0 | D11: 0 | E11: 0 | F11: 0 | G11: 0 | H11: 0 | I11: 0 | K11: 0
A12: ='Org structure'!E8 -> 01.6 - Municipal Planning Idp | C12: 40312.32 | D12: 36810 | E12: 36810 | F12: 3359.36 | G12: 16796.8 | H12: 15330 | I12: 1466.8 | J12: 0.09568166993 | K12: 36810
A13: ='Org structure'!E9 -> 01.7 - Town & Regional Planning | C13: 14725.45 | D13: 6469698 | E13: 6469698 | F13: 157.36 | G13: 23319.31 | H13: 2695690 | I13: -2672370.69 | J13: -0.9913494096 | K13: 6469698
A14: ='Org structure'!E10 -> 01.8 - Led Administration | C14: 0 | D14: 0 | E14: 0 | F14: 0 | G14: 0 | H14: 0 | I14: 0 | K14: 0
A15: ='Org structure'!A3 -> Vote 02 - Municipal Manager | C15: =SUM(C16:C20) -> 0 | D15: 0 | E15: 0 | F15: 0 | G15: 0 | H15: 0 | I15: 0 | K15: =SUM(K16:K20) -> 0
A16: ='Org structure'!E12 -> 02.1 - Municipal Manager Admin | C16: 0 | D16: 0 | E16: 0 | F16: 0 | G16: 0 | H16: 0 | I16: =G16-H16 -> 0 | J16: =IF(I16=0,"",I16/H16) ->  | K16: 0
A17: ='Org structure'!E13 -> 02.2 - Legal Services | C17: 0 | D17: 0 | E17: 0 | F17: 0 | G17: 0 | H17: 0 | I17: =G17-H17 -> 0 | J17: =IF(I17=0,"",I17/H17) ->  | K17: 0
A18: ='Org structure'!E14 -> 02.3 - Political Office Beares | C18: 0 | D18: 0 | E18: 0 | F18: 0 | G18: 0 | H18: 0 | I18: =G18-H18 -> 0 | J18: =IF(I18=0,"",I18/H18) ->  | K18: 0
A19: ='Org structure'!E15 -> 02.4 - Pms | C19: 0 | D19: 0 | E19: 0 | F19: 0 | G19: 0 | H19: 0 | I19: =G19-H19 -> 0 | J19: =IF(I19=0,"",I19/H19) ->  | K19: 0
A20: ='Org structure'!E16 -> 02.5 - Internal Audit | C20: 0 | D20: 0 | E20: 0 | F20: 0 | G20: 0 | H20: 0 | I20: =G20-H20 -> 0 | J20: =IF(I20=0,"",I20/H20) ->  | K20: 0
A21: ='Org structure'!A4 -> Vote 03 - Mayors Office | C21: =SUM(C22:C26) -> 0 | D21: 0 | E21: 0 | F21: 0 | G21: 0 | H21: 0 | I21: 0 | K21: =SUM(K22:K26) -> 0
A22: ='Org structure'!E18 -> 03.1 - Mayors Office Admin | C22: 0 | D22: 0 | E22: 0 | F22: 0 | G22: 0 | H22: 0 | I22: =G22-H22 -> 0 | J22: =IF(I22=0,"",I22/H22) ->  | K22: 0
A23: ='Org structure'!E19 -> 03.2 - Office Of The Speaker | C23: 0 | D23: 0 | E23: 0 | F23: 0 | G23: 0 | H23: 0 | I23: =G23-H23 -> 0 | J23: =IF(I23=0,"",I23/H23) ->  | K23: 0
A24: ='Org structure'!E20 -> 03.3 - Office Of The Chief Whip | C24: 0 | D24: 0 | E24: 0 | F24: 0 | G24: 0 | H24: 0 | I24: =G24-H24 -> 0 | J24: =IF(I24=0,"",I24/H24) ->  | K24: 0
A25: ='Org structure'!E21 -> 03.4 - Exco Members | C25: 0 | D25: 0 | E25: 0 | F25: 0 | G25: 0 | H25: 0 | I25: =G25-H25 -> 0 | J25: =IF(I25=0,"",I25/H25) ->  | K25: 0
A26: ='Org structure'!E22 -> 03.5 - Council General Administration | C26: 0 | D26: 0 | E26: 0 | F26: 0 | G26: 0 | H26: 0 | I26: =G26-H26 -> 0 | J26: =IF(I26=0,"",I26/H26) ->  | K26: 0
A27: ='Org structure'!A5 -> Vote 04 - Budget And Treasury | C27: =SUM(C28:C34) -> 235164807.1 | D27: 233156453 | E27: 233156453 | F27: 2727395.77 | G27: 80414928.58 | H27: 97148490 | I27: -16733561.42 | J27: -0.1722472621 | K27: =SUM(K28:K34) -> 233156453
A28: ='Org structure'!E24 -> 04.1 - Budget And Treasury Admin | C28: 232590340.6 | D28: 209983966 | E28: 209983966 | F28: 2625953.64 | G28: 78979594.15 | H28: 87493295 | I28: =G28-H28 -> -8513700.85 | J28: =IF(I28=0,"",I28/H28) -> -0.09730689477 | K28: 209983966
A29: ='Org structure'!E25 -> 04.2 - Chief Financial Officer Admin | C29: 0 | D29: 0 | E29: 0 | F29: 0 | G29: 0 | H29: 0 | I29: 0 | K29: 0
A30: ='Org structure'!E26 -> 04.3 - Budget & Reporting | C30: 0 | D30: 0 | E30: 0 | F30: 0 | G30: 0 | H30: 0 | I30: 0 | K30: 0
A31: ='Org structure'!E27 -> 04.4 - Budget & Reporting | C31: 2543772.73 | D31: 2708206 | E31: 2708206 | F31: 98555.82 | G31: 1421225.52 | H31: 1128415 | I31: 292810.52 | J31: 0.2594883265 | K31: 2708206
A32: ='Org structure'!E28 -> 04.5 - Revenue Management | C32: 30693.72 | D32: 20464281 | E32: 20464281 | F32: 2886.31 | G32: 14108.91 | H32: 8526780 | I32: -8512671.09 | J32: -0.9983453414 | K32: 20464281
A33: ='Org structure'!E29 -> 04.6 - Supply Chain Management | C33: 0 | D33: 0 | E33: 0 | F33: 0 | G33: 0 | H33: 0 | I33: 0 | K33: 0
A34: ='Org structure'!E30 -> 04.7 - Expenditure | C34: 0 | D34: 0 | E34: 0 | F34: 0 | G34: 0 | H34: 0 | I34: 0 | K34: 0
A35: ='Org structure'!A6 -> Vote 05 - Community Services | C35: =SUM(C36:C42) -> 10990540.89 | D35: 13415340 | E35: 13415340 | F35: 1693924.37 | G35: 6294531.82 | H35: 5589710 | I35: 704821.82 | J35: 0.1260927347 | K35: =SUM(K36:K42) -> 13415340
A36: ='Org structure'!E32 -> 05.1 - Community Services Admin | C36: 2497402.33 | D36: 1429000 | E36: 1429000 | F36: 0 | G36: 293070 | H36: 595415 | I36: =G36-H36 -> -302345 | J36: =IF(I36=0,"",I36/H36) -> -0.5077886852 | K36: 1429000
A37: ='Org structure'!E33 -> 05.2 - Libraries | C37: 0 | D37: 0 | E37: 0 | F37: 0 | G37: 0 | H37: 0 | I37: 0 | K37: 0
A38: ='Org structure'!E34 -> 05.3 - Sports Recreation & Social Amenitie | C38: 214680.5 | D38: 257623 | E38: 257623 | F38: 34132.51 | G38: 90902.57 | H38: 107335 | I38: -16432.43 | J38: -0.1530947967 | K38: 257623
A39: ='Org structure'!E35 -> 05.4 - Traffic Service | C39: 0 | D39: 0 | E39: 0 | F39: 0 | G39: 0 | H39: 0 | I39: 0 | K39: 0
A40: ='Org structure'!E36 -> 05.5 - Traffic Service | C40: 5377383.84 | D40: 8991597 | E40: 8991597 | F40: 1401862.83 | G40: 4641071.15 | H40: 3746495 | I40: 894576.15 | J40: 0.2387768167 | K40: 8991597
A41: ='Org structure'!E37 -> 05.6 - Parks; Cemeteries | C41: 18283.95 | D41: 13644 | E41: 13644 | F41: 0 | G41: 0 | H41: 5685 | I41: -5685 | J41: -1 | K41: 13644
A42: ='Org structure'!E38 -> 05.7 - Refuse | C42: 2882790.27 | D42: 2723476 | E42: 2723476 | F42: 257929.03 | G42: 1269488.1 | H42: 1134780 | I42: 134708.1 | J42: 0.1187085602 | K42: 2723476
A43: ='Org structure'!A7 -> Vote 06 - Technical Services | C43: =SUM(C44:C51) -> 56237433.11 | D43: 60021918 | E43: 61021918 | F43: 710058.75 | G43: 10424153.68 | H43: 25231327.22 | I43: -14807173.54 | J43: -0.5868567044 | K43: =SUM(K44:K51) -> 61021918
A44: ='Org structure'!E40 -> 06.1 - Mpac | C44: 0 | D44: 0 | E44: 0 | F44: 0 | G44: 0 | H44: 0 | I44: =G44-H44 -> 0 | J44: =IF(I44=0,"",I44/H44) ->  | K44: 0
A45: ='Org structure'!E41 -> 06.2 - Technical Services Admin | C45: 0 | D45: 0 | E45: 0 | F45: 0 | G45: 0 | H45: 0 | I45: 0 | K45: 0
A46: ='Org structure'!E42 -> 06.3 - Techn Serv-Roads: Admin | C46: 0 | D46: 0 | E46: 0 | F46: 0 | G46: 0 | H46: 0 | I46: 0 | K46: 0
A47: ='Org structure'!E43 -> 06.4 - Techn Serv-Stormwater: Admin | C47: 0 | D47: 0 | E47: 1000000 | F47: 0 | G47: 0 | H47: 222222.22 | I47: -222222.22 | J47: -1 | K47: 1000000
A48: ='Org structure'!E44 -> 06.5 - Project Management Unit | C48: 35482717.56 | D48: 37000000 | E48: 37000000 | F48: 0 | G48: 6187349.63 | H48: 15416660 | I48: -9229310.37 | J48: -0.5986582288 | K48: 37000000
A49: ='Org structure'!E45 -> 06.6 - Electrical & Machinery | C49: 19907231.84 | D49: 22300209 | E49: 22300209 | F49: 494641.67 | G49: 3271255.05 | H49: 9291740 | I49: -6020484.95 | J49: -0.6479394548 | K49: 22300209
A50: ='Org structure'!E46 -> 06.7 - Water | C50: 328420.18 | D50: 438143 | E50: 438143 | F50: 123122.8 | G50: 520370.11 | H50: 182555 | I50: 337815.11 | J50: 1.850484019 | K50: 438143
A51: ='Org structure'!E47 -> 06.8 - Sanitation | C51: 519063.53 | D51: 283566 | E51: 283566 | F51: 92294.28 | G51: 445178.89 | H51: 118150 | I51: 327028.89 | J51: 2.767912738 | K51: 283566
A52: ='Org structure'!A8 -> Vote 07 - | C52: 0 | D52: 0 | E52: 0 | F52: 0 | G52: 0 | H52: 0 | I52: =G52-H52 -> 0 | J52: =IF(I52=0,"",I52/H52) ->  | K52: 0
A53: ='Org structure'!A9 -> Vote 08 - | C53: 0 | D53: 0 | E53: 0 | F53: 0 | G53: 0 | H53: 0 | I53: 0 | K53: 0
A54: ='Org structure'!A10 -> Vote 09 - | C54: 0 | D54: 0 | E54: 0 | F54: 0 | G54: 0 | H54: 0 | I54: 0 | K54: 0
A55: ='Org structure'!A11 -> Vote 10 - | C55: 0 | D55: 0 | E55: 0 | F55: 0 | G55: 0 | H55: 0 | I55: 0 | K55: 0
A56: ='Org structure'!A12 -> Vote 11 - | C56: 0 | D56: 0 | E56: 0 | F56: 0 | G56: 0 | H56: 0 | I56: 0 | K56: 0
A57: ='Org structure'!A13 -> Vote 12 - | C57: 0 | D57: 0 | E57: 0 | F57: 0 | G57: 0 | H57: 0 | I57: 0 | K57: 0
A58: ='Org structure'!A14 -> Vote 13 - | C58: 0 | D58: 0 | E58: 0 | F58: 0 | G58: 0 | H58: 0 | I58: =G58-H58 -> 0 | J58: =IF(I58=0,"",I58/H58) ->  | K58: 0
A59: ='Org structure'!A15 -> Vote 14 - | C59: 0 | D59: 0 | E59: 0 | F59: 0 | G59: 0 | H59: 0 | I59: 0 | K59: 0
A60: ='Org structure'!A16 -> Vote 15 - Other | C60: 0 | D60: 0 | E60: 0 | F60: 0 | G60: 0 | H60: 0 | I60: 0 | K60: 0
A61: Total Revenue by Vote | B61: 2 | C61: =C6+C15+C21+C27+C35+C43+C52+C53+C54+C55+C56+C57+C58+C59+C60 -> 302540482.2 | D61: 313322058 | E61: 314322058 | F61: 5175737.73 | G61: 97267100.73 | H61: 130772977.2 | I61: -33505876.49 | J61: -0.2562140681 | K61: =K6+K15+K21+K27+K35+K43+K52+K53+K54+K55+K56+K57+K58+K59+K60 -> 314322058
I62: 0
A63: Expenditure by Vote | B63: 1 | I63: 0
A64: ='Org structure'!A2 -> Vote 01 - Corporate Services | C64: =SUM(C65:C72) -> 53987525.21 | D64: 61955753 | E64: 61955753 | F64: 3101883.04 | G64: 19080022.84 | H64: 25815435 | I64: -6735412.16 | J64: -0.2609063981 | K64: =SUM(K65:K72) -> 61955753
A65: ='Org structure'!E3 -> 01.1 - Corporate Services Admin | C65: 27111648.32 | D65: 28759358 | E65: 28759358 | F65: 1832045.89 | G65: 9350437.49 | H65: 11983205 | I65: =G65-H65 -> -2632767.51 | J65: =IF(I65=0,"",I65/H65) -> -0.2197047877 | K65: 28759358
A66: ='Org structure'!E4 -> 01.2 - Human Resources | C66: 6525399.55 | D66: 7258307 | E66: 7258307 | F66: 412621.17 | G66: 3120139.68 | H66: 3024375 | I66: 95764.68 | J66: 0.03166428766 | K66: 7258307
A67: ='Org structure'!E5 -> 01.3 - Information Technology Services | C67: 6373679 | D67: 7873604 | E67: 7873604 | F67: 159782.44 | G67: 1989027.09 | H67: 3280730 | I67: -1291702.91 | J67: -0.3937242352 | K67: 7873604
A68: ='Org structure'!E6 -> 01.4 - Council Support | C68: 6629851.77 | D68: 7871935 | E68: 7871935 | F68: 246202.94 | G68: 2029677.81 | H68: 3280020 | I68: -1250342.19 | J68: -0.3811995628 | K68: 7871935
A69: ='Org structure'!E7 -> 01.5 - Local Economic Development | C69: 2212283.26 | D69: 3665439 | E69: 3665439 | F69: 279031.4 | G69: 1220002.11 | H69: 1527335 | I69: -307332.89 | J69: -0.2012216639 | K69: 3665439
A70: ='Org structure'!E8 -> 01.6 - Municipal Planning Idp | C70: 3205750.49 | D70: 3951503 | E70: 3951503 | F70: 22237.4 | G70: 586234.75 | H70: 1646520 | I70: -1060285.25 | J70: -0.6439552814 | K70: 3951503
A71: ='Org structure'!E9 -> 01.7 - Town & Regional Planning | C71: 1928912.82 | D71: 2158607 | E71: 2158607 | F71: 149961.8 | G71: 784503.91 | H71: 899465 | I71: -114961.09 | J71: -0.1278105207 | K71: 2158607
A72: ='Org structure'!E10 -> 01.8 - Led Administration | C72: 0 | D72: 417000 | E72: 417000 | F72: 0 | G72: 0 | H72: 173785 | I72: -173785 | J72: -1 | K72: 417000
A73: ='Org structure'!A3 -> Vote 02 - Municipal Manager | C73: =SUM(C74:C78) -> 24374848.35 | D73: 24063816 | E73: 24063816 | F73: 2259461.05 | G73: 6948262.45 | H73: 10026885 | I73: -3078622.55 | J73: -0.3070367866 | K73: =SUM(K74:K78) -> 24063816
A74: ='Org structure'!E12 -> 02.1 - Municipal Manager Admin | C74: 11590845.54 | D74: 7315303 | E74: 7315303 | F74: 326584.05 | G74: 1592555.7 | H74: 3048135 | I74: =G74-H74 -> -1455579.3 | J74: =IF(I74=0,"",I74/H74) -> -0.4775311133 | K74: 7315303
A75: ='Org structure'!E13 -> 02.2 - Legal Services | C75: 2156226.17 | D75: 3015679 | E75: 3015679 | F75: 466390.51 | G75: 1361244.76 | H75: 1256575 | I75: =G75-H75 -> 104669.76 | J75: =IF(I75=0,"",I75/H75) -> 0.0832976623 | K75: 3015679
A76: ='Org structure'!E14 -> 02.3 - Political Office Beares | C76: 1514114.78 | D76: 2347610 | E76: 2347610 | F76: 333691.93 | G76: 771388.85 | H76: 978225 | I76: =G76-H76 -> -206836.15 | J76: =IF(I76=0,"",I76/H76) -> -0.2114402617 | K76: 2347610
A77: ='Org structure'!E15 -> 02.4 - Pms | C77: 1983020.3 | D77: 2602463 | E77: 2602463 | F77: 96499.42 | G77: 563525.8 | H77: 1084410 | I77: =G77-H77 -> -520884.2 | J77: =IF(I77=0,"",I77/H77) -> -0.4803388017 | K77: 2602463
A78: ='Org structure'!E16 -> 02.5 - Internal Audit | C78: 7130641.56 | D78: 8782761 | E78: 8782761 | F78: 1036295.14 | G78: 2659547.34 | H78: 3659540 | I78: =G78-H78 -> -999992.66 | J78: =IF(I78=0,"",I78/H78) -> -0.2732563819 | K78: 8782761
A79: ='Org structure'!A4 -> Vote 03 - Mayors Office | C79: =SUM(C80:C84) -> 16496856.64 | D79: 19016432 | E79: 19016432 | F79: 1133195.22 | G79: 6496044.14 | H79: 7923705 | I79: -1427660.86 | J79: -0.1801759228 | K79: =SUM(K80:K84) -> 19016432
A80: ='Org structure'!E18 -> 03.1 - Mayors Office Admin | C80: 2658816.82 | D80: 4620808 | E80: 4620808 | F80: 215150.58 | G80: 1112501.59 | H80: 1925420 | I80: =G80-H80 -> -812918.41 | J80: =IF(I80=0,"",I80/H80) -> -0.4222031609 | K80: 4620808
A81: ='Org structure'!E19 -> 03.2 - Office Of The Speaker | C81: 856695.29 | D81: 1248305 | E81: 1248305 | F81: 43100.42 | G81: 154096.36 | H81: 520170 | I81: =G81-H81 -> -366073.64 | J81: =IF(I81=0,"",I81/H81) -> -0.7037576946 | K81: 1248305
A82: ='Org structure'!E20 -> 03.3 - Office Of The Chief Whip | C82: 996374.36 | D82: 855148 | E82: 855148 | F82: 53365.69 | G82: 542929.07 | H82: 356330 | I82: =G82-H82 -> 186599.07 | J82: =IF(I82=0,"",I82/H82) -> 0.5236692673 | K82: 855148
A83: ='Org structure'!E21 -> 03.4 - Exco Members | C83: 3167080.79 | D83: 3484399 | E83: 3484399 | F83: 124433.72 | G83: 1048496.2 | H83: 1451850 | I83: =G83-H83 -> -403353.8 | J83: =IF(I83=0,"",I83/H83) -> -0.2778205738 | K83: 3484399
A84: ='Org structure'!E22 -> 03.5 - Council General Administration | C84: 8817889.38 | D84: 8807772 | E84: 8807772 | F84: 697144.81 | G84: 3638020.92 | H84: 3669935 | I84: =G84-H84 -> -31914.08 | J84: =IF(I84=0,"",I84/H84) -> -0.008696088623 | K84: 8807772
A85: ='Org structure'!A5 -> Vote 04 - Budget And Treasury | C85: =SUM(C86:C92) -> 38992258.39 | D85: 41597622 | E85: 41597622 | F85: 1818516.86 | G85: 9364429.31 | H85: 17332670 | I85: =G85-H85 -> -7968240.69 | J85: =IF(I85=0,"",I85/H85) -> -0.4597237869 | K85: =SUM(K86:K92) -> 41597622
A86: ='Org structure'!E24 -> 04.1 - Budget And Treasury Admin | C86: 7539135.16 | D86: 11241277 | E86: 11241277 | F86: 329741.07 | G86: 2354571.59 | H86: 4683950 | I86: =G86-H86 -> -2329378.41 | J86: =IF(I86=0,"",I86/H86) -> -0.4973106908 | K86: 11241277
A87: ='Org structure'!E25 -> 04.2 - Chief Financial Officer Admin | C87: 101700.14 | D87: 13713 | E87: 13713 | F87: 0 | G87: 0 | H87: 5720 | I87: -5720 | J87: -1 | K87: 13713
A88: ='Org structure'!E26 -> 04.3 - Budget & Reporting | C88: 0 | D88: 0 | E88: 0 | F88: 0 | G88: 0 | H88: 0 | I88: 0 | K88: 0
A89: ='Org structure'!E27 -> 04.4 - Budget & Reporting | C89: 1916674.29 | D89: 3129713 | E89: 3129713 | F89: 201230.76 | G89: 1001891.59 | H89: 1304100 | I89: -302208.41 | J89: -0.2317371444 | K89: 3129713
A90: ='Org structure'!E28 -> 04.5 - Revenue Management | C90: 21376770.7 | D90: 17867511 | E90: 17867511 | F90: 390210.26 | G90: 2450846.89 | H90: 7444870 | I90: -4994023.11 | J90: -0.6708005795 | K90: 17867511
A91: ='Org structure'!E29 -> 04.6 - Supply Chain Management | C91: 4274773.37 | D91: 5074045 | E91: 5074045 | F91: 570469.68 | G91: 1915952.68 | H91: 2114245 | I91: -198292.32 | J91: -0.09378871417 | K91: 5074045
A92: ='Org structure'!E30 -> 04.7 - Expenditure | C92: 3783204.73 | D92: 4271363 | E92: 4271363 | F92: 326865.09 | G92: 1641166.56 | H92: 1779785 | I92: -138618.44 | J92: -0.07788493554 | K92: 4271363
A93: ='Org structure'!A6 -> Vote 05 - Community Services | C93: =SUM(C94:C100) -> 31835099.23 | D93: 33915429 | E93: 33915429 | F93: 2242396.69 | G93: 11769832.63 | H93: 14131780 | I93: -2361947.37 | J93: -0.167137287 | K93: =SUM(K94:K100) -> 33915429
A94: ='Org structure'!E32 -> 05.1 - Community Services Admin | C94: 3561387.56 | D94: 4549410 | E94: 4549410 | F94: 133556.33 | G94: 773077.34 | H94: 1895680 | I94: =G94-H94 -> -1122602.66 | J94: =IF(I94=0,"",I94/H94) -> -0.5921899582 | K94: 4549410
A95: ='Org structure'!E33 -> 05.2 - Libraries | C95: 524444.05 | D95: 1248680 | E95: 1248680 | F95: 40364.78 | G95: 201823.84 | H95: 520325 | I95: -318501.16 | J95: -0.612119656 | K95: 1248680
A96: ='Org structure'!E34 -> 05.3 - Sports Recreation & Social Amenitie | C96: 3853917.1 | D96: 3332043 | E96: 3332043 | F96: 191829.61 | G96: 980321.19 | H96: 1388425 | I96: -408103.81 | J96: -0.2939329168 | K96: 3332043
A97: ='Org structure'!E35 -> 05.4 - Traffic Service | C97: 0 | D97: 0 | E97: 0 | F97: 0 | G97: 0 | H97: 0 | I97: 0 | K97: 0
A98: ='Org structure'!E36 -> 05.5 - Traffic Service | C98: 16200438.64 | D98: 15600488 | E98: 15600488 | F98: 1236477.36 | G98: 6398503.11 | H98: 6500265 | I98: -101761.89 | J98: -0.01565503714 | K98: 15600488
A99: ='Org structure'!E37 -> 05.6 - Parks; Cemeteries | C99: 1242347.81 | D99: 1471894 | E99: 1471894 | F99: 97862.79 | G99: 493820.63 | H99: 613325 | I99: -119504.37 | J99: -0.1948467289 | K99: 1471894
A100: ='Org structure'!E38 -> 05.7 - Refuse | C100: 6452564.07 | D100: 7712914 | E100: 7712914 | F100: 542305.82 | G100: 2922286.52 | H100: 3213760 | I100: -291473.48 | J100: -0.09069547197 | K100: 7712914
A101: ='Org structure'!A7 -> Vote 06 - Technical Services | C101: =SUM(C102:C109) -> 55387315.29 | D101: 67379573 | E101: 68379573 | F101: 4332818.9 | G101: 19864285.22 | H101: 28297307.22 | I101: -8433022 | J101: -0.2980149996 | K101: =SUM(K102:K109) -> 68379573
A102: ='Org structure'!E40 -> 06.1 - Mpac | C102: 0 | D102: 1310385 | E102: 1310385 | F102: 0 | G102: 0 | H102: 546000 | I102: =G102-H102 -> -546000 | J102: =IF(I102=0,"",I102/H102) -> -1 | K102: 1310385
A103: ='Org structure'!E41 -> 06.2 - Technical Services Admin | C103: 155566.97 | D103: 144869 | E103: 144869 | F103: 0 | G103: 0 | H103: 60370 | I103: -60370 | J103: -1 | K103: 144869
A104: ='Org structure'!E42 -> 06.3 - Techn Serv-Roads: Admin | C104: 2171519.32 | D104: 3608492 | E104: 3608492 | F104: 246270.7 | G104: 1219760.27 | H104: 1503565 | I104: -283804.73 | J104: -0.1887545467 | K104: 3608492
A105: ='Org structure'!E43 -> 06.4 - Techn Serv-Stormwater: Admin | C105: 20886516.6 | D105: 25850796 | E105: 26850796 | F105: 1227693.82 | G105: 3335648.6 | H105: 10993457.22 | I105: -7657808.62 | J105: -0.6965787438 | K105: 26850796
A106: ='Org structure'!E44 -> 06.5 - Project Management Unit | C106: 1703501.88 | D106: 1638474 | E106: 1638474 | F106: 154190.4 | G106: 961183.54 | H106: 682715 | I106: 278468.54 | J106: 0.4078840219 | K106: 1638474
A107: ='Org structure'!E45 -> 06.6 - Electrical & Machinery | C107: 21189788.03 | D107: 23787667 | E107: 23787667 | F107: 1930510.4 | G107: 10249527.17 | H107: 9911590 | I107: 337937.17 | J107: 0.03409515224 | K107: 23787667
A108: ='Org structure'!E46 -> 06.7 - Water | C108: 6378865.08 | D108: 8083668 | E108: 8083668 | F108: 529509.15 | G108: 2763652.06 | H108: 3368235 | I108: -604582.94 | J108: -0.1794954746 | K108: 8083668
A109: ='Org structure'!E47 -> 06.8 - Sanitation | C109: 2901557.41 | D109: 2955222 | E109: 2955222 | F109: 244644.43 | G109: 1334513.58 | H109: 1231375 | I109: 103138.58 | J109: 0.08375887118 | K109: 2955222
A110: ='Org structure'!A8 -> Vote 07 - | C110: 0 | D110: 0 | E110: 0 | F110: 0 | G110: 0 | H110: 0 | I110: 0 | K110: 0
A111: ='Org structure'!A9 -> Vote 08 - | C111: 0 | D111: 0 | E111: 0 | F111: 0 | G111: 0 | H111: 0 | I111: 0 | K111: 0
A112: ='Org structure'!A10 -> Vote 09 - | C112: 0 | D112: 0 | E112: 0 | F112: 0 | G112: 0 | H112: 0 | I112: =G112-H112 -> 0 | J112: =IF(I112=0,"",I112/H112) ->  | K112: 0
A113: ='Org structure'!A11 -> Vote 10 - | C113: 0 | D113: 0 | E113: 0 | F113: 0 | G113: 0 | H113: 0 | I113: 0 | K113: 0
A114: ='Org structure'!A12 -> Vote 11 - | C114: 0 | D114: 0 | E114: 0 | F114: 0 | G114: 0 | H114: 0 | I114: 0 | K114: 0
A115: ='Org structure'!A13 -> Vote 12 - | C115: 0 | D115: 0 | E115: 0 | F115: 0 | G115: 0 | H115: 0 | I115: 0 | K115: 0
A116: ='Org structure'!A14 -> Vote 13 - | C116: 0 | D116: 0 | E116: 0 | F116: 0 | G116: 0 | H116: 0 | I116: 0 | K116: 0
A117: ='Org structure'!A15 -> Vote 14 - | C117: 0 | D117: 0 | E117: 0 | F117: 0 | G117: 0 | H117: 0 | I117: 0 | K117: 0
A118: ='Org structure'!A16 -> Vote 15 - Other | C118: 0 | D118: 0 | E118: 0 | F118: 0 | G118: 0 | H118: 0 | I118: =G118-H118 -> 0 | J118: =IF(I118=0,"",I118/H118) ->  | K118: 0
A119: Total Expenditure by Vote | B119: 2 | C119: =C64+C73+C79+C85+C93+C101+C110+C111+C112+C113+C114+C115+C116+C117+C118 -> 221073903.1 | D119: 247928625 | E119: 248928625 | F119: 14888271.76 | G119: 73522876.59 | H119: 103527782.2 | I119: -30004905.63 | J119: -0.289824673 | K119: =K64+K73+K79+K85+K93+K101+K110+K111+K112+K113+K114+K115+K116+K117+K118 -> 248928625
I120: 0 | L120: =#REF!-#REF! ->  | M120: =#REF!-#REF! ->  | N120: =#REF!-#REF! ->  | O120: =#REF!-#REF! ->  | P120: =#REF!-#REF! ->  | Q120: =#REF!-#REF! ->  | R120: =#REF!-#REF! ->  | S120: =#REF!-#REF! ->  | T120: =#REF!-#REF! ->  | U120: =#REF!-#REF! ->  | V120: =#REF!-#REF! ->  | W120: =#REF!-#REF! -> 
A121: =result -> Surplus/ (Deficit) for the year | B121: 2 | C121: =C61-C119 -> 81466579.14 | D121: 65393433 | E121: 65393433 | F121: -9712534.03 | G121: 23744224.14 | H121: 27245195 | I121: -3500970.86 | J121: -0.1284986531 | K121: =K61-K119 -> 65393433
A122: =head27a -> References
A123: 1. Insert 'Vote'; e.g. Department, if different to standard structure
A124: 2. Must reconcile to Financial Performance ('Revenue and Expenditure by Standard Classification' and 'Revenue and Expenditure')
A125: 3. Assign share in 'associate' to relevant Vote
A127: check revenue
A128: check expenditure

Sheet C4-FinPerf RE
A1: =muni& " - "&S71B& " - "&date -> LIM353 Molemole - Table C4 Monthly Budget Statement - Financial Performance (revenue and expenditure) - M05 November
A2: =desc -> Description | B2: =head27 -> Ref | C2: =Head1 -> 2020/21 | D2: =Head2 -> Budget Year 2021/22
C3: =Head5 -> Audited Outcome | D3: =Head6 -> Original Budget | E3: =Head7 -> Adjusted Budget | F3: =Head38 -> Monthly actual | G3: =Head39 -> YearTD actual | H3: =Head40 -> YearTD budget | I3: =Head41 -> YTD variance | J3: =Head41 -> YTD variance | K3: =Head8 -> Full Year Forecast
A4: R thousands | J4: %
A5: Revenue By Source
A6: Property rates | C6: 49558002.71 | D6: 51482069 | E6: 51482069 | F6: 2549820.39 | G6: 12750906.14 | H6: 21450845 | I6: =G6-H6 -> -8699938.86 | J6: =IF(I6=0,"",I6/H6) -> -0.405575578 | K6: 51482069
A7: Service charges - electricity revenue | C7: 8433035.23 | D7: 11711304 | E7: 11711304 | F7: 475391.34 | G7: 3176653.68 | H7: 4879700 | I7: -1703046.32 | J7: -0.3490063569 | K7: 11711304
A8: Service charges - water revenue | C8: 0 | D8: 0 | E8: 0 | F8: -2467.1 | G8: -3419.8 | H8: 0 | I8: -3419.8 | K8: 0
A9: Service charges - sanitation revenue | C9: 0 | D9: 0 | E9: 0 | F9: -166.2 | G9: -664.8 | H9: 0 | I9: -664.8 | K9: 0
A10: Service charges - refuse revenue | C10: 2628852.44 | D10: 2484576 | E10: 2484576 | F10: 228752.73 | G10: 1144356.15 | H10: 1035240 | I10: 109116.15 | J10: 0.1054017909 | K10: 2484576
A12: Rental of facilities and equipment | C12: 214680.5 | D12: 253998 | E12: 253998 | F12: 34132.51 | G12: 90902.57 | H12: 105830 | I12: -14927.43 | J12: -0.1410510252 | K12: 253998
A13: Interest earned - external investments | C13: 2543772.73 | D13: 2708206 | E13: 2708206 | F13: 98555.82 | G13: 1421225.52 | H13: 1128415 | I13: 292810.52 | J13: 0.2594883265 | K13: 2708206
A14: Interest earned - outstanding debtors | C14: 1342317.05 | D14: 1515294 | E14: 1515294 | F14: 127446.19 | G14: 593780.27 | H14: 631370 | I14: -37589.73 | J14: -0.05953676925 | K14: 1515294
A15: Dividends received | C15: 0 | D15: 0 | E15: 0 | F15: 0 | G15: 0 | H15: 0 | I15: 0 | K15: 0
A16: Fines, penalties and forfeits | C16: 493491.44 | D16: 1338690 | E16: 1338690 | F16: 3100 | G16: 21900 | H16: 557780 | I16: -535880 | J16: -0.9607372082 | K16: 1338690
A17: Licences and permits | C17: 4890683.84 | D17: 7686174 | E17: 7686174 | F17: 1398762.83 | G17: 4619171.15 | H17: 3202570 | I17: 1416601.15 | J17: 0.442332611 | K17: 7686174
A18: Agency services | C18: 919463.97 | D18: 721709 | E18: 721709 | F18: 218050.38 | G18: 969633.6 | H18: 300705 | I18: 668928.6 | J18: 2.224534344 | K18: 721709
A19: Transfers and subsidies | C19: 185288433.8 | D19: 161092000 | E19: 162092000 | F19: 0 | G19: 66551697.61 | H19: 67343877.22 | I19: -792179.61 | J19: -0.01176320169 | K19: 162092000
A20: Other revenue | C20: -46995.76 | D20: 27178038 | E20: 27178038 | F20: 44358.84 | G20: 133486.65 | H20: 11324150 | I20: -11190663.35 | J20: -0.9882122146 | K20: 27178038
A21: Gains | C21: 12150 | D21: 0 | E21: 0 | F21: 0 | G21: 0 | H21: 0 | I21: 0 | K21: 0
A22: Total Revenue (excluding capital transfers and contributions) | C22: =SUM(C6:C10)+SUM(C12:C21) -> 256277888 | D22: 268172058 | E22: 269172058 | F22: 5175737.73 | G22: 91469628.74 | H22: 111960482.2 | I22: -20490853.48 | J22: -0.1830186247 | K22: =SUM(K6:K10)+SUM(K12:K21) -> 269172058
A24: Expenditure By Type
A25: Employee related costs | C25: 91655492.25 | D25: 105732276 | E25: 105732276 | F25: 7464425.75 | G25: 38144906.9 | H25: 44056375 | I25: =G25-H25 -> -5911468.1 | J25: =IF(I25=0,"",I25/H25) -> -0.1341796301 | K25: 105732276
A26: Remuneration of councillors | C26: 12930254.27 | D26: 15010262 | E26: 15010262 | F26: 908492.47 | G26: 5139520.67 | H26: 6254325 | I26: -1114804.33 | J26: -0.178245347 | K26: 15010262
A27: Debt impairment | C27: 8871388.24 | D27: 6337664 | E27: 6337664 | F27: 0 | G27: 0 | H27: 2640695 | I27: -2640695 | J27: -1 | K27: 6337664
A28: Depreciation & asset impairment | C28: 12114558.47 | D28: 18994790 | E28: 18994790 | F28: 0 | G28: 0 | H28: 7914720 | I28: -7914720 | J28: -1 | K28: 18994790
A29: Finance charges | C29: 183629.4 | D29: 1055833 | E29: 1055833 | F29: -1633.18 | G29: -1452.78 | H29: 439935 | I29: -441387.78 | J29: -1.003302261 | K29: 1055833
A30: Bulk purchases - electricity | C30: 11026472.76 | D30: 11468179 | E30: 11468179 | F30: 942663.8 | G30: 6107976.54 | H30: 4778410 | I30: 1329566.54 | J30: 0.27824455 | K30: 11468179
A31: Inventory consumed | C31: 3920351.58 | D31: 6589473 | E31: 6589473 | F31: 481874.21 | G31: 1791944.88 | H31: 2745635 | I31: -953690.12 | J31: -0.3473477429 | K31: 6589473
A32: Contracted services | C32: 39119436.44 | D32: 43843741 | E32: 44843741 | F32: 2749991.63 | G32: 10824507.5 | H32: 18490547.22 | I32: -7666039.72 | J32: -0.414592366 | K32: 44843741
A33: Transfers and subsidies | C33: 0 | D33: 0 | E33: 0 | F33: 0 | G33: 0 | H33: 0 | I33: 0 | K33: 0
A34: Other expenditure | C34: 34166105.41 | D34: 38896407 | E34: 38896407 | F34: 2342457.08 | G34: 11515472.88 | H34: 16207140 | I34: -4691667.12 | J34: -0.2894814952 | K34: 38896407
A35: Losses | C35: 7086214.29 | D35: 0 | E35: 0 | F35: 0 | G35: 0 | H35: 0 | I35: 0 | K35: 0
A36: Total Expenditure | C36: =SUM(C25:C35) -> 221073903.1 | D36: =SUM(D25:D35) -> 247928625 | E36: =SUM(E25:E35) -> 248928625 | F36: 14888271.76 | G36: 73522876.59 | H36: 103527782.2 | I36: -30004905.63 | J36: -0.289824673 | K36: 248928625
A38: Surplus/(Deficit) | C38: =C22-C36 -> 35203984.89 | D38: 20243433 | E38: 20243433 | F38: -9712534.03 | G38: 17946752.15 | H38: 8432700 | I38: =I22-I36 -> 9514052.15 | J38: 1.128233205 | K38: =K22-K36 -> 20243433
A39: Transfers and subsidies - capital (monetary allocations) (National / Provincial and District) | C39: 45027638.97 | D39: 45150000 | E39: 45150000 | F39: 0 | G39: 5797471.99 | H39: 18812495 | I39: =G39-H39 -> -13015023.01 | J39: -0.6918286495 | K39: 45150000
A40: Transfers and subsidies - capital (monetary allocations) (National / Provincial Departmental Agencies, Households, Non-profit Institutions, Private Enterprises, Public Corporatons, Higher Educational Institutions) | I40: =G40-H40 -> 0
A41: Transfers and subsidies - capital (in-kind - all) | C41: 1234955.28 | D41: 0 | E41: 0 | F41: 0 | G41: 0 | H41: 0 | I41: =G41-H41 -> 0 | K41: 0
A42: Surplus/(Deficit) after capital transfers & contributions | C42: =C38+SUM(C39:C41) -> 81466579.14 | D42: 65393433 | E42: 65393433 | F42: -9712534.03 | G42: 23744224.14 | H42: 27245195 | K42: =K38+SUM(K39:K41) -> 65393433
A43: Taxation | I43: =G43-H43 -> 0 | J43: =IF(I43=0,"",I43/H43) -> 
A44: Surplus/(Deficit) after taxation | C44: =C42-C43 -> 81466579.14 | D44: 65393433 | E44: 65393433 | F44: -9712534.03 | G44: 23744224.14 | H44: 27245195 | K44: =K42-K43 -> 65393433
A45: Attributable to minorities
A46: Surplus/(Deficit) attributable to municipality | C46: =SUM(C44:C45) -> 81466579.14 | D46: 65393433 | E46: 65393433 | F46: -9712534.03 | G46: 23744224.14 | H46: 27245195 | K46: =SUM(K44:K45) -> 65393433
A47: Share of surplus/ (deficit) of associate
A48: Surplus/ (Deficit) for the year | C48: =C46+C47 -> 81466579.14 | D48: 65393433 | E48: 65393433 | F48: -9712534.03 | G48: 23744224.14 | H48: 27245195 | K48: =K46+K47 -> 65393433
A49: =head27a -> References
A50: 1. Material variances to be explained on Table SC1
A53: =A22&" including capital transfers/contributions etc" -> Total Revenue (excluding capital transfers and contributions) including capital transfers/contributions etc | C53: =C22+SUM(C39:C41) -> 302540482.2 | D53: 313322058 | E53: 314322058 | F53: 5175737.73 | G53: 97267100.73 | H53: 130772977.2 | K53: =K22+SUM(K39:K41) -> 314322058

Sheet C5-Capex
A1: =muni& " - "&S71D& " - "&date -> LIM353 Molemole - Table C5 Monthly Budget Statement - Capital Expenditure (municipal vote, functional classification and funding) - M05 November
A2: =Vdesc -> Vote Description | B2: =head27 -> Ref | C2: =Head1 -> 2020/21 | D2: =Head2 -> Budget Year 2021/22
C3: =Head5 -> Audited Outcome | D3: =Head6 -> Original Budget | E3: =Head7 -> Adjusted Budget | F3: =Head38 -> Monthly actual | G3: =Head39 -> YearTD actual | H3: =Head40 -> YearTD budget | I3: =Head41 -> YTD variance | J3: =Head41 -> YTD variance | K3: =Head8 -> Full Year Forecast
A4: R thousands | B4: 1 | J4: %
A5: Multi-Year expenditure appropriation | B5: 2
A6: ='Org structure'!A2 -> Vote 01 - Corporate Services | C6: ='C5C'!C7 -> 4660939.51 | D6: ='C5C'!D7 -> 4286000 | E6: ='C5C'!E7 -> 4286000 | F6: ='C5C'!F7 -> 0 | G6: ='C5C'!G7 -> 0 | H6: ='C5C'!H7 -> 1785840 | I6: =G6-H6 -> -1785840 | J6: =IF(I6=0,"",I6/H6) -> -1 | K6: ='C5C'!K7 -> 4286000
A7: ='Org structure'!A3 -> Vote 02 - Municipal Manager | C7: ='C5C'!C16 -> 136993.77 | D7: ='C5C'!D16 -> 100000 | E7: ='C5C'!E16 -> 100000 | F7: ='C5C'!F16 -> 25840 | G7: ='C5C'!G16 -> 25840 | H7: ='C5C'!H16 -> 41670 | I7: -15830 | J7: -0.3798896088 | K7: ='C5C'!K16 -> 100000
A8: ='Org structure'!A4 -> Vote 03 - Mayors Office | C8: ='C5C'!C22 -> 0 | D8: ='C5C'!D22 -> 0 | E8: ='C5C'!E22 -> 0 | F8: ='C5C'!F22 -> 0 | G8: ='C5C'!G22 -> 0 | H8: ='C5C'!H22 -> 0 | I8: 0 | K8: ='C5C'!K22 -> 0
A9: ='Org structure'!A5 -> Vote 04 - Budget And Treasury | C9: ='C5C'!C28 -> 0 | D9: ='C5C'!D28 -> 300000 | E9: ='C5C'!E28 -> 300000 | F9: ='C5C'!F28 -> 0 | G9: ='C5C'!G28 -> 0 | H9: ='C5C'!H28 -> 125000 | I9: -125000 | J9: -1 | K9: ='C5C'!K28 -> 300000
A10: ='Org structure'!A6 -> Vote 05 - Community Services | C10: ='C5C'!C36 -> 1156205.28 | D10: ='C5C'!D36 -> 1010000 | E10: ='C5C'!E36 -> 1010000 | F10: ='C5C'!F36 -> 0 | G10: ='C5C'!G36 -> 0 | H10: ='C5C'!H36 -> 420840 | I10: -420840 | J10: -1 | K10: ='C5C'!K36 -> 1010000
A11: ='Org structure'!A7 -> Vote 06 - Technical Services | C11: ='C5C'!C44 -> 44102368.51 | D11: ='C5C'!D44 -> 59697793 | E11: ='C5C'!E44 -> 59697793 | F11: ='C5C'!F44 -> 2689497.03 | G11: ='C5C'!G44 -> 10612142.67 | H11: ='C5C'!H44 -> 24874100 | I11: -14261957.33 | J11: -0.5733657632 | K11: ='C5C'!K44 -> 59697793
A12: ='Org structure'!A8 -> Vote 07 - | C12: ='C5C'!C53 -> 0 | D12: ='C5C'!D53 -> 0 | E12: ='C5C'!E53 -> 0 | F12: ='C5C'!F53 -> 0 | G12: ='C5C'!G53 -> 0 | H12: ='C5C'!H53 -> 0 | I12: =G12-H12 -> 0 | J12: =IF(I12=0,"",I12/H12) ->  | K12: ='C5C'!K53 -> 0
A13: ='Org structure'!A9 -> Vote 08 - | C13: ='C5C'!C54 -> 0 | D13: ='C5C'!D54 -> 0 | E13: ='C5C'!E54 -> 0 | F13: ='C5C'!F54 -> 0 | G13: ='C5C'!G54 -> 0 | H13: ='C5C'!H54 -> 0 | I13: 0 | K13: ='C5C'!K54 -> 0
A14: ='Org structure'!A10 -> Vote 09 - | C14: ='C5C'!C55 -> 0 | D14: ='C5C'!D55 -> 0 | E14: ='C5C'!E55 -> 0 | F14: ='C5C'!F55 -> 0 | G14: ='C5C'!G55 -> 0 | H14: ='C5C'!H55 -> 0 | I14: 0 | K14: ='C5C'!K55 -> 0
A15: ='Org structure'!A11 -> Vote 10 - | C15: ='C5C'!C56 -> 0 | D15: ='C5C'!D56 -> 0 | E15: ='C5C'!E56 -> 0 | F15: ='C5C'!F56 -> 0 | G15: ='C5C'!G56 -> 0 | H15: ='C5C'!H56 -> 0 | I15: 0 | K15: ='C5C'!K56 -> 0
A16: ='Org structure'!A12 -> Vote 11 - | C16: ='C5C'!C57 -> 0 | D16: ='C5C'!D57 -> 0 | E16: ='C5C'!E57 -> 0 | F16: ='C5C'!F57 -> 0 | G16: ='C5C'!G57 -> 0 | H16: ='C5C'!H57 -> 0 | I16: 0 | K16: ='C5C'!K57 -> 0
A17: ='Org structure'!A13 -> Vote 12 - | C17: ='C5C'!C58 -> 0 | D17: ='C5C'!D58 -> 0 | E17: ='C5C'!E58 -> 0 | F17: ='C5C'!F58 -> 0 | G17: ='C5C'!G58 -> 0 | H17: ='C5C'!H58 -> 0 | I17: 0 | K17: ='C5C'!K58 -> 0
A18: ='Org structure'!A14 -> Vote 13 - | C18: ='C5C'!C59 -> 0 | D18: ='C5C'!D59 -> 0 | E18: ='C5C'!E59 -> 0 | F18: ='C5C'!F59 -> 0 | G18: ='C5C'!G59 -> 0 | H18: ='C5C'!H59 -> 0 | I18: =G18-H18 -> 0 | J18: =IF(I18=0,"",I18/H18) ->  | K18: ='C5C'!K59 -> 0
A19: ='Org structure'!A15 -> Vote 14 - | C19: ='C5C'!C60 -> 0 | D19: ='C5C'!D60 -> 0 | E19: ='C5C'!E60 -> 0 | F19: ='C5C'!F60 -> 0 | G19: ='C5C'!G60 -> 0 | H19: ='C5C'!H60 -> 0 | I19: =G19-H19 -> 0 | J19: =IF(I19=0,"",I19/H19) ->  | K19: ='C5C'!K60 -> 0
A20: ='Org structure'!A16 -> Vote 15 - Other | C20: ='C5C'!C61 -> 0 | D20: ='C5C'!D61 -> 0 | E20: ='C5C'!E61 -> 0 | F20: ='C5C'!F61 -> 0 | G20: ='C5C'!G61 -> 0 | H20: ='C5C'!H61 -> 0 | I20: =G20-H20 -> 0 | J20: =IF(I20=0,"",I20/H20) ->  | K20: ='C5C'!K61 -> 0
A21: Total Capital Multi-year expenditure | B21: 4,7 | C21: =SUM(C6:C20) -> 50056507.07 | D21: =SUM(D6:D20) -> 65393793 | E21: 65393793 | F21: 2715337.03 | G21: 10637982.67 | H21: 27247450 | I21: -16609467.33 | J21: =IF(I21=0,"",I21/H21) -> -0.60957878 | K21: =SUM(K6:K20) -> 65393793
A23: Single Year expenditure appropriation | B23: 2
A24: ='C5C'!A66 -> Vote 01 - Corporate Services | C24: ='C5C'!C66 -> 0 | D24: ='C5C'!D66 -> 0 | E24: ='C5C'!E66 -> 0 | F24: ='C5C'!F66 -> 0 | G24: ='C5C'!G66 -> 0 | H24: ='C5C'!H66 -> 0 | I24: =G24-H24 -> 0 | J24: =IF(I24=0,"",I24/H24) ->  | K24: ='C5C'!K66 -> 0
A25: ='C5C'!A75 -> Vote 02 - Municipal Manager | C25: ='C5C'!C75 -> 0 | D25: ='C5C'!D75 -> 0 | E25: ='C5C'!E75 -> 0 | F25: ='C5C'!F75 -> 0 | G25: ='C5C'!G75 -> 0 | H25: ='C5C'!H75 -> 0 | I25: 0 | K25: ='C5C'!K75 -> 0
A26: ='C5C'!A81 -> Vote 03 - Mayors Office | C26: ='C5C'!C81 -> 0 | D26: ='C5C'!D81 -> 0 | E26: ='C5C'!E81 -> 0 | F26: ='C5C'!F81 -> 0 | G26: ='C5C'!G81 -> 0 | H26: ='C5C'!H81 -> 0 | I26: 0 | K26: ='C5C'!K81 -> 0
A27: ='C5C'!A87 -> Vote 04 - Budget And Treasury | C27: ='C5C'!C87 -> 0 | D27: ='C5C'!D87 -> 0 | E27: ='C5C'!E87 -> 0 | F27: ='C5C'!F87 -> 0 | G27: ='C5C'!G87 -> 0 | H27: ='C5C'!H87 -> 0 | I27: 0 | K27: ='C5C'!K87 -> 0
A28: ='C5C'!A95 -> Vote 05 - Community Services | C28: ='C5C'!C95 -> 0 | D28: ='C5C'!D95 -> 0 | E28: ='C5C'!E95 -> 0 | F28: ='C5C'!F95 -> 0 | G28: ='C5C'!G95 -> 0 | H28: ='C5C'!H95 -> 0 | I28: 0 | K28: ='C5C'!K95 -> 0
A29: ='C5C'!A103 -> Vote 06 - Technical Services | C29: ='C5C'!C103 -> 0 | D29: ='C5C'!D103 -> 0 | E29: ='C5C'!E103 -> 0 | F29: ='C5C'!F103 -> 0 | G29: ='C5C'!G103 -> 0 | H29: ='C5C'!H103 -> 0 | I29: 0 | K29: ='C5C'!K103 -> 0
A30: ='Org structure'!A8 -> Vote 07 - | C30: ='C5C'!C112 -> 0 | D30: ='C5C'!D112 -> 0 | E30: ='C5C'!E112 -> 0 | F30: ='C5C'!F112 -> 0 | G30: ='C5C'!G112 -> 0 | H30: ='C5C'!H112 -> 0 | I30: ='C5C'!I112 -> 0 | J30: =IF(I30=0,"",I30/H30) ->  | K30: ='C5C'!K112 -> 0
A31: ='Org structure'!A9 -> Vote 08 - | C31: ='C5C'!C113 -> 0 | D31: ='C5C'!D113 -> 0 | E31: ='C5C'!E113 -> 0 | F31: ='C5C'!F113 -> 0 | G31: ='C5C'!G113 -> 0 | H31: ='C5C'!H113 -> 0 | I31: ='C5C'!I113 -> 0 | K31: ='C5C'!K113 -> 0
A32: ='Org structure'!A10 -> Vote 09 - | C32: ='C5C'!C114 -> 0 | D32: ='C5C'!D114 -> 0 | E32: ='C5C'!E114 -> 0 | F32: ='C5C'!F114 -> 0 | G32: ='C5C'!G114 -> 0 | H32: ='C5C'!H114 -> 0 | I32: ='C5C'!I114 -> 0 | K32: ='C5C'!K114 -> 0
A33: ='Org structure'!A11 -> Vote 10 - | C33: ='C5C'!C115 -> 0 | D33: ='C5C'!D115 -> 0 | E33: ='C5C'!E115 -> 0 | F33: ='C5C'!F115 -> 0 | G33: ='C5C'!G115 -> 0 | H33: ='C5C'!H115 -> 0 | I33: ='C5C'!I115 -> 0 | K33: ='C5C'!K115 -> 0
A34: ='Org structure'!A12 -> Vote 11 - | C34: ='C5C'!C116 -> 0 | D34: ='C5C'!D116 -> 0 | E34: ='C5C'!E116 -> 0 | F34: ='C5C'!F116 -> 0 | G34: ='C5C'!G116 -> 0 | H34: ='C5C'!H116 -> 0 | I34: ='C5C'!I116 -> 0 | K34: ='C5C'!K116 -> 0
A35: ='Org structure'!A13 -> Vote 12 - | C35: ='C5C'!C117 -> 0 | D35: ='C5C'!D117 -> 0 | E35: ='C5C'!E117 -> 0 | F35: ='C5C'!F117 -> 0 | G35: ='C5C'!G117 -> 0 | H35: ='C5C'!H117 -> 0 | I35: ='C5C'!I117 -> 0 | K35: ='C5C'!K117 -> 0
A36: ='Org structure'!A14 -> Vote 13 - | C36: ='C5C'!C118 -> 0 | D36: ='C5C'!D118 -> 0 | E36: ='C5C'!E118 -> 0 | F36: ='C5C'!F118 -> 0 | G36: ='C5C'!G118 -> 0 | H36: ='C5C'!H118 -> 0 | I36: ='C5C'!I118 -> 0 | K36: ='C5C'!K118 -> 0
A37: ='Org structure'!A15 -> Vote 14 - | C37: ='C5C'!C119 -> 0 | D37: ='C5C'!D119 -> 0 | E37: ='C5C'!E119 -> 0 | F37: ='C5C'!F119 -> 0 | G37: ='C5C'!G119 -> 0 | H37: ='C5C'!H119 -> 0 | I37: ='C5C'!I119 -> 0 | K37: ='C5C'!K119 -> 0
A38: ='Org structure'!A16 -> Vote 15 - Other | C38: ='C5C'!C120 -> 0 | D38: ='C5C'!D120 -> 0 | E38: ='C5C'!E120 -> 0 | F38: ='C5C'!F120 -> 0 | G38: ='C5C'!G120 -> 0 | H38: ='C5C'!H120 -> 0 | I38: ='C5C'!I120 -> 0 | K38: ='C5C'!K120 -> 0
A39: Total Capital single-year expenditure | B39: 4 | C39: =SUM(C24:C38) -> 0 | D39: 0 | E39: 0 | F39: 0 | G39: 0 | H39: 0 | I39: 0 | K39: =SUM(K24:K38) -> 0
A40: Total Capital Expenditure | C40: =C39+C21 -> 50056507.07 | D40: 65393793 | E40: 65393793 | F40: 2715337.03 | G40: 10637982.67 | H40: 27247450 | I40: -16609467.33 | J40: =IF(I40=0,"",I40/H40) -> -0.60957878 | K40: =K39+K21 -> 65393793
A42: Capital Expenditure - Functional Classification
A43: Governance and administration | C43: =SUM(C44:C46) -> 4797933.28 | D43: 4686000 | E43: 4686000 | F43: 25840 | G43: 25840 | H43: 1952510 | I43: =G43-H43 -> -1926670 | J43: =IF(I43=0,"",I43/H43) -> -0.9867657528 | K43: =SUM(K44:K46) -> 4686000
A44: Executive and council | C44: 0 | D44: 0 | E44: 0 | F44: 0 | G44: 0 | H44: 0 | I44: 0 | J44: =IF(I44=0,"",I44/H44) ->  | K44: 0
A45: Finance and administration | C45: 4797933.28 | D45: 4686000 | E45: 4686000 | F45: 25840 | G45: 25840 | H45: 1952510 | I45: -1926670 | J45: -0.9867657528 | K45: 4686000
A46: Internal audit | C46: 0 | D46: 0 | E46: 0 | F46: 0 | G46: 0 | H46: 0 | I46: 0 | K46: 0
A47: Community and public safety | C47: =SUM(C48:C52) -> 1156205.28 | D47: 1010000 | E47: 1010000 | F47: 0 | G47: 0 | H47: 420840 | I47: -420840 | J47: -1 | K47: =SUM(K48:K52) -> 1010000
A48: Community and social services | C48: 1156205.28 | D48: 0 | E48: 0 | F48: 0 | G48: 0 | H48: 0 | I48: 0 | K48: 0
A49: Sport and recreation | C49: 0 | D49: 700000 | E49: 700000 | F49: 0 | G49: 0 | H49: 291670 | I49: -291670 | J49: -1 | K49: 700000
A50: Public safety | C50: 0 | D50: 310000 | E50: 310000 | F50: 0 | G50: 0 | H50: 129170 | I50: -129170 | J50: -1 | K50: 310000
A51: Housing | I51: 0
A52: Health | I52: 0
A53: Economic and environmental services | C53: =SUM(C54:C56) -> 0 | D53: 287793 | E53: 287793 | F53: 0 | G53: 0 | H53: 119915 | I53: -119915 | J53: -1 | K53: =SUM(K54:K56) -> 287793
A54: Planning and development | C54: 0 | D54: 287793 | E54: 287793 | F54: 0 | G54: 0 | H54: 119915 | I54: -119915 | J54: -1 | K54: 287793
A55: Road transport | I55: 0
A56: Environmental protection | I56: 0
A57: Trading services | C57: =SUM(C58:C61) -> 44102368.51 | D57: 59410000 | E57: 59410000 | F57: 2689497.03 | G57: 10612142.67 | H57: 24754185 | I57: -14142042.33 | J57: -0.5712990482 | K57: =SUM(K58:K61) -> 59410000
A58: Energy sources | C58: 11793428.42 | D58: 15500000 | E58: 15500000 | F58: 0 | G58: 535982.53 | H58: 6458345 | I58: -5922362.47 | J58: -0.9170093066 | K58: 15500000
A59: Water management | I59: 0
A60: Waste water management | C60: 32308940.09 | D60: 43910000 | E60: 43910000 | F60: 2689497.03 | G60: 10076160.14 | H60: 18295840 | I60: -8219679.86 | J60: -0.4492649619 | K60: 43910000
A61: Waste management | I61: 0
A62: Other | I62: 0
A63: Total Capital Expenditure - Functional Classification | B63: 3 | C63: =C43+C47+C53+C57+C62 -> 50056507.07 | D63: =D43+D47+D53+D57+D62 -> 65393793 | E63: 65393793 | F63: 2715337.03 | G63: 10637982.67 | H63: 27247450 | I63: -16609467.33 | J63: -0.60957878 | K63: =K43+K47+K53+K57+K62 -> 65393793
A65: Funded by:
A66: National Government | C66: 39133689.96 | D66: 45437793 | E66: 45437793 | F66: 2534817.39 | G66: 8328137 | H66: 18932425 | I66: =G66-H66 -> -10604288 | J66: =IF(I66=0,"",I66/H66) -> -0.5601125054 | K66: 45437793
A67: Provincial Government | C67: 0 | D67: 0 | E67: 0 | F67: 0 | G67: 0 | H67: 0 | I67: 0 | K67: 0
A68: District Municipality | C68: 1156205.28 | D68: 0 | E68: 0 | F68: 0 | G68: 0 | H68: 0 | I68: 0 | K68: 0
A69: ='C4-FinPerf RE'!A40 -> Transfers and subsidies - capital (monetary allocations) (National / Provincial Departmental Agencies, Households, Non-profit Institutions, Private Enterprises, Public Corporatons, Higher Educational Institutions) | C69: 0 | D69: 0 | E69: 0 | F69: 0 | G69: 0 | H69: 0 | I69: 0 | K69: 0
A70: Transfers recognised - capital | C70: =SUM(C66:C69) -> 40289895.24 | D70: 45437793 | E70: 45437793 | F70: 2534817.39 | G70: 8328137 | H70: 18932425 | I70: -10604288 | J70: -0.5601125054 | K70: =SUM(K66:K69) -> 45437793
A72: Borrowing | B72: 6 | I72: 0
A73: Internally generated funds | C73: 9766611.83 | D73: 19956000 | E73: 19956000 | F73: 180519.64 | G73: 2309845.67 | H73: 8315025 | I73: -6005179.33 | J73: -0.722208211 | K73: 19956000
A74: Total Capital Funding | C74: =+C70+C72+C73 -> 50056507.07 | D74: 65393793 | E74: 65393793 | F74: 2715337.03 | G74: 10637982.67 | H74: 27247450 | I74: -16609467.33 | J74: -0.60957878 | K74: =+K70+K72+K73 -> 65393793
A75: =head27a -> References
A76: 1. Municipalities may choose to appropriate for capital expenditure for three years or for one year (if one year appropriation projected expenditure required for yr2 and yr3).
A77: 2. Include capital component of PPP unitary payment
A78: 3. Capital expenditure by functional classification must reconcile to the total of multi-year and single year appropriations
A79: 4. Include expenditure on investment property, intangible and biological assets
A81: 6. Include finance leases and PPP capital funding component of unitary payment - total borrowing/repayments to reconcile to changes in Table SA17
A86: check balance | C86: =C40-C74 -> 0 | D86: =D40-D74 -> 0 | E86: 0 | F86: 0 | G86: 0 | H86: 0 | K86: 0

Sheet C5C
A1: =muni& " - "&S71D& " - "&"A"& " - "&date -> LIM353 Molemole - Table C5 Monthly Budget Statement - Capital Expenditure (municipal vote, functional classification and funding) - A - M05 November
A2: =Vdesc -> Vote Description | B2: =head27 -> Ref | C2: =Head1 -> 2020/21 | D2: =Head2 -> Budget Year 2021/22 | L2: =Head4 -> 
A3: R thousand | C3: =Head5 -> Audited Outcome | D3: =Head6 -> Original Budget | E3: =Head7 -> Adjusted Budget | F3: =Head38 -> Monthly actual | G3: =Head39 -> YearTD actual | H3: =Head40 -> YearTD budget | I3: =Head41 -> YTD variance | J3: =Head41 -> YTD variance | K3: =Head8 -> Full Year Forecast | L3: =Head12 -> Forecast 2010/11 | M3: =Head13 -> Forecast 2011/12 | N3: =Head14 -> Forecast 2012/13 | O3: =Head15 -> Forecast 2013/14 | P3: =Head16 -> Forecast 2014/15 | Q3: =Head17 -> Forecast 2015/16 | R3: =Head18 -> Forecast 2016/17 | S3: =Head19 -> Forecast 2017/18 | T3: =Head20 -> Forecast 2018/19 | U3: =Head21 -> Forecast 2019/20 | V3: =Head22 -> Forecast 2020/21 | W3: =Head23 -> Forecast 2021/22
J4: %
A5: Capital expenditure - Municipal Vote
A6: Expenditure of multi-year capital appropriation | B6: 1
A7: ='Org structure'!A2 -> Vote 01 - Corporate Services | C7: =SUM(C8:C15) -> 4660939.51 | D7: 4286000 | E7: 4286000 | F7: 0 | G7: 0 | H7: 1785840 | I7: =G7-H7 -> -1785840 | J7: =IF(I7=0,"",I7/H7) -> -1 | K7: =SUM(K8:K15) -> 4286000
A8: ='Org structure'!E3 -> 01.1 - Corporate Services Admin | C8: 299643.69 | D8: 3800000 | E8: 3800000 | F8: 0 | G8: 0 | H8: 1583335 | I8: =G8-H8 -> -1583335 | J8: =IF(I8=0,"",I8/H8) -> -1 | K8: 3800000
A9: ='Org structure'!E4 -> 01.2 - Human Resources | C9: 0 | D9: 50000 | E9: 50000 | F9: 0 | G9: 0 | H9: 20835 | I9: -20835 | J9: -1 | K9: 50000
A10: ='Org structure'!E5 -> 01.3 - Information Technology Services | C10: 4361295.82 | D10: 436000 | E10: 436000 | F10: 0 | G10: 0 | H10: 181670 | I10: -181670 | J10: -1 | K10: 436000
A11: ='Org structure'!E6 -> 01.4 - Council Support | I11: 0 | K11: 0
A12: ='Org structure'!E7 -> 01.5 - Local Economic Development | I12: 0 | K12: 0
A13: ='Org structure'!E8 -> 01.6 - Municipal Planning Idp | I13: 0 | K13: 0
A14: ='Org structure'!E9 -> 01.7 - Town & Regional Planning | I14: 0 | K14: 0
A15: ='Org structure'!E10 -> 01.8 - Led Administration | I15: 0 | K15: 0
A16: ='Org structure'!A3 -> Vote 02 - Municipal Manager | C16: =SUM(C17:C21) -> 136993.77 | D16: 100000 | E16: 100000 | F16: 25840 | G16: 25840 | H16: 41670 | I16: -15830 | J16: -0.3798896088 | K16: =SUM(K17:K21) -> 100000
A17: ='Org structure'!E12 -> 02.1 - Municipal Manager Admin | I17: =G17-H17 -> 0 | J17: =IF(I17=0,"",I17/H17) ->  | K17: 0
A18: ='Org structure'!E13 -> 02.2 - Legal Services | I18: =G18-H18 -> 0 | J18: =IF(I18=0,"",I18/H18) ->  | K18: 0
A19: ='Org structure'!E14 -> 02.3 - Political Office Beares | C19: 136993.77 | D19: 100000 | E19: 100000 | F19: 25840 | G19: 25840 | H19: 41670 | I19: =G19-H19 -> -15830 | J19: =IF(I19=0,"",I19/H19) -> -0.3798896088 | K19: 100000
A20: ='Org structure'!E15 -> 02.4 - Pms | C20: 0 | D20: 0 | E20: 0 | F20: 0 | G20: 0 | H20: 0 | I20: =G20-H20 -> 0 | J20: =IF(I20=0,"",I20/H20) ->  | K20: 0
A21: ='Org structure'!E16 -> 02.5 - Internal Audit | C21: 0 | D21: 0 | E21: 0 | F21: 0 | G21: 0 | H21: 0 | I21: =G21-H21 -> 0 | J21: =IF(I21=0,"",I21/H21) ->  | K21: 0
A22: ='Org structure'!A4 -> Vote 03 - Mayors Office | C22: =SUM(C23:C27) -> 0 | D22: 0 | E22: 0 | F22: 0 | G22: 0 | H22: 0 | I22: 0 | K22: =SUM(K23:K27) -> 0
A23: ='Org structure'!E18 -> 03.1 - Mayors Office Admin | I23: =G23-H23 -> 0 | J23: =IF(I23=0,"",I23/H23) ->  | K23: 0
A24: ='Org structure'!E19 -> 03.2 - Office Of The Speaker | I24: =G24-H24 -> 0 | J24: =IF(I24=0,"",I24/H24) ->  | K24: 0
A25: ='Org structure'!E20 -> 03.3 - Office Of The Chief Whip | I25: =G25-H25 -> 0 | J25: =IF(I25=0,"",I25/H25) ->  | K25: 0
A26: ='Org structure'!E21 -> 03.4 - Exco Members | I26: =G26-H26 -> 0 | J26: =IF(I26=0,"",I26/H26) ->  | K26: 0
A27: ='Org structure'!E22 -> 03.5 - Council General Administration | I27: =G27-H27 -> 0 | J27: =IF(I27=0,"",I27/H27) ->  | K27: 0
A28: ='Org structure'!A5 -> Vote 04 - Budget And Treasury | C28: =SUM(C29:C35) -> 0 | D28: 300000 | E28: 300000 | F28: 0 | G28: 0 | H28: 125000 | I28: -125000 | J28: -1 | K28: =SUM(K29:K35) -> 300000
A29: ='Org structure'!E24 -> 04.1 - Budget And Treasury Admin | I29: =G29-H29 -> 0 | J29: =IF(I29=0,"",I29/H29) ->  | K29: 0
A30: ='Org structure'!E25 -> 04.2 - Chief Financial Officer Admin | I30: 0 | K30: 0
A31: ='Org structure'!E26 -> 04.3 - Budget & Reporting | C31: 0 | D31: 0 | E31: 0 | F31: 0 | G31: 0 | H31: 0 | I31: 0 | K31: 0
A32: ='Org structure'!E27 -> 04.4 - Budget & Reporting | C32: 0 | D32: 0 | E32: 0 | F32: 0 | G32: 0 | H32: 0 | I32: 0 | K32: 0
A33: ='Org structure'!E28 -> 04.5 - Revenue Management | C33: 0 | D33: 300000 | E33: 300000 | F33: 0 | G33: 0 | H33: 125000 | I33: -125000 | J33: -1 | K33: 300000
A34: ='Org structure'!E29 -> 04.6 - Supply Chain Management | C34: 0 | D34: 0 | E34: 0 | F34: 0 | G34: 0 | H34: 0 | I34: 0 | K34: 0
A35: ='Org structure'!E30 -> 04.7 - Expenditure | I35: 0 | K35: 0
A36: ='Org structure'!A6 -> Vote 05 - Community Services | C36: =SUM(C37:C43) -> 1156205.28 | D36: 1010000 | E36: 1010000 | F36: 0 | G36: 0 | H36: 420840 | I36: -420840 | J36: -1 | K36: =SUM(K37:K43) -> 1010000
A37: ='Org structure'!E32 -> 05.1 - Community Services Admin | C37: 1156205.28 | D37: 0 | E37: 0 | F37: 0 | G37: 0 | H37: 0 | I37: =G37-H37 -> 0 | J37: =IF(I37=0,"",I37/H37) ->  | K37: 0
A38: ='Org structure'!E33 -> 05.2 - Libraries | I38: 0 | K38: 0
A39: ='Org structure'!E34 -> 05.3 - Sports Recreation & Social Amenitie | C39: 0 | D39: 700000 | E39: 700000 | F39: 0 | G39: 0 | H39: 291670 | I39: -291670 | J39: -1 | K39: 700000
A40: ='Org structure'!E35 -> 05.4 - Traffic Service | C40: 0 | D40: 0 | E40: 0 | F40: 0 | G40: 0 | H40: 0 | I40: 0 | K40: 0
A41: ='Org structure'!E36 -> 05.5 - Traffic Service | C41: 0 | D41: 310000 | E41: 310000 | F41: 0 | G41: 0 | H41: 129170 | I41: -129170 | J41: -1 | K41: 310000
A42: ='Org structure'!E37 -> 05.6 - Parks; Cemeteries | C42: 0 | D42: 0 | E42: 0 | F42: 0 | G42: 0 | H42: 0 | I42: 0 | K42: 0
A43: ='Org structure'!E38 -> 05.7 - Refuse | I43: 0 | K43: 0
A44: ='Org structure'!A7 -> Vote 06 - Technical Services | C44: =SUM(C45:C52) -> 44102368.51 | D44: 59697793 | E44: 59697793 | F44: 2689497.03 | G44: 10612142.67 | H44: 24874100 | I44: -14261957.33 | J44: -0.5733657632 | K44: =SUM(K45:K52) -> 59697793
A45: ='Org structure'!E40 -> 06.1 - Mpac | I45: =G45-H45 -> 0 | J45: =IF(I45=0,"",I45/H45) ->  | K45: 0
A46: ='Org structure'!E41 -> 06.2 - Technical Services Admin | I46: 0 | K46: 0
A47: ='Org structure'!E42 -> 06.3 - Techn Serv-Roads: Admin | I47: 0 | K47: 0
A48: ='Org structure'!E43 -> 06.4 - Techn Serv-Stormwater: Admin | C48: 32308940.09 | D48: 43910000 | E48: 43910000 | F48: 2689497.03 | G48: 10076160.14 | H48: 18295840 | I48: -8219679.86 | J48: -0.4492649619 | K48: 43910000
A49: ='Org structure'!E44 -> 06.5 - Project Management Unit | C49: 0 | D49: 287793 | E49: 287793 | F49: 0 | G49: 0 | H49: 119915 | I49: -119915 | J49: -1 | K49: 287793
A50: ='Org structure'!E45 -> 06.6 - Electrical & Machinery | C50: 11793428.42 | D50: 15500000 | E50: 15500000 | F50: 0 | G50: 535982.53 | H50: 6458345 | I50: -5922362.47 | J50: -0.9170093066 | K50: 15500000
A51: ='Org structure'!E46 -> 06.7 - Water | I51: 0 | K51: 0
A52: ='Org structure'!E47 -> 06.8 - Sanitation | I52: 0 | K52: 0
A53: ='Org structure'!A8 -> Vote 07 - | C53: 0 | D53: 0 | E53: 0 | F53: 0 | G53: 0 | H53: 0 | I53: =G53-H53 -> 0 | J53: =IF(I53=0,"",I53/H53) ->  | K53: 0
A54: ='Org structure'!A9 -> Vote 08 - | C54: 0 | D54: 0 | E54: 0 | F54: 0 | G54: 0 | H54: 0 | I54: 0 | K54: 0
A55: ='Org structure'!A10 -> Vote 09 - | C55: 0 | D55: 0 | E55: 0 | F55: 0 | G55: 0 | H55: 0 | I55: 0 | K55: 0
A56: ='Org structure'!A11 -> Vote 10 - | C56: 0 | D56: 0 | E56: 0 | F56: 0 | G56: 0 | H56: 0 | I56: 0 | K56: 0
A57: ='Org structure'!A12 -> Vote 11 - | C57: 0 | D57: 0 | E57: 0 | F57: 0 | G57: 0 | H57: 0 | I57: 0 | K57: 0
A58: ='Org structure'!A13 -> Vote 12 - | C58: 0 | D58: 0 | E58: 0 | F58: 0 | G58: 0 | H58: 0 | I58: 0 | K58: 0
A59: ='Org structure'!A14 -> Vote 13 - | C59: 0 | D59: 0 | E59: 0 | F59: 0 | G59: 0 | H59: 0 | I59: =G59-H59 -> 0 | J59: =IF(I59=0,"",I59/H59) ->  | K59: 0
A60: ='Org structure'!A15 -> Vote 14 - | C60: 0 | D60: 0 | E60: 0 | F60: 0 | G60: 0 | H60: 0 | I60: 0 | K60: 0
A61: ='Org structure'!A16 -> Vote 15 - Other | C61: 0 | D61: 0 | E61: 0 | F61: 0 | G61: 0 | H61: 0 | I61: 0 | K61: 0
A62: Total multi-year capital expenditure | C62: =C7+C16+C22+C28+C36+C44+C53+C54+C55+C56+C57+C58+C59+C60+C61 -> 50056507.07 | D62: 65393793 | E62: 65393793 | F62: 2715337.03 | G62: 10637982.67 | H62: 27247450 | I62: -16609467.33 | J62: -0.60957878 | K62: =K7+K16+K22+K28+K36+K44+K53+K54+K55+K56+K57+K58+K59+K60+K61 -> 65393793
I63: 0
A64: Capital expenditure - Municipal Vote
A65: Expenditue of single-year capital appropriation | B65: 1 | I65: 0
A66: ='Org structure'!A2 -> Vote 01 - Corporate Services | C66: =SUM(C67:C74) -> 0 | D66: 0 | E66: 0 | F66: 0 | G66: 0 | H66: 0 | I66: 0 | K66: =SUM(K67:K74) -> 0
A67: ='Org structure'!E3 -> 01.1 - Corporate Services Admin | C67: 0 | D67: 0 | E67: 0 | F67: 0 | G67: 0 | H67: 0 | I67: 0 | K67: 0
A68: ='Org structure'!E4 -> 01.2 - Human Resources | C68: 0 | D68: 0 | E68: 0 | F68: 0 | G68: 0 | H68: 0 | I68: 0 | K68: 0
A69: ='Org structure'!E5 -> 01.3 - Information Technology Services | C69: 0 | D69: 0 | E69: 0 | F69: 0 | G69: 0 | H69: 0 | I69: 0 | K69: 0
A70: ='Org structure'!E6 -> 01.4 - Council Support | C70: 0 | D70: 0 | E70: 0 | F70: 0 | G70: 0 | H70: 0 | I70: 0 | K70: 0
A71: ='Org structure'!E7 -> 01.5 - Local Economic Development | C71: 0 | D71: 0 | E71: 0 | F71: 0 | G71: 0 | H71: 0 | I71: 0 | K71: 0
A72: ='Org structure'!E8 -> 01.6 - Municipal Planning Idp | C72: 0 | D72: 0 | E72: 0 | F72: 0 | G72: 0 | H72: 0 | I72: 0 | K72: 0
A73: ='Org structure'!E9 -> 01.7 - Town & Regional Planning | C73: 0 | D73: 0 | E73: 0 | F73: 0 | G73: 0 | H73: 0 | I73: 0 | K73: 0
A74: ='Org structure'!E10 -> 01.8 - Led Administration | C74: 0 | D74: 0 | E74: 0 | F74: 0 | G74: 0 | H74: 0 | I74: 0 | K74: 0
A75: ='Org structure'!A3 -> Vote 02 - Municipal Manager | C75: =SUM(C76:C80) -> 0 | D75: 0 | E75: 0 | F75: 0 | G75: 0 | H75: 0 | I75: 0 | K75: =SUM(K76:K80) -> 0
A76: ='Org structure'!E12 -> 02.1 - Municipal Manager Admin | C76: 0 | D76: 0 | E76: 0 | F76: 0 | G76: 0 | H76: 0 | I76: 0 | K76: 0
A77: ='Org structure'!E13 -> 02.2 - Legal Services | C77: 0 | D77: 0 | E77: 0 | F77: 0 | G77: 0 | H77: 0 | I77: 0 | K77: 0
A78: ='Org structure'!E14 -> 02.3 - Political Office Beares | C78: 0 | D78: 0 | E78: 0 | F78: 0 | G78: 0 | H78: 0 | I78: 0 | K78: 0
A79: ='Org structure'!E15 -> 02.4 - Pms | C79: 0 | D79: 0 | E79: 0 | F79: 0 | G79: 0 | H79: 0 | I79: 0 | K79: 0
A80: ='Org structure'!E16 -> 02.5 - Internal Audit | C80: 0 | D80: 0 | E80: 0 | F80: 0 | G80: 0 | H80: 0 | I80: 0 | K80: 0
A81: ='Org structure'!A4 -> Vote 03 - Mayors Office | C81: =SUM(C82:C86) -> 0 | D81: 0 | E81: 0 | F81: 0 | G81: 0 | H81: 0 | I81: 0 | K81: =SUM(K82:K86) -> 0
A82: ='Org structure'!E18 -> 03.1 - Mayors Office Admin | C82: 0 | D82: 0 | E82: 0 | F82: 0 | G82: 0 | H82: 0 | I82: 0 | K82: 0
A83: ='Org structure'!E19 -> 03.2 - Office Of The Speaker | C83: 0 | D83: 0 | E83: 0 | F83: 0 | G83: 0 | H83: 0 | I83: =G83-H83 -> 0 | J83: =IF(I83=0,"",I83/H83) ->  | K83: 0
A84: ='Org structure'!E20 -> 03.3 - Office Of The Chief Whip | C84: 0 | D84: 0 | E84: 0 | F84: 0 | G84: 0 | H84: 0 | I84: 0 | K84: 0
A85: ='Org structure'!E21 -> 03.4 - Exco Members | C85: 0 | D85: 0 | E85: 0 | F85: 0 | G85: 0 | H85: 0 | I85: 0 | K85: 0
A86: ='Org structure'!E22 -> 03.5 - Council General Administration | C86: 0 | D86: 0 | E86: 0 | F86: 0 | G86: 0 | H86: 0 | I86: 0 | K86: 0
A87: ='Org structure'!A5 -> Vote 04 - Budget And Treasury | C87: =SUM(C88:C94) -> 0 | D87: 0 | E87: 0 | F87: 0 | G87: 0 | H87: 0 | I87: 0 | K87: =SUM(K88:K94) -> 0
A88: ='Org structure'!E24 -> 04.1 - Budget And Treasury Admin | C88: 0 | D88: 0 | E88: 0 | F88: 0 | G88: 0 | H88: 0 | I88: 0 | K88: 0
A89: ='Org structure'!E25 -> 04.2 - Chief Financial Officer Admin | C89: 0 | D89: 0 | E89: 0 | F89: 0 | G89: 0 | H89: 0 | I89: 0 | K89: 0
A90: ='Org structure'!E26 -> 04.3 - Budget & Reporting | C90: 0 | D90: 0 | E90: 0 | F90: 0 | G90: 0 | H90: 0 | I90: 0 | K90: 0
A91: ='Org structure'!E27 -> 04.4 - Budget & Reporting | C91: 0 | D91: 0 | E91: 0 | F91: 0 | G91: 0 | H91: 0 | I91: 0 | K91: 0
A92: ='Org structure'!E28 -> 04.5 - Revenue Management | C92: 0 | D92: 0 | E92: 0 | F92: 0 | G92: 0 | H92: 0 | I92: 0 | K92: 0
A93: ='Org structure'!E29 -> 04.6 - Supply Chain Management | C93: 0 | D93: 0 | E93: 0 | F93: 0 | G93: 0 | H93: 0 | I93: 0 | K93: 0
A94: ='Org structure'!E30 -> 04.7 - Expenditure | C94: 0 | D94: 0 | E94: 0 | F94: 0 | G94: 0 | H94: 0 | I94: 0 | K94: 0
A95: ='Org structure'!A6 -> Vote 05 - Community Services | C95: =SUM(C96:C102) -> 0 | D95: 0 | E95: 0 | F95: 0 | G95: 0 | H95: 0 | I95: 0 | K95: =SUM(K96:K102) -> 0
A96: ='Org structure'!E32 -> 05.1 - Community Services Admin | C96: 0 | D96: 0 | E96: 0 | F96: 0 | G96: 0 | H96: 0 | I96: 0 | K96: 0
A97: ='Org structure'!E33 -> 05.2 - Libraries | C97: 0 | D97: 0 | E97: 0 | F97: 0 | G97: 0 | H97: 0 | I97: 0 | K97: 0
A98: ='Org structure'!E34 -> 05.3 - Sports Recreation & Social Amenitie | C98: 0 | D98: 0 | E98: 0 | F98: 0 | G98: 0 | H98: 0 | I98: 0 | K98: 0
A99: ='Org structure'!E35 -> 05.4 - Traffic Service | C99: 0 | D99: 0 | E99: 0 | F99: 0 | G99: 0 | H99: 0 | I99: 0 | K99: 0
A100: ='Org structure'!E36 -> 05.5 - Traffic Service | C100: 0 | D100: 0 | E100: 0 | F100: 0 | G100: 0 | H100: 0 | I100: 0 | K100: 0
A101: ='Org structure'!E37 -> 05.6 - Parks; Cemeteries | C101: 0 | D101: 0 | E101: 0 | F101: 0 | G101: 0 | H101: 0 | I101: 0 | K101: 0
A102: ='Org structure'!E38 -> 05.7 - Refuse | C102: 0 | D102: 0 | E102: 0 | F102: 0 | G102: 0 | H102: 0 | I102: 0 | K102: 0
A103: ='Org structure'!A7 -> Vote 06 - Technical Services | C103: =SUM(C104:C111) -> 0 | D103: 0 | E103: 0 | F103: 0 | G103: 0 | H103: 0 | I103: 0 | K103: =SUM(K104:K111) -> 0
A104: ='Org structure'!E40 -> 06.1 - Mpac | C104: 0 | D104: 0 | E104: 0 | F104: 0 | G104: 0 | H104: 0 | I104: 0 | K104: 0
A105: ='Org structure'!E41 -> 06.2 - Technical Services Admin | C105: 0 | D105: 0 | E105: 0 | F105: 0 | G105: 0 | H105: 0 | I105: 0 | K105: 0
A106: ='Org structure'!E42 -> 06.3 - Techn Serv-Roads: Admin | C106: 0 | D106: 0 | E106: 0 | F106: 0 | G106: 0 | H106: 0 | I106: 0 | K106: 0
A107: ='Org structure'!E43 -> 06.4 - Techn Serv-Stormwater: Admin | C107: 0 | D107: 0 | E107: 0 | F107: 0 | G107: 0 | H107: 0 | I107: 0 | K107: 0
A108: ='Org structure'!E44 -> 06.5 - Project Management Unit | C108: 0 | D108: 0 | E108: 0 | F108: 0 | G108: 0 | H108: 0 | I108: 0 | K108: 0
A109: ='Org structure'!E45 -> 06.6 - Electrical & Machinery | C109: 0 | D109: 0 | E109: 0 | F109: 0 | G109: 0 | H109: 0 | I109: 0 | K109: 0
A110: ='Org structure'!E46 -> 06.7 - Water | C110: 0 | D110: 0 | E110: 0 | F110: 0 | G110: 0 | H110: 0 | I110: 0 | K110: 0
A111: ='Org structure'!E47 -> 06.8 - Sanitation | C111: 0 | D111: 0 | E111: 0 | F111: 0 | G111: 0 | H111: 0 | I111: 0 | K111: 0
A112: ='Org structure'!A8 -> Vote 07 - | C112: 0 | D112: 0 | E112: 0 | F112: 0 | G112: 0 | H112: 0 | I112: 0 | K112: 0
A113: ='Org structure'!A9 -> Vote 08 - | C113: 0 | D113: 0 | E113: 0 | F113: 0 | G113: 0 | H113: 0 | I113: 0 | K113: 0
A114: ='Org structure'!A10 -> Vote 09 - | C114: 0 | D114: 0 | E114: 0 | F114: 0 | G114: 0 | H114: 0 | I114: =G114-H114 -> 0 | J114: =IF(I114=0,"",I114/H114) ->  | K114: 0
A115: ='Org structure'!A11 -> Vote 10 - | C115: 0 | D115: 0 | E115: 0 | F115: 0 | G115: 0 | H115: 0 | I115: 0 | K115: 0
A116: ='Org structure'!A12 -> Vote 11 - | C116: 0 | D116: 0 | E116: 0 | F116: 0 | G116: 0 | H116: 0 | I116: 0 | K116: 0
A117: ='Org structure'!A13 -> Vote 12 - | C117: 0 | D117: 0 | E117: 0 | F117: 0 | G117: 0 | H117: 0 | I117: 0 | K117: 0
A118: ='Org structure'!A14 -> Vote 13 - | C118: 0 | D118: 0 | E118: 0 | F118: 0 | G118: 0 | H118: 0 | I118: 0 | K118: 0
A119: ='Org structure'!A15 -> Vote 14 - | C119: 0 | D119: 0 | E119: 0 | F119: 0 | G119: 0 | H119: 0 | I119: 0 | K119: 0
A120: ='Org structure'!A16 -> Vote 15 - Other | C120: 0 | D120: 0 | E120: 0 | F120: 0 | G120: 0 | H120: 0 | I120: =G120-H120 -> 0 | J120: =IF(I120=0,"",I120/H120) ->  | K120: 0
A121: Total single-year capital expenditure | C121: =C66+C75+C81+C87+C95+C103+C112+C113+C114+C115+C116+C117+C118+C119+C120 -> 0 | D121: 0 | E121: 0 | F121: 0 | G121: 0 | H121: 0 | I121: 0 | K121: =K66+K75+K81+K87+K95+K103+K112+K113+K114+K115+K116+K117+K118+K119+K120 -> 0
A122: Total Capital Expenditure | C122: =C62+C121 -> 50056507.07 | D122: 65393793 | E122: 65393793 | F122: 2715337.03 | G122: 10637982.67 | H122: 27247450 | I122: -16609467.33 | J122: -0.60957878 | K122: =K62+K121 -> 65393793
A123: =head27a -> References
A124: 1. Insert 'Vote'; e.g. Department, if different to standard structure

Sheet C6-FinPos
A1: =muni& " - "&S71E& " - "&date -> LIM353 Molemole - Table C6 Monthly Budget Statement - Financial Position - M05 November
A2: =desc -> Description | B2: =head27 -> Ref | C2: =Head1 -> 2020/21 | D2: =Head2 -> Budget Year 2021/22
C3: =Head5 -> Audited Outcome | D3: =Head6 -> Original Budget | E3: =Head7 -> Adjusted Budget | F3: =Head39 -> YearTD actual | G3: =Head8 -> Full Year Forecast
A4: R thousands | B4: 1
A5: ASSETS
A6: Current assets
A7: Cash | C7: 11455516.09 | D7: 23345252 | E7: 24345252 | F7: 26584578.89 | G7: 24345252
A8: Call investment deposits | C8: 60000000 | D8: 0 | E8: 0 | F8: 100000000 | G8: 0
A9: Consumer debtors | C9: 56895052.43 | D9: 117349897 | E9: 117349897 | F9: 68369705.58 | G9: 117349897
A10: Other debtors | C10: 22087697.1 | D10: 20556399 | E10: 20556399 | F10: 15400578.84 | G10: 20556399
A11: Current portion of long-term receivables | C11: 0 | D11: 36611 | E11: 36611 | F11: 0 | G11: 36611
A12: Inventory | C12: 1052291.03 | D12: 302939 | E12: 302939 | F12: 1431063.69 | G12: 302939
A13: Total current assets | C13: =SUM(C7:C12) -> 151490556.7 | D13: =SUM(D7:D12) -> 161591098 | E13: =SUM(E7:E12) -> 162591098 | F13: =SUM(F7:F12) -> 211785927 | G13: =SUM(G7:G12) -> 162591098
A15: Non current assets
A16: Long-term receivables
A17: Investments | C17: 0 | D17: 0 | E17: 0 | F17: 0 | G17: 0
A18: Investment property | C18: 1614334.23 | D18: 1755951 | E18: 1755951 | F18: 1614334.23 | G18: 1755951
A19: Investments in Associate
A20: Property, plant and equipment | C20: 303421567.5 | D20: 372179452 | E20: 372179452 | F20: 314059550.1 | G20: 372179452
A22: Biological
A23: Intangible | C23: -3.9 | D23: 1635088 | E23: 1635088 | F23: -3.9 | G23: 1635088
A24: Other non-current assets | C24: 380300 | D24: 368150 | E24: 368150 | F24: 380300 | G24: 368150
A25: Total non current assets | C25: =SUM(C16:C20)+SUM(C22:C24) -> 305416197.8 | D25: =SUM(D16:D20)+SUM(D22:D24) -> 375938641 | E25: =SUM(E16:E20)+SUM(E22:E24) -> 375938641 | F25: =SUM(F16:F20)+SUM(F22:F24) -> 316054180.5 | G25: =SUM(G16:G20)+SUM(G22:G24) -> 375938641
A26: TOTAL ASSETS | C26: =C13+C25 -> 456906754.4 | D26: =D13+D25 -> 537529739 | E26: =E13+E25 -> 538529739 | F26: =F13+F25 -> 527840107.5 | G26: =G13+G25 -> 538529739
A28: LIABILITIES
A29: Current liabilities
A30: Bank overdraft | C30: 0 | D30: 0 | E30: 0 | F30: 0 | G30: 0
A31: Borrowing | C31: 0 | D31: 305061 | E31: 305061 | F31: 0 | G31: 305061
A32: Consumer deposits | C32: 505376.48 | D32: 686366 | E32: 686366 | F32: 505826.48 | G32: 686366
A33: Trade and other payables | C33: 166190859.4 | D33: 50913046 | E33: 50913046 | F33: 64415348.32 | G33: 50913046
A34: Provisions | C34: 327999.9 | D34: 575598 | E34: 575598 | F34: 303537.58 | G34: 575598
A35: Total current liabilities | C35: =SUM(C30:C34) -> 167024235.8 | D35: =SUM(D30:D34) -> 52480071 | E35: =SUM(E30:E34) -> 52480071 | F35: =SUM(F30:F34) -> 65224712.38 | G35: =SUM(G30:G34) -> 52480071
A37: Non current liabilities
A38: Borrowing | C38: 0 | D38: 0 | E38: 0 | F38: 0 | G38: 0
A39: Provisions | C39: 26098177.59 | D39: 29939246 | E39: 29939246 | F39: 26050432.59 | G39: 29939246
A40: Total non current liabilities | C40: =SUM(C38:C39) -> 26098177.59 | D40: =SUM(D38:D39) -> 29939246 | E40: =SUM(E38:E39) -> 29939246 | F40: =SUM(F38:F39) -> 26050432.59 | G40: =SUM(G38:G39) -> 29939246
A41: TOTAL LIABILITIES | C41: =C35+C40 -> 193122413.4 | D41: =D35+D40 -> 82419317 | E41: =E35+E40 -> 82419317 | F41: =F35+F40 -> 91275144.97 | G41: =G35+G40 -> 82419317
A43: NET ASSETS | B43: 2 | C43: =C26-C41 -> 263784341.1 | D43: =D26-D41 -> 455110422 | E43: =E26-E41 -> 456110422 | F43: =F26-F41 -> 436564962.5 | G43: =G26-G41 -> 456110422
A45: COMMUNITY WEALTH/EQUITY
A46: Accumulated Surplus/(Deficit) | C46: 377680098.6 | D46: 399821514 | E46: 400821514 | F46: 342649238.5 | G46: 400821514
A47: Reserves | C47: 47695019.87 | D47: 55518054 | E47: 55518054 | F47: 47695019.87 | G47: 55518054
A48: TOTAL COMMUNITY WEALTH/EQUITY | B48: 2 | C48: =SUM(C46:C47) -> 425375118.5 | D48: =SUM(D46:D47) -> 455339568 | E48: =SUM(E46:E47) -> 456339568 | F48: =SUM(F46:F47) -> 390344258.4 | G48: =SUM(G46:G47) -> 456339568
A49: =head27a -> References
A50: 1. Material variances to be explained in Table SC1
A51: 2. Net assets must balance with Total Community Wealth/Equity
A54: check balance | C54: =C43-C48 -> -161590777.4 | D54: =D43-D48 -> -229146 | E54: =E43-E48 -> -229146 | F54: =F43-F48 -> 46220704.14 | G54: =G43-G48 -> -229146

Sheet C7-CFlow
A1: =muni& " - "&S71F& " - "&date -> LIM353 Molemole - Table C7 Monthly Budget Statement - Cash Flow - M05 November
A2: =desc -> Description | B2: =head27 -> Ref | C2: =Head1 -> 2020/21 | D2: =Head2 -> Budget Year 2021/22
C3: =Head5 -> Audited Outcome | D3: =Head6 -> Original Budget | E3: =Head7 -> Adjusted Budget | F3: =Head38 -> Monthly actual | G3: =Head39 -> YearTD actual | H3: =Head40 -> YearTD budget | I3: =Head41 -> YTD variance | J3: =Head41 -> YTD variance | K3: =Head8 -> Full Year Forecast
A4: R thousands | B4: 1 | J4: %
A5: CASH FLOW FROM OPERATING ACTIVITIES
A6: Receipts
A7: Property rates | C7: 24783315.79 | D7: 48908006 | E7: 48908006 | F7: 471387.82 | G7: 4009140.09 | H7: 20378335.85 | I7: =G7-H7 -> -16369195.76 | J7: =IF(I7=0,"",I7/H7) -> -0.8032645983 | K7: 48908006
A8: Service charges | C8: 913810.93 | D8: 13809215 | E8: 13809215 | F8: 82050.92 | G8: 750070.05 | H8: 5753839.6 | I8: -5003769.55 | J8: =IF(I8=0,"",I8/H8) -> -0.8696400835 | K8: 13809215
A9: Other revenue | C9: 136781059.7 | D9: 38144042 | E9: 38144042 | F9: 4918315.04 | G9: 294672957.8 | H9: 15893350.85 | I9: 278779607 | J9: =IF(I9=0,"",I9/H9) -> 17.54064386 | K9: 38144042
A10: Transfers and Subsidies - Operational | C10: 429679.59 | D10: 161092000 | E10: 162092000 | F10: 0 | G10: 3658000 | H10: 67538333.35 | I10: -63880333.35 | J10: =IF(I10=0,"",I10/H10) -> -0.945838166 | K10: 162092000
A11: Transfers and Subsidies - Capital | C11: 11396850 | D11: 45150000 | E11: 45150000 | F11: 0 | G11: 21079000 | H11: 18812500 | I11: 2266500 | J11: =IF(I11=0,"",I11/H11) -> 0.1204784053 | K11: 45150000
A12: Interest | C12: 765244.94 | D12: 0 | E12: 0 | F12: 0 | G12: 0 | H12: 0 | I12: 0 | K12: 0
A13: Dividends | I13: 0
A14: Payments
A15: Suppliers and employees | C15: -113363557.6 | D15: -221540014 | E15: -221540014 | F15: -9934512.85 | G15: -102000699.3 | H15: -92308339.15 | I15: =H15-G15 -> 9692360.2 | J15: -0.1049998331 | K15: -221540014
A16: Finance charges | I16: =H16-G16 -> 0
A17: Transfers and Grants | I17: =H17-G17 -> 0
A18: NET CASH FROM/(USED) OPERATING ACTIVITIES | C18: =SUM(C7:C13)+SUM(C15:C17) -> 61706403.42 | D18: 85563249 | E18: 86563249 | F18: -4462759.07 | G18: 222168468.6 | H18: 36068020.5 | I18: =H18-G18 -> -186100448.1 | J18: -5.15970784 | K18: =SUM(K7:K13)+SUM(K15:K17) -> 86563249
A20: CASH FLOWS FROM INVESTING ACTIVITIES
A21: Receipts
A22: Proceeds on disposal of PPE | I22: =G22-H22 -> 0 | J22: =IF(I22=0,"",I22/H22) -> 
A24: Decrease (increase) in non-current receivables | I24: =G24-H24 -> 0
A25: Decrease (increase) in non-current investments | C25: 0 | D25: 0 | E25: 0 | F25: 0 | G25: 0 | H25: 0 | I25: =G25-H25 -> 0 | K25: 0
A26: Payments
A27: Capital assets | C27: -26519736.97 | D27: -65393793 | E27: -65393793 | F27: -2715337.03 | G27: -10637982.67 | H27: -27247413.7 | I27: =H27-G27 -> -16609431.03 | J27: 0.6095782599 | K27: -65393793
A28: NET CASH FROM/(USED) INVESTING ACTIVITIES | C28: =SUM(C22:C25)+C27 -> -26519736.97 | D28: =SUM(D22:D25)+D27 -> -65393793 | E28: -65393793 | F28: -2715337.03 | G28: -10637982.67 | H28: -27247413.7 | I28: =H28-G28 -> -16609431.03 | J28: 0.6095782599 | K28: =SUM(K22:K25)+K27 -> -65393793
A30: CASH FLOWS FROM FINANCING ACTIVITIES
A31: Receipts
A32: Short term loans | I32: =G32-H32 -> 0 | J32: =IF(I32=0,"",I32/H32) -> 
A33: Borrowing long term/refinancing | I33: =G33-H33 -> 0
A34: Increase (decrease) in consumer deposits | C34: -900 | D34: -180989.52 | E34: 0 | F34: 450 | G34: -505826.48 | H34: -285985 | I34: =G34-H34 -> -219841.48 | J34: 0.7687168208 | K34: -686366
A35: Payments
A36: Repayment of borrowing | I36: =H36-G36 -> 0
A37: NET CASH FROM/(USED) FINANCING ACTIVITIES | C37: =SUM(C32:C34)+C36 -> -900 | D37: -180989.52 | E37: 0 | F37: 450 | G37: -505826.48 | H37: -285985 | I37: =H37-G37 -> 219841.48 | J37: -0.7687168208 | K37: =SUM(K32:K34)+K36 -> -686366
A39: NET INCREASE/ (DECREASE) IN CASH HELD | C39: =C18+C28+C37 -> 35185766.45 | D39: 19988466.48 | E39: 21169456 | F39: -7177646.1 | G39: 211024659.5 | H39: 8534621.8 | K39: =K18+K28+K37 -> 20483090
A40: Cash/cash equivalents at beginning: | C40: 23010965.15 | D40: 0 | E40: 0 | F40: 0 | G40: 89543804.38
A41: Cash/cash equivalents at month/year end: | C41: =C39+C40 -> 58196731.6 | D41: =D39+D40 -> 19988466.48 | E41: =E39+E40 -> 21169456 | G41: =G39+G40 -> 300568463.9 | H41: =H39+H40 -> 8534621.8 | K41: =K39+K40 -> 20483090
A42: References
A43: 1. Material variances to be explained in Table SC1

Sheet SC1
A1: =muni& " - "&S71G& " - "&date -> LIM353 Molemole - Supporting Table SC1 Material variance explanations - M05 November
A2: =head27 -> Ref | B2: =desc -> Description
C3: Variance | D3: Reasons for material deviations | E3: Remedial or corrective steps/remarks
B4: R thousands
A5: 1 | B5: ='C4-FinPerf RE'!A5 -> Revenue By Source
B6: Variances was not Calculated
A10: 2 | B10: ='C4-FinPerf RE'!A24 -> Expenditure By Type
B11: Variances was not Calculated
A15: 3 | B15: =RIGHT('C5-Capex'!A40,19) -> Capital Expenditure
B16: Variances was not Calculated
A20: 4 | B20: Financial Position
B21: Variances was not Calculated
A25: 5 | B25: Cash Flow
B26: Variances was not Calculated
A30: 6 | B30: Measureable performance
A35: 7 | B35: Municipal Entities
A41: =head27a -> References
A42: 1. Revenue for each source, vote and standard classification
A43: 2. Expenditure for each type, vote and standard classification
A44: 3. Capital expenditure for each vote and standard classification
A45: 4. Explain any material variances between the annual budget and the expected financial position based on current trends
A46: 5. Cash receipts by source and cash payments by type where not explained under revenue and expenditure
A47: 6. For Sept, Dec, Mar and Jun statements explain any material variances in achievement of measurable performance objectives

Sheet SC2
A1: =muni& " - "&S71H& " - "&Head57 -> LIM353 Molemole - Supporting Table SC2 Monthly Budget Statement - performance indicators - M05 November
A2: Description of financial indicator | B2: Basis of calculation | C2: =head27 -> Ref | D2: =Head1 -> 2020/21 | E2: =Head2 -> Budget Year 2021/22
D3: =Head5 -> Audited Outcome | E3: =Head6 -> Original Budget | F3: =Head7 -> Adjusted Budget | G3: =Head39 -> YearTD actual | H3: =Head8 -> Full Year Forecast
A5: Borrowing Management
A7: Capital Charges to Operating Expenditure | B7: Interest & principal paid/Operating Expenditure | D7: =IF(ISERROR((D42-D43)/D45),0,((D42-D43)/D45)) -> 0.0008306244989 | E7: =IF(ISERROR((E42+E44)/E45),0,((E42+E44)/E45)) -> 0.08087256161 | F7: =IF(ISERROR((F42+F44)/F45),0,((F42+F44)/F45)) -> 0.08054767908 | G7: =IF(ISERROR((G42+G44)/G45),0,((G42+G44)/G45)) -> -1.97595642e-05 | H7: =IF(ISERROR((H42+H44)/H45),0,((H42+H44)/H45)) -> 0.06454097033
A8: Borrowed funding of 'own' capital expenditure | B8: Borrowings/Capital expenditure excl. transfers and grants | D8: =IF(ISERROR(D47/D46),0,(D47/D46)) -> 0 | E8: =IF(ISERROR(E47/E46),0,(E47/E46)) -> 0 | F8: =IF(ISERROR(F47/F46),0,(F47/F46)) -> 0 | G8: =IF(ISERROR(G47/G46),0,(G47/G46)) -> 0 | H8: =IF(ISERROR(H47/H46),0,(H47/H46)) -> 0
A9: Safety of Capital
A10: Debt to Equity | B10: Loans, Accounts Payable, Overdraft & Tax Provision/ Funds & Reserves | D10: =IF(ISERROR(D48/D49),0,(D48/D49)) -> 0.3906924786 | E10: =IF(ISERROR(E48/E49),0,(E48/E49)) -> 0.1124833215 | F10: =IF(ISERROR(F48/F49),0,(F48/F49)) -> 0.1122368311 | G10: =IF(ISERROR(G48/G49),0,(G48/G49)) -> 0.1650218927 | H10: =IF(ISERROR(H48/H49),0,(H48/H49)) -> 0.1122368311
A11: Gearing | B11: Long Term Borrowing/ Funds & Reserves | D11: =IF(ISERROR(D51/D50),0,(D51/D50)) -> 0 | E11: =IF(ISERROR(E51/E50),0,(E51/E50)) -> 0 | F11: =IF(ISERROR(F51/F50),0,(F51/F50)) -> 0 | G11: =IF(ISERROR(G51/G50),0,(G51/G50)) -> 0 | H11: =IF(ISERROR(H51/H50),0,(H51/H50)) -> 0
A12: Liquidity
A13: Current Ratio | B13: Current assets/current liabilities | C13: 1 | D13: =IF(ISERROR(D52/D53),0,(D52/D53)) -> 0.9069974543 | E13: =IF(ISERROR(E52/E53),0,(E52/E53)) -> 3.0790945 | F13: =IF(ISERROR(F52/F53),0,(F52/F53)) -> 3.098149353 | G13: =IF(ISERROR(G52/G53),0,(G52/G53)) -> 3.247019715 | H13: =IF(ISERROR(H52/H53),0,(H52/H53)) -> 3.098149353
A14: Liquidity Ratio | B14: Monetary Assets/Current Liabilities | D14: =IF(ISERROR(D54/D53),0,(D54/D53)) -> 0.4278152554 | E14: =IF(ISERROR(E54/E53),0,(E54/E53)) -> 0.4448403281 | F14: =IF(ISERROR(F54/F53),0,(F54/F53)) -> 0.4638951803 | G14: =IF(ISERROR(G54/G53),0,(G54/G53)) -> 1.940745682 | H14: =IF(ISERROR(H54/H53),0,(H54/H53)) -> 0.4638951803
A15: Revenue Management
A16: Annual Debtors Collection Rate (Payment Level %) | B16: Last 12 Mths Receipts/ Last 12 Mths Billing
A17: Outstanding Debtors to Revenue | B17: Total Outstanding Debtors to Annual Revenue | D17: =IF(ISERROR(D59/D55),0,(D59/D55)) -> 0.3081918231 | E17: =IF(ISERROR(E59/E55),0,(E59/E55)) -> 0.5143821024 | F17: =IF(ISERROR(F59/F55),0,(F59/F55)) -> 0.5124711236 | G17: =IF(ISERROR(G59/G55),0,(G59/G55)) -> 0.9158262209 | H17: =IF(ISERROR(H59/H55),0,(H59/H55)) -> 0.5124711236
A18: Longstanding Debtors Recovered | B18: Debtors > 12 Mths Recovered/Total Debtors > 12 Months Old | D18: =IF(ISERROR(D64/D63),0,(D64/D63)) -> 0 | E18: =IF(ISERROR(E64/E63),0,(E64/E63)) -> 0 | F18: =IF(ISERROR(F64/F63),0,(F64/F63)) -> 0 | G18: =IF(ISERROR(G64/G63),0,(G64/G63)) -> 0 | H18: =IF(ISERROR(H64/H63),0,(H64/H63)) -> 0
A19: Creditors Management
A20: Creditors System Efficiency | B20: % of Creditors Paid Within Terms (within MFMA s 65(e))
A21: Funding of Provisions
A22: Percentage Of Provisions Not Funded | B22: Unfunded Provisions/Total Provisions
A23: Other Indicators
A24: Electricity Distribution Losses | B24: % Volume (units purchased and generated less units sold)/units purchased and generated | C24: 2
A25: Water Distribution Losses | B25: % Volume (units purchased and own source less units sold)/Total units purchased and own source | C25: 2
A26: Employee costs | B26: Employee costs/Total Revenue - capital revenue | D26: =IF(ISERROR(D40/D55),0,(D40/D55)) -> 0.3576410472 | E26: =IF(ISERROR(E40/E55),0,(E40/E55)) -> 0.3942702934 | F26: =IF(ISERROR(F40/F55),0,(F40/F55)) -> 0.3928055415 | G26: =IF(ISERROR(G40/G55),0,(G40/G55)) -> 0.4170226492 | H26: =IF(ISERROR(H40/H55),0,(H40/H55)) -> 0.3928055415
A27: Repairs & Maintenance | B27: R&M/Total Revenue - capital revenue | D27: =IF(ISERROR(D41/D55),0,(D41/D55)) -> 0.07101393277 | E27: =IF(ISERROR(E41/E55),0,(E41/E55)) -> 0.06740912582 | F27: =IF(ISERROR(F41/F55),0,(F41/F55)) -> 0.07087379032 | G27: =IF(ISERROR(G41/G55),0,(G41/G55)) -> 0.04225224168 | H27: =IF(ISERROR(H41/H55),0,(H41/H55)) -> 0.07087379032
A28: Interest & Depreciation | B28: I&D/Total Revenue - capital revenue | D28: =IF(ISERROR((D42+D44)/D55),0,((D42+D44)/D55)) -> 0.04798770571 | E28: =IF(ISERROR((E42+E44)/E55),0,((E42+E44)/E55)) -> 0.07476775601 | F28: =IF(ISERROR((F42+F44)/F55),0,((F42+F44)/F55)) -> 0.07448998662 | G28: =IF(ISERROR((G42+G44)/G55),0,((G42+G44)/G55)) -> -1.588264892e-05 | H28: =IF(ISERROR((H42+H44)/H55),0,((H42+H44)/H55)) -> 0.05968708312
A29: IDP regulation financial viability indicators
A30: i. Debt coverage | B30: (Total Operating Revenue - Operating Grants)/Debt service payments due within financial year)
A31: ii. O/S Service Debtors to Revenue | B31: Total outstanding service debtors/annual revenue received for services
A32: iii. Cost coverage | B32: (Available cash + Investments)/monthly fixed operational expenditure
A33: References
A34: 1. Consumer debtors > 12 months old are excluded from current assets.
A35: 2. Material variances to be explained.
A37: Calculations
A38: ='C6-FinPos'!A38 -> Borrowing | D38: ='C6-FinPos'!C38 -> 0 | E38: ='C6-FinPos'!D38 -> 0 | F38: ='C6-FinPos'!E38 -> 0 | G38: ='C6-FinPos'!F38 -> 0 | H38: 0
A39: Total Assets | D39: ='C6-FinPos'!C26 -> 456906754.4 | E39: ='C6-FinPos'!D26 -> 537529739 | F39: ='C6-FinPos'!E26 -> 538529739 | G39: ='C6-FinPos'!F26 -> 527840107.5 | H39: ='C6-FinPos'!G26 -> 538529739
A40: ='C4-FinPerf RE'!A25 -> Employee related costs | D40: ='C4-FinPerf RE'!C25 -> 91655492.25 | E40: ='C4-FinPerf RE'!D25 -> 105732276 | F40: ='C4-FinPerf RE'!E25 -> 105732276 | G40: ='C4-FinPerf RE'!G25 -> 38144906.9 | H40: ='C4-FinPerf RE'!K25 -> 105732276
A41: =A27 -> Repairs & Maintenance | D41: 18199300.71 | E41: 18077244 | F41: 19077244 | G41: 3864796.86 | H41: 19077244
A42: Interest (finance charges) | D42: ='C4-FinPerf RE'!C29 -> 183629.4 | E42: ='C4-FinPerf RE'!D29 -> 1055833 | F42: ='C4-FinPerf RE'!E29 -> 1055833 | G42: ='C4-FinPerf RE'!G29 -> -1452.78 | H42: ='C4-FinPerf RE'!K29 -> 1055833
A43: Principal paid | D43: =-'C7-CFlow'!C36 -> 0 | E43: =-'C7-CFlow'!D36 -> 0 | F43: =-'C7-CFlow'!E36 -> 0 | G43: =-'C7-CFlow'!G36 -> 0 | H43: =-'C7-CFlow'!K36 -> 0
A44: Depreciation | D44: ='C4-FinPerf RE'!C28 -> 12114558.47 | E44: ='C4-FinPerf RE'!D28 -> 18994790 | F44: ='C4-FinPerf RE'!E28 -> 18994790 | H44: ='C4-FinPerf RE'!K26 -> 15010262
A45: Operating expenditure | D45: ='C4-FinPerf RE'!C36 -> 221073903.1 | E45: ='C4-FinPerf RE'!D36 -> 247928625 | F45: ='C4-FinPerf RE'!E36 -> 248928625 | G45: ='C4-FinPerf RE'!G36 -> 73522876.59 | H45: ='C4-FinPerf RE'!K36 -> 248928625
A46: ='C5-Capex'!A40 -> Total Capital Expenditure | D46: ='C5-Capex'!C40 -> 50056507.07 | E46: ='C5-Capex'!D40 -> 65393793 | F46: ='C5-Capex'!E40 -> 65393793 | G46: ='C5-Capex'!G40 -> 10637982.67 | H46: ='C5-Capex'!K40 -> 65393793
A47: Borrowed funding for capital | D47: ='C5-Capex'!C72 -> 0 | E47: ='C5-Capex'!D72 -> 0 | F47: ='C5-Capex'!E72 -> 0 | G47: ='C5-Capex'!G72 -> 0 | H47: ='C5-Capex'!K72 -> 0
A48: Debt | D48: ='C6-FinPos'!C30+'C6-FinPos'!C31+'C6-FinPos'!C33+'C6-FinPos'!C38 -> 166190859.4 | E48: ='C6-FinPos'!D30+'C6-FinPos'!D31+'C6-FinPos'!D33+'C6-FinPos'!D38 -> 51218107 | F48: ='C6-FinPos'!E30+'C6-FinPos'!E31+'C6-FinPos'!E33+'C6-FinPos'!E38 -> 51218107 | G48: ='C6-FinPos'!F30+'C6-FinPos'!F31+'C6-FinPos'!F33+'C6-FinPos'!F38 -> 64415348.32 | H48: ='C6-FinPos'!G30+'C6-FinPos'!G31+'C6-FinPos'!G33+'C6-FinPos'!G38 -> 51218107
A49: Equity | D49: ='C6-FinPos'!C48 -> 425375118.5 | E49: ='C6-FinPos'!D48 -> 455339568 | F49: ='C6-FinPos'!E48 -> 456339568 | G49: ='C6-FinPos'!F48 -> 390344258.4 | H49: ='C6-FinPos'!G48 -> 456339568
A50: ='C6-FinPos'!A47 -> Reserves | D50: ='C6-FinPos'!C47 -> 47695019.87 | E50: ='C6-FinPos'!D47 -> 55518054 | F50: ='C6-FinPos'!E47 -> 55518054 | G50: ='C6-FinPos'!F47 -> 47695019.87 | H50: ='C6-FinPos'!G47 -> 55518054
A51: ='C6-FinPos'!A38 -> Borrowing | D51: ='C6-FinPos'!C38 -> 0 | E51: ='C6-FinPos'!D38 -> 0 | F51: ='C6-FinPos'!E38 -> 0 | G51: ='C6-FinPos'!F38 -> 0 | H51: ='C6-FinPos'!G38 -> 0
A52: ='C6-FinPos'!A6 -> Current assets | D52: ='C6-FinPos'!C13 -> 151490556.7 | E52: ='C6-FinPos'!D13 -> 161591098 | F52: ='C6-FinPos'!E13 -> 162591098 | G52: ='C6-FinPos'!F13 -> 211785927 | H52: ='C6-FinPos'!G13 -> 162591098
A53: ='C6-FinPos'!A29 -> Current liabilities | D53: ='C6-FinPos'!C35 -> 167024235.8 | E53: ='C6-FinPos'!D35 -> 52480071 | F53: ='C6-FinPos'!E35 -> 52480071 | G53: ='C6-FinPos'!F35 -> 65224712.38 | H53: ='C6-FinPos'!G35 -> 52480071
A54: Monetary assets | D54: ='C6-FinPos'!C7+'C6-FinPos'!C8 -> 71455516.09 | E54: ='C6-FinPos'!D7+'C6-FinPos'!D8 -> 23345252 | F54: ='C6-FinPos'!E7+'C6-FinPos'!E8 -> 24345252 | G54: ='C6-FinPos'!F7+'C6-FinPos'!F8 -> 126584578.9 | H54: ='C6-FinPos'!G7+'C6-FinPos'!G8 -> 24345252
A55: ='C4-FinPerf RE'!A22 -> Total Revenue (excluding capital transfers and contributions) | D55: ='C4-FinPerf RE'!C22 -> 256277888 | E55: ='C4-FinPerf RE'!D22 -> 268172058 | F55: ='C4-FinPerf RE'!E22 -> 269172058 | G55: ='C4-FinPerf RE'!G22 -> 91469628.74 | H55: ='C4-FinPerf RE'!K22 -> 269172058
A56: ='C4-FinPerf RE'!A19 -> Transfers and subsidies | D56: ='C4-FinPerf RE'!C19 -> 185288433.8 | E56: ='C4-FinPerf RE'!D19 -> 161092000 | F56: ='C4-FinPerf RE'!E19 -> 162092000 | G56: ='C4-FinPerf RE'!G19 -> 66551697.61 | H56: ='C4-FinPerf RE'!K19 -> 162092000
A57: ='C4-FinPerf RE'!A39 -> Transfers and subsidies - capital (monetary allocations) (National / Provincial and District) | D57: ='C4-FinPerf RE'!C39 -> 45027638.97 | E57: ='C4-FinPerf RE'!D39 -> 45150000 | F57: ='C4-FinPerf RE'!E39 -> 45150000 | G57: ='C4-FinPerf RE'!G39 -> 5797471.99 | H57: ='C4-FinPerf RE'!K39 -> 45150000
A58: Debt service payments | D58: ='C7-CFlow'!C12+'C7-CFlow'!C36 -> 765244.94 | E58: ='C7-CFlow'!D12+'C7-CFlow'!D36 -> 0 | F58: ='C7-CFlow'!E12+'C7-CFlow'!E36 -> 0 | G58: ='C7-CFlow'!G16+'C7-CFlow'!G36 -> 0 | H58: ='C7-CFlow'!K16+'C7-CFlow'!K36 -> 0
A59: Outstanding debtors (receivables) | D59: ='C6-FinPos'!C9+'C6-FinPos'!C10+'C6-FinPos'!C11+'C6-FinPos'!C16 -> 78982749.53 | E59: ='C6-FinPos'!D9+'C6-FinPos'!D10+'C6-FinPos'!D11+'C6-FinPos'!D16 -> 137942907 | F59: ='C6-FinPos'!E9+'C6-FinPos'!E10+'C6-FinPos'!E11+'C6-FinPos'!E16 -> 137942907 | G59: ='C6-FinPos'!F9+'C6-FinPos'!F10+'C6-FinPos'!F11+'C6-FinPos'!F16 -> 83770284.42 | H59: ='C6-FinPos'!G9+'C6-FinPos'!G10+'C6-FinPos'!G11+'C6-FinPos'!G16 -> 137942907
A60: Annual services revenue | D60: =SUM('C4-FinPerf RE'!C7:C11) -> 11061887.67 | E60: =SUM('C4-FinPerf RE'!D7:D11) -> 14195880 | F60: =SUM('C4-FinPerf RE'!E7:E11) -> 14195880 | G60: =SUM('C4-FinPerf RE'!G7:G11) -> 4316925.23
A61: Cash + investments | B61: Including LT investments | D61: ='C6-FinPos'!C7+'C6-FinPos'!C8+'C6-FinPos'!C17-'C6-FinPos'!C30 -> 71455516.09 | E61: ='C6-FinPos'!D7+'C6-FinPos'!D8+'C6-FinPos'!D17-'C6-FinPos'!D30 -> 23345252 | F61: ='C6-FinPos'!E7+'C6-FinPos'!E8+'C6-FinPos'!E17-'C6-FinPos'!E30 -> 24345252 | G61: ='C6-FinPos'!F7+'C6-FinPos'!F8+'C6-FinPos'!F17-'C6-FinPos'!F30 -> 126584578.9 | H61: ='C6-FinPos'!G7+'C6-FinPos'!G8+'C6-FinPos'!G17-'C6-FinPos'!G30 -> 24345252
A62: Fixed operational expend. (monthly)
A63: Longstanding debtors outstanding | D63: ='C6-FinPos'!C16 -> 0 | E63: ='C6-FinPos'!D16 -> 0 | F63: ='C6-FinPos'!E16 -> 0 | G63: ='C6-FinPos'!F16 -> 0 | H63: ='C6-FinPos'!G16 -> 0
A64: Longstanding debtors recovered
A65: Attorney collections

Sheet SC3
A1: =muni& " - "&S71I& " - "&Head57 -> LIM353 Molemole - Supporting Table SC3 Monthly Budget Statement - aged debtors - M05 November
A2: =desc -> Description | C2: =Head2 -> Budget Year 2021/22
A3: R thousands | B3: NT Code | C3: 0-30 Days | D3: 31-60 Days | E3: 61-90 Days | F3: 91-120 Days | G3: 121-150 Dys | H3: 151-180 Dys | I3: 181 Dys-1 Yr | J3: Over 1Yr | K3: Total | L3: Total over 90 days | M3: Actual Bad Debts Written Off against Debtors | N3: Impairment - Bad Debts i.t.o Council Policy
A4: Debtors Age Analysis By Income Source
A5: Trade and Other Receivables from Exchange Transactions - Water | B5: 1200 | C5: 109755 | D5: 152024 | E5: 66200 | F5: 4150583 | G5: 0 | H5: 0 | I5: 0 | J5: 0 | K5: =SUM(C5:J5) -> 4478562 | L5: =SUM(F5:J5) -> 4150583 | M5: 0 | N5: 0
A6: Trade and Other Receivables from Exchange Transactions - Electricity | B6: 1300 | C6: 593 | D6: 18524 | E6: 2148623 | F6: 2149216 | G6: 0 | H6: 0 | I6: 0 | J6: 0 | K6: =SUM(C6:J6) -> 4316956 | L6: =SUM(F6:J6) -> 2149216 | M6: 0 | N6: 0
A7: Receivables from Non-exchange Transactions - Property Rates | B7: 1400 | C7: 205834 | D7: 199650 | E7: 196302 | F7: 10359476 | G7: 0 | H7: 0 | I7: 0 | J7: 0 | K7: =SUM(C7:J7) -> 10961262 | L7: 10359476 | M7: 0 | N7: 0
A8: Receivables from Exchange Transactions - Waste Water Management | B8: 1500 | C8: 69439 | D8: 67111 | E8: 66004 | F8: 2332304 | G8: 0 | H8: 0 | I8: 0 | J8: 0 | K8: 2534858 | L8: 2332304 | M8: 0 | N8: 0
A9: Receivables from Exchange Transactions - Waste Management | B9: 1600 | C9: 223747 | D9: 220199 | E9: 217639 | F9: 11880368 | G9: 0 | H9: 0 | I9: 0 | J9: 0 | K9: 12541953 | L9: =SUM(F9:J9) -> 11880368 | M9: 0 | N9: 0
A10: Receivables from Exchange Transactions - Property Rental Debtors | B10: 1700 | K10: 0 | L10: =SUM(F10:J10) -> 0
A11: Interest on Arrear Debtor Accounts | B11: 1810 | K11: 0 | L11: 0
A12: Recoverable unauthorised, irregular, fruitless and wasteful expenditure | B12: 1820 | K12: 0 | L12: 0
A13: Other | B13: 1900 | C13: 2264436 | D13: 2205208 | E13: 20977 | F13: 79785406 | G13: 0 | H13: 0 | I13: 0 | J13: 0 | K13: 84276027 | L13: =SUM(F13:J13) -> 79785406 | M13: 0 | N13: 0
A14: Total By Income Source | B14: 2000 | C14: =SUM(C5:C13) -> 2873804 | D14: 2862716 | E14: 2715745 | F14: 110657353 | G14: 0 | H14: 0 | I14: 0 | J14: 0 | K14: 119109618 | L14: =SUM(L5:L13) -> 110657353 | M14: 0 | N14: 0
A15: =Head1&" - totals only" -> 2020/21 - totals only | K15: =SUM(C15:J15) -> 0 | L15: =SUM(F15:J15) -> 0
A16: Debtors Age Analysis By Customer Group
A17: Organs of State | B17: 2200 | K17: =SUM(C17:J17) -> 0 | L17: =SUM(F17:J17) -> 0
A18: Commercial | B18: 2300 | K18: =SUM(C18:J18) -> 0 | L18: =SUM(F18:J18) -> 0
A19: Households | B19: 2400 | K19: =SUM(C19:J19) -> 0 | L19: =SUM(F19:J19) -> 0
A20: Other | B20: 2500 | K20: =SUM(C20:J20) -> 0 | L20: =SUM(F20:J20) -> 0
A21: Total By Customer Group | B21: 2600 | C21: =SUM(C17:C20) -> 0 | D21: 0 | E21: 0 | F21: 0 | G21: 0 | H21: 0 | I21: 0 | J21: =SUM(J17:J20) -> 0 | K21: =SUM(K17:K20) -> 0 | L21: =SUM(L17:L20) -> 0 | M21: =SUM(M17:M20) -> 0 | N21: =SUM(N17:N20) -> 0
A22: Notes
A23: Material increases in value of debtors' categories compared to previous month to be explained
A24: Bad debts = amounts actually written off in the month
A25: Total by Income Source must reconcile with Total by Customer Group
C26: =C14-C21 -> 2873804 | D26: =D14-D21 -> 2862716 | E26: =E14-E21 -> 2715745 | F26: 110657353 | G26: 0 | H26: 0 | I26: 0 | J26: =J14-J21 -> 0 | K26: 119109618
C27: =IF(C26=0,"","MUST AGREE") -> MUST AGREE | D27: =IF(D26=0,"","MUST AGREE") -> MUST AGREE | E27: MUST AGREE | F27: MUST AGREE | K27: MUST AGREE

Sheet SC4
A1: =muni& " - "&S71J& " - "&Head57 -> LIM353 Molemole - Supporting Table SC4 Monthly Budget Statement - aged creditors - M05 November
A2: =desc -> Description | B2: NT Code | C2: =Head2 -> Budget Year 2021/22 | L2: Prior year totals for chart (same period)
C3: 0 - 30 Days | D3: 31 - 60 Days | E3: 61 - 90 Days | F3: 91 - 120 Days | G3: 121 - 150 Days | H3: 151 - 180 Days | I3: 181 Days - 1 Year | J3: Over 1 Year | K3: Total
A4: R thousands
A5: Creditors Age Analysis By Customer Type
A6: Bulk Electricity | B6: 0100 | K6: =SUM(C6:J6) -> 0
A7: Bulk Water | B7: 0200 | K7: =SUM(C7:J7) -> 0
A8: PAYE deductions | B8: 0300 | K8: 0
A9: VAT (output less input) | B9: 0400 | K9: 0
A10: Pensions / Retirement deductions | B10: 0500 | K10: 0
A11: Loan repayments | B11: 0600 | K11: 0
A12: Trade Creditors | B12: 0700 | K12: 0
A13: Auditor General | B13: 0800 | K13: 0
A14: Other | B14: 0900 | C14: 2685539.9 | D14: 616085.04 | E14: 802784.45 | F14: 1740485.42 | G14: 0 | H14: 0 | I14: 0 | J14: 0 | K14: =SUM(C14:J14) -> 5844894.81
A15: Total By Customer Type | B15: 1000 | C15: =SUM(C6:C14) -> 2685539.9 | D15: =SUM(D6:D14) -> 616085.04 | E15: 802784.45 | F15: 1740485.42 | G15: 0 | H15: 0 | I15: 0 | J15: 0 | K15: =SUM(K6:K14) -> 5844894.81 | L15: =SUM(L6:L14) -> 0
A16: Notes
A17: Material increases in value of creditors' categories compared to previous month to be explained

Sheet SC5
A1: =muni& " - "&S71K& " - "&Head57 -> LIM353 Molemole - Supporting Table SC5 Monthly Budget Statement - investment portfolio - M05 November
A2: Investments by maturity Name of institution & investment ID | B2: Ref | C2: Period of Investment | D2: Type of Investment | E2: Capital Guarantee (Yes/ No) | F2: Variable or Fixed interest rate | G2: Interest Rate ᶟ | H2: Commission Paid (Rands) | I2: Commission Recipient | J2: Expiry date of investment | K2: Opening balance | L2: Interest to be realised | M2: Partial / Premature Withdrawal (4) | N2: Investment Top Up | O2: Closing Balance
A3: R thousands | C3: Yrs/Months
A4: Municipality
O5: =SUM(K5:N5) -> 0
A6: Municipality sub-total | K6: =SUM(K5:K5) -> 0 | M6: =SUM(M5:M5) -> 0 | N6: =SUM(N5:N5) -> 0 | O6: =SUM(O5:O5) -> 0
A8: Entities
O9: =SUM(K9:N9) -> 0
O10: 0
O11: 0
O12: 0
O13: 0
O14: 0
O15: 0
A16: Entities sub-total | K16: =SUM(K9:K15) -> 0 | M16: =SUM(M9:M15) -> 0 | N16: =SUM(N9:N15) -> 0 | O16: =SUM(O9:O15) -> 0
A18: TOTAL INVESTMENTS AND INTEREST | B18: 2 | K18: =K6+K16 -> 0 | M18: =M6+M16 -> 0 | N18: =N6+N16 -> 0 | O18: =O6+O16 -> 0
A19: =head27a -> References
A20: 2. List investments in expiry date order
A21: 3. If 'variable' is selected in column F, input interest rate range
A22: 4. Withdrawals to be entered as negative

Sheet SC6
A1: =muni& " - "&S71L& " - "&Head57 -> LIM353 Molemole - Supporting Table SC6 Monthly Budget Statement - transfers and grant receipts - M05 November
A2: =desc -> Description | B2: =head27 -> Ref | C2: =Head1 -> 2020/21 | D2: =Head2 -> Budget Year 2021/22
C3: =Head5 -> Audited Outcome | D3: =Head6 -> Original Budget | E3: =Head7 -> Adjusted Budget | F3: =Head38 -> Monthly actual | G3: =Head39 -> YearTD actual | H3: =Head40 -> YearTD budget | I3: =Head41 -> YTD variance | J3: =Head41 -> YTD variance | K3: =Head8 -> Full Year Forecast
A4: R thousands | J4: %
A5: RECEIPTS: | B5: 1,2
A7: Operating Transfers and Grants
A8: National Government: | C8: =SUM(C9:C14) -> 185288433.9 | D8: 161092000 | E8: 162092000 | F8: 0 | G8: 66551697.61 | H8: 67343877.22 | I8: =G8-H8 -> -792179.61 | J8: =IF(H8=0,"",I8/H8) -> -0.01176320169 | K8: =SUM(K9:K14) -> 162092000
A9: Equitable Share | C9: 179962121.7 | D9: 155513000 | E9: 155513000 | F9: 0 | G9: 64797000 | H9: 64797080 | I9: -80 | J9: -1.234623536e-06 | K9: 155513000
A10: Expanded Public Works Programme Integrated Grant | C10: 1262447.05 | D10: 1429000 | E10: 1429000 | F10: 0 | G10: 293070 | H10: 595415 | I10: -302345 | J10: -0.5077886852 | K10: 1429000
A11: Local Government Financial Management Grant | C11: 2356147.33 | D11: 2300000 | E11: 2300000 | F11: 0 | G11: 1071749.97 | H11: 958330 | I11: 113419.97 | J11: 0.1183516847 | K11: 2300000
A12: Municipal Demarcation Transition Grant | C12: 0 | D12: 0 | E12: 0 | F12: 0 | G12: 0 | H12: 0 | I12: 0 | K12: 0
A13: Municipal Disaster Relief Grant | C13: 0 | D13: 0 | E13: 1000000 | F13: 0 | G13: 0 | H13: 222222.22 | I13: -222222.22 | J13: -1 | K13: 1000000
A14: Municipal Infrastructure Grant | C14: 1707717.78 | D14: 1850000 | E14: 1850000 | F14: 0 | G14: 389877.64 | H14: 770830 | I14: -380952.36 | J14: -0.4942106042 | K14: 1850000
A15: Other transfers and grants [insert description] | I15: =G15-H15 -> 0 | J15: =IF(I15=0,"",I15/H15) -> 
A16: Provincial Government: | C16: =SUM(C17:C17) -> 0 | D16: 0 | E16: 0 | F16: 0 | G16: 0 | H16: 0 | I16: =G16-H16 -> 0 | J16: =IF(H16=0,"",I16/H16) ->  | K16: =SUM(K17:K17) -> 0
A17: Other | C17: 0 | D17: 0 | E17: 0 | F17: 0 | G17: 0 | H17: 0 | I17: =G17-H17 -> 0 | J17: =IF(H17=0,"",I17/H17) ->  | K17: 0
A18: Other transfers and grants [insert description] | I18: =G18-H18 -> 0
A19: District Municipality: | C19: =SUM(C20:C21) -> 0 | D19: 0 | E19: 0 | F19: 0 | G19: 0 | H19: 0 | I19: =G19-H19 -> 0 | J19: =IF(H19=0,"",I19/H19) ->  | K19: =SUM(K20:K21) -> 0
A20: Community and Social Services | C20: 0 | D20: 0 | E20: 0 | F20: 0 | G20: 0 | H20: 0 | I20: =G20-H20 -> 0 | J20: =IF(H20=0,"",I20/H20) ->  | K20: 0
A21: Planning and Development | C21: 0 | D21: 0 | E21: 0 | F21: 0 | G21: 0 | H21: 0 | I21: =G21-H21 -> 0 | J21: =IF(H21=0,"",I21/H21) ->  | K21: 0
A22: Other grant providers: | C22: =SUM(C23:C23) -> 0 | D22: 0 | E22: 0 | F22: 0 | G22: 0 | H22: 0 | I22: =G22-H22 -> 0 | J22: =IF(H22=0,"",I22/H22) ->  | K22: =SUM(K23:K23) -> 0
A23: Non-statutory Forces | C23: 0 | D23: 0 | E23: 0 | F23: 0 | G23: 0 | H23: 0 | I23: =G23-H23 -> 0 | J23: =IF(H23=0,"",I23/H23) ->  | K23: 0
A24: Total Operating Transfers and Grants | B24: 5 | C24: =C8+C16+C19+C22 -> 185288433.9 | D24: 161092000 | E24: 162092000 | F24: 0 | G24: 66551697.61 | H24: 67343877.22 | I24: -792179.61 | J24: -0.01176320169 | K24: =K8+K16+K19+K22 -> 162092000
A26: Capital Transfers and Grants
A27: =A8 -> National Government: | C27: =SUM(C28:C30) -> 45027638.97 | D27: 45150000 | E27: 45150000 | F27: 0 | G27: 5797471.99 | H27: 18812495 | I27: =G27-H27 -> -13015023.01 | J27: =IF(H27=0,"",I27/H27) -> -0.6918286495 | K27: =SUM(K28:K30) -> 45150000
A28: Energy Efficiency and Demand Side Management Grant | C28: 2538226.95 | D28: 0 | E28: 0 | F28: 0 | G28: 0 | H28: 0 | I28: =G28-H28 -> 0 | J28: =IF(H28=0,"",I28/H28) ->  | K28: 0
A29: Integrated National Electrification Programme Grant | C29: 8714412.24 | D29: 10000000 | E29: 10000000 | F29: 0 | G29: 0 | H29: 4166665 | I29: =G29-H29 -> -4166665 | J29: =IF(H29=0,"",I29/H29) -> -1 | K29: 10000000
A30: Municipal Infrastructure Grant | C30: 33774999.78 | D30: 35150000 | E30: 35150000 | F30: 0 | G30: 5797471.99 | H30: 14645830 | I30: =G30-H30 -> -8848358.01 | J30: =IF(H30=0,"",I30/H30) -> -0.6041554497 | K30: 35150000
A31: =A16 -> Provincial Government: | C31: =SUM(C32:C32) -> 0 | D31: 0 | E31: 0 | F31: 0 | G31: 0 | H31: 0 | I31: =G31-H31 -> 0 | J31: =IF(I31=0,"",I31/H31) ->  | K31: =SUM(K32:K32) -> 0
A32: [insert description] | I32: 0 | J32: =IF(I32=0,"",I32/H32) -> 
A33: =A19 -> District Municipality: | C33: =SUM(C34:C34) -> 1234955.28 | D33: 0 | E33: 0 | F33: 0 | G33: 0 | H33: 0 | I33: =G33-H33 -> 0 | J33: =IF(H33=0,"",I33/H33) ->  | K33: =SUM(K34:K34) -> 0
A34: Specify (Add grant description) | C34: 1234955.28 | D34: 0 | E34: 0 | F34: 0 | G34: 0 | H34: 0 | I34: =G34-H34 -> 0 | J34: =IF(H34=0,"",I34/H34) ->  | K34: 0
A35: =A22 -> Other grant providers: | C35: =SUM(C36:C36) -> 0 | D35: 0 | E35: 0 | F35: 0 | G35: 0 | H35: 0 | I35: 0 | J35: =IF(I35=0,"",I35/H35) ->  | K35: =SUM(K36:K36) -> 0
A36: [insert description] | I36: 0 | J36: =IF(I36=0,"",I36/H36) -> 
A37: Total Capital Transfers and Grants | B37: 5 | C37: =C27+C31+C33+C35 -> 46262594.25 | D37: 45150000 | E37: 45150000 | F37: 0 | G37: 5797471.99 | H37: 18812495 | I37: -13015023.01 | J37: -0.6918286495 | K37: =K27+K31+K33+K35 -> 45150000
A39: TOTAL RECEIPTS OF TRANSFERS & GRANTS | B39: 5 | C39: =C24+C37 -> 231551028.1 | D39: 206242000 | E39: 207242000 | F39: 0 | G39: 72349169.6 | H39: 86156372.22 | I39: -13807202.62 | J39: -0.1602574745 | K39: =K24+K37 -> 207242000
A40: =head27a -> References
A41: 1. Each grant is listed by name as gazetted together with the name of the transferring department or municipality, donor or other organisation
A42: 2. Grant expenditure must be separately listed for each grant received
A43: 3. Replacement of RSC levies
A44: 4. Housing subsidies for housing where ownership transferred
A45: 5. Total recurrent/capital grants and subsidies must reconcile to the 'Financial Performance' Statement

Sheet SC7(1)
A1: =muni& " - "&S71M& " - "&Head57 -> LIM353 Molemole - Supporting Table SC7(1) Monthly Budget Statement - transfers and grant expenditure - M05 November
A2: =desc -> Description | B2: =head27 -> Ref | C2: =Head1 -> 2020/21 | D2: =Head2 -> Budget Year 2021/22
C3: =Head5 -> Audited Outcome | D3: =Head6 -> Original Budget | E3: =Head7 -> Adjusted Budget | F3: =Head38 -> Monthly actual | G3: =Head39 -> YearTD actual | H3: =Head40 -> YearTD budget | I3: =Head41 -> YTD variance | J3: =Head41 -> YTD variance | K3: =Head8 -> Full Year Forecast
A4: R thousands | J4: %
A5: EXPENDITURE
A7: Operating expenditure of Transfers and Grants
A8: ='SC6'!A8 -> National Government: | C8: =SUM(C9:C15) -> 118242144.9 | D8: 140008274 | E8: 141008274 | F8: 9643813.72 | G8: 49915826.47 | H8: 58560307.22 | I8: -8644480.75 | J8: =IF(I8=0,"",I8/H8) -> -0.1476167247 | K8: =SUM(K9:K15) -> 141008274
I9: =G9-H9 -> 0
A10: Equitable Share | C10: 114016096 | D10: 134215328 | E10: 134215328 | F10: 9217306.07 | G10: 47143636.87 | H10: 55924320 | I10: =G10-H10 -> -8780683.13 | J10: =IF(H10=0,"",I10/H10) -> -0.157010101 | K10: 134215328
A11: Expanded Public Works Programme Integrated Grant | C11: 1262447.05 | D11: 1429000 | E11: 1429000 | F11: 116805 | G11: 881985 | H11: 595420 | I11: 286565 | J11: 0.4812821202 | K11: 1429000
A12: Local Government Financial Management Grant | C12: 2963601.89 | D12: 2801738 | E12: 2801738 | F12: 157203.19 | G12: 1242589.44 | H12: 1167420 | I12: 75169.44 | J12: 0.06438937143 | K12: 2801738
A13: Municipal Demarcation Transition Grant | C13: 0 | D13: 0 | E13: 0 | F13: 0 | G13: 0 | H13: 0 | I13: 0 | K13: 0
A14: Municipal Disaster Relief Grant | C14: 0 | D14: 0 | E14: 1000000 | F14: 0 | G14: 0 | H14: 222222.22 | I14: -222222.22 | J14: -1 | K14: 1000000
A15: Municipal Infrastructure Grant | C15: 0 | D15: 1562208 | E15: 1562208 | F15: 152499.46 | G15: 647615.16 | H15: 650925 | I15: -3309.84 | J15: -0.005084825441 | K15: 1562208
A16: ='SC6'!A16 -> Provincial Government: | C16: =SUM(C17:C18) -> 0 | D16: 0 | E16: 0 | F16: 0 | G16: 0 | H16: 0 | I16: 0 | K16: =SUM(K17:K18) -> 0
I17: =G17-H17 -> 0
A18: Other | C18: 0 | D18: 0 | E18: 0 | F18: 0 | G18: 0 | H18: 0 | I18: =G18-H18 -> 0 | J18: =IF(H18=0,"",I18/H18) ->  | K18: 0
A19: ='SC6'!A19 -> District Municipality: | C19: =SUM(C20:C20) -> 0 | D19: 0 | E19: 0 | F19: 0 | G19: 0 | H19: 0 | I19: 0 | K19: =SUM(K20:K20) -> 0
I20: 0
A21: Community and Social Services | C21: 0 | D21: 0 | E21: 0 | F21: 0 | G21: 0 | H21: 0 | I21: =G21-H21 -> 0 | J21: =IF(H21=0,"",I21/H21) ->  | K21: 0
A22: ='SC6'!A22 -> Other grant providers: | C22: =SUM(C23:C23) -> 0 | D22: 0 | E22: 0 | F22: 0 | G22: 0 | H22: 0 | I22: 0 | K22: =SUM(K23:K23) -> 0
I23: 0
A24: Municipal Demarcation Board | C24: 0 | D24: 200000 | E24: 200000 | F24: 0 | G24: 0 | H24: 83335 | I24: =G24-H24 -> -83335 | J24: =IF(H24=0,"",I24/H24) -> -1 | K24: 200000
A25: Total operating expenditure of Transfers and Grants: | C25: =C8+C16+C19+C22 -> 118242144.9 | D25: 140008274 | E25: 141008274 | F25: 9643813.72 | G25: 49915826.47 | H25: 58560307.22 | I25: -8644480.75 | J25: -0.1476167247 | K25: =K8+K16+K19+K22 -> 141008274
A27: Capital expenditure of Transfers and Grants
A28: ='SC6'!A27 -> National Government: | C28: =SUM(C29:C31) -> 39133689.96 | D28: 45437793 | E28: 45437793 | F28: 2534817.39 | G28: 8328137 | H28: 18932425 | I28: -10604288 | J28: =IF(I28=0,"",I28/H28) -> -0.5601125054 | K28: =SUM(K29:K31) -> 45437793
A29: Energy Efficiency and Demand Side Management Grant | C29: 2207153.87 | D29: 0 | E29: 0 | F29: 0 | G29: 0 | H29: 0 | I29: =G29-H29 -> 0 | J29: =IF(H29=0,"",I29/H29) ->  | K29: 0
A30: Integrated National Electrification Programme Grant | C30: 7577749.78 | D30: 10000000 | E30: 10000000 | F30: 0 | G30: 0 | H30: 4166670 | I30: =G30-H30 -> -4166670 | J30: =IF(H30=0,"",I30/H30) -> -1 | K30: 10000000
A31: Municipal Infrastructure Grant | C31: 29348786.31 | D31: 35437793 | E31: 35437793 | F31: 2534817.39 | G31: 8328137 | H31: 14765755 | I31: =G31-H31 -> -6437618 | J31: =IF(H31=0,"",I31/H31) -> -0.435982989 | K31: 35437793
A32: ='SC6'!A31 -> Provincial Government: | C32: =SUM(C33:C33) -> 0 | D32: 0 | E32: 0 | F32: 0 | G32: 0 | H32: 0 | I32: =G32-H32 -> 0 | K32: =SUM(K33:K33) -> 0
A33: Other | C33: 0 | D33: 0 | E33: 0 | F33: 0 | G33: 0 | H33: 0 | I33: =G33-H33 -> 0 | J33: =IF(H33=0,"",I33/H33) ->  | K33: 0
A34: ='SC6'!A33 -> District Municipality: | C34: =SUM(C35:C36) -> 1156205.28 | D34: 0 | E34: 0 | F34: 0 | G34: 0 | H34: 0 | I34: 0 | K34: =SUM(K35:K36) -> 0
A35: Community and Social Services | C35: 0 | D35: 0 | E35: 0 | F35: 0 | G35: 0 | H35: 0 | I35: =G35-H35 -> 0 | J35: =IF(H35=0,"",I35/H35) ->  | K35: 0
A36: Specify (Add grant description) | C36: 1156205.28 | D36: 0 | E36: 0 | F36: 0 | G36: 0 | H36: 0 | I36: =G36-H36 -> 0 | J36: =IF(H36=0,"",I36/H36) ->  | K36: 0
A37: ='SC6'!A35 -> Other grant providers: | C37: =SUM(C38:C39) -> 0 | D37: 0 | E37: 0 | F37: 0 | G37: 0 | H37: 0 | I37: 0 | K37: =SUM(K38:K39) -> 0
A38: Municipal Demarcation Board | C38: 0 | D38: 0 | E38: 0 | F38: 0 | G38: 0 | H38: 0 | I38: =G38-H38 -> 0 | J38: =IF(H38=0,"",I38/H38) ->  | K38: 0
A39: Municipal Infrastructure Investment Unit | C39: 0 | D39: 0 | E39: 0 | F39: 0 | G39: 0 | H39: 0 | I39: =G39-H39 -> 0 | J39: =IF(H39=0,"",I39/H39) ->  | K39: 0
A40: Total capital expenditure of Transfers and Grants | C40: =C28+C32+C34+C37 -> 40289895.24 | D40: 45437793 | E40: 45437793 | F40: 2534817.39 | G40: 8328137 | H40: 18932425 | I40: -10604288 | J40: =IF(I40=0,"",I40/H40) -> -0.5601125054 | K40: =K28+K32+K34+K37 -> 45437793
A42: TOTAL EXPENDITURE OF TRANSFERS AND GRANTS | C42: =C25+C40 -> 158532040.1 | D42: 185446067 | E42: 186446067 | F42: 12178631.11 | G42: 58243963.47 | H42: 77492732.22 | I42: -19248768.75 | J42: =IF(I42=0,"",I42/H42) -> -0.2483945036 | K42: =K25+K40 -> 186446067
A43: =head27a -> References

Sheet SC7(2)
A1: =muni& " - "&S71T& " - "&Head57 -> LIM353 Molemole - Supporting Table SC7(2) Monthly Budget Statement - Expenditure against approved rollovers - M05 November
A2: =desc -> Description | B2: =head27 -> Ref | C2: =Head2 -> Budget Year 2021/22
C3: ="Approved Rollover " &Head1 -> Approved Rollover 2020/21 | D3: =Head38 -> Monthly actual | E3: =Head39 -> YearTD actual | F3: =Head41 -> YTD variance | G3: =Head41 -> YTD variance
A4: R thousands | G4: %
A5: EXPENDITURE
A7: Operating expenditure of Approved Roll-overs
A8: ='SC6'!A8 -> National Government: | C8: =SUM(C9:C9) -> 0 | D8: =SUM(D9:D9) -> 0 | E8: =SUM(E9:E9) -> 0 | F8: =SUM(F9:F9) -> 0 | G8: =IF(F8=0,"",F8/C8) -> 
A9: Local Government Equitable Share | C9: 0 | D9: 0 | E9: 0 | F9: =E9-C9 -> 0 | G9: =IF(C9=0,"",F9/C9) -> 
A10: ='SC6'!A16 -> Provincial Government: | C10: =SUM(C11:C11) -> 0 | D10: =SUM(D11:D11) -> 0 | E10: =SUM(E11:E11) -> 0 | F10: =SUM(F11:F11) -> 0 | G10: =IF(F10=0,"",F10/C10) -> 
F11: =C11-E11 -> 0
A12: ='SC6'!A19 -> District Municipality: | C12: =SUM(C13:C13) -> 0 | D12: =SUM(D13:D13) -> 0 | E12: =SUM(E13:E13) -> 0 | F12: =SUM(F13:F13) -> 0
F13: =C13-E13 -> 0
A14: ='SC6'!A22 -> Other grant providers: | C14: =SUM(C15:C15) -> 0 | D14: =SUM(D15:D15) -> 0 | E14: =SUM(E15:E15) -> 0 | F14: =SUM(F15:F15) -> 0
F15: =C15-E15 -> 0
A16: Total operating expenditure of Approved Roll-overs | C16: =C8+C10+C12+C14 -> 0 | D16: =D8+D10+D12+D14 -> 0 | E16: =E8+E10+E12+E14 -> 0 | F16: =F8+F10+F12+F14 -> 0
A18: Capital expenditure of Approved Roll-overs
A19: ='SC6'!A27 -> National Government: | C19: =SUM(C20:C20) -> 0 | D19: =SUM(D20:D20) -> 0 | E19: =SUM(E20:E20) -> 0 | F19: =SUM(F20:F20) -> 0
F20: =C20-E20 -> 0
A21: ='SC6'!A31 -> Provincial Government: | C21: =SUM(C22:C22) -> 0 | D21: =SUM(D22:D22) -> 0 | E21: =SUM(E22:E22) -> 0 | F21: =SUM(F22:F22) -> 0
F22: =C22-E22 -> 0
A23: ='SC6'!A33 -> District Municipality: | C23: =SUM(C24:C24) -> 0 | D23: =SUM(D24:D24) -> 0 | E23: =SUM(E24:E24) -> 0 | F23: =SUM(F24:F24) -> 0
F24: =C24-E24 -> 0
A25: ='SC6'!A35 -> Other grant providers: | C25: =SUM(C26:C26) -> 0 | D25: =SUM(D26:D26) -> 0 | E25: =SUM(E26:E26) -> 0 | F25: =SUM(F26:F26) -> 0
F26: =C26-E26 -> 0
A27: Total capital expenditure of Approved Roll-overs | C27: =C19+C21+C23+C25 -> 0 | D27: =D19+D21+D23+D25 -> 0 | E27: =E19+E21+E23+E25 -> 0 | F27: =F19+F21+F23+F25 -> 0
A29: TOTAL EXPENDITURE OF APPROVED ROLL-OVERS | C29: =C16+C27 -> 0 | D29: =D16+D27 -> 0 | E29: =E16+E27 -> 0 | F29: =F16+F27 -> 0
A30: =head27a -> References

Sheet SC8
A1: =muni& " - "&S71N& " - "&Head57 -> LIM353 Molemole - Supporting Table SC8 Monthly Budget Statement - councillor and staff benefits - M05 November
A2: Summary of Employee and Councillor remuneration | B2: =head27 -> Ref | C2: =Head1 -> 2020/21 | D2: =Head2 -> Budget Year 2021/22
C3: =Head5 -> Audited Outcome | D3: =Head6 -> Original Budget | E3: =Head7 -> Adjusted Budget | F3: =Head38 -> Monthly actual | G3: =Head39 -> YearTD actual | H3: =Head40 -> YearTD budget | I3: =Head41 -> YTD variance | J3: =Head41 -> YTD variance | K3: =Head8 -> Full Year Forecast
A4: R thousands | J4: %
B5: 1 | C5: A | D5: B | E5: C | K5: D
A6: Councillors (Political Office Bearers plus Other)
A7: Basic Salaries and Wages | C7: 8800187.16 | D7: 9975475 | E7: 9975475 | F7: 632649.28 | G7: 3570101 | H7: 4156465 | I7: =G7-H7 -> -586364 | J7: =IF(I7=0,"",I7/H7) -> -0.1410727626 | K7: 9975475
A8: Pension and UIF Contributions | I8: 0
A9: Medical Aid Contributions | I9: 0
A10: Motor Vehicle Allowance | I10: =G10-H10 -> 0 | J10: =IF(I10=0,"",I10/H10) -> 
A11: Cellphone Allowance | C11: 1414633.33 | D11: 1709626 | E11: 1709626 | F11: 107123.84 | G11: 567773.84 | H11: 712360 | I11: =G11-H11 -> -144586.16 | J11: =IF(I11=0,"",I11/H11) -> -0.2029678253 | K11: 1709626
A12: Housing Allowances | I12: =G12-H12 -> 0 | J12: =IF(I12=0,"",I12/H12) -> 
A13: Other benefits and allowances | C13: 2715433.78 | D13: 3325161 | E13: 3325161 | F13: 168719.35 | G13: 1001645.83 | H13: 1385500 | I13: -383854.17 | J13: -0.2770510069 | K13: 3325161
A14: Sub Total - Councillors | C14: =SUM(C7:C13) -> 12930254.27 | D14: 15010262 | E14: 15010262 | F14: 908492.47 | G14: 5139520.67 | H14: 6254325 | I14: -1114804.33 | J14: -0.178245347 | K14: 15010262
A15: % increase | B15: 4 | D15: =IF(D14=0,"",(D14/C14)-1) -> 0.1608636371 | E15: =IF(E14=0,"",(E14/C14)-1) -> 0.1608636371 | K15: =IF(K14=0,"",(K14/C14)-1) -> 0.1608636371
A17: Senior Managers of the Municipality | B17: 3
A18: Basic Salaries and Wages | C18: 4675436.37 | D18: 4659478 | E18: 4659478 | F18: 388499.38 | G18: 1947896.9 | H18: 1941465 | I18: =G18-H18 -> 6431.9 | J18: =IF(I18=0,"",I18/H18) -> 0.003312910611 | K18: 4659478
A19: Pension and UIF Contributions | C19: 0 | D19: 0 | E19: 0 | F19: 0 | G19: 0 | H19: 0 | I19: 0 | K19: 0
A20: Medical Aid Contributions | C20: 0 | D20: 0 | E20: 0 | F20: 0 | G20: 0 | H20: 0 | I20: 0 | K20: 0
A21: Overtime | C21: 0 | D21: 0 | E21: 0 | F21: 0 | G21: 0 | H21: 0 | I21: 0 | K21: 0
A22: Performance Bonus | C22: 0 | D22: 227659 | E22: 227659 | F22: 0 | G22: 0 | H22: 94875 | I22: =G22-H22 -> -94875 | J22: =IF(I22=0,"",I22/H22) -> -1 | K22: 227659
A23: Motor Vehicle Allowance | C23: 505599.8 | D23: 1160213 | E23: 1160213 | F23: 96684.11 | G23: 483420.55 | H23: 483435 | I23: =G23-H23 -> -14.45 | J23: =IF(I23=0,"",I23/H23) -> -2.989026446e-05 | K23: 1160213
A24: Cellphone Allowance | C24: 196666.47 | D24: 240000 | E24: 240000 | F24: 19999.98 | G24: 99999.9 | H24: 100020 | I24: =G24-H24 -> -20.1 | J24: =IF(I24=0,"",I24/H24) -> -0.000200959808 | K24: 240000
A25: Housing Allowances | C25: 0 | D25: 0 | E25: 0 | F25: 0 | G25: 0 | H25: 0 | I25: =G25-H25 -> 0 | J25: =IF(I25=0,"",I25/H25) ->  | K25: 0
A26: Other benefits and allowances | C26: 108780.87 | D26: 1304262 | E26: 1304262 | F26: 25677.39 | G26: 89413 | H26: 543455 | I26: -454042 | J26: -0.8354730382 | K26: 1304262
A27: Payments in lieu of leave | C27: 0 | D27: 0 | E27: 0 | F27: 0 | G27: 0 | H27: 0 | I27: 0 | K27: 0
A28: Long service awards | C28: 0 | D28: 0 | E28: 0 | F28: 0 | G28: 0 | H28: 0 | I28: 0 | K28: 0
A29: Post-retirement benefit obligations | B29: 2 | C29: 0 | D29: 0 | E29: 0 | F29: 0 | G29: 0 | H29: 0 | I29: 0 | K29: 0
A30: Sub Total - Senior Managers of Municipality | C30: =SUM(C18:C29) -> 5486483.51 | D30: 7591612 | E30: 7591612 | F30: =SUM(F18:F29) -> 530860.86 | G30: =SUM(G18:G29) -> 2620730.35 | H30: =SUM(H18:H29) -> 3163250 | I30: -542519.65 | J30: =IF(I30=0,"",I30/H30) -> -0.1715070418 | K30: 7591612
A31: % increase | B31: 4 | D31: =IF(D30=0,"",(D30/C30)-1) -> 0.3836935783 | E31: =IF(E30=0,"",(E30/C30)-1) -> 0.3836935783 | K31: =IF(K30=0,"",(K30/C30)-1) -> 0.3836935783
A33: Other Municipal Staff
A34: Basic Salaries and Wages | C34: 53515274.38 | D34: 57672878 | E34: 57672878 | F34: 4706526.28 | G34: 23339112.13 | H34: 24030495 | I34: =G34-H34 -> -691382.87 | J34: =IF(I34=0,"",I34/H34) -> -0.02877106235 | K34: 57672878
A35: Pension and UIF Contributions | C35: 10517235.36 | D35: 12467014 | E35: 12467014 | F35: 930181.27 | G35: 4657184.15 | H35: 5194740 | I35: -537555.85 | J35: -0.1034807998 | K35: 12467014
A36: Medical Aid Contributions | C36: 4453753.66 | D36: 5459279 | E36: 5459279 | F36: 387604.57 | G36: 1939218.13 | H36: 2274780 | I36: -335561.87 | J36: -0.1475139882 | K36: 5459279
A37: Overtime | C37: 0 | D37: 0 | E37: 0 | F37: 0 | G37: 0 | H37: 0 | I37: 0 | K37: 0
A38: Performance Bonus | C38: 4455561.78 | D38: 6152620 | E38: 6152620 | F38: 174484.81 | G38: 1779779.68 | H38: 2563735 | I38: -783955.32 | J38: -0.3057864093 | K38: 6152620
A39: Motor Vehicle Allowance | C39: 5514921.17 | D39: 6432632 | E39: 6432632 | F39: 477940.53 | G39: 2441400.66 | H39: 2680310 | I39: =G39-H39 -> -238909.34 | J39: =IF(I39=0,"",I39/H39) -> -0.08913496573 | K39: 6432632
A40: Cellphone Allowance | C40: 956649.81 | D40: 1138828 | E40: 1138828 | F40: 82096.82 | G40: 414479.6 | H40: 474555 | I40: =G40-H40 -> -60075.4 | J40: =IF(I40=0,"",I40/H40) -> -0.1265931241 | K40: 1138828
A41: Housing Allowances | C41: 177469.79 | D41: 397571 | E41: 397571 | F41: 15432.16 | G41: 77160.8 | H41: 165755 | I41: =G41-H41 -> -88594.2 | J41: =IF(I41=0,"",I41/H41) -> -0.534488854 | K41: 397571
A42: Other benefits and allowances | C42: 1475438.9 | D42: 2969119 | E42: 2969119 | F42: 141527.79 | G42: 661876.29 | H42: 1237335 | I42: -575458.71 | J42: -0.4650791499 | K42: 2969119
A43: Payments in lieu of leave | C43: 1835352.93 | D43: 1933468 | E43: 1933468 | F43: 0 | G43: 86281.24 | H43: 805675 | I43: -719393.76 | J43: -0.8929081329 | K43: 1933468
A44: Long service awards | C44: 721000 | D44: 1272097 | E44: 1272097 | F44: 17770.66 | G44: 127683.87 | H44: 530130 | I44: -402446.13 | J44: -0.7591461151 | K44: 1272097
A45: Post-retirement benefit obligations | B45: 2 | C45: 2546350.96 | D45: 2245158 | E45: 2245158 | F45: 0 | G45: 0 | H45: 935615 | I45: -935615 | J45: -1 | K45: 2245158
A46: Sub Total - Other Municipal Staff | C46: =SUM(C34:C45) -> 86169008.74 | D46: 98140664 | E46: 98140664 | F46: =SUM(F34:F45) -> 6933564.89 | G46: =SUM(G34:G45) -> 35524176.55 | H46: =SUM(H34:H45) -> 40893125 | I46: -5368948.45 | J46: =IF(I46=0,"",I46/H46) -> -0.1312922025 | K46: 98140664
A47: % increase | B47: 4 | D47: =IF(D46=0,"",(D46/C46)-1) -> 0.1389322616 | E47: =IF(E46=0,"",(E46/C46)-1) -> 0.1389322616 | K47: =IF(K46=0,"",(K46/C46)-1) -> 0.1389322616
A49: Total Parent Municipality | C49: =C14+C30+C46 -> 104585746.5 | D49: =D14+D30+D46 -> 120742538 | E49: 120742538 | F49: 8372918.22 | G49: 43284427.57 | H49: 50310700 | I49: =G49-H49 -> -7026272.43 | J49: =IF(I49=0,"",I49/H49) -> -0.1396576162 | K49: 120742538
D50: =IF(D49=0,"",(D49/C49)-1) -> 0.1544836846 | E50: =IF(E49=0,"",(E49/C49)-1) -> 0.1544836846 | K50: =IF(K49=0,"",(K49/C49)-1) -> 0.1544836846
A51: Unpaid salary, allowances & benefits in arrears:
A53: Board Members of Entities
A54: Basic Salaries and Wages | I54: =G54-H54 -> 0 | J54: =IF(I54=0,"",I54/H54) -> 
A55: Pension and UIF Contributions | I55: 0
A56: Medical Aid Contributions | I56: 0
A57: Overtime | I57: =G57-H57 -> 0 | J57: =IF(I57=0,"",I57/H57) -> 
A58: Performance Bonus | I58: =G58-H58 -> 0 | J58: =IF(I58=0,"",I58/H58) -> 
A59: Motor Vehicle Allowance | I59: =G59-H59 -> 0 | J59: =IF(I59=0,"",I59/H59) -> 
A60: Cellphone Allowance | I60: =G60-H60 -> 0 | J60: =IF(I60=0,"",I60/H60) -> 
A61: Housing Allowances | I61: =G61-H61 -> 0 | J61: =IF(I61=0,"",I61/H61) -> 
A62: Other benefits and allowances | I62: 0
A63: Board Fees | I63: =G63-H63 -> 0 | J63: =IF(I63=0,"",I63/H63) -> 
A64: Payments in lieu of leave | I64: 0
A65: Long service awards | I65: 0
A66: Post-retirement benefit obligations | I66: 0
A67: Sub Total - Board Members of Entities | B67: 2 | C67: =SUM(C54:C66) -> 0 | D67: 0 | E67: 0 | F67: =SUM(F54:F66) -> 0 | G67: =SUM(G54:G66) -> 0 | H67: =SUM(H54:H66) -> 0 | I67: 0 | J67: =IF(I67=0,"",I67/H67) ->  | K67: 0
A68: % increase | B68: 4 | D68: =IF(D67=0,"",(D67/C67)-1) ->  | E68: =IF(E67=0,"",(E67/C67)-1) ->  | K68: =IF(K67=0,"",(K67/C67)-1) -> 
A70: Senior Managers of Entities
A71: Basic Salaries and Wages | I71: =G71-H71 -> 0 | J71: =IF(I71=0,"",I71/H71) -> 
A72: Pension and UIF Contributions | I72: 0
A73: Medical Aid Contributions | I73: 0
A74: Overtime | I74: 0
A75: Performance Bonus | I75: =G75-H75 -> 0 | J75: =IF(I75=0,"",I75/H75) -> 
A76: Motor Vehicle Allowance | I76: =G76-H76 -> 0 | J76: =IF(I76=0,"",I76/H76) -> 
A77: Cellphone Allowance | I77: =G77-H77 -> 0 | J77: =IF(I77=0,"",I77/H77) -> 
A78: Housing Allowances | I78: =G78-H78 -> 0 | J78: =IF(I78=0,"",I78/H78) -> 
A79: Other benefits and allowances | I79: 0
A80: Payments in lieu of leave | I80: 0
A81: Long service awards | I81: 0
A82: Post-retirement benefit obligations | B82: 2 | I82: 0
A83: Sub Total - Senior Managers of Entities | C83: =SUM(C71:C82) -> 0 | D83: 0 | E83: 0 | F83: =SUM(F71:F82) -> 0 | G83: =SUM(G71:G82) -> 0 | H83: =SUM(H71:H82) -> 0 | I83: 0 | J83: =IF(I83=0,"",I83/H83) ->  | K83: 0
A84: % increase | B84: 4 | D84: =IF(D83=0,"",(D83/C83)-1) ->  | E84: =IF(E83=0,"",(E83/C83)-1) ->  | K84: =IF(K83=0,"",(K83/C83)-1) -> 
A86: Other Staff of Entities
A87: Basic Salaries and Wages | I87: =G87-H87 -> 0 | J87: =IF(I87=0,"",I87/H87) -> 
A88: Pension and UIF Contributions | I88: 0
A89: Medical Aid Contributions | I89: =G89-H89 -> 0 | J89: =IF(I89=0,"",I89/H89) -> 
A90: Overtime | I90: =G90-H90 -> 0 | J90: =IF(I90=0,"",I90/H90) -> 
A91: Performance Bonus | I91: =G91-H91 -> 0 | J91: =IF(I91=0,"",I91/H91) -> 
A92: Motor Vehicle Allowance | I92: =G92-H92 -> 0 | J92: =IF(I92=0,"",I92/H92) -> 
A93: Cellphone Allowance | I93: 0
A94: Housing Allowances | I94: 0
A95: Other benefits and allowances | I95: 0
A96: Payments in lieu of leave | I96: 0
A97: Long service awards | I97: 0
A98: Post-retirement benefit obligations | I98: 0
A99: Sub Total - Other Staff of Entities | C99: =SUM(C87:C98) -> 0 | D99: 0 | E99: 0 | F99: 0 | G99: 0 | H99: 0 | I99: 0 | J99: =IF(I99=0,"",I99/H99) ->  | K99: =SUM(K87:K98) -> 0
A100: % increase | B100: 4 | D100: =IF(D99=0,"",(D99/C99)-1) ->  | E100: =IF(E99=0,"",(E99/C99)-1) ->  | K100: =IF(K99=0,"",(K99/C99)-1) -> 
A102: Total Municipal Entities | C102: =C67+C83+C99 -> 0 | D102: 0 | E102: 0 | F102: 0 | G102: 0 | H102: 0 | I102: =G102-H102 -> 0 | J102: =IF(I102=0,"",I102/H102) ->  | K102: =K67+K83+K99 -> 0
A104: TOTAL SALARY, ALLOWANCES & BENEFITS | C104: =C49+C102 -> 104585746.5 | D104: 120742538 | E104: 120742538 | F104: 8372918.22 | G104: 43284427.57 | H104: 50310700 | I104: =G104-H104 -> -7026272.43 | J104: =IF(I104=0,"",I104/H104) -> -0.1396576162 | K104: =K49+K102 -> 120742538
A105: % increase | B105: 4 | D105: =IF(D104=0,"",(D104/C104)-1) -> 0.1544836846 | E105: =IF(E104=0,"",(E104/C104)-1) -> 0.1544836846 | K105: =IF(K104=0,"",(K104/C104)-1) -> 0.1544836846
A106: TOTAL MANAGERS AND STAFF | C106: =C30+C46+C83+C99 -> 91655492.25 | D106: 105732276 | E106: 105732276 | F106: 7464425.75 | G106: 38144906.9 | H106: 44056375 | I106: -5911468.1 | J106: =IF(I106=0,"",I106/H106) -> -0.1341796301 | K106: =K30+K46+K83+K99 -> 105732276
A107: =head27a -> References
A108: 1. Include 'Loans and advances' where applicable if any reportable amounts until phased compliance with s164 of MFMA achieved
A109: 2. If benefits in kind are provided (e.g. provision of living quarters) the full market value must be shown as the cost to the municipality
A110: 3. s57 of the Systems Act
A111: 4. B/A, C/A, D/A
A112: Column Definitions:
A113: A. Audited actual 2005/06 (audited financial statements). If audited amounts unavailable, unaudited amounts must be provided with a note stating these are unaudited
A114: B. The original budget approved by council for the 2006/07 budget year.
A115: C. The budget for 2006/07 budget year as adjusted by council resolution in terms of section 28 of the MFMA.
A116: D. An estimate of final actual amounts (pre audit - 2006/07 budget year) at the time of preparing the budget for the 2007/08 budget year. This may differ from C.

Sheet SC9
A1: =muni& " - "&S71O& " - "&Head57 -> LIM353 Molemole - Supporting Table SC9 Monthly Budget Statement - actuals and revised targets for cash receipts - M05 November
A2: =desc -> Description | B2: =head27 -> Ref | C2: =Head2 -> Budget Year 2021/22 | O2: ='Template names'!B5 -> 2021/22 Medium Term Revenue & Expenditure Framework
C3: July | D3: August | E3: Sept | F3: October | G3: Nov | H3: Dec | I3: January | J3: Feb | K3: March | L3: April | M3: May | N3: June | O3: =Head9 -> Budget Year 2021/22 | P3: =Head10 -> Budget Year +1 2022/23 | Q3: =Head11 -> Budget Year +2 2023/24
A4: R thousands | B4: 1 | C4: Outcome | D4: Outcome | E4: Outcome | F4: Outcome | G4: Outcome | H4: Budget | I4: Budget | J4: Budget | K4: Budget | L4: Budget | M4: Budget | N4: Budget
A5: Cash Receipts By Source
A6: Property rates | C6: 242272.81 | D6: 2165675.18 | E6: 615973.01 | F6: 513831.27 | G6: 471387.82 | H6: 4075667.17 | I6: 4075667.17 | J6: 4075667.17 | K6: 4075667.17 | L6: 4075667.17 | M6: 4075667.17 | N6: =O6-SUM(C6:M6) -> 20444862.89 | O6: 48908006 | P6: 50969919 | Q6: 53214626
A7: Service charges - electricity revenue | C7: 107005.26 | D7: 67330.43 | E7: 91103.93 | F7: 17076.21 | G7: 15270.62 | H7: 834819.25 | I7: 834819.25 | J7: 834819.25 | K7: 834819.25 | L7: 834819.25 | M7: 834819.25 | N7: 4711129.05 | O7: 10017831 | P7: 10438580 | Q7: 10897878
A8: Service charges - water revenue | C8: 13378.15 | D8: 103675.19 | E8: 56144.91 | F8: 22178.52 | G8: 15150.26 | H8: 95422 | I8: 95422 | J8: 95422 | K8: 95422 | L8: 95422 | M8: 95422 | N8: 362004.97 | O8: 1145064 | P8: 1259571 | Q8: 1385528
A9: Service charges - sanitation revenue | C9: 18510.67 | D9: 20342.64 | E9: 22407.09 | F9: 14649.73 | G9: 18886.39 | H9: 44535.92 | I9: 44535.92 | J9: 44535.92 | K9: 44535.92 | L9: 44535.92 | M9: 44535.92 | N9: 172418.96 | O9: 534431 | P9: 587874 | Q9: 646662
A10: Service charges - refuse | C10: 23286.44 | D10: 24480.14 | E10: 40307.55 | F10: 26142.27 | G10: 32743.65 | H10: 175990.75 | I10: 175990.75 | J10: 175990.75 | K10: 175990.75 | L10: 175990.75 | M10: 175990.75 | N10: 908984.45 | O10: 2111889 | P10: 2200588 | Q10: 2297414
A12: Rental of facilities and equipment | C12: 0 | D12: 36013.2 | E12: 18006.6 | F12: 2750.26 | G12: 34132.51 | H12: 21166.5 | I12: 21166.5 | J12: 21166.5 | K12: 21166.5 | L12: 21166.5 | M12: 21166.5 | N12: 36096.43 | O12: 253998 | P12: 264665 | Q12: 276311
A13: Interest earned - external investments | C13: 0 | D13: 0 | E13: 0 | F13: 0 | G13: 0 | H13: 0 | I13: 0 | J13: 0 | K13: 0 | L13: 0 | M13: 0 | N13: 0 | O13: 0 | P13: 0 | Q13: 0
A14: Interest earned - outstanding debtors | N14: 0
A15: Dividends received | N15: 0
A16: Fines, penalties and forfeits | C16: 5450 | D16: 1850 | E16: 5400 | F16: 6100 | G16: 3100 | H16: 111557.5 | I16: 111557.5 | J16: 111557.5 | K16: 111557.5 | L16: 111557.5 | M16: 111557.5 | N16: 647445 | O16: 1338690 | P16: 1397526 | Q16: 1460380
A17: Licences and permits | C17: 80066.34 | D17: 1086199.5 | E17: 1055418.49 | F17: 998723.99 | G17: 1398762.83 | H17: 640514.5 | I17: 640514.5 | J17: 640514.5 | K17: 640514.5 | L17: 640514.5 | M17: 640514.5 | N17: -776084.15 | O17: 7686174 | P17: 8024366 | Q17: 8385462
A18: Agency services | C18: 179320.99 | D18: 173090.8 | E18: 141593.82 | F18: 257577.61 | G18: 218050.38 | H18: 60142.42 | I18: 60142.42 | J18: 60142.42 | K18: 60142.42 | L18: 60142.42 | M18: 60142.42 | N18: -608779.12 | O18: 721709 | P18: 752021 | Q18: 785110
A19: Transfers and Subsidies - Operational | C19: 0 | D19: 358000 | E19: 2300000 | F19: 1000000 | G19: 0 | H19: 13507666.67 | I19: 13507666.67 | J19: 13507666.67 | K19: 13507666.67 | L19: 13507666.67 | M19: 13507666.67 | N19: 77387999.98 | O19: 162092000 | P19: 165985600 | Q19: 160880900
A20: Other revenue | C20: 245063972.3 | D20: 7677200.2 | E20: 31323545.9 | F20: 1642362.83 | G20: 3264269.32 | H20: 2345289.25 | I20: 2345289.25 | J20: 2345289.25 | K20: 2345289.25 | L20: 2345289.25 | M20: 2345289.25 | N20: -274899615 | O20: 28143471 | P20: 16202926 | Q20: 24853911
A21: Cash Receipts by Source | C21: =SUM(C6:C10)+SUM(C12:C20) -> 245733262.9 | D21: =SUM(D6:D10)+SUM(D12:D20) -> 11713857.28 | E21: 35669901.3 | F21: 4501392.69 | G21: 5471753.78 | H21: 21912771.93 | I21: 21912771.93 | J21: 21912771.93 | K21: 21912771.93 | L21: 21912771.93 | M21: 21912771.93 | N21: -171613536.6 | O21: 262953263 | P21: 258083636 | Q21: 265084182
N22: =O22-SUM(C22:M22) -> 0
A23: Other Cash Flows by Source | N23: 0
A24: ='C4-FinPerf RE'!A39 -> Transfers and subsidies - capital (monetary allocations) (National / Provincial and District) | C24: 10566000 | D24: 0 | E24: 0 | F24: 10513000 | G24: 0 | H24: 3762500 | I24: 3762500 | J24: 3762500 | K24: 3762500 | L24: 3762500 | M24: 3762500 | N24: 1496000 | O24: 45150000 | P24: 45802400 | Q24: 49385100
A25: ='C4-FinPerf RE'!A40 -> Transfers and subsidies - capital (monetary allocations) (National / Provincial Departmental Agencies, Households, Non-profit Institutions, Private Enterprises, Public Corporatons, Higher Educational Institutions) | N25: 0
A26: Proceeds on Disposal of Fixed and Intangible Assets | N26: 0
A27: Short term loans | N27: 0
A28: Borrowing long term/refinancing | N28: 0
A29: Increase (decrease) in consumer deposits | C29: 0 | D29: 0 | E29: 0 | F29: 0 | G29: 0 | H29: 0 | I29: 0 | J29: 0 | K29: 0 | L29: 0 | M29: 0 | N29: 180989.52 | O29: 180989.52 | P29: 68637 | Q29: 75500
A31: Decrease (increase) in non-current receivables | N31: 0
A32: Decrease (increase) in non-current investments | C32: 0 | D32: 0 | E32: 0 | F32: 0 | G32: 0 | H32: 0 | I32: 0 | J32: 0 | K32: 0 | L32: 0 | M32: 0 | N32: 0 | O32: 0 | P32: 0 | Q32: 0
A33: Total Cash Receipts by Source | C33: =SUM(C21:C29)+SUM(C31:C32) -> 256299262.9 | D33: =SUM(D21:D29)+SUM(D31:D32) -> 11713857.28 | E33: 35669901.3 | F33: 15014392.69 | G33: 5471753.78 | H33: 25675271.93 | I33: 25675271.93 | J33: 25675271.93 | K33: 25675271.93 | L33: 25675271.93 | M33: 25675271.93 | N33: -169936547 | O33: 308284252.5 | P33: 303954673 | Q33: 314544782
N34: =O34-SUM(C34:M34) -> 0
A35: Cash Payments by Type | N35: 0
A36: Employee related costs | C36: 4292.4 | D36: 17512307.2 | E36: 8746294.02 | F36: 10155675.08 | G36: 8717182.9 | H36: 10061856.17 | I36: 10061856.17 | J36: 10061856.17 | K36: 10061856.17 | L36: 10061856.17 | M36: 10061856.17 | N36: 15235385.38 | O36: 120742274 | P36: 129130100 | Q36: 138134207
A37: Remuneration of councillors | N37: 0
A38: Interest paid | N38: 0
A39: Bulk purchases - Electricity | C39: 0 | D39: 0 | E39: 0 | F39: 0 | G39: 0 | H39: 955681.58 | I39: 955681.58 | J39: 955681.58 | K39: 955681.58 | L39: 955681.58 | M39: 955681.58 | N39: 5734089.52 | O39: 11468179 | P39: 11949842 | Q39: 12475635
A40: Acquisitions - water & other inventory | N40: 0
A42: Contracted services | N42: 0
A43: Grants and subsidies paid - other municipalities | N43: 0
A44: Grants and subsidies paid - other | N44: 0
A45: General expenses | C45: 11588080.63 | D45: 12652517.44 | E45: 19880987.58 | F45: 10015750.54 | G45: 1217329.95 | H45: 7444130.08 | I45: 7444130.08 | J45: 7444130.08 | K45: 7444130.08 | L45: 7444130.08 | M45: 7444130.08 | N45: -10689885.62 | O45: 89329561 | P45: 88682958 | Q45: 89814082
A46: Cash Payments by Type | B46: =SUM(B36:B45) -> 0 | C46: =SUM(C36:C45) -> 11592373.03 | D46: =SUM(D36:D45) -> 30164824.64 | E46: 28627281.6 | F46: 20171425.62 | G46: 9934512.85 | H46: 18461667.83 | I46: 18461667.83 | J46: 18461667.83 | K46: 18461667.83 | L46: 18461667.83 | M46: 18461667.83 | N46: 10279589.28 | O46: 221540014 | P46: 229762900 | Q46: 240423924
N47: =O47-SUM(C47:M47) -> 0
A48: Other Cash Flows/Payments by Type
A49: Capital assets | C49: 0 | D49: 1021106.72 | E49: 5505209.65 | F49: 1396329.27 | G49: 2715337.03 | H49: 5449482.74 | I49: 5449482.74 | J49: 5449482.74 | K49: 5449482.74 | L49: 5449482.74 | M49: 5449482.74 | N49: =O49-SUM(C49:M49) -> 22058913.89 | O49: 65393793 | P49: 53106560 | Q49: 49815100
A50: Repayment of borrowing | N50: =O50-SUM(C50:M50) -> 0
A51: Other Cash Flows/Payments | C51: 0 | D51: 919818.6 | E51: 88665.93 | F51: 501797.08 | G51: 0 | H51: 0 | I51: 0 | J51: 0 | K51: 0 | L51: 0 | M51: 0 | N51: =O51-SUM(C51:M51) -> -1510281.61 | O51: 0 | P51: 0 | Q51: 0
A52: Total Cash Payments by Type | B52: =SUM(B46:B51) -> 0 | C52: 11592373.03 | D52: 32105749.96 | E52: 34221157.18 | F52: 22069551.97 | G52: 12649849.88 | H52: 23911150.57 | I52: 23911150.57 | J52: 23911150.57 | K52: 23911150.57 | L52: 23911150.57 | M52: 23911150.57 | N52: 30828221.56 | O52: 286933807 | P52: 282869460 | Q52: 290239024
N53: =O53-SUM(C53:M53) -> 0
A54: NET INCREASE/(DECREASE) IN CASH HELD | B54: =B33-B52 -> 0 | C54: 244706889.9 | D54: -20391892.68 | E54: 1448744.12 | F54: -7055159.28 | G54: -7178096.1 | H54: 1764121.36 | I54: 1764121.36 | J54: 1764121.36 | K54: 1764121.36 | L54: 1764121.36 | M54: 1764121.36 | N54: -200764768.6 | O54: 21350445.52 | P54: 21085213 | Q54: 24305758
A55: Cash/cash equivalents at the month/year beginning: | C55: 89543804.38 | D55: =C56 -> 334250694.3 | E55: =D56 -> 313858801.6 | F55: 315307545.7 | G55: 308252386.4 | H55: 301074290.3 | I55: 302838411.7 | J55: 304602533.1 | K55: 306366654.4 | L55: 308130775.8 | M55: 309894897.1 | N55: 311659018.5 | O55: =C55 -> 89543804.38 | P55: =O56 -> 110894249.9 | Q55: =P56 -> 131979462.9
A56: Cash/cash equivalents at the month/year end: | C56: =C54+C55 -> 334250694.3 | D56: =D54+D55 -> 313858801.6 | E56: =E54+E55 -> 315307545.7 | F56: 308252386.4 | G56: 301074290.3 | H56: 302838411.7 | I56: 304602533.1 | J56: 306366654.4 | K56: 308130775.8 | L56: 309894897.1 | M56: 311659018.5 | N56: 110894249.9 | O56: =O54+O55 -> 110894249.9 | P56: =P54+P55 -> 131979462.9 | Q56: =Q54+Q55 -> 156285220.9
A57: =head27a -> References
A58: 1. Replace 'budget' heading with adjusted budget, or 'outcome' only for month/s complete
A59: 2. Total of monthly amounts must always agree to the approved or adjusted budget
A60: 3. Amend 'cash-at-beginning' when prior year actual known (as part of the adjustments budget)
E65: =E46+E64 -> 28627281.6 | F65: 20171425.62 | G65: 9934512.85 | H65: 18461667.83 | I65: 18461667.83 | J65: 18461667.83 | K65: 18461667.83 | L65: 18461667.83 | N65: =N46+N64 -> 10279589.28 | O65: 221540014 | P65: 229762900
E66: =E54-E64 -> 1448744.12 | F66: -7055159.28 | G66: -7178096.1 | H66: 1764121.36 | I66: 1764121.36 | J66: 1764121.36 | K66: 1764121.36 | L66: 1764121.36 | M66: =M54-M64 -> 1764121.36 | N66: =N54-N64 -> -200764768.6 | O66: 21350445.52 | P66: 21085213

Sheet SC10
A1: =muni& " - "&S71P& " - "&Head57 -> LIM353 Molemole - NOT REQUIRED - municipality does not have entities or this is the parent municipality's budget - M05 November
A2: =desc -> Description | B2: =head27 -> Ref | C2: =Head1 -> 2020/21 | D2: =Head2 -> Budget Year 2021/22
C3: =Head5 -> Audited Outcome | D3: =Head6 -> Original Budget | E3: =Head7 -> Adjusted Budget | F3: =Head38 -> Monthly actual | G3: =Head39 -> YearTD actual | H3: =Head40 -> YearTD budget | I3: =Head41 -> YTD variance | J3: =Head41 -> YTD variance | K3: =Head8 -> Full Year Forecast
A4: R thousands | B4: 1 | J4: %
A5: ='C4-FinPerf RE'!A5 -> Revenue By Source
A6: ='C4-FinPerf RE'!A6 -> Property rates | I6: =G6-H6 -> 0 | J6: =IF(I6=0,"",I6/H6) -> 
A7: ='C4-FinPerf RE'!A7 -> Service charges - electricity revenue | I7: 0 | J7: =IF(I7=0,"",I7/H7) -> 
A8: ='C4-FinPerf RE'!A8 -> Service charges - water revenue | I8: 0
A9: ='C4-FinPerf RE'!A9 -> Service charges - sanitation revenue | I9: 0
A10: ='C4-FinPerf RE'!A10 -> Service charges - refuse revenue | I10: 0
A12: ='C4-FinPerf RE'!A12 -> Rental of facilities and equipment | I12: 0
A13: ='C4-FinPerf RE'!A13 -> Interest earned - external investments | I13: 0
A14: ='C4-FinPerf RE'!A14 -> Interest earned - outstanding debtors | I14: 0
A15: ='C4-FinPerf RE'!A15 -> Dividends received | I15: 0
A16: ='C4-FinPerf RE'!A16 -> Fines, penalties and forfeits | I16: 0
A17: ='C4-FinPerf RE'!A17 -> Licences and permits | I17: 0
A18: ='C4-FinPerf RE'!A18 -> Agency services | I18: 0
A19: ='C4-FinPerf RE'!A19 -> Transfers and subsidies | I19: 0
A20: ='C4-FinPerf RE'!A20 -> Other revenue | I20: 0
A21: ='C4-FinPerf RE'!A21 -> Gains | I21: 0
A22: Total Revenue (excluding capital transfers and contributions) | C22: =SUM(C6:C10)+SUM(C12:C21) -> 0 | D22: 0 | E22: 0 | F22: 0 | G22: 0 | H22: 0 | I22: =G22-H22 -> 0 | K22: =SUM(K6:K10)+SUM(K12:K21) -> 0
A24: Expenditure By Type
A25: ='C4-FinPerf RE'!A25 -> Employee related costs | I25: =G25-H25 -> 0 | J25: =IF(I25=0,"",I25/H25) -> 
A26: ='C4-FinPerf RE'!A26 -> Remuneration of councillors | I26: 0
A27: ='C4-FinPerf RE'!A27 -> Debt impairment | I27: 0
A28: ='C4-FinPerf RE'!A28 -> Depreciation & asset impairment | I28: 0
A29: ='C4-FinPerf RE'!A29 -> Finance charges | I29: 0
A30: ='C4-FinPerf RE'!A30 -> Bulk purchases - electricity | I30: 0
A31: ='C4-FinPerf RE'!A31 -> Inventory consumed | I31: 0
A32: ='C4-FinPerf RE'!A32 -> Contracted services | I32: 0
A33: ='C4-FinPerf RE'!A33 -> Transfers and subsidies | I33: 0
A34: ='C4-FinPerf RE'!A34 -> Other expenditure | I34: 0
A35: ='C4-FinPerf RE'!A35 -> Losses | I35: 0
A36: Total Expenditure | C36: =SUM(C25:C35) -> 0 | D36: 0 | E36: 0 | F36: 0 | G36: 0 | H36: 0 | I36: 0 | K36: =SUM(K25:K35) -> 0
I37: 0
A38: ='C4-FinPerf RE'!A38 -> Surplus/(Deficit) | C38: =C22-C36 -> 0 | D38: 0 | E38: 0 | F38: 0 | G38: 0 | H38: 0 | I38: 0 | K38: =K22-K36 -> 0
A39: ='C4-FinPerf RE'!A39 -> Transfers and subsidies - capital (monetary allocations) (National / Provincial and District) | I39: 0
A40: ='C4-FinPerf RE'!A40 -> Transfers and subsidies - capital (monetary allocations) (National / Provincial Departmental Agencies, Households, Non-profit Institutions, Private Enterprises, Public Corporatons, Higher Educational Institutions) | I40: 0
A41: ='C4-FinPerf RE'!A41 -> Transfers and subsidies - capital (in-kind - all) | I41: 0
A42: ='C4-FinPerf RE'!A42 -> Surplus/(Deficit) after capital transfers & contributions | C42: =C38+SUM(C39:C41) -> 0 | D42: =D38+SUM(D39:D41) -> 0 | E42: 0 | F42: 0 | G42: 0 | H42: 0 | I42: 0 | K42: 0
A43: ='C4-FinPerf RE'!A43 -> Taxation | I43: 0
A44: ='C4-FinPerf RE'!A44 -> Surplus/(Deficit) after taxation | C44: =C42-C43 -> 0 | D44: 0 | E44: 0 | F44: 0 | G44: 0 | H44: 0 | I44: 0 | K44: =K42-K43 -> 0
A45: =head27a -> References
A46: 1. Votes (consolidated) are revenue sources and expenditure type

Sheet SC11
A1: =muni& " - "&S71Q& " - "&Head57 -> LIM353 Molemole - NOT REQUIRED - municipality does not have entities or this is the parent municipality's budget - M05 November
A2: =desc -> Description | B2: =head27 -> Ref | C2: =Head1 -> 2020/21 | D2: =Head2 -> Budget Year 2021/22
C3: =Head5 -> Audited Outcome | D3: =Head6 -> Original Budget | E3: =Head7 -> Adjusted Budget | F3: =Head38 -> Monthly actual | G3: =Head39 -> YearTD actual | H3: =Head40 -> YearTD budget | I3: =Head41 -> YTD variance | J3: =Head41 -> YTD variance | K3: =Head8 -> Full Year Forecast
A4: R thousands | J4: %
A5: Revenue By Municipal Entity
A6: Insert name of municipal entity | I6: =G6-H6 -> 0 | J6: =IF(I6=0,"",I6/H6) -> 
I7: 0 | J7: =IF(I7=0,"",I7/H7) -> 
I8: 0
I9: 0
I10: 0
I11: 0
I12: 0
I13: 0
I14: 0
I15: 0
A16: Total Operating Revenue | B16: 1 | C16: =SUM(C6:C15) -> 0 | D16: 0 | E16: 0 | F16: 0 | G16: 0 | H16: 0 | I16: 0 | K16: =SUM(K6:K15) -> 0
A18: Expenditure By Municipal Entity
A19: =A6 -> Insert name of municipal entity | I19: 0 | J19: =IF(I19=0,"",I19/H19) -> 
A20: =IF(A7="","",A7) ->  | I20: 0
A21: =IF(A8="","",A8) ->  | I21: 0
I22: 0
I23: 0
I24: 0
I25: 0
I26: 0
I27: 0
I28: 0
A29: Total Operating Expenditure | B29: 2 | C29: =SUM(C19:C28) -> 0 | D29: 0 | E29: 0 | F29: 0 | G29: 0 | H29: 0 | I29: 0 | K29: =SUM(K19:K28) -> 0
A31: =Head42 -> Surplus/ (Deficit) for the yr/period | C31: =C16-C29 -> 0 | D31: =D16-D29 -> 0 | E31: 0 | F31: 0 | G31: 0 | H31: 0 | I31: =I16+I29 -> 0 | K31: 0
A32: Capital Expenditure By Municipal Entity
A33: =$A$6 -> Insert name of municipal entity | I33: 0
A34: =IF(A7="","",A7) ->  | I34: 0
A35: =IF(A8="","",A8) ->  | I35: 0
I36: 0
I37: 0
I38: 0
I39: 0
I40: 0
I41: 0
A43: Total Capital Expenditure | B43: 3 | C43: =SUM(C32:C42) -> 0 | D43: =SUM(D32:D42) -> 0 | E43: 0 | F43: 0 | G43: 0 | H43: =SUM(H32:H42) -> 0 | I43: =G43-H43 -> 0 | K43: 0
A44: =head27a -> References
A45: 1. Must reconcile to the sum of all municipal entity monthly revenue reports
A46: 2. Must reconcile to the sum of all municipal entity monthly expenditure reports
A47: 3. YTD = Year to date; FAV - favourable variance or unfavourable variance
A48: 4. Material variances to be explained
A49: 5. Insert additional 'Adjustment' Budget column for each Adjustment made by an entity

Sheet SC12
A1: =muni& " - "&S71R& " - "&Head57 -> LIM353 Molemole - Supporting Table SC12 Monthly Budget Statement - capital expenditure trend - M05 November
A2: Month | B2: =Head1 -> 2020/21 | C2: =Head2 -> Budget Year 2021/22
B3: =Head5 -> Audited Outcome | C3: =Head6 -> Original Budget | D3: =Head7 -> Adjusted Budget | E3: =Head38 -> Monthly actual | F3: =Head39 -> YearTD actual | G3: =Head40 -> YearTD budget | H3: =Head41 -> YTD variance | I3: =Head41 -> YTD variance | J3: % spend of Original Budget
A4: R thousands | I4: %
A5: Monthly expenditure performance trend
A6: July | B6: 0 | C6: 5449482.74 | D6: 5449490 | E6: 0 | F6: =IF(E6>0,E6,"") ->  | G6: =IF(D6>0,D6,C6) -> 5449490 | H6: =IF(F6="",0,G6-F6) -> 0 | I6: =IF(F6="","",IF(H6=0,"",H6/G6)) ->  | J6: =IF(F6="","",F6/$C$18) -> 
A7: August | B7: 0 | C7: 5449482.74 | D7: 5449490 | E7: 1021106.72 | F7: =IF(E7>0,E7+F6,"") ->  | G7: =IF(D7>0,D7+D6,C7+C6) -> 10898980
A8: September | B8: 6014144.52 | C8: 5449482.74 | D8: 5449490 | E8: 5505209.65 | F8: =IF(E8>0,E8+F7,"") ->  | G8: =IF(D8>0,D8+G7,C8+G7) -> 16348470
A9: October | B9: 2043057.47 | C9: 5449482.74 | D9: 5449490 | E9: 1396329.27 | G9: =IF(D9>0,D9+G8,C9+G8) -> 21797960
A10: November | B10: 2669340.98 | C10: 5449482.74 | D10: 5449490 | E10: 2715337.03 | G10: 27247450
A11: December | B11: 7680224.37 | C11: 5449482.74 | D11: 5449490 | E11: 0 | G11: 32696940 | H11: 0
A12: January | B12: 2917122.36 | C12: 5449482.74 | D12: 5449490 | E12: 0 | G12: 38146430 | H12: 0
A13: February | B13: 4447149.96 | C13: 5449482.74 | D13: 5449490 | E13: 0 | G13: 43595920 | H13: 0
A14: March | B14: 3097719.73 | C14: 5449482.74 | D14: 5449490 | E14: 0 | G14: 49045410 | H14: 0
A15: April | B15: 5493399.59 | C15: 5449482.74 | D15: 5449490 | E15: 0 | G15: 54494900 | H15: 0
A16: May | B16: 7993796.76 | C16: 5449482.74 | D16: 5449490 | E16: 0 | G16: 59944390 | H16: 0
A17: June | B17: 5487670.93 | C17: 5449482.86 | D17: 5449403 | E17: 0 | G17: 65393793 | H17: =IF(F17="",0,G17-F17) -> 0 | I17: =IF(F17="","",IF(H17=0,"",H17/G17)) ->  | J17: =IF(F17="","",F17/$C$18) -> 
A18: Total Capital expenditure | B18: =SUM(B6:B17) -> 47843626.67 | C18: =SUM(C6:C17) -> 65393793 | D18: =SUM(D6:D17) -> 65393793 | E18: =SUM(E6:E17) -> 10637982.67

Sheet SC13a
A1: =muni& " - "&S71Sa& " - "&Head57 -> LIM353 Molemole - Supporting Table SC13a Monthly Budget Statement - capital expenditure on new assets by asset class - M05 November
A2: =desc -> Description | B2: =head27 -> Ref | C2: =Head1 -> 2020/21 | D2: =Head2 -> Budget Year 2021/22
C3: =Head5 -> Audited Outcome | D3: =Head6 -> Original Budget | E3: =Head7 -> Adjusted Budget | F3: =Head38 -> Monthly actual | G3: =Head39 -> YearTD actual | H3: =Head40 -> YearTD budget | I3: =Head41 -> YTD variance | J3: =Head41 -> YTD variance | K3: =Head8 -> Full Year Forecast
A4: R thousands | B4: 1 | J4: %
A5: Capital expenditure on new assets by Asset Class/Sub-class
A7: Infrastructure | C7: =C8+C13+C17+C27+C38+C45+C53+C63+C69 -> 40076219.38 | D7: 58210000 | E7: 58210000 | F7: 2689497.03 | G7: 10115576 | H7: 24254180 | I7: =H7-G7 -> 14138604 | J7: =IF(I7=0,"",I7/H7) -> 0.5829347354 | K7: =K8+K13+K17+K27+K38+K45+K53+K63+K69 -> 58210000
A8: Roads Infrastructure | C8: =SUM(C9:C12) -> 28471825.76 | D8: 42110000 | E8: 42110000 | F8: 2689497.03 | G8: 10076160.14 | H8: 17545840 | I8: 7469679.86 | J8: 0.4257236963 | K8: =SUM(K9:K12) -> 42110000
A9: Roads | C9: 28471825.76 | D9: 42110000 | E9: 42110000 | F9: 2689497.03 | G9: 10076160.14 | H9: 17545840 | I9: 7469679.86 | J9: 0.4257236963 | K9: 42110000
A10: Road Structures | I10: 0
A11: Road Furniture | I11: 0
A12: Capital Spares | I12: 0
A13: Storm water Infrastructure | C13: =SUM(C14:C16) -> 0 | D13: 0 | E13: 0 | F13: 0 | G13: 0 | H13: 0 | I13: 0 | K13: =SUM(K14:K16) -> 0
A14: Drainage Collection | I14: 0
A15: Storm water Conveyance | I15: 0
A16: Attenuation | I16: 0
A17: Electrical Infrastructure | C17: =SUM(C18:C26) -> 11604393.62 | D17: 14300000 | E17: 14300000 | F17: 0 | G17: 39415.86 | H17: 5958340 | I17: 5918924.14 | J17: 0.9933847582 | K17: =SUM(K18:K26) -> 14300000
A18: Power Plants | I18: 0
A19: HV Substations | I19: 0
A20: HV Switching Station | I20: 0
A21: HV Transmission Conductors | I21: 0
A22: MV Substations | I22: 0
A23: MV Switching Stations | I23: 0
A24: MV Networks | I24: 0
A25: LV Networks | C25: 11604393.62 | D25: 14300000 | E25: 14300000 | F25: 0 | G25: 39415.86 | H25: 5958340 | I25: 5918924.14 | J25: 0.9933847582 | K25: 14300000
A26: Capital Spares | I26: 0
A27: Water Supply Infrastructure | C27: =SUM(C28:C37) -> 0 | D27: 0 | E27: 0 | F27: 0 | G27: 0 | H27: 0 | I27: 0 | K27: =SUM(K28:K37) -> 0
A28: Dams and Weirs | I28: 0
A29: Boreholes | I29: 0
A30: Reservoirs | I30: 0
A31: Pump Stations | I31: 0
A32: Water Treatment Works | I32: 0
A33: Bulk Mains | I33: 0
A34: Distribution | I34: 0
A35: Distribution Points | I35: 0
A36: PRV Stations | I36: 0
A37: Capital Spares | I37: 0
A38: Sanitation Infrastructure | C38: =SUM(C39:C44) -> 0 | D38: 0 | E38: 0 | F38: 0 | G38: 0 | H38: 0 | I38: 0 | K38: =SUM(K39:K44) -> 0
A39: Pump Station | I39: 0
A40: Reticulation | I40: =H40-G40 -> 0 | J40: =IF(I40=0,"",I40/H40) -> 
A41: Waste Water Treatment Works | I41: =H41-G41 -> 0 | J41: =IF(I41=0,"",I41/H41) -> 
A42: Outfall Sewers | I42: =H42-G42 -> 0 | J42: =IF(I42=0,"",I42/H42) -> 
A43: Toilet Facilities | I43: 0
A44: Capital Spares | I44: 0
A45: Solid Waste Infrastructure | C45: =SUM(C46:C52) -> 0 | D45: 1800000 | E45: 1800000 | F45: 0 | G45: 0 | H45: 750000 | I45: 750000 | J45: 1 | K45: =SUM(K46:K52) -> 1800000
A46: Landfill Sites | C46: 0 | D46: 1800000 | E46: 1800000 | F46: 0 | G46: 0 | H46: 750000 | I46: 750000 | J46: 1 | K46: 1800000
A47: Waste Transfer Stations | I47: 0
A48: Waste Processing Facilities | I48: =H48-G48 -> 0 | J48: =IF(I48=0,"",I48/H48) -> 
A49: Waste Drop-off Points | I49: 0
A50: Waste Separation Facilities | I50: 0
A51: Electricity Generation Facilities | I51: 0
A52: Capital Spares | I52: 0
A53: Rail Infrastructure | C53: =SUM(C54:C62) -> 0 | D53: 0 | E53: 0 | F53: 0 | G53: 0 | H53: 0 | I53: 0 | K53: =SUM(K54:K62) -> 0
A54: Rail Lines | I54: 0
A55: Rail Structures | I55: 0
A56: Rail Furniture | I56: 0
A57: Drainage Collection | I57: 0
A58: Storm water Conveyance | I58: 0
A59: Attenuation | I59: 0
A60: MV Substations | I60: 0
A61: LV Networks | I61: 0
A62: Capital Spares | I62: 0
A63: Coastal Infrastructure | C63: =SUM(C64:C68) -> 0 | D63: 0 | E63: 0 | F63: 0 | G63: 0 | H63: 0 | I63: 0 | K63: =SUM(K64:K68) -> 0
A64: Sand Pumps | I64: 0
A65: Piers | I65: 0
A66: Revetments | I66: 0
A67: Promenades | I67: 0
A68: Capital Spares | I68: 0
A69: Information and Communication Infrastructure | C69: =SUM(C70:C73) -> 0 | D69: 0 | E69: 0 | F69: 0 | G69: 0 | H69: 0 | I69: =H69-G69 -> 0 | K69: =SUM(K70:K73) -> 0
A70: Data Centres | I70: =H70-G70 -> 0
A71: Core Layers | I71: =H71-G71 -> 0 | J71: =IF(I71=0,"",I71/H71) -> 
A72: Distribution Layers | I72: =H72-G72 -> 0
A73: Capital Spares | I73: =H73-G73 -> 0
A75: Community Assets | C75: =+C76+C99 -> 0 | D75: 0 | E75: 0 | F75: 0 | G75: 0 | H75: 0 | I75: =H75-G75 -> 0 | K75: =+K76+K99 -> 0
A76: Community Facilities | C76: =SUM(C77:C98) -> 0 | D76: 0 | E76: 0 | F76: 0 | G76: 0 | H76: 0 | I76: =H76-G76 -> 0 | K76: =SUM(K77:K98) -> 0
A77: Halls | C77: 0 | D77: 0 | E77: 0 | F77: 0 | G77: 0 | H77: 0 | I77: 0 | K77: 0
A78: Centres | I78: 0
A79: Crèches | I79: 0
A80: Clinics/Care Centres | I80: 0
A81: Fire/Ambulance Stations | I81: 0
A82: Testing Stations | C82: 0 | D82: 0 | E82: 0 | F82: 0 | G82: 0 | H82: 0 | I82: 0 | K82: 0
A83: Museums | I83: 0
A84: Galleries | I84: 0
A85: Theatres | I85: 0
A86: Libraries | I86: 0
A87: Cemeteries/Crematoria | I87: 0
A88: Police | I88: 0
A89: Purls | I89: 0
A90: Public Open Space | C90: 0 | D90: 0 | E90: 0 | F90: 0 | G90: 0 | H90: 0 | I90: 0 | K90: 0
A91: Nature Reserves | I91: 0
A92: Public Ablution Facilities | I92: 0
A93: Markets | I93: 0
A94: Stalls | I94: 0
A95: Abattoirs | I95: 0
A96: Airports | I96: 0
A97: Taxi Ranks/Bus Terminals | I97: 0
A98: Capital Spares | I98: 0
A99: Sport and Recreation Facilities | C99: =SUM(C100:C102) -> 0 | D99: 0 | E99: 0 | F99: 0 | G99: 0 | H99: 0 | I99: 0 | K99: =SUM(K100:K102) -> 0
A100: Indoor Facilities | I100: 0
A101: Outdoor Facilities | C101: 0 | D101: 0 | E101: 0 | F101: 0 | G101: 0 | H101: 0 | I101: 0 | K101: 0
A102: Capital Spares | I102: 0
A103: Heritage assets | C103: =SUM(C104:C108) -> 0 | D103: 0 | E103: 0 | F103: 0 | G103: 0 | H103: 0 | I103: 0 | K103: =SUM(K104:K108) -> 0
A104: Monuments | I104: 0
A105: Historic Buildings | I105: 0
A106: Works of Art | I106: 0
A107: Conservation Areas | I107: 0
A108: Other Heritage | I108: 0
I109: 0
A110: Investment properties | C110: =+C111+C114 -> 0 | D110: 0 | E110: 0 | F110: 0 | G110: 0 | H110: 0 | I110: 0 | K110: =+K111+K114 -> 0
A111: Revenue Generating | C111: =SUM(C112:C113) -> 0 | D111: 0 | E111: 0 | F111: 0 | G111: 0 | H111: 0 | I111: 0 | K111: =SUM(K112:K113) -> 0
A112: Improved Property | I112: 0
A113: Unimproved Property | I113: 0
A114: Non-revenue Generating | C114: =SUM(C115:C116) -> 0 | D114: 0 | E114: 0 | F114: 0 | G114: 0 | H114: 0 | I114: 0 | K114: =SUM(K115:K116) -> 0
A115: Improved Property | I115: 0
A116: Unimproved Property | I116: 0
A117: Other assets | C117: =+C118+C130 -> 0 | D117: 2000000 | E117: 2000000 | F117: 0 | G117: 0 | H117: 833335 | I117: 833335 | J117: 1 | K117: =+K118+K130 -> 2000000
A118: Operational Buildings | C118: =SUM(C119:C129) -> 0 | D118: 2000000 | E118: 2000000 | F118: 0 | G118: 0 | H118: 833335 | I118: 833335 | J118: 1 | K118: =SUM(K119:K129) -> 2000000
A119: Municipal Offices | C119: 0 | D119: 2000000 | E119: 2000000 | F119: 0 | G119: 0 | H119: 833335 | I119: 833335 | J119: 1 | K119: 2000000
A120: Pay/Enquiry Points | I120: 0
A121: Building Plan Offices | I121: 0
A122: Workshops | C122: 0 | D122: 0 | E122: 0 | F122: 0 | G122: 0 | H122: 0 | I122: 0 | K122: 0
A123: Yards | I123: 0
A124: Stores | I124: 0
A125: Laboratories | I125: 0
A126: Training Centres | I126: 0
A127: Manufacturing Plant | I127: 0
A128: Depots | I128: 0
A129: Capital Spares | I129: 0
A130: Housing | C130: =SUM(C131:C133) -> 0 | D130: 0 | E130: 0 | F130: 0 | G130: 0 | H130: 0 | I130: 0 | K130: =SUM(K131:K133) -> 0
A131: Staff Housing | I131: 0
A132: Social Housing | I132: 0
A133: Capital Spares | I133: 0
A135: Biological or Cultivated Assets | C135: =SUM(C136:C136) -> 0 | D135: 0 | E135: 0 | F135: 0 | G135: 0 | H135: 0 | I135: =H135-G135 -> 0 | J135: =IF(I135=0,"",I135/H135) ->  | K135: =SUM(K136) -> 0
A136: Biological or Cultivated Assets | I136: =H136-G136 -> 0
A138: Intangible Assets | C138: =SUM(C139:C140) -> 0 | D138: 0 | E138: 0 | F138: 0 | G138: 0 | H138: 0 | I138: =H138-G138 -> 0 | K138: =SUM(K139:K140) -> 0
A139: Servitudes | I139: 0
A140: Licences and Rights | C140: =SUM(C141:C146) -> 0 | D140: 0 | E140: 0 | F140: 0 | G140: 0 | H140: 0 | I140: 0 | K140: =SUM(K141:K146) -> 0
A141: Water Rights | I141: 0
A142: Effluent Licenses | I142: 0
A143: Solid Waste Licenses | I143: 0
A144: Computer Software and Applications | C144: 0 | D144: 0 | E144: 0 | F144: 0 | G144: 0 | H144: 0 | I144: 0 | K144: 0
A145: Load Settlement Software Applications | I145: 0
A146: Unspecified | I146: 0
A148: Computer Equipment | C148: =SUM(C149:C149) -> 1518852.17 | D148: 723793 | E148: 723793 | F148: 0 | G148: 0 | H148: 301585 | I148: =H148-G148 -> 301585 | J148: =IF(I148=0,"",I148/H148) -> 1 | K148: =SUM(K149) -> 723793
A149: Computer Equipment | C149: 1518852.17 | D149: 723793 | E149: 723793 | F149: 0 | G149: 0 | H149: 301585 | I149: =H149-G149 -> 301585 | J149: =IF(I149=0,"",I149/H149) -> 1 | K149: 723793
A151: Furniture and Office Equipment | C151: =SUM(C152:C152) -> 299643.69 | D151: 350000 | E151: 350000 | F151: 0 | G151: 0 | H151: 145835 | I151: =H151-G151 -> 145835 | J151: =IF(I151=0,"",I151/H151) -> 1 | K151: =SUM(K152) -> 350000
A152: Furniture and Office Equipment | C152: 299643.69 | D152: 350000 | E152: 350000 | F152: 0 | G152: 0 | H152: 145835 | I152: =H152-G152 -> 145835 | J152: =IF(I152=0,"",I152/H152) -> 1 | K152: 350000
J153: =IF(I153=0,"",I153/H153) -> 
A154: Machinery and Equipment | C154: =SUM(C155:C155) -> 437646.27 | D154: 800000 | E154: 800000 | F154: 25840 | G154: 25840 | H154: 333340 | I154: =H154-G154 -> 307500 | J154: =IF(I154=0,"",I154/H154) -> 0.9224815504 | K154: =SUM(K155) -> 800000
A155: Machinery and Equipment | C155: 437646.27 | D155: 800000 | E155: 800000 | F155: 25840 | G155: 25840 | H155: 333340 | I155: =H155-G155 -> 307500 | J155: =IF(I155=0,"",I155/H155) -> 0.9224815504 | K155: 800000
A157: Transport Assets | C157: =SUM(C158:C158) -> 855552.78 | D157: 1500000 | E157: 1500000 | F157: 0 | G157: 0 | H157: 625000 | I157: =H157-G157 -> 625000 | J157: =IF(I157=0,"",I157/H157) -> 1 | K157: =SUM(K158) -> 1500000
A158: Transport Assets | C158: 855552.78 | D158: 1500000 | E158: 1500000 | F158: 0 | G158: 0 | H158: 625000 | I158: =H158-G158 -> 625000 | J158: =IF(I158=0,"",I158/H158) -> 1 | K158: 1500000
A160: Land | C160: =SUM(C161:C161) -> 0 | D160: 0 | E160: 0 | F160: 0 | G160: 0 | H160: 0 | I160: =H160-G160 -> 0 | J160: =IF(I160=0,"",I160/H160) ->  | K160: =SUM(K161) -> 0
A161: Land | I161: =H161-G161 -> 0 | J161: =IF(I161=0,"",I161/H161) -> 
A163: Zoo's, Marine and Non-biological Animals | C163: =SUM(C164:C164) -> 0 | D163: 0 | E163: 0 | F163: 0 | G163: 0 | H163: 0 | I163: =H163-G163 -> 0 | J163: =IF(I163=0,"",I163/H163) ->  | K163: =SUM(K164) -> 0
A164: Zoo's, Marine and Non-biological Animals | I164: =H164-G164 -> 0 | J164: =IF(I164=0,"",I164/H164) -> 
J165: =IF(I165=0,"",I165/H165) -> 
A166: Total Capital Expenditure on new assets | B166: 1 | C166: =C7+C75+C103+C110+C117+C135+C138+C148+C151+C154+C157+C160+C163 -> 43187914.29 | D166: 63583793 | E166: 63583793 | F166: 2715337.03 | G166: 10141416 | H166: 26493275 | I166: =H166-G166 -> 16351859 | J166: =IF(I166=0,"",I166/H166) -> 0.6172079141 | K166: =K7+K75+K103+K110+K117+K135+K138+K148+K151+K154+K157+K160+K163 -> 63583793
A168: =head27a -> References
A169: 1. Total Capital Expenditure on new assets (SC13a) plus Total Capital Expenditure on renewal of existing assets (SC13b) plus Total Capital Expenditure on upgrading of existing assets (SC13e) must reconcile to total capital expenditure in Table C5
A171: check balance | C171: =C166+SC13b!C166+SC13e!C166-'C5-Capex'!C40 -> 0 | D171: =D166+SC13b!D166+SC13e!D166-'C5-Capex'!D40 -> 0 | E171: =E166+SC13b!E166+SC13e!E166-'C5-Capex'!E40 -> 0 | F171: =F166+SC13b!F166+SC13e!F166-'C5-Capex'!F40 -> 0 | G171: =G166+SC13b!G166+SC13e!G166-'C5-Capex'!G40 -> 0 | H171: =H166+SC13b!H166+SC13e!H166-'C5-Capex'!H40 -> 0 | K171: =K166+SC13b!K166+SC13e!K166-'C5-Capex'!K40 -> 0

Sheet SC13b
A1: =muni& " - "&S71Sb& " - "&Head57 -> LIM353 Molemole - Supporting Table SC13b Monthly Budget Statement - capital expenditure on renewal of existing assets by asset class - M05 November
A2: =desc -> Description | B2: =head27 -> Ref | C2: =Head1 -> 2020/21 | D2: =Head2 -> Budget Year 2021/22
C3: =Head5 -> Audited Outcome | D3: =Head6 -> Original Budget | E3: =Head7 -> Adjusted Budget | F3: =Head38 -> Monthly actual | G3: =Head39 -> YearTD actual | H3: =Head40 -> YearTD budget | I3: =Head41 -> YTD variance | J3: =Head41 -> YTD variance | K3: =Head8 -> Full Year Forecast
A4: R thousands | B4: 1 | J4: %
A5: Capital expenditure on renewal of existing assets by Asset Class/Sub-class
A7: Infrastructure | C7: =C8+C13+C17+C27+C38+C45+C53+C63+C69 -> 348337.4 | D7: 1200000 | E7: 1200000 | F7: 0 | G7: 496566.67 | H7: 500005 | I7: =H7-G7 -> 3438.33 | J7: =IF(I7=0,"",I7/H7) -> 0.006876591234 | K7: =K8+K13+K17+K27+K38+K45+K53+K63+K69 -> 1200000
A8: Roads Infrastructure | C8: =SUM(C9:C12) -> 159302.6 | D8: 0 | E8: 0 | F8: 0 | G8: 0 | H8: 0 | I8: 0 | K8: =SUM(K9:K12) -> 0
A9: Roads | C9: 159302.6 | D9: 0 | E9: 0 | F9: 0 | G9: 0 | H9: 0 | I9: 0 | K9: 0
A10: Road Structures | I10: 0
A11: Road Furniture | I11: 0
A12: Capital Spares | I12: 0
A13: Storm water Infrastructure | C13: =SUM(C14:C16) -> 0 | D13: 0 | E13: 0 | F13: 0 | G13: 0 | H13: 0 | I13: 0 | K13: =SUM(K14:K16) -> 0
A14: Drainage Collection | I14: 0
A15: Storm water Conveyance | I15: 0
A16: Attenuation | I16: 0
A17: Electrical Infrastructure | C17: =SUM(C18:C26) -> 189034.8 | D17: 1200000 | E17: 1200000 | F17: 0 | G17: 496566.67 | H17: 500005 | I17: 3438.33 | J17: 0.006876591234 | K17: =SUM(K18:K26) -> 1200000
A18: Power Plants | I18: 0
A19: HV Substations | I19: 0
A20: HV Switching Station | I20: 0
A21: HV Transmission Conductors | I21: 0
A22: MV Substations | I22: 0
A23: MV Switching Stations | I23: 0
A24: MV Networks | I24: 0
A25: LV Networks | C25: 189034.8 | D25: 1200000 | E25: 1200000 | F25: 0 | G25: 496566.67 | H25: 500005 | I25: 3438.33 | J25: 0.006876591234 | K25: 1200000
A26: Capital Spares | I26: 0
A27: Water Supply Infrastructure | C27: =SUM(C28:C37) -> 0 | D27: 0 | E27: 0 | F27: 0 | G27: 0 | H27: 0 | I27: 0 | K27: =SUM(K28:K37) -> 0
A28: Dams and Weirs | I28: 0
A29: Boreholes | I29: 0
A30: Reservoirs | I30: 0
A31: Pump Stations | I31: 0
A32: Water Treatment Works | I32: 0
A33: Bulk Mains | I33: 0
A34: Distribution | I34: 0
A35: Distribution Points | I35: 0
A36: PRV Stations | I36: 0
A37: Capital Spares | I37: 0
A38: Sanitation Infrastructure | C38: =SUM(C39:C44) -> 0 | D38: 0 | E38: 0 | F38: 0 | G38: 0 | H38: 0 | I38: 0 | K38: =SUM(K39:K44) -> 0
A39: Pump Station | I39: 0
A40: Reticulation | I40: 0
A41: Waste Water Treatment Works | I41: 0
A42: Outfall Sewers | I42: 0
A43: Toilet Facilities | I43: 0
A44: Capital Spares | I44: 0
A45: Solid Waste Infrastructure | C45: =SUM(C46:C52) -> 0 | D45: 0 | E45: 0 | F45: 0 | G45: 0 | H45: 0 | I45: 0 | K45: =SUM(K46:K52) -> 0
A46: Landfill Sites | I46: 0
A47: Waste Transfer Stations | I47: 0
A48: Waste Processing Facilities | I48: 0
A49: Waste Drop-off Points | I49: 0
A50: Waste Separation Facilities | I50: 0
A51: Electricity Generation Facilities | I51: 0
A52: Capital Spares | I52: 0
A53: Rail Infrastructure | C53: =SUM(C54:C62) -> 0 | D53: 0 | E53: 0 | F53: 0 | G53: 0 | H53: 0 | I53: 0 | K53: =SUM(K54:K62) -> 0
A54: Rail Lines | I54: 0
A55: Rail Structures | I55: 0
A56: Rail Furniture | I56: 0
A57: Drainage Collection | I57: 0
A58: Storm water Conveyance | I58: 0
A59: Attenuation | I59: 0
A60: MV Substations | I60: 0
A61: LV Networks | C61: 0 | D61: 0 | E61: 0 | F61: 0 | G61: 0 | H61: 0 | I61: 0 | K61: 0
A62: Capital Spares | I62: 0
A63: Coastal Infrastructure | C63: =SUM(C64:C68) -> 0 | D63: 0 | E63: 0 | F63: 0 | G63: 0 | H63: 0 | I63: 0 | K63: =SUM(K64:K68) -> 0
A64: Sand Pumps | I64: 0
A65: Piers | I65: 0
A66: Revetments | I66: 0
A67: Promenades | I67: 0
A68: Capital Spares | I68: 0
A69: Information and Communication Infrastructure | C69: =SUM(C70:C73) -> 0 | D69: 0 | E69: 0 | F69: 0 | G69: 0 | H69: 0 | I69: 0 | K69: =SUM(K70:K73) -> 0
A70: Data Centres | I70: 0
A71: Core Layers | I71: 0
A72: Distribution Layers | I72: 0
A73: Capital Spares | I73: 0
A75: Community Assets | C75: =+C76+C99 -> 3677811.73 | D75: 0 | E75: 0 | F75: 0 | G75: 0 | H75: 0 | I75: 0 | K75: =+K76+K99 -> 0
A76: Community Facilities | C76: =SUM(C77:C98) -> 0 | D76: 0 | E76: 0 | F76: 0 | G76: 0 | H76: 0 | I76: 0 | K76: =SUM(K77:K98) -> 0
A77: Halls | I77: 0
A78: Centres | I78: 0
A79: Crèches | I79: 0
A80: Clinics/Care Centres | I80: 0
A81: Fire/Ambulance Stations | I81: 0
A82: Testing Stations | I82: 0
A83: Museums | I83: 0
A84: Galleries | I84: 0
A85: Theatres | I85: 0
A86: Libraries | I86: 0
A87: Cemeteries/Crematoria | I87: 0
A88: Police | I88: 0
A89: Purls | I89: 0
A90: Public Open Space | I90: 0
A91: Nature Reserves | I91: 0
A92: Public Ablution Facilities | I92: 0
A93: Markets | I93: 0
A94: Stalls | I94: 0
A95: Abattoirs | I95: 0
A96: Airports | I96: 0
A97: Taxi Ranks/Bus Terminals | I97: 0
A98: Capital Spares | I98: 0
A99: Sport and Recreation Facilities | C99: =SUM(C100:C102) -> 3677811.73 | D99: 0 | E99: 0 | F99: 0 | G99: 0 | H99: 0 | I99: 0 | K99: =SUM(K100:K102) -> 0
A100: Indoor Facilities | C100: 0 | D100: 0 | E100: 0 | F100: 0 | G100: 0 | H100: 0 | I100: 0 | K100: 0
A101: Outdoor Facilities | C101: 3677811.73 | D101: 0 | E101: 0 | F101: 0 | G101: 0 | H101: 0 | I101: =H101-G101 -> 0 | J101: =IF(I101=0,"",I101/H101) ->  | K101: 0
A102: Capital Spares | I102: 0
A103: Heritage assets | C103: =SUM(C104:C108) -> 0 | D103: 0 | E103: 0 | F103: 0 | G103: 0 | H103: 0 | I103: 0 | K103: =SUM(K104:K108) -> 0
A104: Monuments | I104: 0
A105: Historic Buildings | I105: 0
A106: Works of Art | I106: 0
A107: Conservation Areas | I107: 0
A108: Other Heritage | I108: 0
I109: 0
A110: Investment properties | C110: =+C111+C114 -> 0 | D110: 0 | E110: 0 | F110: 0 | G110: 0 | H110: 0 | I110: 0 | K110: =+K111+K114 -> 0
A111: Revenue Generating | C111: =SUM(C112:C113) -> 0 | D111: 0 | E111: 0 | F111: 0 | G111: 0 | H111: 0 | I111: 0 | K111: =SUM(K112:K113) -> 0
A112: Improved Property | I112: 0
A113: Unimproved Property | I113: 0
A114: Non-revenue Generating | C114: =SUM(C115:C116) -> 0 | D114: 0 | E114: 0 | F114: 0 | G114: 0 | H114: 0 | I114: 0 | K114: =SUM(K115:K116) -> 0
A115: Improved Property | I115: 0
A116: Unimproved Property | I116: =H116-G116 -> 0 | J116: =IF(I116=0,"",I116/H116) -> 
A117: Other assets | C117: =+C118+C130 -> 0 | D117: 0 | E117: 0 | F117: 0 | G117: 0 | H117: 0 | I117: 0 | K117: =+K118+K130 -> 0
A118: Operational Buildings | C118: =SUM(C119:C129) -> 0 | D118: 0 | E118: 0 | F118: 0 | G118: 0 | H118: 0 | I118: 0 | K118: =SUM(K119:K129) -> 0
A119: Municipal Offices | C119: 0 | D119: 0 | E119: 0 | F119: 0 | G119: 0 | H119: 0 | I119: 0 | K119: 0
A120: Pay/Enquiry Points | I120: 0
A121: Building Plan Offices | I121: 0
A122: Workshops | I122: 0
A123: Yards | I123: 0
A124: Stores | I124: 0
A125: Laboratories | I125: 0
A126: Training Centres | I126: 0
A127: Manufacturing Plant | I127: 0
A128: Depots | I128: 0
A129: Capital Spares | I129: 0
A130: Housing | C130: =SUM(C131:C133) -> 0 | D130: 0 | E130: 0 | F130: 0 | G130: 0 | H130: 0 | I130: 0 | K130: =SUM(K131:K133) -> 0
A131: Staff Housing | I131: 0
A132: Social Housing | I132: 0
A133: Capital Spares | I133: 0
A135: Biological or Cultivated Assets | C135: =SUM(C136:C136) -> 0 | D135: 0 | E135: 0 | F135: 0 | G135: 0 | H135: 0 | I135: =H135-G135 -> 0 | K135: =SUM(K136) -> 0
A136: Biological or Cultivated Assets | I136: =H136-G136 -> 0
J137: =IF(I137=0,"",I137/H137) -> 
A138: Intangible Assets | C138: =SUM(C139:C140) -> 0 | D138: 0 | E138: 0 | F138: 0 | G138: 0 | H138: 0 | I138: =H138-G138 -> 0 | K138: =SUM(K139:K140) -> 0
A139: Servitudes | I139: 0
A140: Licences and Rights | C140: =SUM(C141:C146) -> 0 | D140: 0 | E140: 0 | F140: 0 | G140: 0 | H140: 0 | I140: 0 | K140: =SUM(K141:K146) -> 0
A141: Water Rights | I141: 0
A142: Effluent Licenses | I142: 0
A143: Solid Waste Licenses | I143: 0
A144: Computer Software and Applications | C144: 0 | D144: 0 | E144: 0 | F144: 0 | G144: 0 | H144: 0 | I144: 0 | K144: 0
A145: Load Settlement Software Applications | I145: 0
A146: Unspecified | I146: 0
A148: Computer Equipment | C148: =SUM(C149:C149) -> 2842443.65 | D148: 0 | E148: 0 | F148: 0 | G148: 0 | H148: 0 | I148: =H148-G148 -> 0 | J148: =IF(I148=0,"",I148/H148) ->  | K148: =SUM(K149) -> 0
A149: Computer Equipment | C149: 2842443.65 | D149: 0 | E149: 0 | F149: 0 | G149: 0 | H149: 0 | I149: =H149-G149 -> 0 | J149: =IF(I149=0,"",I149/H149) ->  | K149: 0
A151: Furniture and Office Equipment | C151: =SUM(C152:C152) -> 0 | D151: 300000 | E151: 300000 | F151: 0 | G151: 0 | H151: 125000 | I151: =H151-G151 -> 125000 | J151: =IF(I151=0,"",I151/H151) -> 1 | K151: =SUM(K152) -> 300000
A152: Furniture and Office Equipment | C152: 0 | D152: 300000 | E152: 300000 | F152: 0 | G152: 0 | H152: 125000 | I152: =H152-G152 -> 125000 | J152: =IF(I152=0,"",I152/H152) -> 1 | K152: 300000
J153: =IF(I153=0,"",I153/H153) -> 
A154: Machinery and Equipment | C154: =SUM(C155:C155) -> 0 | D154: 0 | E154: 0 | F154: 0 | G154: 0 | H154: 0 | I154: =H154-G154 -> 0 | J154: =IF(I154=0,"",I154/H154) ->  | K154: =SUM(K155) -> 0
A155: Machinery and Equipment | I155: =H155-G155 -> 0 | J155: =IF(I155=0,"",I155/H155) -> 
A157: Transport Assets | C157: =SUM(C158:C158) -> 0 | D157: 0 | E157: 0 | F157: 0 | G157: 0 | H157: 0 | I157: =H157-G157 -> 0 | J157: =IF(I157=0,"",I157/H157) ->  | K157: =SUM(K158) -> 0
A158: Transport Assets | I158: =H158-G158 -> 0 | J158: =IF(I158=0,"",I158/H158) -> 
A160: Land | C160: =SUM(C161:C161) -> 0 | D160: 0 | E160: 0 | F160: 0 | G160: 0 | H160: 0 | I160: =H160-G160 -> 0 | J160: =IF(I160=0,"",I160/H160) ->  | K160: =SUM(K161) -> 0
A161: Land | I161: =H161-G161 -> 0 | J161: =IF(I161=0,"",I161/H161) -> 
J162: .
A163: Zoo's, Marine and Non-biological Animals | C163: =SUM(C164:C164) -> 0 | D163: 0 | E163: 0 | F163: 0 | G163: 0 | H163: 0 | I163: =H163-G163 -> 0 | J163: =IF(I163=0,"",I163/H163) ->  | K163: =SUM(K164) -> 0
A164: Zoo's, Marine and Non-biological Animals | I164: =H164-G164 -> 0 | J164: =IF(I164=0,"",I164/H164) -> 
J165: =IF(I165=0,"",I165/H165) -> 
A166: Total Capital Expenditure on renewal of existing assets | B166: 1 | C166: =C7+C75+C103+C110+C117+C135+C138+C148+C151+C154+C157+C160+C163 -> 6868592.78 | D166: 1500000 | E166: 1500000 | F166: 0 | G166: 496566.67 | H166: 625005 | I166: =H166-G166 -> 128438.33 | J166: =IF(I166=0,"",I166/H166) -> 0.205499684 | K166: =K7+K75+K103+K110+K117+K135+K138+K148+K151+K154+K157+K160+K163 -> 1500000
A168: =head27a -> References
A169: 1. Total Capital Expenditure on new assets (SC13a) plus Total Capital Expenditure on renewal of existing assets (SC13b) plus Total Capital Expenditure on upgrading of existing assets (SC13e) must reconcile to total capital expenditure in Table C5
A171: check balance | C171: =C166+SC13a!C166+SC13e!C166-'C5-Capex'!C40 -> 0 | D171: =D166+SC13a!D166+SC13e!D166-'C5-Capex'!D40 -> 0 | E171: =E166+SC13a!E166+SC13e!E166-'C5-Capex'!E40 -> 0 | F171: =F166+SC13a!F166+SC13e!F166-'C5-Capex'!F40 -> 0 | G171: =G166+SC13a!G166+SC13e!G166-'C5-Capex'!G40 -> 0 | H171: =H166+SC13a!H166+SC13e!H166-'C5-Capex'!H40 -> 0 | K171: =K166+SC13a!K166+SC13e!K166-'C5-Capex'!K40 -> 0

Sheet SC13c
A1: =muni& " - "&S71Sc& " - "&Head57 -> LIM353 Molemole - Supporting Table SC13c Monthly Budget Statement - expenditure on repairs and maintenance by asset class - M05 November
A2: =desc -> Description | B2: =head27 -> Ref | C2: =Head1 -> 2020/21 | D2: =Head2 -> Budget Year 2021/22
C3: =Head5 -> Audited Outcome | D3: =Head6 -> Original Budget | E3: =Head7 -> Adjusted Budget | F3: =Head38 -> Monthly actual | G3: =Head39 -> YearTD actual | H3: =Head40 -> YearTD budget | I3: =Head41 -> YTD variance | J3: =Head41 -> YTD variance | K3: =Head8 -> Full Year Forecast
A4: R thousands | B4: 1 | J4: %
A5: Repairs and maintenance expenditure by Asset Class/Sub-class
A7: Infrastructure | C7: =C8+C13+C17+C27+C38+C45+C53+C63+C69 -> 7759768.58 | D7: 7864718 | E7: 8864718 | F7: 264530.74 | G7: 675137.17 | H7: 3499192.22 | I7: =H7-G7 -> 2824055.05 | J7: =IF(I7=0,"",I7/H7) -> 0.8070591361 | K7: =K8+K13+K17+K27+K38+K45+K53+K63+K69 -> 8864718
A8: Roads Infrastructure | C8: =SUM(C9:C12) -> 7759768.58 | D8: 7864718 | E8: 8864718 | F8: 264530.74 | G8: 675137.17 | H8: 3499192.22 | I8: 2824055.05 | J8: 0.8070591361 | K8: =SUM(K9:K12) -> 8864718
A9: Roads | C9: 7759768.58 | D9: 7864718 | E9: 7864718 | F9: 264530.74 | G9: 675137.17 | H9: 3276970 | I9: 2601832.83 | J9: 0.7939751752 | K9: 7864718
A10: Road Structures | C10: 0 | D10: 0 | E10: 1000000 | F10: 0 | G10: 0 | H10: 222222.22 | I10: 222222.22 | J10: 1 | K10: 1000000
A11: Road Furniture | I11: 0
A12: Capital Spares | I12: 0
A13: Storm water Infrastructure | C13: =SUM(C14:C16) -> 0 | D13: 0 | E13: 0 | F13: 0 | G13: 0 | H13: 0 | I13: 0 | K13: =SUM(K14:K16) -> 0
A14: Drainage Collection | I14: 0
A15: Storm water Conveyance | I15: 0
A16: Attenuation | I16: 0
A17: Electrical Infrastructure | C17: =SUM(C18:C26) -> 0 | D17: 0 | E17: 0 | F17: 0 | G17: 0 | H17: 0 | I17: 0 | K17: =SUM(K18:K26) -> 0
A18: Power Plants | I18: 0
A19: HV Substations | I19: 0
A20: HV Switching Station | I20: 0
A21: HV Transmission Conductors | I21: 0
A22: MV Substations | I22: 0
A23: MV Switching Stations | I23: 0
A24: MV Networks | I24: 0
A25: LV Networks | I25: 0
A26: Capital Spares | I26: 0
A27: Water Supply Infrastructure | C27: =SUM(C28:C37) -> 0 | D27: 0 | E27: 0 | F27: 0 | G27: 0 | H27: 0 | I27: 0 | K27: =SUM(K28:K37) -> 0
A28: Dams and Weirs | I28: 0
A29: Boreholes | I29: 0
A30: Reservoirs | I30: 0
A31: Pump Stations | I31: 0
A32: Water Treatment Works | I32: 0
A33: Bulk Mains | I33: 0
A34: Distribution | I34: 0
A35: Distribution Points | I35: 0
A36: PRV Stations | I36: 0
A37: Capital Spares | I37: 0
A38: Sanitation Infrastructure | C38: =SUM(C39:C44) -> 0 | D38: 0 | E38: 0 | F38: 0 | G38: 0 | H38: 0 | I38: 0 | K38: =SUM(K39:K44) -> 0
A39: Pump Station | I39: 0
A40: Reticulation | I40: 0
A41: Waste Water Treatment Works | I41: 0
A42: Outfall Sewers | I42: 0
A43: Toilet Facilities | I43: 0
A44: Capital Spares | I44: 0
A45: Solid Waste Infrastructure | C45: =SUM(C46:C52) -> 0 | D45: 0 | E45: 0 | F45: 0 | G45: 0 | H45: 0 | I45: 0 | K45: =SUM(K46:K52) -> 0
A46: Landfill Sites | I46: 0
A47: Waste Transfer Stations | I47: 0
A48: Waste Processing Facilities | I48: 0
A49: Waste Drop-off Points | I49: 0
A50: Waste Separation Facilities | I50: 0
A51: Electricity Generation Facilities | I51: 0
A52: Capital Spares | I52: 0
A53: Rail Infrastructure | C53: =SUM(C54:C62) -> 0 | D53: 0 | E53: 0 | F53: 0 | G53: 0 | H53: 0 | I53: 0 | K53: =SUM(K54:K62) -> 0
A54: Rail Lines | I54: 0
A55: Rail Structures | I55: 0
A56: Rail Furniture | I56: 0
A57: Drainage Collection | I57: 0
A58: Storm water Conveyance | I58: 0
A59: Attenuation | I59: 0
A60: MV Substations | I60: 0
A61: LV Networks | I61: 0
A62: Capital Spares | I62: 0
A63: Coastal Infrastructure | C63: =SUM(C64:C68) -> 0 | D63: 0 | E63: 0 | F63: 0 | G63: 0 | H63: 0 | I63: 0 | K63: =SUM(K64:K68) -> 0
A64: Sand Pumps | I64: 0
A65: Piers | I65: 0
A66: Revetments | I66: 0
A67: Promenades | I67: 0
A68: Capital Spares | I68: 0
A69: Information and Communication Infrastructure | C69: =SUM(C70:C73) -> 0 | D69: 0 | E69: 0 | F69: 0 | G69: 0 | H69: 0 | I69: 0 | K69: =SUM(K70:K73) -> 0
A70: Data Centres | I70: 0
A71: Core Layers | I71: 0
A72: Distribution Layers | I72: 0
A73: Capital Spares | I73: 0
A75: Community Assets | C75: =+C76+C99 -> 88490 | D75: 107800 | E75: 107800 | F75: 0 | G75: 0 | H75: 44920 | I75: 44920 | J75: 1 | K75: =+K76+K99 -> 107800
A76: Community Facilities | C76: =SUM(C77:C98) -> 88490 | D76: 107800 | E76: 107800 | F76: 0 | G76: 0 | H76: 44920 | I76: 44920 | J76: 1 | K76: =SUM(K77:K98) -> 107800
A77: Halls | C77: 0 | D77: 0 | E77: 0 | F77: 0 | G77: 0 | H77: 0 | I77: 0 | K77: 0
A78: Centres | I78: 0
A79: Crèches | I79: 0
A80: Clinics/Care Centres | I80: 0
A81: Fire/Ambulance Stations | I81: 0
A82: Testing Stations | I82: 0
A83: Museums | I83: 0
A84: Galleries | I84: 0
A85: Theatres | I85: 0
A86: Libraries | I86: 0
A87: Cemeteries/Crematoria | C87: 88490 | D87: 107800 | E87: 107800 | F87: 0 | G87: 0 | H87: 44920 | I87: 44920 | J87: 1 | K87: 107800
A88: Police | I88: 0
A89: Purls | I89: 0
A90: Public Open Space | I90: 0
A91: Nature Reserves | I91: 0
A92: Public Ablution Facilities | I92: 0
A93: Markets | I93: 0
A94: Stalls | I94: 0
A95: Abattoirs | I95: 0
A96: Airports | I96: 0
A97: Taxi Ranks/Bus Terminals | I97: 0
A98: Capital Spares | I98: 0
A99: Sport and Recreation Facilities | C99: =SUM(C100:C102) -> 0 | D99: 0 | E99: 0 | F99: 0 | G99: 0 | H99: 0 | I99: 0 | K99: =SUM(K100:K102) -> 0
A100: Indoor Facilities | I100: 0
A101: Outdoor Facilities | C101: 0 | D101: 0 | E101: 0 | F101: 0 | G101: 0 | H101: 0 | I101: =H101-G101 -> 0 | J101: =IF(I101=0,"",I101/H101) ->  | K101: 0
A102: Capital Spares | I102: 0
A103: Heritage assets | C103: =SUM(C104:C108) -> 0 | D103: 0 | E103: 0 | F103: 0 | G103: 0 | H103: 0 | I103: 0 | K103: =SUM(K104:K108) -> 0
A104: Monuments | I104: 0
A105: Historic Buildings | I105: 0
A106: Works of Art | I106: 0
A107: Conservation Areas | I107: 0
A108: Other Heritage | I108: 0
I109: 0
A110: Investment properties | C110: =+C111+C114 -> 0 | D110: 0 | E110: 0 | F110: 0 | G110: 0 | H110: 0 | I110: 0 | K110: =+K111+K114 -> 0
A111: Revenue Generating | C111: =SUM(C112:C113) -> 0 | D111: 0 | E111: 0 | F111: 0 | G111: 0 | H111: 0 | I111: 0 | K111: =SUM(K112:K113) -> 0
A112: Improved Property | I112: 0
A113: Unimproved Property | I113: 0
A114: Non-revenue Generating | C114: =SUM(C115:C116) -> 0 | D114: 0 | E114: 0 | F114: 0 | G114: 0 | H114: 0 | I114: 0 | K114: =SUM(K115:K116) -> 0
A115: Improved Property | I115: 0
A116: Unimproved Property | I116: =H116-G116 -> 0 | J116: =IF(I116=0,"",I116/H116) -> 
A117: Other assets | C117: =+C118+C130 -> 2242907.03 | D117: 1531200 | E117: 1531200 | F117: 260972 | G117: 656291.02 | H117: 638005 | I117: -18286.02 | J117: -0.02866124874 | K117: =+K118+K130 -> 1531200
A118: Operational Buildings | C118: =SUM(C119:C129) -> 2242907.03 | D118: 1531200 | E118: 1531200 | F118: 260972 | G118: 656291.02 | H118: 638005 | I118: -18286.02 | J118: -0.02866124874 | K118: =SUM(K119:K129) -> 1531200
A119: Municipal Offices | C119: 2242907.03 | D119: 1531200 | E119: 1531200 | F119: 260972 | G119: 656291.02 | H119: 638005 | I119: -18286.02 | J119: -0.02866124874 | K119: 1531200
A120: Pay/Enquiry Points | I120: 0
A121: Building Plan Offices | I121: 0
A122: Workshops | I122: 0
A123: Yards | I123: 0
A124: Stores | I124: 0
A125: Laboratories | I125: 0
A126: Training Centres | I126: 0
A127: Manufacturing Plant | I127: 0
A128: Depots | I128: 0
A129: Capital Spares | I129: 0
A130: Housing | C130: =SUM(C131:C133) -> 0 | D130: 0 | E130: 0 | F130: 0 | G130: 0 | H130: 0 | I130: 0 | K130: =SUM(K131:K133) -> 0
A131: Staff Housing | I131: 0
A132: Social Housing | I132: 0
A133: Capital Spares | I133: 0
A135: Biological or Cultivated Assets | C135: =SUM(C136:C136) -> 0 | D135: 0 | E135: 0 | F135: 0 | G135: 0 | H135: 0 | I135: =H135-G135 -> 0 | K135: =SUM(K136) -> 0
A136: Biological or Cultivated Assets | I136: =H136-G136 -> 0
A138: Intangible Assets | C138: =SUM(C139:C140) -> 0 | D138: 0 | E138: 0 | F138: 0 | G138: 0 | H138: 0 | I138: =H138-G138 -> 0 | K138: =SUM(K139:K140) -> 0
A139: Servitudes | I139: 0
A140: Licences and Rights | C140: =SUM(C141:C146) -> 0 | D140: 0 | E140: 0 | F140: 0 | G140: 0 | H140: 0 | I140: 0 | K140: =SUM(K141:K146) -> 0
A141: Water Rights | I141: 0
A142: Effluent Licenses | I142: 0
A143: Solid Waste Licenses | I143: 0
A144: Computer Software and Applications | I144: 0
A145: Load Settlement Software Applications | I145: 0
A146: Unspecified | I146: 0
A148: Computer Equipment | C148: =SUM(C149:C149) -> 2361672.96 | D148: 2631200 | E148: 2631200 | F148: 0 | G148: 380630.67 | H148: 1096335 | I148: =H148-G148 -> 715704.33 | J148: =IF(I148=0,"",I148/H148) -> 0.6528153621 | K148: =SUM(K149) -> 2631200
A149: Computer Equipment | C149: 2361672.96 | D149: 2631200 | E149: 2631200 | F149: 0 | G149: 380630.67 | H149: 1096335 | I149: =H149-G149 -> 715704.33 | J149: =IF(I149=0,"",I149/H149) -> 0.6528153621 | K149: 2631200
A151: Furniture and Office Equipment | C151: =SUM(C152:C152) -> 302729 | D151: 200000 | E151: 200000 | F151: 0 | G151: 160428.16 | H151: 83335 | I151: =H151-G151 -> -77093.16 | J151: =IF(I151=0,"",I151/H151) -> -0.925099418 | K151: =SUM(K152) -> 200000
A152: Furniture and Office Equipment | C152: 302729 | D152: 200000 | E152: 200000 | F152: 0 | G152: 160428.16 | H152: 83335 | I152: =H152-G152 -> -77093.16 | J152: =IF(I152=0,"",I152/H152) -> -0.925099418 | K152: 200000
J153: =IF(I153=0,"",I153/H153) -> 
A154: Machinery and Equipment | C154: =SUM(C155:C155) -> 3938580.38 | D154: 4029704 | E154: 4029704 | F154: 932754.74 | G154: 1968869.84 | H154: 1679050 | I154: =H154-G154 -> -289819.84 | J154: =IF(I154=0,"",I154/H154) -> -0.172609416 | K154: =SUM(K155) -> 4029704
A155: Machinery and Equipment | C155: 3938580.38 | D155: 4029704 | E155: 4029704 | F155: 932754.74 | G155: 1968869.84 | H155: 1679050 | I155: =H155-G155 -> -289819.84 | J155: =IF(I155=0,"",I155/H155) -> -0.172609416 | K155: 4029704
A157: Transport Assets | C157: =SUM(C158:C158) -> 1505152.76 | D157: 1712622 | E157: 1712622 | F157: 0 | G157: 23440 | H157: 713595 | I157: =H157-G157 -> 690155 | J157: =IF(I157=0,"",I157/H157) -> 0.9671522362 | K157: =SUM(K158) -> 1712622
A158: Transport Assets | C158: 1505152.76 | D158: 1712622 | E158: 1712622 | F158: 0 | G158: 23440 | H158: 713595 | I158: =H158-G158 -> 690155 | J158: =IF(I158=0,"",I158/H158) -> 0.9671522362 | K158: 1712622
A160: Land | C160: =SUM(C161:C161) -> 0 | D160: 0 | E160: 0 | F160: 0 | G160: 0 | H160: 0 | I160: =H160-G160 -> 0 | J160: =IF(I160=0,"",I160/H160) ->  | K160: =SUM(K161) -> 0
A161: Land | I161: =H161-G161 -> 0 | J161: =IF(I161=0,"",I161/H161) -> 
A163: Zoo's, Marine and Non-biological Animals | C163: =SUM(C164:C164) -> 0 | D163: 0 | E163: 0 | F163: 0 | G163: 0 | H163: 0 | I163: =H163-G163 -> 0 | J163: =IF(I163=0,"",I163/H163) ->  | K163: =SUM(K164) -> 0
A164: Zoo's, Marine and Non-biological Animals | I164: =H164-G164 -> 0 | J164: =IF(I164=0,"",I164/H164) -> 
J165: =IF(I165=0,"",I165/H165) -> 
A166: Total Repairs and Maintenance Expenditure | B166: 1 | C166: =C7+C75+C103+C110+C117+C135+C138+C148+C151+C154+C157+C160+C163 -> 18199300.71 | D166: 18077244 | E166: 19077244 | F166: 1458257.48 | G166: 3864796.86 | H166: 7754432.22 | I166: 3889635.36 | J166: 0.5016015679 | K166: =K7+K75+K103+K110+K117+K135+K138+K148+K151+K154+K157+K160+K163 -> 19077244

Sheet SC13d
A1: =muni& " - "&S71Sd& " - "&Head57 -> LIM353 Molemole - Supporting Table SC13d Monthly Budget Statement - depreciation by asset class - M05 November
A2: =desc -> Description | B2: =head27 -> Ref | C2: =Head1 -> 2020/21 | D2: =Head2 -> Budget Year 2021/22
C3: =Head5 -> Audited Outcome | D3: =Head6 -> Original Budget | E3: =Head7 -> Adjusted Budget | F3: =Head38 -> Monthly actual | G3: =Head39 -> YearTD actual | H3: =Head40 -> YearTD budget | I3: =Head41 -> YTD variance | J3: =Head41 -> YTD variance | K3: =Head8 -> Full Year Forecast
A4: R thousands | B4: 1 | J4: %
A5: Depreciation by Asset Class/Sub-class
A7: Infrastructure | C7: =C8+C13+C17+C27+C38+C45+C53+C63+C69 -> 6554491.79 | D7: 9634852 | E7: 9634852 | F7: 0 | G7: 0 | H7: 4014545 | I7: =H7-G7 -> 4014545 | J7: =IF(I7=0,"",I7/H7) -> 1 | K7: =K8+K13+K17+K27+K38+K45+K53+K63+K69 -> 9634852
A8: Roads Infrastructure | C8: =SUM(C9:C12) -> 5829614.79 | D8: 8798597 | E8: 8798597 | F8: 0 | G8: 0 | H8: 3666100 | I8: 3666100 | J8: 1 | K8: =SUM(K9:K12) -> 8798597
A9: Roads | C9: 5688174.27 | D9: 8637042 | E9: 8637042 | F9: 0 | G9: 0 | H9: 3598780 | I9: 3598780 | J9: 1 | K9: 8637042
A10: Road Structures | C10: 0 | D10: 0 | E10: 0 | F10: 0 | G10: 0 | H10: 0 | I10: 0 | K10: 0
A11: Road Furniture | C11: 141440.52 | D11: 161555 | E11: 161555 | F11: 0 | G11: 0 | H11: 67320 | I11: 67320 | J11: 1 | K11: 161555
A12: Capital Spares | C12: 0 | D12: 0 | E12: 0 | F12: 0 | G12: 0 | H12: 0 | I12: 0 | K12: 0
A13: Storm water Infrastructure | C13: =SUM(C14:C16) -> 0 | D13: 0 | E13: 0 | F13: 0 | G13: 0 | H13: 0 | I13: 0 | K13: =SUM(K14:K16) -> 0
A14: Drainage Collection | C14: 0 | D14: 0 | E14: 0 | F14: 0 | G14: 0 | H14: 0 | I14: 0 | K14: 0
A15: Storm water Conveyance | C15: 0 | D15: 0 | E15: 0 | F15: 0 | G15: 0 | H15: 0 | I15: 0 | K15: 0
A16: Attenuation | C16: 0 | D16: 0 | E16: 0 | F16: 0 | G16: 0 | H16: 0 | I16: 0 | K16: 0
A17: Electrical Infrastructure | C17: =SUM(C18:C26) -> 724877 | D17: 836255 | E17: 836255 | F17: 0 | G17: 0 | H17: 348445 | I17: 348445 | J17: 1 | K17: =SUM(K18:K26) -> 836255
A18: Power Plants | C18: 0 | D18: 0 | E18: 0 | F18: 0 | G18: 0 | H18: 0 | I18: 0 | K18: 0
A19: HV Substations | C19: 0 | D19: 0 | E19: 0 | F19: 0 | G19: 0 | H19: 0 | I19: 0 | K19: 0
A20: HV Switching Station | C20: 0 | D20: 0 | E20: 0 | F20: 0 | G20: 0 | H20: 0 | I20: 0 | K20: 0
A21: HV Transmission Conductors | C21: 0 | D21: 0 | E21: 0 | F21: 0 | G21: 0 | H21: 0 | I21: 0 | K21: 0
A22: MV Substations | C22: 0 | D22: 0 | E22: 0 | F22: 0 | G22: 0 | H22: 0 | I22: 0 | K22: 0
A23: MV Switching Stations | C23: 0 | D23: 0 | E23: 0 | F23: 0 | G23: 0 | H23: 0 | I23: 0 | K23: 0
A24: MV Networks | C24: 300251.37 | D24: 134479 | E24: 134479 | F24: 0 | G24: 0 | H24: 56035 | I24: 56035 | J24: 1 | K24: 134479
A25: LV Networks | C25: 424625.63 | D25: 701776 | E25: 701776 | F25: 0 | G25: 0 | H25: 292410 | I25: 292410 | J25: 1 | K25: 701776
A26: Capital Spares | C26: 0 | D26: 0 | E26: 0 | F26: 0 | G26: 0 | H26: 0 | I26: 0 | K26: 0
A27: Water Supply Infrastructure | C27: =SUM(C28:C37) -> 0 | D27: 0 | E27: 0 | F27: 0 | G27: 0 | H27: 0 | I27: 0 | K27: =SUM(K28:K37) -> 0
A28: Dams and Weirs | C28: 0 | D28: 0 | E28: 0 | F28: 0 | G28: 0 | H28: 0 | I28: 0 | K28: 0
A29: Boreholes | C29: 0 | D29: 0 | E29: 0 | F29: 0 | G29: 0 | H29: 0 | I29: 0 | K29: 0
A30: Reservoirs | C30: 0 | D30: 0 | E30: 0 | F30: 0 | G30: 0 | H30: 0 | I30: 0 | K30: 0
A31: Pump Stations | C31: 0 | D31: 0 | E31: 0 | F31: 0 | G31: 0 | H31: 0 | I31: 0 | K31: 0
A32: Water Treatment Works | C32: 0 | D32: 0 | E32: 0 | F32: 0 | G32: 0 | H32: 0 | I32: 0 | K32: 0
A33: Bulk Mains | C33: 0 | D33: 0 | E33: 0 | F33: 0 | G33: 0 | H33: 0 | I33: 0 | K33: 0
A34: Distribution | C34: 0 | D34: 0 | E34: 0 | F34: 0 | G34: 0 | H34: 0 | I34: 0 | K34: 0
A35: Distribution Points | C35: 0 | D35: 0 | E35: 0 | F35: 0 | G35: 0 | H35: 0 | I35: 0 | K35: 0
A36: PRV Stations | C36: 0 | D36: 0 | E36: 0 | F36: 0 | G36: 0 | H36: 0 | I36: 0 | K36: 0
A37: Capital Spares | C37: 0 | D37: 0 | E37: 0 | F37: 0 | G37: 0 | H37: 0 | I37: 0 | K37: 0
A38: Sanitation Infrastructure | C38: =SUM(C39:C44) -> 0 | D38: 0 | E38: 0 | F38: 0 | G38: 0 | H38: 0 | I38: 0 | K38: =SUM(K39:K44) -> 0
A39: Pump Station | C39: 0 | D39: 0 | E39: 0 | F39: 0 | G39: 0 | H39: 0 | I39: 0 | K39: 0
A40: Reticulation | C40: 0 | D40: 0 | E40: 0 | F40: 0 | G40: 0 | H40: 0 | I40: 0 | K40: 0
A41: Waste Water Treatment Works | C41: 0 | D41: 0 | E41: 0 | F41: 0 | G41: 0 | H41: 0 | I41: 0 | K41: 0
A42: Outfall Sewers | C42: 0 | D42: 0 | E42: 0 | F42: 0 | G42: 0 | H42: 0 | I42: 0 | K42: 0
A43: Toilet Facilities | C43: 0 | D43: 0 | E43: 0 | F43: 0 | G43: 0 | H43: 0 | I43: 0 | K43: 0
A44: Capital Spares | C44: 0 | D44: 0 | E44: 0 | F44: 0 | G44: 0 | H44: 0 | I44: 0 | K44: 0
A45: Solid Waste Infrastructure | C45: =SUM(C46:C52) -> 0 | D45: 0 | E45: 0 | F45: 0 | G45: 0 | H45: 0 | I45: 0 | K45: =SUM(K46:K52) -> 0
A46: Landfill Sites | C46: 0 | D46: 0 | E46: 0 | F46: 0 | G46: 0 | H46: 0 | I46: 0 | K46: 0
A47: Waste Transfer Stations | C47: 0 | D47: 0 | E47: 0 | F47: 0 | G47: 0 | H47: 0 | I47: 0 | K47: 0
A48: Waste Processing Facilities | C48: 0 | D48: 0 | E48: 0 | F48: 0 | G48: 0 | H48: 0 | I48: 0 | K48: 0
A49: Waste Drop-off Points | C49: 0 | D49: 0 | E49: 0 | F49: 0 | G49: 0 | H49: 0 | I49: 0 | K49: 0
A50: Waste Separation Facilities | C50: 0 | D50: 0 | E50: 0 | F50: 0 | G50: 0 | H50: 0 | I50: 0 | K50: 0
A51: Electricity Generation Facilities | C51: 0 | D51: 0 | E51: 0 | F51: 0 | G51: 0 | H51: 0 | I51: 0 | K51: 0
A52: Capital Spares | C52: 0 | D52: 0 | E52: 0 | F52: 0 | G52: 0 | H52: 0 | I52: 0 | K52: 0
A53: Rail Infrastructure | C53: =SUM(C54:C62) -> 0 | D53: 0 | E53: 0 | F53: 0 | G53: 0 | H53: 0 | I53: 0 | K53: =SUM(K54:K62) -> 0
A54: Rail Lines | C54: 0 | D54: 0 | E54: 0 | F54: 0 | G54: 0 | H54: 0 | I54: 0 | K54: 0
A55: Rail Structures | C55: 0 | D55: 0 | E55: 0 | F55: 0 | G55: 0 | H55: 0 | I55: 0 | K55: 0
A56: Rail Furniture | C56: 0 | D56: 0 | E56: 0 | F56: 0 | G56: 0 | H56: 0 | I56: 0 | K56: 0
A57: Drainage Collection | C57: 0 | D57: 0 | E57: 0 | F57: 0 | G57: 0 | H57: 0 | I57: 0 | K57: 0
A58: Storm water Conveyance | C58: 0 | D58: 0 | E58: 0 | F58: 0 | G58: 0 | H58: 0 | I58: 0 | K58: 0
A59: Attenuation | C59: 0 | D59: 0 | E59: 0 | F59: 0 | G59: 0 | H59: 0 | I59: 0 | K59: 0
A60: MV Substations | C60: 0 | D60: 0 | E60: 0 | F60: 0 | G60: 0 | H60: 0 | I60: 0 | K60: 0
A61: LV Networks | C61: 0 | D61: 0 | E61: 0 | F61: 0 | G61: 0 | H61: 0 | I61: 0 | K61: 0
A62: Capital Spares | C62: 0 | D62: 0 | E62: 0 | F62: 0 | G62: 0 | H62: 0 | I62: 0 | K62: 0
A63: Coastal Infrastructure | C63: =SUM(C64:C68) -> 0 | D63: 0 | E63: 0 | F63: 0 | G63: 0 | H63: 0 | I63: 0 | K63: =SUM(K64:K68) -> 0
A64: Sand Pumps | C64: 0 | D64: 0 | E64: 0 | F64: 0 | G64: 0 | H64: 0 | I64: 0 | K64: 0
A65: Piers | C65: 0 | D65: 0 | E65: 0 | F65: 0 | G65: 0 | H65: 0 | I65: 0 | K65: 0
A66: Revetments | C66: 0 | D66: 0 | E66: 0 | F66: 0 | G66: 0 | H66: 0 | I66: 0 | K66: 0
A67: Promenades | C67: 0 | D67: 0 | E67: 0 | F67: 0 | G67: 0 | H67: 0 | I67: 0 | K67: 0
A68: Capital Spares | C68: 0 | D68: 0 | E68: 0 | F68: 0 | G68: 0 | H68: 0 | I68: 0 | K68: 0
A69: Information and Communication Infrastructure | C69: =SUM(C70:C73) -> 0 | D69: 0 | E69: 0 | F69: 0 | G69: 0 | H69: 0 | I69: 0 | K69: =SUM(K70:K73) -> 0
A70: Data Centres | I70: 0
A71: Core Layers | I71: 0
A72: Distribution Layers | I72: 0
A73: Capital Spares | I73: 0
A75: Community Assets | C75: =+C76+C99 -> 1123572.65 | D75: 1268026 | E75: 1268026 | F75: 0 | G75: 0 | H75: 528375 | I75: 528375 | J75: 1 | K75: =+K76+K99 -> 1268026
A76: Community Facilities | C76: =SUM(C77:C98) -> 995265.94 | D76: 1121398 | E76: 1121398 | F76: 0 | G76: 0 | H76: 467280 | I76: 467280 | J76: 1 | K76: =SUM(K77:K98) -> 1121398
A77: Halls | C77: 144656.57 | D77: 165329 | E77: 165329 | F77: 0 | G77: 0 | H77: 68890 | I77: 68890 | J77: 1 | K77: 165329
A78: Centres | C78: 546174.26 | D78: 608401 | E78: 608401 | F78: 0 | G78: 0 | H78: 253515 | I78: 253515 | J78: 1 | K78: 608401
A79: Crèches | C79: 0 | D79: 0 | E79: 0 | F79: 0 | G79: 0 | H79: 0 | I79: 0 | K79: 0
A80: Clinics/Care Centres | C80: 0 | D80: 0 | E80: 0 | F80: 0 | G80: 0 | H80: 0 | I80: 0 | K80: 0
A81: Fire/Ambulance Stations | C81: 0 | D81: 0 | E81: 0 | F81: 0 | G81: 0 | H81: 0 | I81: 0 | K81: 0
A82: Testing Stations | C82: 0 | D82: 0 | E82: 0 | F82: 0 | G82: 0 | H82: 0 | I82: 0 | K82: 0
A83: Museums | C83: 0 | D83: 0 | E83: 0 | F83: 0 | G83: 0 | H83: 0 | I83: 0 | K83: 0
A84: Galleries | C84: 0 | D84: 0 | E84: 0 | F84: 0 | G84: 0 | H84: 0 | I84: 0 | K84: 0
A85: Theatres | C85: 0 | D85: 0 | E85: 0 | F85: 0 | G85: 0 | H85: 0 | I85: 0 | K85: 0
A86: Libraries | C86: 0 | D86: 0 | E86: 0 | F86: 0 | G86: 0 | H86: 0 | I86: 0 | K86: 0
A87: Cemeteries/Crematoria | C87: 0 | D87: 0 | E87: 0 | F87: 0 | G87: 0 | H87: 0 | I87: 0 | K87: 0
A88: Police | C88: 0 | D88: 0 | E88: 0 | F88: 0 | G88: 0 | H88: 0 | I88: 0 | K88: 0
A89: Purls | C89: 0 | D89: 0 | E89: 0 | F89: 0 | G89: 0 | H89: 0 | I89: 0 | K89: 0
A90: Public Open Space | C90: 0 | D90: 0 | E90: 0 | F90: 0 | G90: 0 | H90: 0 | I90: 0 | K90: 0
A91: Nature Reserves | C91: 0 | D91: 0 | E91: 0 | F91: 0 | G91: 0 | H91: 0 | I91: 0 | K91: 0
A92: Public Ablution Facilities | C92: 25450.86 | D92: 28963 | E92: 28963 | F92: 0 | G92: 0 | H92: 12075 | I92: 12075 | J92: 1 | K92: 28963
A93: Markets | C93: 30783.33 | D93: 35183 | E93: 35183 | F93: 0 | G93: 0 | H93: 14665 | I93: 14665 | J93: 1 | K93: 35183
A94: Stalls | C94: 0 | D94: 0 | E94: 0 | F94: 0 | G94: 0 | H94: 0 | I94: 0 | K94: 0
A95: Abattoirs | C95: 0 | D95: 0 | E95: 0 | F95: 0 | G95: 0 | H95: 0 | I95: 0 | K95: 0
A96: Airports | C96: 0 | D96: 0 | E96: 0 | F96: 0 | G96: 0 | H96: 0 | I96: 0 | K96: 0
A97: Taxi Ranks/Bus Terminals | C97: 248200.92 | D97: 283522 | E97: 283522 | F97: 0 | G97: 0 | H97: 118135 | I97: 118135 | J97: 1 | K97: 283522
A98: Capital Spares | C98: 0 | D98: 0 | E98: 0 | F98: 0 | G98: 0 | H98: 0 | I98: 0 | K98: 0
A99: Sport and Recreation Facilities | C99: =SUM(C100:C102) -> 128306.71 | D99: 146628 | E99: 146628 | F99: 0 | G99: 0 | H99: 61095 | I99: 61095 | J99: 1 | K99: =SUM(K100:K102) -> 146628
A100: Indoor Facilities | I100: 0
A101: Outdoor Facilities | C101: 128306.71 | D101: 146628 | E101: 146628 | F101: 0 | G101: 0 | H101: 61095 | I101: =H101-G101 -> 61095 | J101: =IF(I101=0,"",I101/H101) -> 1 | K101: 146628
A102: Capital Spares | I102: 0
A103: Heritage assets | C103: =SUM(C104:C108) -> 0 | D103: 0 | E103: 0 | F103: 0 | G103: 0 | H103: 0 | I103: 0 | K103: =SUM(K104:K108) -> 0
A104: Monuments | I104: 0
A105: Historic Buildings | I105: 0
A106: Works of Art | I106: 0
A107: Conservation Areas | I107: 0
A108: Other Heritage | C108: 0 | D108: 0 | E108: 0 | F108: 0 | G108: 0 | H108: 0 | I108: 0 | K108: 0
I109: 0
A110: Investment properties | C110: =+C111+C114 -> 43333.36 | D110: 49526 | E110: 49526 | F110: 0 | G110: 0 | H110: 20640 | I110: 20640 | J110: 1 | K110: =+K111+K114 -> 49526
A111: Revenue Generating | C111: =SUM(C112:C113) -> 43333.36 | D111: 49526 | E111: 49526 | F111: 0 | G111: 0 | H111: 20640 | I111: 20640 | J111: 1 | K111: =SUM(K112:K113) -> 49526
A112: Improved Property | C112: 43333.36 | D112: 49526 | E112: 49526 | F112: 0 | G112: 0 | H112: 20640 | I112: 20640 | J112: 1 | K112: 49526
A113: Unimproved Property | C113: 0 | D113: 0 | E113: 0 | F113: 0 | G113: 0 | H113: 0 | I113: 0 | K113: 0
A114: Non-revenue Generating | C114: =SUM(C115:C116) -> 0 | D114: 0 | E114: 0 | F114: 0 | G114: 0 | H114: 0 | I114: 0 | K114: =SUM(K115:K116) -> 0
A115: Improved Property | I115: 0
A116: Unimproved Property | C116: 0 | D116: 0 | E116: 0 | F116: 0 | G116: 0 | H116: 0 | I116: =H116-G116 -> 0 | J116: =IF(I116=0,"",I116/H116) ->  | K116: 0
A117: Other assets | C117: =+C118+C130 -> 1212081.83 | D117: 1352987 | E117: 1352987 | F117: 0 | G117: 0 | H117: 563755 | I117: 563755 | J117: 1 | K117: =+K118+K130 -> 1352987
A118: Operational Buildings | C118: =SUM(C119:C129) -> 1212081.83 | D118: 1352987 | E118: 1352987 | F118: 0 | G118: 0 | H118: 563755 | I118: 563755 | J118: 1 | K118: =SUM(K119:K129) -> 1352987
A119: Municipal Offices | C119: 1212081.83 | D119: 1352987 | E119: 1352987 | F119: 0 | G119: 0 | H119: 563755 | I119: 563755 | J119: 1 | K119: 1352987
A120: Pay/Enquiry Points | C120: 0 | D120: 0 | E120: 0 | F120: 0 | G120: 0 | H120: 0 | I120: 0 | K120: 0
A121: Building Plan Offices | C121: 0 | D121: 0 | E121: 0 | F121: 0 | G121: 0 | H121: 0 | I121: 0 | K121: 0
A122: Workshops | C122: 0 | D122: 0 | E122: 0 | F122: 0 | G122: 0 | H122: 0 | I122: 0 | K122: 0
A123: Yards | C123: 0 | D123: 0 | E123: 0 | F123: 0 | G123: 0 | H123: 0 | I123: 0 | K123: 0
A124: Stores | C124: 0 | D124: 0 | E124: 0 | F124: 0 | G124: 0 | H124: 0 | I124: 0 | K124: 0
A125: Laboratories | C125: 0 | D125: 0 | E125: 0 | F125: 0 | G125: 0 | H125: 0 | I125: 0 | K125: 0
A126: Training Centres | C126: 0 | D126: 0 | E126: 0 | F126: 0 | G126: 0 | H126: 0 | I126: 0 | K126: 0
A127: Manufacturing Plant | C127: 0 | D127: 0 | E127: 0 | F127: 0 | G127: 0 | H127: 0 | I127: 0 | K127: 0
A128: Depots | C128: 0 | D128: 0 | E128: 0 | F128: 0 | G128: 0 | H128: 0 | I128: 0 | K128: 0
A129: Capital Spares | C129: 0 | D129: 0 | E129: 0 | F129: 0 | G129: 0 | H129: 0 | I129: 0 | K129: 0
A130: Housing | C130: =SUM(C131:C133) -> 0 | D130: 0 | E130: 0 | F130: 0 | G130: 0 | H130: 0 | I130: 0 | K130: =SUM(K131:K133) -> 0
A131: Staff Housing | C131: 0 | D131: 0 | E131: 0 | F131: 0 | G131: 0 | H131: 0 | I131: 0 | K131: 0
A132: Social Housing | C132: 0 | D132: 0 | E132: 0 | F132: 0 | G132: 0 | H132: 0 | I132: 0 | K132: 0
A133: Capital Spares | C133: 0 | D133: 0 | E133: 0 | F133: 0 | G133: 0 | H133: 0 | I133: 0 | K133: 0
A135: Biological or Cultivated Assets | C135: =SUM(C136:C136) -> 0 | D135: 0 | E135: 0 | F135: 0 | G135: 0 | H135: 0 | I135: =H135-G135 -> 0 | K135: =SUM(K136) -> 0
A136: Biological or Cultivated Assets | I136: =H136-G136 -> 0
A138: Intangible Assets | C138: =SUM(C139:C140) -> 218216.9 | D138: 702655 | E138: 702655 | F138: 0 | G138: 0 | H138: 292795 | I138: =H138-G138 -> 292795 | J138: 1 | K138: =SUM(K139:K140) -> 702655
A139: Servitudes | C139: 0 | D139: 0 | E139: 0 | F139: 0 | G139: 0 | H139: 0 | I139: 0 | K139: 0
A140: Licences and Rights | C140: =SUM(C141:C146) -> 218216.9 | D140: 702655 | E140: 702655 | F140: 0 | G140: 0 | H140: 292795 | I140: 292795 | J140: 1 | K140: =SUM(K141:K146) -> 702655
A141: Water Rights | I141: 0
A142: Effluent Licenses | I142: 0
A143: Solid Waste Licenses | I143: 0
A144: Computer Software and Applications | C144: 218216.9 | D144: 702655 | E144: 702655 | F144: 0 | G144: 0 | H144: 292795 | I144: 292795 | J144: 1 | K144: 702655
A145: Load Settlement Software Applications | I145: 0
A146: Unspecified | C146: 0 | D146: 0 | E146: 0 | F146: 0 | G146: 0 | H146: 0 | I146: 0 | K146: 0
A148: Computer Equipment | C148: =SUM(C149:C149) -> 163401.09 | D148: 815913 | E148: 815913 | F148: 0 | G148: 0 | H148: 340010 | I148: =H148-G148 -> 340010 | J148: =IF(I148=0,"",I148/H148) -> 1 | K148: =SUM(K149) -> 815913
A149: Computer Equipment | C149: 163401.09 | D149: 815913 | E149: 815913 | F149: 0 | G149: 0 | H149: 340010 | I149: =H149-G149 -> 340010 | J149: =IF(I149=0,"",I149/H149) -> 1 | K149: 815913
A151: Furniture and Office Equipment | C151: =SUM(C152:C152) -> 609938.81 | D151: 1888988 | E151: 1888988 | F151: 0 | G151: 0 | H151: 787125 | I151: =H151-G151 -> 787125 | J151: =IF(I151=0,"",I151/H151) -> 1 | K151: =SUM(K152) -> 1888988
A152: Furniture and Office Equipment | C152: 609938.81 | D152: 1888988 | E152: 1888988 | F152: 0 | G152: 0 | H152: 787125 | I152: =H152-G152 -> 787125 | J152: =IF(I152=0,"",I152/H152) -> 1 | K152: 1888988
J153: =IF(I153=0,"",I153/H153) -> 
A154: Machinery and Equipment | C154: =SUM(C155:C155) -> 790223.4 | D154: 1453304 | E154: 1453304 | F154: 0 | G154: 0 | H154: 605565 | I154: =H154-G154 -> 605565 | J154: =IF(I154=0,"",I154/H154) -> 1 | K154: =SUM(K155) -> 1453304
A155: Machinery and Equipment | C155: 790223.4 | D155: 1453304 | E155: 1453304 | F155: 0 | G155: 0 | H155: 605565 | I155: =H155-G155 -> 605565 | J155: =IF(I155=0,"",I155/H155) -> 1 | K155: 1453304
A157: Transport Assets | C157: =SUM(C158:C158) -> 1399298.64 | D157: 1828539 | E157: 1828539 | F157: 0 | G157: 0 | H157: 761910 | I157: =H157-G157 -> 761910 | J157: =IF(I157=0,"",I157/H157) -> 1 | K157: =SUM(K158) -> 1828539
A158: Transport Assets | C158: 1399298.64 | D158: 1828539 | E158: 1828539 | F158: 0 | G158: 0 | H158: 761910 | I158: =H158-G158 -> 761910 | J158: =IF(I158=0,"",I158/H158) -> 1 | K158: 1828539
A160: Land | C160: =SUM(C161:C161) -> 0 | D160: 0 | E160: 0 | F160: 0 | G160: 0 | H160: 0 | I160: =H160-G160 -> 0 | J160: =IF(I160=0,"",I160/H160) ->  | K160: =SUM(K161) -> 0
A161: Land | C161: 0 | D161: 0 | E161: 0 | F161: 0 | G161: 0 | H161: 0 | I161: =H161-G161 -> 0 | J161: =IF(I161=0,"",I161/H161) ->  | K161: 0
A163: Zoo's, Marine and Non-biological Animals | C163: =SUM(C164:C164) -> 0 | D163: 0 | E163: 0 | F163: 0 | G163: 0 | H163: 0 | I163: =H163-G163 -> 0 | J163: =IF(I163=0,"",I163/H163) ->  | K163: =SUM(K164) -> 0
A164: Zoo's, Marine and Non-biological Animals | C164: 0 | D164: 0 | E164: 0 | F164: 0 | G164: 0 | H164: 0 | I164: =H164-G164 -> 0 | J164: =IF(I164=0,"",I164/H164) ->  | K164: 0
J165: =IF(I165=0,"",I165/H165) -> 
A166: Total Depreciation | B166: 1 | C166: =C7+C75+C103+C110+C117+C135+C138+C148+C151+C154+C157+C160+C163 -> 12114558.47 | D166: 18994790 | E166: 18994790 | F166: 0 | G166: 0 | H166: 7914720 | I166: 7914720 | J166: 1 | K166: =K7+K75+K103+K110+K117+K135+K138+K148+K151+K154+K157+K160+K163 -> 18994790

Sheet SC13e
A1: =muni& " - "&S71Se& " - "&Head57 -> LIM353 Molemole - Supporting Table SC13e Monthly Budget Statement - capital expenditure on upgrading of existing assets by asset class - M05 November
A2: =desc -> Description | B2: =head27 -> Ref | C2: =Head1 -> 2020/21 | D2: =Head2 -> Budget Year 2021/22
C3: =Head5 -> Audited Outcome | D3: =Head6 -> Original Budget | E3: =Head7 -> Adjusted Budget | F3: =Head38 -> Monthly actual | G3: =Head39 -> YearTD actual | H3: =Head40 -> YearTD budget | I3: =Head41 -> YTD variance | J3: =Head41 -> YTD variance | K3: =Head8 -> Full Year Forecast
A4: R thousands | B4: 1 | J4: %
A5: Capital expenditure on upgrading of existing assets by Asset Class/Sub-class
A7: Infrastructure | C7: =C8+C13+C17+C27+C38+C45+C53+C63+C69 -> 0 | D7: 0 | E7: 0 | F7: 0 | G7: 0 | H7: 0 | I7: =H7-G7 -> 0 | J7: =IF(I7=0,"",I7/H7) ->  | K7: =K8+K13+K17+K27+K38+K45+K53+K63+K69 -> 0
A8: Roads Infrastructure | C8: =SUM(C9:C12) -> 0 | D8: 0 | E8: 0 | F8: 0 | G8: 0 | H8: 0 | I8: 0 | K8: =SUM(K9:K12) -> 0
A9: Roads | I9: 0
A10: Road Structures | I10: 0
A11: Road Furniture | I11: 0
A12: Capital Spares | I12: 0
A13: Storm water Infrastructure | C13: =SUM(C14:C16) -> 0 | D13: 0 | E13: 0 | F13: 0 | G13: 0 | H13: 0 | I13: 0 | K13: =SUM(K14:K16) -> 0
A14: Drainage Collection | I14: 0
A15: Storm water Conveyance | I15: 0
A16: Attenuation | I16: 0
A17: Electrical Infrastructure | C17: =SUM(C18:C26) -> 0 | D17: 0 | E17: 0 | F17: 0 | G17: 0 | H17: 0 | I17: 0 | K17: =SUM(K18:K26) -> 0
A18: Power Plants | I18: 0
A19: HV Substations | I19: 0
A20: HV Switching Station | I20: 0
A21: HV Transmission Conductors | I21: 0
A22: MV Substations | I22: 0
A23: MV Switching Stations | I23: 0
A24: MV Networks | I24: 0
A25: LV Networks | I25: 0
A26: Capital Spares | I26: 0
A27: Water Supply Infrastructure | C27: =SUM(C28:C37) -> 0 | D27: 0 | E27: 0 | F27: 0 | G27: 0 | H27: 0 | I27: 0 | K27: =SUM(K28:K37) -> 0
A28: Dams and Weirs | I28: 0
A29: Boreholes | I29: 0
A30: Reservoirs | I30: 0
A31: Pump Stations | I31: 0
A32: Water Treatment Works | I32: 0
A33: Bulk Mains | I33: 0
A34: Distribution | I34: 0
A35: Distribution Points | I35: 0
A36: PRV Stations | I36: 0
A37: Capital Spares | I37: 0
A38: Sanitation Infrastructure | C38: =SUM(C39:C44) -> 0 | D38: 0 | E38: 0 | F38: 0 | G38: 0 | H38: 0 | I38: 0 | K38: =SUM(K39:K44) -> 0
A39: Pump Station | I39: 0
A40: Reticulation | I40: 0
A41: Waste Water Treatment Works | I41: 0
A42: Outfall Sewers | I42: 0
A43: Toilet Facilities | I43: 0
A44: Capital Spares | I44: 0
A45: Solid Waste Infrastructure | C45: =SUM(C46:C52) -> 0 | D45: 0 | E45: 0 | F45: 0 | G45: 0 | H45: 0 | I45: 0 | K45: =SUM(K46:K52) -> 0
A46: Landfill Sites | I46: 0
A47: Waste Transfer Stations | I47: 0
A48: Waste Processing Facilities | I48: 0
A49: Waste Drop-off Points | I49: 0
A50: Waste Separation Facilities | I50: 0
A51: Electricity Generation Facilities | I51: 0
A52: Capital Spares | I52: 0
A53: Rail Infrastructure | C53: =SUM(C54:C62) -> 0 | D53: 0 | E53: 0 | F53: 0 | G53: 0 | H53: 0 | I53: 0 | K53: =SUM(K54:K62) -> 0
A54: Rail Lines | I54: 0
A55: Rail Structures | I55: 0
A56: Rail Furniture | I56: 0
A57: Drainage Collection | I57: 0
A58: Storm water Conveyance | I58: 0
A59: Attenuation | I59: 0
A60: MV Substations | I60: 0
A61: LV Networks | I61: 0
A62: Capital Spares | I62: 0
A63: Coastal Infrastructure | C63: =SUM(C64:C68) -> 0 | D63: 0 | E63: 0 | F63: 0 | G63: 0 | H63: 0 | I63: 0 | K63: =SUM(K64:K68) -> 0
A64: Sand Pumps | I64: 0
A65: Piers | I65: 0
A66: Revetments | I66: 0
A67: Promenades | I67: 0
A68: Capital Spares | I68: 0
A69: Information and Communication Infrastructure | C69: =SUM(C70:C73) -> 0 | D69: 0 | E69: 0 | F69: 0 | G69: 0 | H69: 0 | I69: 0 | K69: =SUM(K70:K73) -> 0
A70: Data Centres | I70: 0
A71: Core Layers | I71: 0
A72: Distribution Layers | I72: 0
A73: Capital Spares | I73: 0
A75: Community Assets | C75: =+C76+C99 -> 0 | D75: 0 | E75: 0 | F75: 0 | G75: 0 | H75: 0 | I75: 0 | K75: =+K76+K99 -> 0
A76: Community Facilities | C76: =SUM(C77:C98) -> 0 | D76: 0 | E76: 0 | F76: 0 | G76: 0 | H76: 0 | I76: 0 | K76: =SUM(K77:K98) -> 0
A77: Halls | I77: 0
A78: Centres | I78: 0
A79: Crèches | I79: 0
A80: Clinics/Care Centres | I80: 0
A81: Fire/Ambulance Stations | I81: 0
A82: Testing Stations | I82: 0
A83: Museums | I83: 0
A84: Galleries | I84: 0
A85: Theatres | I85: 0
A86: Libraries | I86: 0
A87: Cemeteries/Crematoria | I87: 0
A88: Police | I88: 0
A89: Purls | I89: 0
A90: Public Open Space | I90: 0
A91: Nature Reserves | I91: 0
A92: Public Ablution Facilities | I92: 0
A93: Markets | I93: 0
A94: Stalls | I94: 0
A95: Abattoirs | I95: 0
A96: Airports | I96: 0
A97: Taxi Ranks/Bus Terminals | I97: 0
A98: Capital Spares | I98: 0
A99: Sport and Recreation Facilities | C99: =SUM(C100:C102) -> 0 | D99: 0 | E99: 0 | F99: 0 | G99: 0 | H99: 0 | I99: 0 | K99: =SUM(K100:K102) -> 0
A100: Indoor Facilities | I100: 0
A101: Outdoor Facilities | I101: =H101-G101 -> 0 | J101: =IF(I101=0,"",I101/H101) -> 
A102: Capital Spares | I102: 0
A103: Heritage assets | C103: =SUM(C104:C108) -> 0 | D103: 0 | E103: 0 | F103: 0 | G103: 0 | H103: 0 | I103: 0 | K103: =SUM(K104:K108) -> 0
A104: Monuments | I104: 0
A105: Historic Buildings | I105: 0
A106: Works of Art | I106: 0
A107: Conservation Areas | I107: 0
A108: Other Heritage | I108: 0
I109: 0
A110: Investment properties | C110: =+C111+C114 -> 0 | D110: 0 | E110: 0 | F110: 0 | G110: 0 | H110: 0 | I110: 0 | K110: =+K111+K114 -> 0
A111: Revenue Generating | C111: =SUM(C112:C113) -> 0 | D111: 0 | E111: 0 | F111: 0 | G111: 0 | H111: 0 | I111: 0 | K111: =SUM(K112:K113) -> 0
A112: Improved Property | I112: 0
A113: Unimproved Property | I113: 0
A114: Non-revenue Generating | C114: =SUM(C115:C116) -> 0 | D114: 0 | E114: 0 | F114: 0 | G114: 0 | H114: 0 | I114: 0 | K114: =SUM(K115:K116) -> 0
A115: Improved Property | I115: 0
A116: Unimproved Property | I116: =H116-G116 -> 0 | J116: =IF(I116=0,"",I116/H116) -> 
A117: Other assets | C117: =+C118+C130 -> 0 | D117: 0 | E117: 0 | F117: 0 | G117: 0 | H117: 0 | I117: 0 | K117: =+K118+K130 -> 0
A118: Operational Buildings | C118: =SUM(C119:C129) -> 0 | D118: 0 | E118: 0 | F118: 0 | G118: 0 | H118: 0 | I118: 0 | K118: =SUM(K119:K129) -> 0
A119: Municipal Offices | I119: 0
A120: Pay/Enquiry Points | I120: 0
A121: Building Plan Offices | I121: 0
A122: Workshops | I122: 0
A123: Yards | I123: 0
A124: Stores | I124: 0
A125: Laboratories | I125: 0
A126: Training Centres | I126: 0
A127: Manufacturing Plant | I127: 0
A128: Depots | I128: 0
A129: Capital Spares | I129: 0
A130: Housing | C130: =SUM(C131:C133) -> 0 | D130: 0 | E130: 0 | F130: 0 | G130: 0 | H130: 0 | I130: 0 | K130: =SUM(K131:K133) -> 0
A131: Staff Housing | I131: 0
A132: Social Housing | I132: 0
A133: Capital Spares | I133: 0
A135: Biological or Cultivated Assets | C135: =SUM(C136:C136) -> 0 | D135: 0 | E135: 0 | F135: 0 | G135: 0 | H135: 0 | I135: =H135-G135 -> 0 | K135: =SUM(K136) -> 0
A136: Biological or Cultivated Assets | I136: =H136-G136 -> 0
J137: =IF(I137=0,"",I137/H137) -> 
A138: Intangible Assets | C138: =SUM(C139:C140) -> 0 | D138: 0 | E138: 0 | F138: 0 | G138: 0 | H138: 0 | I138: =H138-G138 -> 0 | K138: =SUM(K139:K140) -> 0
A139: Servitudes | I139: 0
A140: Licences and Rights | C140: =SUM(C141:C146) -> 0 | D140: 0 | E140: 0 | F140: 0 | G140: 0 | H140: 0 | I140: 0 | K140: =SUM(K141:K146) -> 0
A141: Water Rights | I141: 0
A142: Effluent Licenses | I142: 0
A143: Solid Waste Licenses | I143: 0
A144: Computer Software and Applications | I144: 0
A145: Load Settlement Software Applications | I145: 0
A146: Unspecified | I146: 0
A148: Computer Equipment | C148: =SUM(C149:C149) -> 0 | D148: 0 | E148: 0 | F148: 0 | G148: 0 | H148: 0 | I148: =H148-G148 -> 0 | J148: =IF(I148=0,"",I148/H148) ->  | K148: =SUM(K149) -> 0
A149: Computer Equipment | I149: =H149-G149 -> 0 | J149: =IF(I149=0,"",I149/H149) -> 
A151: Furniture and Office Equipment | C151: =SUM(C152:C152) -> 0 | D151: 0 | E151: 0 | F151: 0 | G151: 0 | H151: 0 | I151: =H151-G151 -> 0 | J151: =IF(I151=0,"",I151/H151) ->  | K151: =SUM(K152) -> 0
A152: Furniture and Office Equipment | I152: =H152-G152 -> 0 | J152: =IF(I152=0,"",I152/H152) -> 
J153: =IF(I153=0,"",I153/H153) -> 
A154: Machinery and Equipment | C154: =SUM(C155:C155) -> 0 | D154: 310000 | E154: 310000 | F154: 0 | G154: 0 | H154: 129170 | I154: =H154-G154 -> 129170 | J154: =IF(I154=0,"",I154/H154) -> 1 | K154: =SUM(K155) -> 310000
A155: Machinery and Equipment | C155: 0 | D155: 310000 | E155: 310000 | F155: 0 | G155: 0 | H155: 129170 | I155: =H155-G155 -> 129170 | J155: =IF(I155=0,"",I155/H155) -> 1 | K155: 310000
A157: Transport Assets | C157: =SUM(C158:C158) -> 0 | D157: 0 | E157: 0 | F157: 0 | G157: 0 | H157: 0 | I157: =H157-G157 -> 0 | J157: =IF(I157=0,"",I157/H157) ->  | K157: =SUM(K158) -> 0
A158: Transport Assets | I158: =H158-G158 -> 0 | J158: =IF(I158=0,"",I158/H158) -> 
A160: Land | C160: =SUM(C161:C161) -> 0 | D160: 0 | E160: 0 | F160: 0 | G160: 0 | H160: 0 | I160: =H160-G160 -> 0 | J160: =IF(I160=0,"",I160/H160) ->  | K160: =SUM(K161) -> 0
A161: Land | I161: =H161-G161 -> 0 | J161: =IF(I161=0,"",I161/H161) -> 
J162: .
A163: Zoo's, Marine and Non-biological Animals | C163: =SUM(C164:C164) -> 0 | D163: 0 | E163: 0 | F163: 0 | G163: 0 | H163: 0 | I163: =H163-G163 -> 0 | J163: =IF(I163=0,"",I163/H163) ->  | K163: =SUM(K164) -> 0
A164: Zoo's, Marine and Non-biological Animals | I164: =H164-G164 -> 0 | J164: =IF(I164=0,"",I164/H164) -> 
J165: =IF(I165=0,"",I165/H165) -> 
A166: Total Capital Expenditure on upgrading of existing assets | B166: 1 | C166: =C7+C75+C103+C110+C117+C135+C138+C148+C151+C154+C157+C160+C163 -> 0 | D166: 310000 | E166: 310000 | F166: 0 | G166: 0 | H166: 129170 | I166: =H166-G166 -> 129170 | J166: =IF(I166=0,"",I166/H166) -> 1 | K166: =K7+K75+K103+K110+K117+K135+K138+K148+K151+K154+K157+K160+K163 -> 310000
A168: =head27a -> References
A169: 1. Total Capital Expenditure on new assets (SC13a) plus Total Capital Expenditure on renewal of existing assets (SC13b) plus Total Capital Expenditure on upgrading of existing assets (SC13e) must reconcile to total capital expenditure in Table C5
A171: check balance | C171: =C166+SC13a!C166+SC13b!C166-'C5-Capex'!C40 -> 0 | D171: =D166+SC13a!D166+SC13b!D166-'C5-Capex'!D40 -> 0 | E171: =E166+SC13a!E166+SC13b!E166-'C5-Capex'!E40 -> 0 | F171: =F166+SC13a!F166+SC13b!F166-'C5-Capex'!F40 -> 0 | G171: =G166+SC13a!G166+SC13b!G166-'C5-Capex'!G40 -> 0 | H171: =H166+SC13a!H166+SC13b!H166-'C5-Capex'!H40 -> 0 | K171: =K166+SC13a!K166+SC13b!K166-'C5-Capex'!K40 -> 0

Sheet SC71charts
A1: ='Template names'!B102 -> Chart C1 2021/22 Capital Expenditure Monthly Trend: actual v target
A2: Month | B2: ='SC12'!B2 -> 2020/21 | C2: ='SC12'!C3 -> Original Budget | D2: ='SC12'!D3 -> Adjusted Budget | E2: ='SC12'!E3 -> Monthly actual
A3: =LEFT('SC12'!A6,3) -> Jul | B3: ='SC12'!B6 -> 0 | C3: ='SC12'!C6 -> 5449482.74 | D3: ='SC12'!D6 -> 5449490 | E3: ='SC12'!E6 -> 0
A4: =LEFT('SC12'!A7,3) -> Aug | B4: ='SC12'!B7 -> 0 | C4: ='SC12'!C7 -> 5449482.74 | D4: ='SC12'!D7 -> 5449490 | E4: ='SC12'!E7 -> 1021106.72
A5: =LEFT('SC12'!A8,3) -> Sep | B5: ='SC12'!B8 -> 6014144.52 | C5: ='SC12'!C8 -> 5449482.74 | D5: ='SC12'!D8 -> 5449490 | E5: ='SC12'!E8 -> 5505209.65
A6: =LEFT('SC12'!A9,3) -> Oct | B6: ='SC12'!B9 -> 2043057.47 | C6: ='SC12'!C9 -> 5449482.74 | D6: ='SC12'!D9 -> 5449490 | E6: ='SC12'!E9 -> 1396329.27
A7: =LEFT('SC12'!A10,3) -> Nov | B7: ='SC12'!B10 -> 2669340.98 | C7: ='SC12'!C10 -> 5449482.74 | D7: ='SC12'!D10 -> 5449490 | E7: ='SC12'!E10 -> 2715337.03
A8: =LEFT('SC12'!A11,3) -> Dec | B8: ='SC12'!B11 -> 7680224.37 | C8: ='SC12'!C11 -> 5449482.74 | D8: ='SC12'!D11 -> 5449490 | E8: ='SC12'!E11 -> 0
A9: =LEFT('SC12'!A12,3) -> Jan | B9: ='SC12'!B12 -> 2917122.36 | C9: ='SC12'!C12 -> 5449482.74 | D9: ='SC12'!D12 -> 5449490 | E9: ='SC12'!E12 -> 0
A10: =LEFT('SC12'!A13,3) -> Feb | B10: ='SC12'!B13 -> 4447149.96 | C10: ='SC12'!C13 -> 5449482.74 | D10: ='SC12'!D13 -> 5449490 | E10: ='SC12'!E13 -> 0
A11: =LEFT('SC12'!A14,3) -> Mar | B11: ='SC12'!B14 -> 3097719.73 | C11: ='SC12'!C14 -> 5449482.74 | D11: ='SC12'!D14 -> 5449490 | E11: ='SC12'!E14 -> 0
A12: =LEFT('SC12'!A15,3) -> Apr | B12: ='SC12'!B15 -> 5493399.59 | C12: ='SC12'!C15 -> 5449482.74 | D12: ='SC12'!D15 -> 5449490 | E12: ='SC12'!E15 -> 0
A13: =LEFT('SC12'!A16,3) -> May | B13: ='SC12'!B16 -> 7993796.76 | C13: ='SC12'!C16 -> 5449482.74 | D13: ='SC12'!D16 -> 5449490 | E13: ='SC12'!E16 -> 0
A14: =LEFT('SC12'!A17,3) -> Jun | B14: ='SC12'!B17 -> 5487670.93 | C14: ='SC12'!C17 -> 5449482.86 | D14: ='SC12'!D17 -> 5449403 | E14: ='SC12'!E17 -> 0
A26: ='Template names'!B103 -> Chart C2 2021/22 Capital Expenditure: YTD actual v YTD target
A27: Month | B27: ='SC12'!F3 -> YearTD actual | C27: ='SC12'!G3 -> YearTD budget
A28: =LEFT('SC12'!A6,3) -> Jul | B28: ='SC12'!F6 ->  | C28: ='SC12'!G6 -> 5449490
A29: =LEFT('SC12'!A7,3) -> Aug | B29: ='SC12'!F7 ->  | C29: ='SC12'!G7 -> 10898980
A30: =LEFT('SC12'!A8,3) -> Sep | B30: ='SC12'!F8 ->  | C30: ='SC12'!G8 -> 16348470
A31: =LEFT('SC12'!A9,3) -> Oct | B31: ='SC12'!F9 ->  | C31: ='SC12'!G9 -> 21797960
A32: =LEFT('SC12'!A10,3) -> Nov | B32: ='SC12'!F10 ->  | C32: ='SC12'!G10 -> 27247450
A33: =LEFT('SC12'!A11,3) -> Dec | B33: ='SC12'!F11 ->  | C33: ='SC12'!G11 -> 32696940
A34: =LEFT('SC12'!A12,3) -> Jan | B34: ='SC12'!F12 ->  | C34: ='SC12'!G12 -> 38146430
A35: =LEFT('SC12'!A13,3) -> Feb | B35: ='SC12'!F13 ->  | C35: ='SC12'!G13 -> 43595920
A36: =LEFT('SC12'!A14,3) -> Mar | B36: ='SC12'!F14 ->  | C36: ='SC12'!G14 -> 49045410
A37: =LEFT('SC12'!A15,3) -> Apr | B37: ='SC12'!F15 ->  | C37: ='SC12'!G15 -> 54494900
A38: =LEFT('SC12'!A16,3) -> May | B38: ='SC12'!F16 ->  | C38: ='SC12'!G16 -> 59944390
A39: =LEFT('SC12'!A17,3) -> Jun | B39: ='SC12'!F17 ->  | C39: ='SC12'!G17 -> 65393793
A51: ='Template names'!B104 -> Chart C3 Aged Consumer Debtors Analysis
B52: ='SC3'!C3 -> 0-30 Days | C52: ='SC3'!D3 -> 31-60 Days | D52: ='SC3'!E3 -> 61-90 Days | E52: ='SC3'!F3 -> 91-120 Days | F52: ='SC3'!G3 -> 121-150 Dys | G52: ='SC3'!H3 -> 151-180 Dys | H52: ='SC3'!I3 -> 181 Dys-1 Yr | I52: ='SC3'!J3 -> Over 1Yr
A53: =Head2 -> Budget Year 2021/22 | B53: ='SC3'!C14 -> 2873804 | C53: ='SC3'!D14 -> 2862716 | D53: ='SC3'!E14 -> 2715745 | E53: ='SC3'!F14 -> 110657353 | F53: ='SC3'!G14 -> 0 | G53: ='SC3'!H14 -> 0 | H53: ='SC3'!I14 -> 0 | I53: ='SC3'!J14 -> 0
A54: =Head1 -> 2020/21 | B54: ='SC3'!C15 -> 0 | C54: ='SC3'!D15 -> 0 | D54: ='SC3'!E15 -> 0 | E54: ='SC3'!F15 -> 0 | F54: ='SC3'!G15 -> 0 | G54: ='SC3'!H15 -> 0 | H54: ='SC3'!I15 -> 0 | I54: ='SC3'!J15 -> 0
A76: ='Template names'!B105 -> Chart C4 Consumer Debtors (total by Debtor Customer Category)
B77: =Head1 -> 2020/21 | C77: =Head2 -> Budget Year 2021/22
A78: ='SC3'!A17 -> Organs of State | B78: =C78*0.97 -> 0 | C78: ='SC3'!K17 -> 0
A79: ='SC3'!A18 -> Commercial | B79: =C79*0.97 -> 0 | C79: ='SC3'!K18 -> 0
A80: ='SC3'!A19 -> Households | B80: =C80*0.97 -> 0 | C80: ='SC3'!K19 -> 0
A81: ='SC3'!A20 -> Other | B81: =C81*0.97 -> 0 | C81: ='SC3'!K20 -> 0
A101: ='Template names'!B106 -> Chart C5 Aged Creditors Analysis
